Workbook

Sheet Table of Contents
C3: Sheet Tab | D3: Description | E3: Author
B4: 1 | C4: Table of Contents
B5: 2 | C5: Monthly Prices
B6: 3 | C6: Base Sheet
B7: 4 | C7: Offset Chart
B8: 5 | C8: Scatter
B9: 6 | C9: Distribution Chart
B10: 7 | C10: Distribution Chart 1
B11: 8 | C11: 12 Month Moving Volatility
B12: 9 | C12: Chart6
B13: 10 | C13: Volatility
B14: 11 | C14: Distributions
B15: 12 | C15: regression
B16: 13 | C16: Offset
B17: 14 | C17: Misc
B18: 15 | C18: Chart with NA Method
B20: File Name: | D20: C:\Users\Monika\Documents\Courses\Chapter 1. Models and Analysis\8. Data Retrivial\Commodity Price Analysis.xlsm
B22: Colour Codes
B24: Last Save Date
B25: Last Save By
B28: General Page | D28: http://www.worldbank.org/en/research/commodity-markets
B29: Current Download | D29: https://thedocs.worldbank.org/en/doc/5d903e848db1d1b83e0ec8f744e55570-0350012021/related/CMO-Historical-Data-Monthly.xlsx
D30: https://thedocs.worldbank.org/en/doc/5d903e848db1d1b83e0ec8f744e55570-0350012021/related/CMO-Historical-Data-Monthly.xlsx

Sheet Download Data
N2: Forecast URL | P2: 2 | Q2: =Q10 -> http://pubdocs.worldbank.org/en/497071555972921166/CMO-April-2019-forecasts.xlsx
B3: The monthly link is the primary page -- find the link and right click and then copy it to the monthly section below
Q4: http://pubdocs.worldbank.org/en/991591476804663190/CMO-October-2016-Forecasts.xlsx
Q5: http://pubdocs.worldbank.org/en/975201485188874357/CMO-January-2017-Forecasts.xlsx
B6: Monthly | C6: https://thedocs.worldbank.org/en/doc/18675f1d1639c7a34d463f59263ba0a2-0050012025/related/CMO-Historical-Data-Monthly.xlsx | Q6: http://pubdocs.worldbank.org/en/224591469470606338/CMO-2016-Jan-Forecasts.xlsx
B7: Annual | C7: https://thedocs.worldbank.org/en/doc/5d903e848db1d1b83e0ec8f744e55570-0350012021/related/CMO-Historical-Data-Annual.xlsx | Q7: http://pubdocs.worldbank.org/en/590041469470605429/CMO-2015-Oct-Forecasts.xlsx
B8: Forecast | Q8: http://pubdocs.worldbank.org/en/406591469470604511/CMO-2015-July-Forecasts.xlsx
Q9: http://pubdocs.worldbank.org/en/524241493046966255/CMO-April-2017-Forecasts.xlsx
B10: Supplements | Q10: http://pubdocs.worldbank.org/en/497071555972921166/CMO-April-2019-forecasts.xlsx
B12: Website where you can find the link above
C13: https://www.worldbank.org/en/research/commodity-markets#1
C14: h+C42ttp://www.worldbank.org/en/research/commodity-markets
F17: http://www.worldbank.org/en/research/commodity-markets#3 | G17: Forecast Achive
F18: http://www.worldbank.org/en/research/commodity-markets | G18: Pink Data Sheet
F19: http://www.worldbank.org/en/research/commodity-markets | G19: General Page
B22: To Find Forecasts in PDF, Go to Website and get PDF
B24: Website | C24: h+C42ttp://www.worldbank.org/en/research/commodity-markets
B26: Use PDF to Excel to Convert

Sheet Monthly Historic Chart
M1: Series 1
M2: Series 2
M4: Start
M6: End

Sheet Prices for Graph
G3: Index Num | T3: Offset Parameters
C4: First Series | G4: 7 | I4: =INDEX('Monthly Prices'!B5:CB5,$G$4)&" "&INDEX('Monthly Prices'!B6:CE6,G4) -> Natural gas, US ($/mmbtu) | K4: Begin | M4: 747 | N4: =INDEX($D$20:$D$766,M4) -> 2022-03-01 | U4: =INDEX('Monthly Prices'!$B$5:$CB$5,G4) -> Natural gas, US | V4: =INDEX('Monthly Prices'!$B$5:$CB$5,G5) -> Natural gas, Europe
C5: Second Series | G5: 8 | I5: =INDEX('Monthly Prices'!B5:CB5,$G$5)&" "&INDEX('Monthly Prices'!B6:CE6,G5) -> Natural gas, Europe ($/mmbtu) | K5: End | M5: 782 | N5: =INDEX($D$20:$D$1000,M5) -> 2025-02-01 | U5: First | V5: Second
T6: Row | U6: =M4 -> 747 | V6: =U6 -> 747
T7: Column | U7: =G4 -> 7 | V7: =G5 -> 8
C8: Correlation | E8: =CORREL(First,Second) -> 0.8967382632 | T8: Height | U8: =M5-M4+1 -> 36 | V8: =U8 -> 36
T9: Width | U9: 1 | V9: 1
C10: Number Analysed | E10: =COUNTIF(H20:H664,TRUE) -> 0
C12: Last Row | E12: =MATCH(N5,D20:D815,0) -> 782 | K12: =INDEX(B$3:B$16,K13) ->  | N12: =INDEX(B$3:B$16,N13) ->  | T12: Graph Titles
C13: ="Last Value of "&J18 -> Last Value of Natural gas, US | E13: =INDEX(K20:K815,E12) -> 4.1281 | K13: =MATCH(TRUE,J$3:J$16,0) ->  | N13: =MATCH(TRUE,M$3:M$16) -> 
C14: ="Last Value of "&M18 -> Last Value of Natural gas, Europe | E14: =INDEX(N20:N815,E12-1) -> 15.37614397 | T14: =I4 -> Natural gas, US ($/mmbtu) | V14: Volatility | W14: =V17 -> 0.7256978107 | X14: US CPI Rate | Z14: =CHAR(13) ->  | AD14: =I5 -> Natural gas, Europe ($/mmbtu) | AF14: Volatility | AG14: =W17 -> 0.674612906 | AI14: Correlation | AK14: =E8 -> 0.8967382632 | AL14: =CHAR(13) ->  | AM14: =C13 -> Last Value of Natural gas, US | AO14: =E13 -> 4.1281 | AP14: =C14 -> Last Value of Natural gas, Europe | AQ14: =E14 -> 15.37614397
AB16: =MAX(AB20:AB815) -> 2025-02-01 | AC16: =MATCH(AB16,AB20:AB815,0) -> 782
C17: Apply Real | E17: TRUE | V17: =_xlfn.STDEV.S(V21:V815)*(12^0.5) -> 0.7256978107 | W17: =_xlfn.STDEV.S(W21:W815)*(12^0.5) -> 0.674612906 | AB17: Last infl | AC17: =INDEX(Z20:Z815,AC16) -> 10.81273804
C18: Date | D18: Date | E18: Number | F18: First Date Switch | G18: Last Date Switch | H18: Combined Date Switch | I18: Date NA | J18: =U4 -> Natural gas, US | K18: =I4& " N/A" -> Natural gas, US ($/mmbtu) N/A | L18: Number Test | M18: =V4 -> Natural gas, Europe | N18: =I5 -> Natural gas, Europe ($/mmbtu) | O18: Number Test | P18: Year | Q18: Nominal Oil Price | R18: Nominal Annual | S18: Real Oil Price | T18: Inflation Index | U18: Inflation Rate Applied | V18: =K18& " Pct Change" -> Natural gas, US ($/mmbtu) N/A Pct Change | W18: =N18&" Pct Change" -> Natural gas, Europe ($/mmbtu) Pct Change | X18: US CPI from Sheet | Y18: US CPI Monthly | Z18: Deflator Index | AA18: Date Text Length | AB18: Date without Blanks | AC18: Inflation Recripricoal
U19: =E17 -> TRUE | Z19: 1
C20: ='Monthly Prices'!A8 -> 1960M02 | D20: 1960-01-01 | E20: 1 | F20: =AND(E20>=$M$4,L20) -> FALSE | G20: =AND(E20<=$M$5,O20) -> TRUE | H20: =AND(F20:G20) -> FALSE | I20: =IF(H20,D20,NA) ->  | J20: =INDEX('Monthly Prices'!B8:CB8,$G$4) -> 0.14 | K20: =IF(H20,INDEX('Monthly Prices'!B8:CB8,$G$4)*U20,FALSE) -> FALSE | L20: =AND(ISNUMBER(J20),J20>0) -> TRUE | M20: =INDEX('Monthly Prices'!B8:CB8,$G$5) -> 0.4047739963 | N20: =IF(H20,INDEX('Monthly Prices'!B8:CB8,$G$5)*U20,FALSE) -> FALSE | O20: =AND(ISNUMBER(M20),M20>0) -> TRUE | P20: =YEAR(D20) -> 1960 | Q20: ='Monthly Prices'!B8 -> 1.630000114 | R20: =AVERAGEIF(P:P,P20,Q:Q) -> 1.625000105 | S20: =_xlfn.XLOOKUP(P20,'Annual Real'!A:A,'Annual Real'!B:B,0,0) -> 8.514978123 | T20: =AC20 -> 10.80346857 | U20: =IF($U$19,T20,1) -> 10.80346857 | X20: =LOOKUP(D20,INDIRECT("'"&$X$14&"'!A:A"),INDIRECT("'"&$X$14&"'!B:B"))/100 -> 0.01034483 | Y20: =(1+X20)^(1/12)-1 -> 0.0008580085811 | Z20: =Z19*(1+Y20) -> 1.000858009 | AA20: =LEN(C20) -> 7 | AB20: =IF(AA20>2,D20,0) -> 1960-01-01 | AC20: =$AC$17/Z20 -> 10.80346857 | AE20: 12 Month Rolling Volatility | AH20: =T14 -> Natural gas, US ($/mmbtu) | AK20: Volatility over Period | AM20: =#REF! ->  | AN20: Annual Volatilty | AP20: =#REF! -> 
C21: ='Monthly Prices'!A9 -> 1960M03 | D21: =EDATE(D20,1) -> 1960-02-01 | E21: =E20+1 -> 2 | F21: FALSE | G21: TRUE | H21: FALSE | J21: =INDEX('Monthly Prices'!B9:CB9,$G$4) -> 0.14 | K21: =IF(H21,INDEX('Monthly Prices'!B9:CB9,$G$4)*U21,FALSE) -> FALSE | L21: =ISNUMBER(J21) -> TRUE | M21: =INDEX('Monthly Prices'!B9:CB9,$G$5) -> 0.4047739963 | N21: =IF(H21,INDEX('Monthly Prices'!B9:CB9,$G$5)*U21,FALSE) -> FALSE | O21: TRUE | P21: =YEAR(D21) -> 1960 | Q21: ='Monthly Prices'!B9 -> 1.630000114 | R21: =AVERAGEIF(P:P,P21,Q:Q) -> 1.625000105 | S21: =_xlfn.XLOOKUP(P21,'Annual Real'!A:A,'Annual Real'!B:B,0,0) -> 8.514978123 | T21: =AC21 -> 10.78803687 | U21: =IF($U$19,T21,1) -> 10.78803687 | V21: =IF(AND($H20,$H21),LN(K21/K20)) -> FALSE | W21: =IF(AND($H20,$H21),LN(N21/N20)) -> FALSE | X21: =LOOKUP(D21,INDIRECT("'"&$X$14&"'!A:A"),INDIRECT("'"&$X$14&"'!B:B"))/100 -> 0.01730104 | Y21: =(1+X21)^(1/12)-1 -> 0.00143044554 | Z21: =Z20*(1+Y21) -> 1.002289681 | AA21: =LEN(C21) -> 7 | AB21: =IF(AA21>2,D21,0) -> 1960-02-01 | AC21: =$AC$17/Z21 -> 10.78803687 | AE21: 12 Month Rolling Volatility | AH21: =I5 -> Natural gas, Europe ($/mmbtu) | AK21: Volatility over Period | AM21: =#REF! ->  | AN21: Annual Volatilty | AP21: =#REF! -> 
C22: ='Monthly Prices'!A10 -> 1960M04 | D22: 1960-03-01 | E22: 3 | F22: FALSE | G22: TRUE | H22: FALSE | J22: =INDEX('Monthly Prices'!B10:CB10,$G$4) -> 0.14 | K22: =IF(H22,INDEX('Monthly Prices'!B10:CB10,$G$4)*U22,FALSE) -> FALSE | L22: TRUE | M22: =INDEX('Monthly Prices'!B10:CB10,$G$5) -> 0.4047739963 | N22: =IF(H22,INDEX('Monthly Prices'!B10:CB10,$G$5)*U22,FALSE) -> FALSE | O22: TRUE | P22: 1960 | Q22: ='Monthly Prices'!B10 -> 1.630000114 | R22: 1.625000105 | S22: =_xlfn.XLOOKUP(P22,'Annual Real'!A:A,'Annual Real'!B:B,0,0) -> 8.514978123 | T22: 10.77262721 | U22: 10.77262721 | V22: =IF(AND(H21,H22),LN(K22/K21)) -> FALSE | W22: =IF(AND($H21,$H22),LN(N22/N21)) -> FALSE | X22: 0.01730104 | Y22: 0.00143044554 | Z22: 1.003723402 | AA22: 7 | AB22: 1960-03-01 | AC22: 10.77262721
C23: ='Monthly Prices'!A11 -> 1960M05 | D23: 1960-04-01 | E23: 4 | F23: FALSE | G23: TRUE | H23: FALSE | J23: =INDEX('Monthly Prices'!B11:CB11,$G$4) -> 0.14 | K23: =IF(H23,INDEX('Monthly Prices'!B11:CB11,$G$4)*U23,FALSE) -> FALSE | L23: TRUE | M23: =INDEX('Monthly Prices'!B11:CB11,$G$5) -> 0.4047739963 | N23: =IF(H23,INDEX('Monthly Prices'!B11:CB11,$G$5)*U23,FALSE) -> FALSE | O23: TRUE | P23: 1960 | Q23: ='Monthly Prices'!B11 -> 1.630000114 | R23: 1.625000105 | S23: =_xlfn.XLOOKUP(P23,'Annual Real'!A:A,'Annual Real'!B:B,0,0) -> 8.514978123 | T23: 10.75729214 | U23: 10.75729214 | V23: FALSE | W23: FALSE | X23: 0.01724138 | Y23: 0.001425551303 | Z23: 1.005154261 | AA23: 7 | AB23: 1960-04-01 | AC23: 10.75729214 | AE23: Distribution Analysis | AH23: =AH20 -> Natural gas, US ($/mmbtu)
C24: ='Monthly Prices'!A12 -> 1960M06 | D24: 1960-05-01 | E24: 5 | F24: FALSE | G24: TRUE | H24: FALSE | J24: =INDEX('Monthly Prices'!B12:CB12,$G$4) -> 0.14 | K24: =IF(H24,INDEX('Monthly Prices'!B12:CB12,$G$4)*U24,FALSE) -> FALSE | L24: TRUE | M24: =INDEX('Monthly Prices'!B12:CB12,$G$5) -> 0.4047739963 | N24: =IF(H24,INDEX('Monthly Prices'!B12:CB12,$G$5)*U24,FALSE) -> FALSE | O24: TRUE | P24: 1960 | Q24: ='Monthly Prices'!B12 -> 1.630000114 | R24: 1.625000105 | S24: =_xlfn.XLOOKUP(P24,'Annual Real'!A:A,'Annual Real'!B:B,0,0) -> 8.514978123 | T24: 10.7419789 | U24: 10.7419789 | V24: FALSE | W24: FALSE | X24: 0.01724138 | Y24: 0.001425551303 | Z24: 1.00658716 | AA24: 7 | AB24: 1960-05-01 | AC24: 10.7419789
C25: ='Monthly Prices'!A13 -> 1960M07 | D25: 1960-06-01 | E25: 6 | F25: FALSE | G25: TRUE | H25: FALSE | J25: =INDEX('Monthly Prices'!B13:CB13,$G$4) -> 0.14 | K25: =IF(H25,INDEX('Monthly Prices'!B13:CB13,$G$4)*U25,FALSE) -> FALSE | L25: TRUE | M25: =INDEX('Monthly Prices'!B13:CB13,$G$5) -> 0.4047739963 | N25: =IF(H25,INDEX('Monthly Prices'!B13:CB13,$G$5)*U25,FALSE) -> FALSE | O25: TRUE | P25: 1960 | Q25: ='Monthly Prices'!B13 -> 1.630000114 | R25: 1.625000105 | S25: =_xlfn.XLOOKUP(P25,'Annual Real'!A:A,'Annual Real'!B:B,0,0) -> 8.514978123 | T25: 10.72673952 | U25: 10.72673952 | V25: FALSE | W25: FALSE | X25: 0.01718213 | Y25: 0.001420690441 | Z25: 1.008017209 | AA25: 7 | AB25: 1960-06-01 | AC25: 10.72673952
C26: ='Monthly Prices'!A14 -> 1960M08 | D26: 1960-07-01 | E26: 7 | F26: FALSE | G26: TRUE | H26: FALSE | J26: =INDEX('Monthly Prices'!B14:CB14,$G$4) -> 0.14 | K26: =IF(H26,INDEX('Monthly Prices'!B14:CB14,$G$4)*U26,FALSE) -> FALSE | L26: TRUE | M26: =INDEX('Monthly Prices'!B14:CB14,$G$5) -> 0.4047739963 | N26: =IF(H26,INDEX('Monthly Prices'!B14:CB14,$G$5)*U26,FALSE) -> FALSE | O26: TRUE | P26: 1960 | Q26: ='Monthly Prices'!B14 -> 1.630000114 | R26: 1.625000105 | S26: =_xlfn.XLOOKUP(P26,'Annual Real'!A:A,'Annual Real'!B:B,0,0) -> 8.514978123 | T26: 10.71458439 | U26: 10.71458439 | V26: FALSE | W26: FALSE | X26: 0.01369863 | Y26: 0.001134447326 | Z26: 1.009160752 | AA26: 7 | AB26: 1960-07-01 | AC26: 10.71458439
C27: ='Monthly Prices'!A15 -> 1960M09 | D27: 1960-08-01 | E27: 8 | F27: FALSE | G27: TRUE | H27: FALSE | J27: =INDEX('Monthly Prices'!B15:CB15,$G$4) -> 0.14 | K27: =IF(H27,INDEX('Monthly Prices'!B15:CB15,$G$4)*U27,FALSE) -> FALSE | L27: TRUE | M27: =INDEX('Monthly Prices'!B15:CB15,$G$5) -> 0.4047739963 | N27: =IF(H27,INDEX('Monthly Prices'!B15:CB15,$G$5)*U27,FALSE) -> FALSE | O27: TRUE | P27: 1960 | Q27: ='Monthly Prices'!B15 -> 1.630000114 | R27: 1.625000105 | S27: =_xlfn.XLOOKUP(P27,'Annual Real'!A:A,'Annual Real'!B:B,0,0) -> 8.514978123 | T27: 10.70244303 | U27: 10.70244303 | V27: FALSE | W27: FALSE | X27: 0.01369863 | Y27: 0.001134447326 | Z27: 1.010305591 | AA27: 7 | AB27: 1960-08-01 | AC27: 10.70244303 | AE27: =AE23 -> Distribution Analysis | AH27: =AH21 -> Natural gas, Europe ($/mmbtu)
C28: ='Monthly Prices'!A16 -> 1960M10 | D28: 1960-09-01 | E28: 9 | F28: FALSE | G28: TRUE | H28: FALSE | J28: =INDEX('Monthly Prices'!B16:CB16,$G$4) -> 0.14 | K28: =IF(H28,INDEX('Monthly Prices'!B16:CB16,$G$4)*U28,FALSE) -> FALSE | L28: TRUE | M28: =INDEX('Monthly Prices'!B16:CB16,$G$5) -> 0.4047739963 | N28: =IF(H28,INDEX('Monthly Prices'!B16:CB16,$G$5)*U28,FALSE) -> FALSE | O28: TRUE | P28: 1960 | Q28: ='Monthly Prices'!B16 -> 1.630000114 | R28: 1.625000105 | S28: =_xlfn.XLOOKUP(P28,'Annual Real'!A:A,'Annual Real'!B:B,0,0) -> 8.514978123 | T28: 10.69336154 | U28: 10.69336154 | V28: FALSE | W28: FALSE | X28: 0.01023891 | Y28: 0.0008492643739 | Z28: 1.011163608 | AA28: 7 | AB28: 1960-09-01 | AC28: 10.69336154
C29: ='Monthly Prices'!A17 -> 1960M11 | D29: 1960-10-01 | E29: 10 | F29: FALSE | G29: TRUE | H29: FALSE | J29: =INDEX('Monthly Prices'!B17:CB17,$G$4) -> 0.14 | K29: =IF(H29,INDEX('Monthly Prices'!B17:CB17,$G$4)*U29,FALSE) -> FALSE | L29: TRUE | M29: =INDEX('Monthly Prices'!B17:CB17,$G$5) -> 0.4047739963 | N29: =IF(H29,INDEX('Monthly Prices'!B17:CB17,$G$5)*U29,FALSE) -> FALSE | O29: TRUE | P29: 1960 | Q29: ='Monthly Prices'!B17 -> 1.630000114 | R29: 1.625000105 | S29: =_xlfn.XLOOKUP(P29,'Annual Real'!A:A,'Annual Real'!B:B,0,0) -> 8.514978123 | T29: 10.68132606 | U29: 10.68132606 | V29: FALSE | W29: FALSE | X29: 0.01360544 | Y29: 0.001126777422 | Z29: 1.012302964 | AA29: 7 | AB29: 1960-10-01 | AC29: 10.68132606
C30: ='Monthly Prices'!A18 -> 1960M12 | D30: 1960-11-01 | E30: 11 | F30: FALSE | G30: TRUE | H30: FALSE | J30: =INDEX('Monthly Prices'!B18:CB18,$G$4) -> 0.14 | K30: =IF(H30,INDEX('Monthly Prices'!B18:CB18,$G$4)*U30,FALSE) -> FALSE | L30: TRUE | M30: =INDEX('Monthly Prices'!B18:CB18,$G$5) -> 0.4047739963 | N30: =IF(H30,INDEX('Monthly Prices'!B18:CB18,$G$5)*U30,FALSE) -> FALSE | O30: TRUE | P30: 1960 | Q30: ='Monthly Prices'!B18 -> 1.630000114 | R30: 1.625000105 | S30: =_xlfn.XLOOKUP(P30,'Annual Real'!A:A,'Annual Real'!B:B,0,0) -> 8.514978123 | T30: 10.66930413 | U30: 10.66930413 | V30: FALSE | W30: FALSE | X30: 0.01360544 | Y30: 0.001126777422 | Z30: 1.013443604 | AA30: 7 | AB30: 1960-11-01 | AC30: 10.66930413
C31: ='Monthly Prices'!A19 -> 1961M01 | D31: 1960-12-01 | E31: 12 | F31: FALSE | G31: TRUE | H31: FALSE | J31: =INDEX('Monthly Prices'!B19:CB19,$G$4) -> 0.15 | K31: =IF(H31,INDEX('Monthly Prices'!B19:CB19,$G$4)*U31,FALSE) -> FALSE | L31: TRUE | M31: =INDEX('Monthly Prices'!B19:CB19,$G$5) -> 0.4047739963 | N31: =IF(H31,INDEX('Monthly Prices'!B19:CB19,$G$5)*U31,FALSE) -> FALSE | O31: TRUE | P31: 1960 | Q31: ='Monthly Prices'!B19 -> 1.57 | R31: 1.625000105 | S31: =_xlfn.XLOOKUP(P31,'Annual Real'!A:A,'Annual Real'!B:B,0,0) -> 8.514978123 | T31: 10.65729573 | U31: 10.65729573 | V31: FALSE | W31: FALSE | X31: 0.01360544 | Y31: 0.001126777422 | Z31: 1.01458553 | AA31: 7 | AB31: 1960-12-01 | AC31: 10.65729573
C32: ='Monthly Prices'!A20 -> 1961M02 | D32: 1961-01-01 | E32: 13 | F32: FALSE | G32: TRUE | H32: FALSE | J32: =INDEX('Monthly Prices'!B20:CB20,$G$4) -> 0.15 | K32: =IF(H32,INDEX('Monthly Prices'!B20:CB20,$G$4)*U32,FALSE) -> FALSE | L32: TRUE | M32: =INDEX('Monthly Prices'!B20:CB20,$G$5) -> 0.4047739963 | N32: =IF(H32,INDEX('Monthly Prices'!B20:CB20,$G$5)*U32,FALSE) -> FALSE | O32: TRUE | P32: 1961 | Q32: ='Monthly Prices'!B20 -> 1.57 | R32: 1.565833333 | S32: =_xlfn.XLOOKUP(P32,'Annual Real'!A:A,'Annual Real'!B:B,0,0) -> 8.045024778 | T32: 10.64227875 | U32: 10.64227875 | V32: FALSE | W32: FALSE | X32: 0.01706485 | Y32: 0.001411068039 | Z32: 1.016017179 | AA32: 7 | AB32: 1961-01-01 | AC32: 10.64227875
C33: ='Monthly Prices'!A21 -> 1961M03 | D33: 1961-02-01 | E33: 14 | F33: FALSE | G33: TRUE | H33: FALSE | J33: =INDEX('Monthly Prices'!B21:CB21,$G$4) -> 0.15 | K33: =IF(H33,INDEX('Monthly Prices'!B21:CB21,$G$4)*U33,FALSE) -> FALSE | L33: TRUE | M33: =INDEX('Monthly Prices'!B21:CB21,$G$5) -> 0.4047739963 | N33: =IF(H33,INDEX('Monthly Prices'!B21:CB21,$G$5)*U33,FALSE) -> FALSE | O33: TRUE | P33: 1961 | Q33: ='Monthly Prices'!B21 -> 1.57 | R33: 1.565833333 | S33: =_xlfn.XLOOKUP(P33,'Annual Real'!A:A,'Annual Real'!B:B,0,0) -> 8.045024778 | T33: 10.63030077 | U33: 10.63030077 | V33: FALSE | W33: FALSE | X33: 0.01360544 | Y33: 0.001126777422 | Z33: 1.017162004 | AA33: 7 | AB33: 1961-02-01 | AC33: 10.63030077
C34: ='Monthly Prices'!A22 -> 1961M04 | D34: 1961-03-01 | E34: 15 | F34: FALSE | G34: TRUE | H34: FALSE | J34: =INDEX('Monthly Prices'!B22:CB22,$G$4) -> 0.15 | K34: =IF(H34,INDEX('Monthly Prices'!B22:CB22,$G$4)*U34,FALSE) -> FALSE | L34: TRUE | M34: =INDEX('Monthly Prices'!B22:CB22,$G$5) -> 0.4047739963 | N34: =IF(H34,INDEX('Monthly Prices'!B22:CB22,$G$5)*U34,FALSE) -> FALSE | O34: TRUE | P34: 1961 | Q34: ='Monthly Prices'!B22 -> 1.57 | R34: 1.565833333 | S34: =_xlfn.XLOOKUP(P34,'Annual Real'!A:A,'Annual Real'!B:B,0,0) -> 8.045024778 | T34: 10.61833627 | U34: 10.61833627 | V34: FALSE | W34: FALSE | X34: 0.01360544 | Y34: 0.001126777422 | Z34: 1.018308119 | AA34: 7 | AB34: 1961-03-01 | AC34: 10.61833627
C35: ='Monthly Prices'!A23 -> 1961M05 | D35: 1961-04-01 | E35: 16 | F35: FALSE | G35: TRUE | H35: FALSE | J35: =INDEX('Monthly Prices'!B23:CB23,$G$4) -> 0.15 | K35: =IF(H35,INDEX('Monthly Prices'!B23:CB23,$G$4)*U35,FALSE) -> FALSE | L35: TRUE | M35: =INDEX('Monthly Prices'!B23:CB23,$G$5) -> 0.4047739963 | N35: =IF(H35,INDEX('Monthly Prices'!B23:CB23,$G$5)*U35,FALSE) -> FALSE | O35: TRUE | P35: 1961 | Q35: ='Monthly Prices'!B23 -> 1.57 | R35: 1.565833333 | S35: =_xlfn.XLOOKUP(P35,'Annual Real'!A:A,'Annual Real'!B:B,0,0) -> 8.045024778 | T35: 10.6093869 | U35: 10.6093869 | V35: FALSE | W35: FALSE | X35: 0.01016949 | Y35: 0.0008435329619 | Z35: 1.019167096 | AA35: 7 | AB35: 1961-04-01 | AC35: 10.6093869
C36: ='Monthly Prices'!A24 -> 1961M06 | D36: 1961-05-01 | E36: 17 | F36: FALSE | G36: TRUE | H36: FALSE | J36: =INDEX('Monthly Prices'!B24:CB24,$G$4) -> 0.15 | K36: =IF(H36,INDEX('Monthly Prices'!B24:CB24,$G$4)*U36,FALSE) -> FALSE | L36: TRUE | M36: =INDEX('Monthly Prices'!B24:CB24,$G$5) -> 0.4047739963 | N36: =IF(H36,INDEX('Monthly Prices'!B24:CB24,$G$5)*U36,FALSE) -> FALSE | O36: TRUE | P36: 1961 | Q36: ='Monthly Prices'!B24 -> 1.57 | R36: 1.565833333 | S36: =_xlfn.XLOOKUP(P36,'Annual Real'!A:A,'Annual Real'!B:B,0,0) -> 8.045024778 | T36: 10.60044508 | U36: 10.60044508 | V36: FALSE | W36: FALSE | X36: 0.01016949 | Y36: 0.0008435329619 | Z36: 1.020026797 | AA36: 7 | AB36: 1961-05-01 | AC36: 10.60044508
C37: ='Monthly Prices'!A25 -> 1961M07 | D37: 1961-06-01 | E37: 18 | F37: FALSE | G37: TRUE | H37: FALSE | J37: =INDEX('Monthly Prices'!B25:CB25,$G$4) -> 0.15 | K37: =IF(H37,INDEX('Monthly Prices'!B25:CB25,$G$4)*U37,FALSE) -> FALSE | L37: TRUE | M37: =INDEX('Monthly Prices'!B25:CB25,$G$5) -> 0.4047739963 | N37: =IF(H37,INDEX('Monthly Prices'!B25:CB25,$G$5)*U37,FALSE) -> FALSE | O37: TRUE | P37: 1961 | Q37: ='Monthly Prices'!B25 -> 1.57 | R37: 1.565833333 | S37: =_xlfn.XLOOKUP(P37,'Annual Real'!A:A,'Annual Real'!B:B,0,0) -> 8.045024778 | T37: 10.5944981 | U37: 10.5944981 | V37: FALSE | W37: FALSE | X37: 0.006756757 | Y37: 0.0005613268536 | Z37: 1.020599365 | AA37: 7 | AB37: 1961-06-01 | AC37: 10.5944981
C38: ='Monthly Prices'!A26 -> 1961M08 | D38: 1961-07-01 | E38: 19 | F38: FALSE | G38: TRUE | H38: FALSE | J38: =INDEX('Monthly Prices'!B26:CB26,$G$4) -> 0.15 | K38: =IF(H38,INDEX('Monthly Prices'!B26:CB26,$G$4)*U38,FALSE) -> FALSE | L38: TRUE | M38: =INDEX('Monthly Prices'!B26:CB26,$G$5) -> 0.4047739963 | N38: =IF(H38,INDEX('Monthly Prices'!B26:CB26,$G$5)*U38,FALSE) -> FALSE | O38: TRUE | P38: 1961 | Q38: ='Monthly Prices'!B26 -> 1.57 | R38: 1.565833333 | S38: =_xlfn.XLOOKUP(P38,'Annual Real'!A:A,'Annual Real'!B:B,0,0) -> 8.045024778 | T38: 10.58265388 | U38: 10.58265388 | V38: FALSE | W38: FALSE | X38: 0.01351351 | Y38: 0.001119210588 | Z38: 1.021741631 | AA38: 7 | AB38: 1961-07-01 | AC38: 10.58265388
C39: ='Monthly Prices'!A27 -> 1961M09 | D39: 1961-08-01 | E39: 20 | F39: FALSE | G39: TRUE | H39: FALSE | J39: =INDEX('Monthly Prices'!B27:CB27,$G$4) -> 0.15 | K39: =IF(H39,INDEX('Monthly Prices'!B27:CB27,$G$4)*U39,FALSE) -> FALSE | L39: TRUE | M39: =INDEX('Monthly Prices'!B27:CB27,$G$5) -> 0.4047739963 | N39: =IF(H39,INDEX('Monthly Prices'!B27:CB27,$G$5)*U39,FALSE) -> FALSE | O39: TRUE | P39: 1961 | Q39: ='Monthly Prices'!B27 -> 1.57 | R39: 1.565833333 | S39: =_xlfn.XLOOKUP(P39,'Annual Real'!A:A,'Annual Real'!B:B,0,0) -> 8.045024778 | T39: 10.57376455 | U39: 10.57376455 | V39: FALSE | W39: FALSE | X39: 0.01013514 | Y39: 0.0008406968445 | Z39: 1.022600606 | AA39: 7 | AB39: 1961-08-01 | AC39: 10.57376455
C40: ='Monthly Prices'!A28 -> 1961M10 | D40: 1961-09-01 | E40: 21 | F40: FALSE | G40: TRUE | H40: FALSE | J40: =INDEX('Monthly Prices'!B28:CB28,$G$4) -> 0.15 | K40: =IF(H40,INDEX('Monthly Prices'!B28:CB28,$G$4)*U40,FALSE) -> FALSE | L40: TRUE | M40: =INDEX('Monthly Prices'!B28:CB28,$G$5) -> 0.4047739963 | N40: =IF(H40,INDEX('Monthly Prices'!B28:CB28,$G$5)*U40,FALSE) -> FALSE | O40: TRUE | P40: 1961 | Q40: ='Monthly Prices'!B28 -> 1.57 | R40: 1.565833333 | S40: =_xlfn.XLOOKUP(P40,'Annual Real'!A:A,'Annual Real'!B:B,0,0) -> 8.045024778 | T40: 10.56194351 | U40: 10.56194351 | V40: FALSE | W40: FALSE | X40: 0.01351351 | Y40: 0.001119210588 | Z40: 1.023745111 | AA40: 7 | AB40: 1961-09-01 | AC40: 10.56194351
C41: ='Monthly Prices'!A29 -> 1961M11 | D41: 1961-10-01 | E41: 22 | F41: FALSE | G41: TRUE | H41: FALSE | J41: =INDEX('Monthly Prices'!B29:CB29,$G$4) -> 0.15 | K41: =IF(H41,INDEX('Monthly Prices'!B29:CB29,$G$4)*U41,FALSE) -> FALSE | L41: TRUE | M41: =INDEX('Monthly Prices'!B29:CB29,$G$5) -> 0.4047739963 | N41: =IF(H41,INDEX('Monthly Prices'!B29:CB29,$G$5)*U41,FALSE) -> FALSE | O41: TRUE | P41: 1961 | Q41: ='Monthly Prices'!B29 -> 1.57 | R41: 1.565833333 | S41: =_xlfn.XLOOKUP(P41,'Annual Real'!A:A,'Annual Real'!B:B,0,0) -> 8.045024778 | T41: 10.55605776 | U41: 10.55605776 | V41: FALSE | W41: FALSE | X41: 0.00671141 | Y41: 0.0005575711143 | Z41: 1.024315922 | AA41: 7 | AB41: 1961-10-01 | AC41: 10.55605776
C42: ='Monthly Prices'!A30 -> 1961M12 | D42: 1961-11-01 | E42: 23 | F42: FALSE | G42: TRUE | H42: FALSE | J42: =INDEX('Monthly Prices'!B30:CB30,$G$4) -> 0.15 | K42: =IF(H42,INDEX('Monthly Prices'!B30:CB30,$G$4)*U42,FALSE) -> FALSE | L42: TRUE | M42: =INDEX('Monthly Prices'!B30:CB30,$G$5) -> 0.4047739963 | N42: =IF(H42,INDEX('Monthly Prices'!B30:CB30,$G$5)*U42,FALSE) -> FALSE | O42: TRUE | P42: 1961 | Q42: ='Monthly Prices'!B30 -> 1.57 | R42: 1.565833333 | S42: =_xlfn.XLOOKUP(P42,'Annual Real'!A:A,'Annual Real'!B:B,0,0) -> 8.045024778 | T42: 10.55017529 | U42: 10.55017529 | V42: FALSE | W42: FALSE | X42: 0.00671141 | Y42: 0.0005575711143 | Z42: 1.024887051 | AA42: 7 | AB42: 1961-11-01 | AC42: 10.55017529
C43: ='Monthly Prices'!A31 -> 1962M01 | D43: 1961-12-01 | E43: 24 | F43: FALSE | G43: TRUE | H43: FALSE | J43: =INDEX('Monthly Prices'!B31:CB31,$G$4) -> 0.16 | K43: =IF(H43,INDEX('Monthly Prices'!B31:CB31,$G$4)*U43,FALSE) -> FALSE | L43: TRUE | M43: =INDEX('Monthly Prices'!B31:CB31,$G$5) -> 0.4047739963 | N43: =IF(H43,INDEX('Monthly Prices'!B31:CB31,$G$5)*U43,FALSE) -> FALSE | O43: TRUE | P43: 1961 | Q43: ='Monthly Prices'!B31 -> 1.52 | R43: 1.565833333 | S43: =_xlfn.XLOOKUP(P43,'Annual Real'!A:A,'Annual Real'!B:B,0,0) -> 8.045024778 | T43: 10.54429609 | U43: 10.54429609 | V43: FALSE | W43: FALSE | X43: 0.00671141 | Y43: 0.0005575711143 | Z43: 1.025458498 | AA43: 7 | AB43: 1961-12-01 | AC43: 10.54429609
C44: ='Monthly Prices'!A32 -> 1962M02 | D44: 1962-01-01 | E44: 25 | F44: FALSE | G44: TRUE | H44: FALSE | J44: =INDEX('Monthly Prices'!B32:CB32,$G$4) -> 0.16 | K44: =IF(H44,INDEX('Monthly Prices'!B32:CB32,$G$4)*U44,FALSE) -> FALSE | L44: TRUE | M44: =INDEX('Monthly Prices'!B32:CB32,$G$5) -> 0.4047739963 | N44: =IF(H44,INDEX('Monthly Prices'!B32:CB32,$G$5)*U44,FALSE) -> FALSE | O44: TRUE | P44: 1962 | Q44: ='Monthly Prices'!B32 -> 1.52 | R44: 1.518333333 | S44: =_xlfn.XLOOKUP(P44,'Annual Real'!A:A,'Annual Real'!B:B,0,0) -> 7.646137774 | T44: 10.53842017 | U44: 10.53842017 | V44: FALSE | W44: FALSE | X44: 0.00671141 | Y44: 0.0005575711143 | Z44: 1.026030264 | AA44: 7 | AB44: 1962-01-01 | AC44: 10.53842017
C45: ='Monthly Prices'!A33 -> 1962M03 | D45: 1962-02-01 | E45: 26 | F45: FALSE | G45: TRUE | H45: FALSE | J45: =INDEX('Monthly Prices'!B33:CB33,$G$4) -> 0.16 | K45: =IF(H45,INDEX('Monthly Prices'!B33:CB33,$G$4)*U45,FALSE) -> FALSE | L45: TRUE | M45: =INDEX('Monthly Prices'!B33:CB33,$G$5) -> 0.4047739963 | N45: =IF(H45,INDEX('Monthly Prices'!B33:CB33,$G$5)*U45,FALSE) -> FALSE | O45: TRUE | P45: 1962 | Q45: ='Monthly Prices'!B33 -> 1.52 | R45: 1.518333333 | S45: =_xlfn.XLOOKUP(P45,'Annual Real'!A:A,'Annual Real'!B:B,0,0) -> 7.646137774 | T45: 10.5296271 | U45: 10.5296271 | V45: FALSE | W45: FALSE | X45: 0.01006711 | Y45: 0.0008350796676 | Z45: 1.026887081 | AA45: 7 | AB45: 1962-02-01 | AC45: 10.5296271
C46: ='Monthly Prices'!A34 -> 1962M04 | D46: 1962-03-01 | E46: 27 | F46: FALSE | G46: TRUE | H46: FALSE | J46: =INDEX('Monthly Prices'!B34:CB34,$G$4) -> 0.16 | K46: =IF(H46,INDEX('Monthly Prices'!B34:CB34,$G$4)*U46,FALSE) -> FALSE | L46: TRUE | M46: =INDEX('Monthly Prices'!B34:CB34,$G$5) -> 0.4047739963 | N46: =IF(H46,INDEX('Monthly Prices'!B34:CB34,$G$5)*U46,FALSE) -> FALSE | O46: TRUE | P46: 1962 | Q46: ='Monthly Prices'!B34 -> 1.52 | R46: 1.518333333 | S46: =_xlfn.XLOOKUP(P46,'Annual Real'!A:A,'Annual Real'!B:B,0,0) -> 7.646137774 | T46: 10.52084135 | U46: 10.52084135 | V46: FALSE | W46: FALSE | X46: 0.01006711 | Y46: 0.0008350796676 | Z46: 1.027744614 | AA46: 7 | AB46: 1962-03-01 | AC46: 10.52084135
C47: ='Monthly Prices'!A35 -> 1962M05 | D47: 1962-04-01 | E47: 28 | F47: FALSE | G47: TRUE | H47: FALSE | J47: =INDEX('Monthly Prices'!B35:CB35,$G$4) -> 0.16 | K47: =IF(H47,INDEX('Monthly Prices'!B35:CB35,$G$4)*U47,FALSE) -> FALSE | L47: TRUE | M47: =INDEX('Monthly Prices'!B35:CB35,$G$5) -> 0.4047739963 | N47: =IF(H47,INDEX('Monthly Prices'!B35:CB35,$G$5)*U47,FALSE) -> FALSE | O47: TRUE | P47: 1962 | Q47: ='Monthly Prices'!B35 -> 1.52 | R47: 1.518333333 | S47: =_xlfn.XLOOKUP(P47,'Annual Real'!A:A,'Annual Real'!B:B,0,0) -> 7.646137774 | T47: 10.50915785 | U47: 10.50915785 | V47: FALSE | W47: FALSE | X47: 0.01342282 | Y47: 0.001111745203 | Z47: 1.028887204 | AA47: 7 | AB47: 1962-04-01 | AC47: 10.50915785
C48: ='Monthly Prices'!A36 -> 1962M06 | D48: 1962-05-01 | E48: 29 | F48: FALSE | G48: TRUE | H48: FALSE | J48: =INDEX('Monthly Prices'!B36:CB36,$G$4) -> 0.16 | K48: =IF(H48,INDEX('Monthly Prices'!B36:CB36,$G$4)*U48,FALSE) -> FALSE | L48: TRUE | M48: =INDEX('Monthly Prices'!B36:CB36,$G$5) -> 0.4047739963 | N48: =IF(H48,INDEX('Monthly Prices'!B36:CB36,$G$5)*U48,FALSE) -> FALSE | O48: TRUE | P48: 1962 | Q48: ='Monthly Prices'!B36 -> 1.52 | R48: 1.518333333 | S48: =_xlfn.XLOOKUP(P48,'Annual Real'!A:A,'Annual Real'!B:B,0,0) -> 7.646137774 | T48: 10.49748732 | U48: 10.49748732 | V48: FALSE | W48: FALSE | X48: 0.01342282 | Y48: 0.001111745203 | Z48: 1.030031064 | AA48: 7 | AB48: 1962-05-01 | AC48: 10.49748732
C49: ='Monthly Prices'!A37 -> 1962M07 | D49: 1962-06-01 | E49: 30 | F49: FALSE | G49: TRUE | H49: FALSE | J49: =INDEX('Monthly Prices'!B37:CB37,$G$4) -> 0.16 | K49: =IF(H49,INDEX('Monthly Prices'!B37:CB37,$G$4)*U49,FALSE) -> FALSE | L49: TRUE | M49: =INDEX('Monthly Prices'!B37:CB37,$G$5) -> 0.4047739963 | N49: =IF(H49,INDEX('Monthly Prices'!B37:CB37,$G$5)*U49,FALSE) -> FALSE | O49: TRUE | P49: 1962 | Q49: ='Monthly Prices'!B37 -> 1.52 | R49: 1.518333333 | S49: =_xlfn.XLOOKUP(P49,'Annual Real'!A:A,'Annual Real'!B:B,0,0) -> 7.646137774 | T49: 10.48582975 | U49: 10.48582975 | V49: FALSE | W49: FALSE | X49: 0.01342282 | Y49: 0.001111745203 | Z49: 1.031176197 | AA49: 7 | AB49: 1962-06-01 | AC49: 10.48582975
C50: ='Monthly Prices'!A38 -> 1962M08 | D50: 1962-07-01 | E50: 31 | F50: FALSE | G50: TRUE | H50: FALSE | J50: =INDEX('Monthly Prices'!B38:CB38,$G$4) -> 0.16 | K50: =IF(H50,INDEX('Monthly Prices'!B38:CB38,$G$4)*U50,FALSE) -> FALSE | L50: TRUE | M50: =INDEX('Monthly Prices'!B38:CB38,$G$5) -> 0.4047739963 | N50: =IF(H50,INDEX('Monthly Prices'!B38:CB38,$G$5)*U50,FALSE) -> FALSE | O50: TRUE | P50: 1962 | Q50: ='Monthly Prices'!B38 -> 1.52 | R50: 1.518333333 | S50: =_xlfn.XLOOKUP(P50,'Annual Real'!A:A,'Annual Real'!B:B,0,0) -> 7.646137774 | T50: 10.47713856 | U50: 10.47713856 | V50: FALSE | W50: FALSE | X50: 0.01 | Y50: 0.0008295381143 | Z50: 1.032031597 | AA50: 7 | AB50: 1962-07-01 | AC50: 10.47713856
C51: ='Monthly Prices'!A39 -> 1962M09 | D51: 1962-08-01 | E51: 32 | F51: FALSE | G51: TRUE | H51: FALSE | J51: =INDEX('Monthly Prices'!B39:CB39,$G$4) -> 0.16 | K51: =IF(H51,INDEX('Monthly Prices'!B39:CB39,$G$4)*U51,FALSE) -> FALSE | L51: TRUE | M51: =INDEX('Monthly Prices'!B39:CB39,$G$5) -> 0.4047739963 | N51: =IF(H51,INDEX('Monthly Prices'!B39:CB39,$G$5)*U51,FALSE) -> FALSE | O51: TRUE | P51: 1962 | Q51: ='Monthly Prices'!B39 -> 1.52 | R51: 1.518333333 | S51: =_xlfn.XLOOKUP(P51,'Annual Real'!A:A,'Annual Real'!B:B,0,0) -> 7.646137774 | T51: 10.46554222 | U51: 10.46554222 | V51: FALSE | W51: FALSE | X51: 0.01337793 | Y51: 0.001108049738 | Z51: 1.033175139 | AA51: 7 | AB51: 1962-08-01 | AC51: 10.46554222
C52: ='Monthly Prices'!A40 -> 1962M10 | D52: 1962-09-01 | E52: 33 | F52: FALSE | G52: TRUE | H52: FALSE | J52: =INDEX('Monthly Prices'!B40:CB40,$G$4) -> 0.16 | K52: =IF(H52,INDEX('Monthly Prices'!B40:CB40,$G$4)*U52,FALSE) -> FALSE | L52: TRUE | M52: =INDEX('Monthly Prices'!B40:CB40,$G$5) -> 0.4047739963 | N52: =IF(H52,INDEX('Monthly Prices'!B40:CB40,$G$5)*U52,FALSE) -> FALSE | O52: TRUE | P52: 1962 | Q52: ='Monthly Prices'!B40 -> 1.52 | R52: 1.518333333 | S52: =_xlfn.XLOOKUP(P52,'Annual Real'!A:A,'Annual Real'!B:B,0,0) -> 7.646137774 | T52: 10.45399706 | U52: 10.45399706 | V52: FALSE | W52: FALSE | X52: 0.01333333 | Y52: 0.001104377998 | Z52: 1.034316155 | AA52: 7 | AB52: 1962-09-01 | AC52: 10.45399706
C53: ='Monthly Prices'!A41 -> 1962M11 | D53: 1962-10-01 | E53: 34 | F53: FALSE | G53: TRUE | H53: FALSE | J53: =INDEX('Monthly Prices'!B41:CB41,$G$4) -> 0.16 | K53: =IF(H53,INDEX('Monthly Prices'!B41:CB41,$G$4)*U53,FALSE) -> FALSE | L53: TRUE | M53: =INDEX('Monthly Prices'!B41:CB41,$G$5) -> 0.4047739963 | N53: =IF(H53,INDEX('Monthly Prices'!B41:CB41,$G$5)*U53,FALSE) -> FALSE | O53: TRUE | P53: 1962 | Q53: ='Monthly Prices'!B41 -> 1.52 | R53: 1.518333333 | S53: =_xlfn.XLOOKUP(P53,'Annual Real'!A:A,'Annual Real'!B:B,0,0) -> 7.646137774 | T53: 10.44246463 | U53: 10.44246463 | V53: FALSE | W53: FALSE | X53: 0.01333333 | Y53: 0.001104377998 | Z53: 1.035458431 | AA53: 7 | AB53: 1962-10-01 | AC53: 10.44246463
C54: ='Monthly Prices'!A42 -> 1962M12 | D54: 1962-11-01 | E54: 35 | F54: FALSE | G54: TRUE | H54: FALSE | J54: =INDEX('Monthly Prices'!B42:CB42,$G$4) -> 0.16 | K54: =IF(H54,INDEX('Monthly Prices'!B42:CB42,$G$4)*U54,FALSE) -> FALSE | L54: TRUE | M54: =INDEX('Monthly Prices'!B42:CB42,$G$5) -> 0.4047739963 | N54: =IF(H54,INDEX('Monthly Prices'!B42:CB42,$G$5)*U54,FALSE) -> FALSE | O54: TRUE | P54: 1962 | Q54: ='Monthly Prices'!B42 -> 1.52 | R54: 1.518333333 | S54: =_xlfn.XLOOKUP(P54,'Annual Real'!A:A,'Annual Real'!B:B,0,0) -> 7.646137774 | T54: 10.43094492 | U54: 10.43094492 | V54: FALSE | W54: FALSE | X54: 0.01333333 | Y54: 0.001104377998 | Z54: 1.036601968 | AA54: 7 | AB54: 1962-11-01 | AC54: 10.43094492
C55: ='Monthly Prices'!A43 -> 1963M01 | D55: 1962-12-01 | E55: 36 | F55: FALSE | G55: TRUE | H55: FALSE | J55: =INDEX('Monthly Prices'!B43:CB43,$G$4) -> 0.16 | K55: =IF(H55,INDEX('Monthly Prices'!B43:CB43,$G$4)*U55,FALSE) -> FALSE | L55: TRUE | M55: =INDEX('Monthly Prices'!B43:CB43,$G$5) -> 0.3913511379 | N55: =IF(H55,INDEX('Monthly Prices'!B43:CB43,$G$5)*U55,FALSE) -> FALSE | O55: TRUE | P55: 1962 | Q55: ='Monthly Prices'!B43 -> 1.5 | R55: 1.518333333 | S55: =_xlfn.XLOOKUP(P55,'Annual Real'!A:A,'Annual Real'!B:B,0,0) -> 7.646137774 | T55: 10.41943792 | U55: 10.41943792 | V55: FALSE | W55: FALSE | X55: 0.01333333 | Y55: 0.001104377998 | Z55: 1.037746769 | AA55: 7 | AB55: 1962-12-01 | AC55: 10.41943792
C56: ='Monthly Prices'!A44 -> 1963M02 | D56: 1963-01-01 | E56: 37 | F56: FALSE | G56: TRUE | H56: FALSE | J56: =INDEX('Monthly Prices'!B44:CB44,$G$4) -> 0.16 | K56: =IF(H56,INDEX('Monthly Prices'!B44:CB44,$G$4)*U56,FALSE) -> FALSE | L56: TRUE | M56: =INDEX('Monthly Prices'!B44:CB44,$G$5) -> 0.3913511379 | N56: =IF(H56,INDEX('Monthly Prices'!B44:CB44,$G$5)*U56,FALSE) -> FALSE | O56: TRUE | P56: 1963 | Q56: ='Monthly Prices'!B44 -> 1.5 | R56: 1.495833333 | S56: =_xlfn.XLOOKUP(P56,'Annual Real'!A:A,'Annual Real'!B:B,0,0) -> 7.686329405 | T56: 10.40794362 | U56: 10.40794362 | V56: FALSE | W56: FALSE | X56: 0.01333333 | Y56: 0.001104377998 | Z56: 1.038892833 | AA56: 7 | AB56: 1963-01-01 | AC56: 10.40794362
C57: ='Monthly Prices'!A45 -> 1963M03 | D57: 1963-02-01 | E57: 38 | F57: FALSE | G57: TRUE | H57: FALSE | J57: =INDEX('Monthly Prices'!B45:CB45,$G$4) -> 0.16 | K57: =IF(H57,INDEX('Monthly Prices'!B45:CB45,$G$4)*U57,FALSE) -> FALSE | L57: TRUE | M57: =INDEX('Monthly Prices'!B45:CB45,$G$5) -> 0.3913511379 | N57: =IF(H57,INDEX('Monthly Prices'!B45:CB45,$G$5)*U57,FALSE) -> FALSE | O57: TRUE | P57: 1963 | Q57: ='Monthly Prices'!B45 -> 1.5 | R57: 1.495833333 | S57: =_xlfn.XLOOKUP(P57,'Annual Real'!A:A,'Annual Real'!B:B,0,0) -> 7.686329405 | T57: 10.3993455 | U57: 10.3993455 | V57: FALSE | W57: FALSE | X57: 0.009966778 | Y57: 0.00082679471 | Z57: 1.039751784 | AA57: 7 | AB57: 1963-02-01 | AC57: 10.3993455
C58: ='Monthly Prices'!A46 -> 1963M04 | D58: 1963-03-01 | E58: 39 | F58: FALSE | G58: TRUE | H58: FALSE | J58: =INDEX('Monthly Prices'!B46:CB46,$G$4) -> 0.16 | K58: =IF(H58,INDEX('Monthly Prices'!B46:CB46,$G$4)*U58,FALSE) -> FALSE | L58: TRUE | M58: =INDEX('Monthly Prices'!B46:CB46,$G$5) -> 0.3913511379 | N58: =IF(H58,INDEX('Monthly Prices'!B46:CB46,$G$5)*U58,FALSE) -> FALSE | O58: TRUE | P58: 1963 | Q58: ='Monthly Prices'!B46 -> 1.5 | R58: 1.495833333 | S58: =_xlfn.XLOOKUP(P58,'Annual Real'!A:A,'Annual Real'!B:B,0,0) -> 7.686329405 | T58: 10.38791119 | U58: 10.38791119 | V58: FALSE | W58: FALSE | X58: 0.01328904 | Y58: 0.001100731633 | Z58: 1.040896272 | AA58: 7 | AB58: 1963-03-01 | AC58: 10.38791119
C59: ='Monthly Prices'!A47 -> 1963M05 | D59: 1963-04-01 | E59: 40 | F59: FALSE | G59: TRUE | H59: FALSE | J59: =INDEX('Monthly Prices'!B47:CB47,$G$4) -> 0.16 | K59: =IF(H59,INDEX('Monthly Prices'!B47:CB47,$G$4)*U59,FALSE) -> FALSE | L59: TRUE | M59: =INDEX('Monthly Prices'!B47:CB47,$G$5) -> 0.3913511379 | N59: =IF(H59,INDEX('Monthly Prices'!B47:CB47,$G$5)*U59,FALSE) -> FALSE | O59: TRUE | P59: 1963 | Q59: ='Monthly Prices'!B47 -> 1.5 | R59: 1.495833333 | S59: =_xlfn.XLOOKUP(P59,'Annual Real'!A:A,'Annual Real'!B:B,0,0) -> 7.686329405 | T59: 10.37935788 | U59: 10.37935788 | V59: FALSE | W59: FALSE | X59: 0.009933775 | Y59: 0.0008240693084 | Z59: 1.041754043 | AA59: 7 | AB59: 1963-04-01 | AC59: 10.37935788
C60: ='Monthly Prices'!A48 -> 1963M06 | D60: 1963-05-01 | E60: 41 | F60: FALSE | G60: TRUE | H60: FALSE | J60: =INDEX('Monthly Prices'!B48:CB48,$G$4) -> 0.16 | K60: =IF(H60,INDEX('Monthly Prices'!B48:CB48,$G$4)*U60,FALSE) -> FALSE | L60: TRUE | M60: =INDEX('Monthly Prices'!B48:CB48,$G$5) -> 0.3913511379 | N60: =IF(H60,INDEX('Monthly Prices'!B48:CB48,$G$5)*U60,FALSE) -> FALSE | O60: TRUE | P60: 1963 | Q60: ='Monthly Prices'!B48 -> 1.5 | R60: 1.495833333 | S60: =_xlfn.XLOOKUP(P60,'Annual Real'!A:A,'Annual Real'!B:B,0,0) -> 7.686329405 | T60: 10.37081162 | U60: 10.37081162 | V60: FALSE | W60: FALSE | X60: 0.009933775 | Y60: 0.0008240693084 | Z60: 1.04261252 | AA60: 7 | AB60: 1963-05-01 | AC60: 10.37081162
C61: ='Monthly Prices'!A49 -> 1963M07 | D61: 1963-06-01 | E61: 42 | F61: FALSE | G61: TRUE | H61: FALSE | J61: =INDEX('Monthly Prices'!B49:CB49,$G$4) -> 0.16 | K61: =IF(H61,INDEX('Monthly Prices'!B49:CB49,$G$4)*U61,FALSE) -> FALSE | L61: TRUE | M61: =INDEX('Monthly Prices'!B49:CB49,$G$5) -> 0.3913511379 | N61: =IF(H61,INDEX('Monthly Prices'!B49:CB49,$G$5)*U61,FALSE) -> FALSE | O61: TRUE | P61: 1963 | Q61: ='Monthly Prices'!B49 -> 1.5 | R61: 1.495833333 | S61: =_xlfn.XLOOKUP(P61,'Annual Real'!A:A,'Annual Real'!B:B,0,0) -> 7.686329405 | T61: 10.35944618 | U61: 10.35944618 | V61: FALSE | W61: FALSE | X61: 0.01324503 | Y61: 0.001097108175 | Z61: 1.043756379 | AA61: 7 | AB61: 1963-06-01 | AC61: 10.35944618
C62: ='Monthly Prices'!A50 -> 1963M08 | D62: 1963-07-01 | E62: 43 | F62: FALSE | G62: TRUE | H62: FALSE | J62: =INDEX('Monthly Prices'!B50:CB50,$G$4) -> 0.16 | K62: =IF(H62,INDEX('Monthly Prices'!B50:CB50,$G$4)*U62,FALSE) -> FALSE | L62: TRUE | M62: =INDEX('Monthly Prices'!B50:CB50,$G$5) -> 0.3913511379 | N62: =IF(H62,INDEX('Monthly Prices'!B50:CB50,$G$5)*U62,FALSE) -> FALSE | O62: TRUE | P62: 1963 | Q62: ='Monthly Prices'!B50 -> 1.5 | R62: 1.495833333 | S62: =_xlfn.XLOOKUP(P62,'Annual Real'!A:A,'Annual Real'!B:B,0,0) -> 7.686329405 | T62: 10.34813041 | U62: 10.34813041 | V62: FALSE | W62: FALSE | X62: 0.01320132 | Y62: 0.001093509275 | Z62: 1.044897736 | AA62: 7 | AB62: 1963-07-01 | AC62: 10.34813041
C63: ='Monthly Prices'!A51 -> 1963M09 | D63: 1963-08-01 | E63: 44 | F63: FALSE | G63: TRUE | H63: FALSE | J63: =INDEX('Monthly Prices'!B51:CB51,$G$4) -> 0.16 | K63: =IF(H63,INDEX('Monthly Prices'!B51:CB51,$G$4)*U63,FALSE) -> FALSE | L63: TRUE | M63: =INDEX('Monthly Prices'!B51:CB51,$G$5) -> 0.3913511379 | N63: =IF(H63,INDEX('Monthly Prices'!B51:CB51,$G$5)*U63,FALSE) -> FALSE | O63: TRUE | P63: 1963 | Q63: ='Monthly Prices'!B51 -> 1.5 | R63: 1.495833333 | S63: =_xlfn.XLOOKUP(P63,'Annual Real'!A:A,'Annual Real'!B:B,0,0) -> 7.686329405 | T63: 10.33682699 | U63: 10.33682699 | V63: FALSE | W63: FALSE | X63: 0.01320132 | Y63: 0.001093509275 | Z63: 1.046040342 | AA63: 7 | AB63: 1963-08-01 | AC63: 10.33682699
C64: ='Monthly Prices'!A52 -> 1963M10 | D64: 1963-09-01 | E64: 45 | F64: FALSE | G64: TRUE | H64: FALSE | J64: =INDEX('Monthly Prices'!B52:CB52,$G$4) -> 0.16 | K64: =IF(H64,INDEX('Monthly Prices'!B52:CB52,$G$4)*U64,FALSE) -> FALSE | L64: TRUE | M64: =INDEX('Monthly Prices'!B52:CB52,$G$5) -> 0.3913511379 | N64: =IF(H64,INDEX('Monthly Prices'!B52:CB52,$G$5)*U64,FALSE) -> FALSE | O64: TRUE | P64: 1963 | Q64: ='Monthly Prices'!B52 -> 1.5 | R64: 1.495833333 | S64: =_xlfn.XLOOKUP(P64,'Annual Real'!A:A,'Annual Real'!B:B,0,0) -> 7.686329405 | T64: 10.32837144 | U64: 10.32837144 | V64: FALSE | W64: FALSE | X64: 0.009868421 | Y64: 0.0008186721066 | Z64: 1.046896706 | AA64: 7 | AB64: 1963-09-01 | AC64: 10.32837144
C65: ='Monthly Prices'!A53 -> 1963M11 | D65: 1963-10-01 | E65: 46 | F65: FALSE | G65: TRUE | H65: FALSE | J65: =INDEX('Monthly Prices'!B53:CB53,$G$4) -> 0.16 | K65: =IF(H65,INDEX('Monthly Prices'!B53:CB53,$G$4)*U65,FALSE) -> FALSE | L65: TRUE | M65: =INDEX('Monthly Prices'!B53:CB53,$G$5) -> 0.3913511379 | N65: =IF(H65,INDEX('Monthly Prices'!B53:CB53,$G$5)*U65,FALSE) -> FALSE | O65: TRUE | P65: 1963 | Q65: ='Monthly Prices'!B53 -> 1.5 | R65: 1.495833333 | S65: =_xlfn.XLOOKUP(P65,'Annual Real'!A:A,'Annual Real'!B:B,0,0) -> 7.686329405 | T65: 10.31712646 | U65: 10.31712646 | V65: FALSE | W65: FALSE | X65: 0.01315789 | Y65: 0.001089933287 | Z65: 1.048037753 | AA65: 7 | AB65: 1963-10-01 | AC65: 10.31712646
C66: ='Monthly Prices'!A54 -> 1963M12 | D66: 1963-11-01 | E66: 47 | F66: FALSE | G66: TRUE | H66: FALSE | J66: =INDEX('Monthly Prices'!B54:CB54,$G$4) -> 0.16 | K66: =IF(H66,INDEX('Monthly Prices'!B54:CB54,$G$4)*U66,FALSE) -> FALSE | L66: TRUE | M66: =INDEX('Monthly Prices'!B54:CB54,$G$5) -> 0.3913511379 | N66: =IF(H66,INDEX('Monthly Prices'!B54:CB54,$G$5)*U66,FALSE) -> FALSE | O66: TRUE | P66: 1963 | Q66: ='Monthly Prices'!B54 -> 1.5 | R66: 1.495833333 | S66: =_xlfn.XLOOKUP(P66,'Annual Real'!A:A,'Annual Real'!B:B,0,0) -> 7.686329405 | T66: 10.30589372 | U66: 10.30589372 | V66: FALSE | W66: FALSE | X66: 0.01315789 | Y66: 0.001089933287 | Z66: 1.049180045 | AA66: 7 | AB66: 1963-11-01 | AC66: 10.30589372
C67: ='Monthly Prices'!A55 -> 1964M01 | D67: 1963-12-01 | E67: 48 | F67: FALSE | G67: TRUE | H67: FALSE | J67: =INDEX('Monthly Prices'!B55:CB55,$G$4) -> 0.15 | K67: =IF(H67,INDEX('Monthly Prices'!B55:CB55,$G$4)*U67,FALSE) -> FALSE | L67: TRUE | M67: =INDEX('Monthly Prices'!B55:CB55,$G$5) -> 0.3841498024 | N67: =IF(H67,INDEX('Monthly Prices'!B55:CB55,$G$5)*U67,FALSE) -> FALSE | O67: TRUE | P67: 1963 | Q67: ='Monthly Prices'!B55 -> 1.45 | R67: 1.495833333 | S67: =_xlfn.XLOOKUP(P67,'Annual Real'!A:A,'Annual Real'!B:B,0,0) -> 7.686329405 | T67: 10.29189274 | U67: 10.29189274 | V67: FALSE | W67: FALSE | X67: 0.01644737 | Y67: 0.001360389245 | Z67: 1.050607338 | AA67: 7 | AB67: 1963-12-01 | AC67: 10.29189274
C68: ='Monthly Prices'!A56 -> 1964M02 | D68: 1964-01-01 | E68: 49 | F68: FALSE | G68: TRUE | H68: FALSE | J68: =INDEX('Monthly Prices'!B56:CB56,$G$4) -> 0.15 | K68: =IF(H68,INDEX('Monthly Prices'!B56:CB56,$G$4)*U68,FALSE) -> FALSE | L68: TRUE | M68: =INDEX('Monthly Prices'!B56:CB56,$G$5) -> 0.3841498024 | N68: =IF(H68,INDEX('Monthly Prices'!B56:CB56,$G$5)*U68,FALSE) -> FALSE | O68: TRUE | P68: 1964 | Q68: ='Monthly Prices'!B56 -> 1.45 | R68: 1.4475 | S68: =_xlfn.XLOOKUP(P68,'Annual Real'!A:A,'Annual Real'!B:B,0,0) -> 7.327569739 | T68: 10.27791078 | U68: 10.27791078 | V68: FALSE | W68: FALSE | X68: 0.01644737 | Y68: 0.001360389245 | Z68: 1.052036573 | AA68: 7 | AB68: 1964-01-01 | AC68: 10.27791078
C69: ='Monthly Prices'!A57 -> 1964M03 | D69: 1964-02-01 | E69: 50 | F69: FALSE | G69: TRUE | H69: FALSE | J69: =INDEX('Monthly Prices'!B57:CB57,$G$4) -> 0.15 | K69: =IF(H69,INDEX('Monthly Prices'!B57:CB57,$G$4)*U69,FALSE) -> FALSE | L69: TRUE | M69: =INDEX('Monthly Prices'!B57:CB57,$G$5) -> 0.3841498024 | N69: =IF(H69,INDEX('Monthly Prices'!B57:CB57,$G$5)*U69,FALSE) -> FALSE | O69: TRUE | P69: 1964 | Q69: ='Monthly Prices'!B57 -> 1.45 | R69: 1.4475 | S69: =_xlfn.XLOOKUP(P69,'Annual Real'!A:A,'Annual Real'!B:B,0,0) -> 7.327569739 | T69: 10.26394782 | U69: 10.26394782 | V69: FALSE | W69: FALSE | X69: 0.01644737 | Y69: 0.001360389245 | Z69: 1.053467752 | AA69: 7 | AB69: 1964-02-01 | AC69: 10.26394782
C70: ='Monthly Prices'!A58 -> 1964M04 | D70: 1964-03-01 | E70: 51 | F70: FALSE | G70: TRUE | H70: FALSE | J70: =INDEX('Monthly Prices'!B58:CB58,$G$4) -> 0.15 | K70: =IF(H70,INDEX('Monthly Prices'!B58:CB58,$G$4)*U70,FALSE) -> FALSE | L70: TRUE | M70: =INDEX('Monthly Prices'!B58:CB58,$G$5) -> 0.3841498024 | N70: =IF(H70,INDEX('Monthly Prices'!B58:CB58,$G$5)*U70,FALSE) -> FALSE | O70: TRUE | P70: 1964 | Q70: ='Monthly Prices'!B58 -> 1.45 | R70: 1.4475 | S70: =_xlfn.XLOOKUP(P70,'Annual Real'!A:A,'Annual Real'!B:B,0,0) -> 7.327569739 | T70: 10.25280936 | U70: 10.25280936 | V70: FALSE | W70: FALSE | X70: 0.01311475 | Y70: 0.001086381039 | Z70: 1.054612219 | AA70: 7 | AB70: 1964-03-01 | AC70: 10.25280936
C71: ='Monthly Prices'!A59 -> 1964M05 | D71: 1964-04-01 | E71: 52 | F71: FALSE | G71: TRUE | H71: FALSE | J71: =INDEX('Monthly Prices'!B59:CB59,$G$4) -> 0.15 | K71: =IF(H71,INDEX('Monthly Prices'!B59:CB59,$G$4)*U71,FALSE) -> FALSE | L71: TRUE | M71: =INDEX('Monthly Prices'!B59:CB59,$G$5) -> 0.3841498024 | N71: =IF(H71,INDEX('Monthly Prices'!B59:CB59,$G$5)*U71,FALSE) -> FALSE | O71: TRUE | P71: 1964 | Q71: ='Monthly Prices'!B59 -> 1.45 | R71: 1.4475 | S71: =_xlfn.XLOOKUP(P71,'Annual Real'!A:A,'Annual Real'!B:B,0,0) -> 7.327569739 | T71: 10.24168299 | U71: 10.24168299 | V71: FALSE | W71: FALSE | X71: 0.01311475 | Y71: 0.001086381039 | Z71: 1.05575793 | AA71: 7 | AB71: 1964-04-01 | AC71: 10.24168299
C72: ='Monthly Prices'!A60 -> 1964M06 | D72: 1964-05-01 | E72: 53 | F72: FALSE | G72: TRUE | H72: FALSE | J72: =INDEX('Monthly Prices'!B60:CB60,$G$4) -> 0.15 | K72: =IF(H72,INDEX('Monthly Prices'!B60:CB60,$G$4)*U72,FALSE) -> FALSE | L72: TRUE | M72: =INDEX('Monthly Prices'!B60:CB60,$G$5) -> 0.3841498024 | N72: =IF(H72,INDEX('Monthly Prices'!B60:CB60,$G$5)*U72,FALSE) -> FALSE | O72: TRUE | P72: 1964 | Q72: ='Monthly Prices'!B60 -> 1.45 | R72: 1.4475 | S72: =_xlfn.XLOOKUP(P72,'Annual Real'!A:A,'Annual Real'!B:B,0,0) -> 7.327569739 | T72: 10.2305687 | U72: 10.2305687 | V72: FALSE | W72: FALSE | X72: 0.01311475 | Y72: 0.001086381039 | Z72: 1.056904885 | AA72: 7 | AB72: 1964-05-01 | AC72: 10.2305687
C73: ='Monthly Prices'!A61 -> 1964M07 | D73: 1964-06-01 | E73: 54 | F73: FALSE | G73: TRUE | H73: FALSE | J73: =INDEX('Monthly Prices'!B61:CB61,$G$4) -> 0.15 | K73: =IF(H73,INDEX('Monthly Prices'!B61:CB61,$G$4)*U73,FALSE) -> FALSE | L73: TRUE | M73: =INDEX('Monthly Prices'!B61:CB61,$G$5) -> 0.3841498024 | N73: =IF(H73,INDEX('Monthly Prices'!B61:CB61,$G$5)*U73,FALSE) -> FALSE | O73: TRUE | P73: 1964 | Q73: ='Monthly Prices'!B61 -> 1.45 | R73: 1.4475 | S73: =_xlfn.XLOOKUP(P73,'Annual Real'!A:A,'Annual Real'!B:B,0,0) -> 7.327569739 | T73: 10.21950248 | U73: 10.21950248 | V73: FALSE | W73: FALSE | X73: 0.0130719 | Y73: 0.001082852532 | Z73: 1.058049358 | AA73: 7 | AB73: 1964-06-01 | AC73: 10.21950248
C74: ='Monthly Prices'!A62 -> 1964M08 | D74: 1964-07-01 | E74: 55 | F74: FALSE | G74: TRUE | H74: FALSE | J74: =INDEX('Monthly Prices'!B62:CB62,$G$4) -> 0.15 | K74: =IF(H74,INDEX('Monthly Prices'!B62:CB62,$G$4)*U74,FALSE) -> FALSE | L74: TRUE | M74: =INDEX('Monthly Prices'!B62:CB62,$G$5) -> 0.3841498024 | N74: =IF(H74,INDEX('Monthly Prices'!B62:CB62,$G$5)*U74,FALSE) -> FALSE | O74: TRUE | P74: 1964 | Q74: ='Monthly Prices'!B62 -> 1.45 | R74: 1.4475 | S74: =_xlfn.XLOOKUP(P74,'Annual Real'!A:A,'Annual Real'!B:B,0,0) -> 7.327569739 | T74: 10.20848399 | U74: 10.20848399 | V74: FALSE | W74: FALSE | X74: 0.01302932 | Y74: 0.001079346123 | Z74: 1.059191359 | AA74: 7 | AB74: 1964-07-01 | AC74: 10.20848399
C75: ='Monthly Prices'!A63 -> 1964M09 | D75: 1964-08-01 | E75: 56 | F75: FALSE | G75: TRUE | H75: FALSE | J75: =INDEX('Monthly Prices'!B63:CB63,$G$4) -> 0.15 | K75: =IF(H75,INDEX('Monthly Prices'!B63:CB63,$G$4)*U75,FALSE) -> FALSE | L75: TRUE | M75: =INDEX('Monthly Prices'!B63:CB63,$G$5) -> 0.3841498024 | N75: =IF(H75,INDEX('Monthly Prices'!B63:CB63,$G$5)*U75,FALSE) -> FALSE | O75: TRUE | P75: 1964 | Q75: ='Monthly Prices'!B63 -> 1.45 | R75: 1.4475 | S75: =_xlfn.XLOOKUP(P75,'Annual Real'!A:A,'Annual Real'!B:B,0,0) -> 7.327569739 | T75: 10.2002146 | U75: 10.2002146 | V75: FALSE | W75: FALSE | X75: 0.009771987 | Y75: 0.000810707606 | Z75: 1.060050054 | AA75: 7 | AB75: 1964-08-01 | AC75: 10.2002146
C76: ='Monthly Prices'!A64 -> 1964M10 | D76: 1964-09-01 | E76: 57 | F76: FALSE | G76: TRUE | H76: FALSE | J76: =INDEX('Monthly Prices'!B64:CB64,$G$4) -> 0.15 | K76: =IF(H76,INDEX('Monthly Prices'!B64:CB64,$G$4)*U76,FALSE) -> FALSE | L76: TRUE | M76: =INDEX('Monthly Prices'!B64:CB64,$G$5) -> 0.3841498024 | N76: =IF(H76,INDEX('Monthly Prices'!B64:CB64,$G$5)*U76,FALSE) -> FALSE | O76: TRUE | P76: 1964 | Q76: ='Monthly Prices'!B64 -> 1.45 | R76: 1.4475 | S76: =_xlfn.XLOOKUP(P76,'Annual Real'!A:A,'Annual Real'!B:B,0,0) -> 7.327569739 | T76: 10.18921691 | U76: 10.18921691 | V76: FALSE | W76: FALSE | X76: 0.01302932 | Y76: 0.001079346123 | Z76: 1.061194215 | AA76: 7 | AB76: 1964-09-01 | AC76: 10.18921691
C77: ='Monthly Prices'!A65 -> 1964M11 | D77: 1964-10-01 | E77: 58 | F77: FALSE | G77: TRUE | H77: FALSE | J77: =INDEX('Monthly Prices'!B65:CB65,$G$4) -> 0.15 | K77: =IF(H77,INDEX('Monthly Prices'!B65:CB65,$G$4)*U77,FALSE) -> FALSE | L77: TRUE | M77: =INDEX('Monthly Prices'!B65:CB65,$G$5) -> 0.3841498024 | N77: =IF(H77,INDEX('Monthly Prices'!B65:CB65,$G$5)*U77,FALSE) -> FALSE | O77: TRUE | P77: 1964 | Q77: ='Monthly Prices'!B65 -> 1.45 | R77: 1.4475 | S77: =_xlfn.XLOOKUP(P77,'Annual Real'!A:A,'Annual Real'!B:B,0,0) -> 7.327569739 | T77: 10.18098978 | U77: 10.18098978 | V77: FALSE | W77: FALSE | X77: 0.00974026 | Y77: 0.0008080871152 | Z77: 1.062051752 | AA77: 7 | AB77: 1964-10-01 | AC77: 10.18098978
C78: ='Monthly Prices'!A66 -> 1964M12 | D78: 1964-11-01 | E78: 59 | F78: FALSE | G78: TRUE | H78: FALSE | J78: =INDEX('Monthly Prices'!B66:CB66,$G$4) -> 0.15 | K78: =IF(H78,INDEX('Monthly Prices'!B66:CB66,$G$4)*U78,FALSE) -> FALSE | L78: TRUE | M78: =INDEX('Monthly Prices'!B66:CB66,$G$5) -> 0.3841498024 | N78: =IF(H78,INDEX('Monthly Prices'!B66:CB66,$G$5)*U78,FALSE) -> FALSE | O78: TRUE | P78: 1964 | Q78: ='Monthly Prices'!B66 -> 1.45 | R78: 1.4475 | S78: =_xlfn.XLOOKUP(P78,'Annual Real'!A:A,'Annual Real'!B:B,0,0) -> 7.327569739 | T78: 10.17004822 | U78: 10.17004822 | V78: FALSE | W78: FALSE | X78: 0.01298701 | Y78: 0.001075861815 | Z78: 1.063194373 | AA78: 7 | AB78: 1964-11-01 | AC78: 10.17004822
C79: ='Monthly Prices'!A67 -> 1965M01 | D79: 1964-12-01 | E79: 60 | F79: FALSE | G79: TRUE | H79: FALSE | J79: =INDEX('Monthly Prices'!B67:CB67,$G$4) -> 0.16 | K79: =IF(H79,INDEX('Monthly Prices'!B67:CB67,$G$4)*U79,FALSE) -> FALSE | L79: TRUE | M79: =INDEX('Monthly Prices'!B67:CB67,$G$5) -> 0.4107661052 | N79: =IF(H79,INDEX('Monthly Prices'!B67:CB67,$G$5)*U79,FALSE) -> FALSE | O79: TRUE | P79: 1964 | Q79: ='Monthly Prices'!B67 -> 1.42 | R79: 1.4475 | S79: =_xlfn.XLOOKUP(P79,'Annual Real'!A:A,'Annual Real'!B:B,0,0) -> 7.327569739 | T79: 10.161863 | U79: 10.161863 | V79: FALSE | W79: FALSE | X79: 0.009708738 | Y79: 0.0008054834816 | Z79: 1.064050758 | AA79: 7 | AB79: 1964-12-01 | AC79: 10.161863
C80: ='Monthly Prices'!A68 -> 1965M02 | D80: 1965-01-01 | E80: 61 | F80: FALSE | G80: TRUE | H80: FALSE | J80: =INDEX('Monthly Prices'!B68:CB68,$G$4) -> 0.16 | K80: =IF(H80,INDEX('Monthly Prices'!B68:CB68,$G$4)*U80,FALSE) -> FALSE | L80: TRUE | M80: =INDEX('Monthly Prices'!B68:CB68,$G$5) -> 0.4107661052 | N80: =IF(H80,INDEX('Monthly Prices'!B68:CB68,$G$5)*U80,FALSE) -> FALSE | O80: TRUE | P80: 1965 | Q80: ='Monthly Prices'!B68 -> 1.42 | R80: 1.415 | S80: =_xlfn.XLOOKUP(P80,'Annual Real'!A:A,'Annual Real'!B:B,0,0) -> 7.107594015 | T80: 10.15368438 | U80: 10.15368438 | V80: FALSE | W80: FALSE | X80: 0.009708738 | Y80: 0.0008054834816 | Z80: 1.064907834 | AA80: 7 | AB80: 1965-01-01 | AC80: 10.15368438
C81: ='Monthly Prices'!A69 -> 1965M03 | D81: 1965-02-01 | E81: 62 | F81: FALSE | G81: TRUE | H81: FALSE | J81: =INDEX('Monthly Prices'!B69:CB69,$G$4) -> 0.16 | K81: =IF(H81,INDEX('Monthly Prices'!B69:CB69,$G$4)*U81,FALSE) -> FALSE | L81: TRUE | M81: =INDEX('Monthly Prices'!B69:CB69,$G$5) -> 0.4107661052 | N81: =IF(H81,INDEX('Monthly Prices'!B69:CB69,$G$5)*U81,FALSE) -> FALSE | O81: TRUE | P81: 1965 | Q81: ='Monthly Prices'!B69 -> 1.42 | R81: 1.415 | S81: =_xlfn.XLOOKUP(P81,'Annual Real'!A:A,'Annual Real'!B:B,0,0) -> 7.107594015 | T81: 10.14551234 | U81: 10.14551234 | V81: FALSE | W81: FALSE | X81: 0.009708738 | Y81: 0.0008054834816 | Z81: 1.065765599 | AA81: 7 | AB81: 1965-02-01 | AC81: 10.14551234
C82: ='Monthly Prices'!A70 -> 1965M04 | D82: 1965-03-01 | E82: 63 | F82: FALSE | G82: TRUE | H82: FALSE | J82: =INDEX('Monthly Prices'!B70:CB70,$G$4) -> 0.16 | K82: =IF(H82,INDEX('Monthly Prices'!B70:CB70,$G$4)*U82,FALSE) -> FALSE | L82: TRUE | M82: =INDEX('Monthly Prices'!B70:CB70,$G$5) -> 0.4107661052 | N82: =IF(H82,INDEX('Monthly Prices'!B70:CB70,$G$5)*U82,FALSE) -> FALSE | O82: TRUE | P82: 1965 | Q82: ='Monthly Prices'!B70 -> 1.42 | R82: 1.415 | S82: =_xlfn.XLOOKUP(P82,'Annual Real'!A:A,'Annual Real'!B:B,0,0) -> 7.107594015 | T82: 10.13464394 | U82: 10.13464394 | V82: FALSE | W82: FALSE | X82: 0.01294498 | Y82: 0.001072400433 | Z82: 1.066908527 | AA82: 7 | AB82: 1965-03-01 | AC82: 10.13464394
C83: ='Monthly Prices'!A71 -> 1965M05 | D83: 1965-04-01 | E83: 64 | F83: FALSE | G83: TRUE | H83: FALSE | J83: =INDEX('Monthly Prices'!B71:CB71,$G$4) -> 0.16 | K83: =IF(H83,INDEX('Monthly Prices'!B71:CB71,$G$4)*U83,FALSE) -> FALSE | L83: TRUE | M83: =INDEX('Monthly Prices'!B71:CB71,$G$5) -> 0.4107661052 | N83: =IF(H83,INDEX('Monthly Prices'!B71:CB71,$G$5)*U83,FALSE) -> FALSE | O83: TRUE | P83: 1965 | Q83: ='Monthly Prices'!B71 -> 1.42 | R83: 1.415 | S83: =_xlfn.XLOOKUP(P83,'Annual Real'!A:A,'Annual Real'!B:B,0,0) -> 7.107594015 | T83: 10.12109647 | U83: 10.12109647 | V83: FALSE | W83: FALSE | X83: 0.01618123 | Y83: 0.001338537479 | Z83: 1.068336624 | AA83: 7 | AB83: 1965-04-01 | AC83: 10.12109647
C84: ='Monthly Prices'!A72 -> 1965M06 | D84: 1965-05-01 | E84: 65 | F84: =AND(E84>=$M$4,L84) -> FALSE | G84: =AND(E84<=$M$5,O84) -> TRUE | H84: =AND(F84:G84) -> FALSE | I84: =IF(H84,D84,NA) ->  | J84: =INDEX('Monthly Prices'!B72:CB72,$G$4) -> 0.16 | K84: =IF(H84,INDEX('Monthly Prices'!B72:CB72,$G$4)*U84,FALSE) -> FALSE | L84: TRUE | M84: =INDEX('Monthly Prices'!B72:CB72,$G$5) -> 0.4107661052 | N84: =IF(H84,INDEX('Monthly Prices'!B72:CB72,$G$5)*U84,FALSE) -> FALSE | O84: =AND(ISNUMBER(M84),M84>0) -> TRUE | P84: 1965 | Q84: ='Monthly Prices'!B72 -> 1.42 | R84: 1.415 | S84: =_xlfn.XLOOKUP(P84,'Annual Real'!A:A,'Annual Real'!B:B,0,0) -> 7.107594015 | T84: 10.10756712 | U84: 10.10756712 | V84: FALSE | W84: FALSE | X84: 0.01618123 | Y84: 0.001338537479 | Z84: 1.069766632 | AA84: 7 | AB84: 1965-05-01 | AC84: 10.10756712
C85: ='Monthly Prices'!A73 -> 1965M07 | D85: =EDATE(D84,1) -> 1965-06-01 | E85: =E84+1 -> 66 | F85: FALSE | G85: TRUE | H85: FALSE | J85: =INDEX('Monthly Prices'!B73:CB73,$G$4) -> 0.16 | K85: =IF(H85,INDEX('Monthly Prices'!B73:CB73,$G$4)*U85,FALSE) -> FALSE | L85: =ISNUMBER(J85) -> TRUE | M85: =INDEX('Monthly Prices'!B73:CB73,$G$5) -> 0.4107661052 | N85: =IF(H85,INDEX('Monthly Prices'!B73:CB73,$G$5)*U85,FALSE) -> FALSE | O85: TRUE | P85: =YEAR(D85) -> 1965 | Q85: ='Monthly Prices'!B73 -> 1.42 | R85: =AVERAGEIF(P:P,P85,Q:Q) -> 1.415 | S85: =_xlfn.XLOOKUP(P85,'Annual Real'!A:A,'Annual Real'!B:B,0,0) -> 7.107594015 | T85: =AC85 -> 10.09143324 | U85: =IF($U$19,T85,1) -> 10.09143324 | V85: FALSE | W85: FALSE | X85: =LOOKUP(D85,INDIRECT("'"&$X$14&"'!A:A"),INDIRECT("'"&$X$14&"'!B:B"))/100 -> 0.01935484 | Y85: =(1+X85)^(1/12)-1 -> 0.001598769786 | Z85: =Z84*(1+Y85) -> 1.071476943 | AA85: =LEN(C85) -> 7 | AB85: =IF(AA85>2,D85,0) -> 1965-06-01 | AC85: =$AC$17/Z85 -> 10.09143324
C86: ='Monthly Prices'!A74 -> 1965M08 | D86: 1965-07-01 | E86: 67 | F86: FALSE | G86: TRUE | H86: FALSE | J86: =INDEX('Monthly Prices'!B74:CB74,$G$4) -> 0.16 | K86: =IF(H86,INDEX('Monthly Prices'!B74:CB74,$G$4)*U86,FALSE) -> FALSE | L86: TRUE | M86: =INDEX('Monthly Prices'!B74:CB74,$G$5) -> 0.4107661052 | N86: =IF(H86,INDEX('Monthly Prices'!B74:CB74,$G$5)*U86,FALSE) -> FALSE | O86: TRUE | P86: 1965 | Q86: ='Monthly Prices'!B74 -> 1.42 | R86: 1.415 | S86: =_xlfn.XLOOKUP(P86,'Annual Real'!A:A,'Annual Real'!B:B,0,0) -> 7.107594015 | T86: 10.07802954 | U86: 10.07802954 | V86: =IF(AND(H85,H86),LN(K86/K85)) -> FALSE | W86: =IF(AND($H85,$H86),LN(N86/N85)) -> FALSE | X86: 0.01607717 | Y86: 0.001329992072 | Z86: 1.072901999 | AA86: 7 | AB86: 1965-07-01 | AC86: 10.07802954
C87: ='Monthly Prices'!A75 -> 1965M09 | D87: 1965-08-01 | E87: 68 | F87: FALSE | G87: TRUE | H87: FALSE | J87: =INDEX('Monthly Prices'!B75:CB75,$G$4) -> 0.16 | K87: =IF(H87,INDEX('Monthly Prices'!B75:CB75,$G$4)*U87,FALSE) -> FALSE | L87: TRUE | M87: =INDEX('Monthly Prices'!B75:CB75,$G$5) -> 0.4107661052 | N87: =IF(H87,INDEX('Monthly Prices'!B75:CB75,$G$5)*U87,FALSE) -> FALSE | O87: TRUE | P87: 1965 | Q87: ='Monthly Prices'!B75 -> 1.42 | R87: 1.415 | S87: =_xlfn.XLOOKUP(P87,'Annual Real'!A:A,'Annual Real'!B:B,0,0) -> 7.107594015 | T87: 10.06194281 | U87: 10.06194281 | V87: FALSE | W87: FALSE | X87: 0.01935484 | Y87: 0.001598769786 | Z87: 1.074617322 | AA87: 7 | AB87: 1965-08-01 | AC87: 10.06194281
C88: ='Monthly Prices'!A76 -> 1965M10 | D88: 1965-09-01 | E88: 69 | F88: FALSE | G88: TRUE | H88: FALSE | J88: =INDEX('Monthly Prices'!B76:CB76,$G$4) -> 0.16 | K88: =IF(H88,INDEX('Monthly Prices'!B76:CB76,$G$4)*U88,FALSE) -> FALSE | L88: TRUE | M88: =INDEX('Monthly Prices'!B76:CB76,$G$5) -> 0.4107661052 | N88: =IF(H88,INDEX('Monthly Prices'!B76:CB76,$G$5)*U88,FALSE) -> FALSE | O88: TRUE | P88: 1965 | Q88: ='Monthly Prices'!B76 -> 1.42 | R88: 1.415 | S88: =_xlfn.XLOOKUP(P88,'Annual Real'!A:A,'Annual Real'!B:B,0,0) -> 7.107594015 | T88: 10.04857828 | U88: 10.04857828 | V88: FALSE | W88: FALSE | X88: 0.01607717 | Y88: 0.001329992072 | Z88: 1.076046555 | AA88: 7 | AB88: 1965-09-01 | AC88: 10.04857828
C89: ='Monthly Prices'!A77 -> 1965M11 | D89: 1965-10-01 | E89: 70 | F89: FALSE | G89: TRUE | H89: FALSE | J89: =INDEX('Monthly Prices'!B77:CB77,$G$4) -> 0.16 | K89: =IF(H89,INDEX('Monthly Prices'!B77:CB77,$G$4)*U89,FALSE) -> FALSE | L89: TRUE | M89: =INDEX('Monthly Prices'!B77:CB77,$G$5) -> 0.4107661052 | N89: =IF(H89,INDEX('Monthly Prices'!B77:CB77,$G$5)*U89,FALSE) -> FALSE | O89: TRUE | P89: 1965 | Q89: ='Monthly Prices'!B77 -> 1.42 | R89: 1.415 | S89: =_xlfn.XLOOKUP(P89,'Annual Real'!A:A,'Annual Real'!B:B,0,0) -> 7.107594015 | T89: 10.03258961 | U89: 10.03258961 | V89: FALSE | W89: FALSE | X89: 0.0192926 | Y89: 0.001593673323 | Z89: 1.077761421 | AA89: 7 | AB89: 1965-10-01 | AC89: 10.03258961
C90: ='Monthly Prices'!A78 -> 1965M12 | D90: 1965-11-01 | E90: 71 | F90: FALSE | G90: TRUE | H90: FALSE | J90: =INDEX('Monthly Prices'!B78:CB78,$G$4) -> 0.16 | K90: =IF(H90,INDEX('Monthly Prices'!B78:CB78,$G$4)*U90,FALSE) -> FALSE | L90: TRUE | M90: =INDEX('Monthly Prices'!B78:CB78,$G$5) -> 0.4107661052 | N90: =IF(H90,INDEX('Monthly Prices'!B78:CB78,$G$5)*U90,FALSE) -> FALSE | O90: TRUE | P90: 1965 | Q90: ='Monthly Prices'!B78 -> 1.42 | R90: 1.415 | S90: =_xlfn.XLOOKUP(P90,'Annual Real'!A:A,'Annual Real'!B:B,0,0) -> 7.107594015 | T90: 10.01930641 | U90: 10.01930641 | V90: FALSE | W90: FALSE | X90: 0.01602564 | Y90: 0.001325760132 | Z90: 1.079190274 | AA90: 7 | AB90: 1965-11-01 | AC90: 10.01930641
C91: ='Monthly Prices'!A79 -> 1966M01 | D91: 1965-12-01 | E91: 72 | F91: FALSE | G91: TRUE | H91: FALSE | J91: =INDEX('Monthly Prices'!B79:CB79,$G$4) -> 0.16 | K91: =IF(H91,INDEX('Monthly Prices'!B79:CB79,$G$4)*U91,FALSE) -> FALSE | L91: TRUE | M91: =INDEX('Monthly Prices'!B79:CB79,$G$5) -> 0.4249286651 | N91: =IF(H91,INDEX('Monthly Prices'!B79:CB79,$G$5)*U91,FALSE) -> FALSE | O91: TRUE | P91: 1965 | Q91: ='Monthly Prices'!B79 -> 1.36 | R91: 1.415 | S91: =_xlfn.XLOOKUP(P91,'Annual Real'!A:A,'Annual Real'!B:B,0,0) -> 7.107594015 | T91: 10.00341488 | U91: 10.00341488 | V91: FALSE | W91: FALSE | X91: 0.01923077 | Y91: 0.00158861015 | Z91: 1.080904687 | AA91: 7 | AB91: 1965-12-01 | AC91: 10.00341488
C92: ='Monthly Prices'!A80 -> 1966M02 | D92: 1966-01-01 | E92: 73 | F92: FALSE | G92: TRUE | H92: FALSE | J92: =INDEX('Monthly Prices'!B80:CB80,$G$4) -> 0.16 | K92: =IF(H92,INDEX('Monthly Prices'!B80:CB80,$G$4)*U92,FALSE) -> FALSE | L92: TRUE | M92: =INDEX('Monthly Prices'!B80:CB80,$G$5) -> 0.4249286651 | N92: =IF(H92,INDEX('Monthly Prices'!B80:CB80,$G$5)*U92,FALSE) -> FALSE | O92: TRUE | P92: 1966 | Q92: ='Monthly Prices'!B80 -> 1.36 | R92: 1.3575 | S92: =_xlfn.XLOOKUP(P92,'Annual Real'!A:A,'Annual Real'!B:B,0,0) -> 6.565224675 | T92: 9.987548564 | U92: 9.987548564 | V92: FALSE | W92: FALSE | X92: 0.01923077 | Y92: 0.00158861015 | Z92: 1.082621823 | AA92: 7 | AB92: 1966-01-01 | AC92: 9.987548564
C93: ='Monthly Prices'!A81 -> 1966M03 | D93: 1966-02-01 | E93: 74 | F93: FALSE | G93: TRUE | H93: FALSE | J93: =INDEX('Monthly Prices'!B81:CB81,$G$4) -> 0.16 | K93: =IF(H93,INDEX('Monthly Prices'!B81:CB81,$G$4)*U93,FALSE) -> FALSE | L93: TRUE | M93: =INDEX('Monthly Prices'!B81:CB81,$G$5) -> 0.4249286651 | N93: =IF(H93,INDEX('Monthly Prices'!B81:CB81,$G$5)*U93,FALSE) -> FALSE | O93: TRUE | P93: 1966 | Q93: ='Monthly Prices'!B81 -> 1.36 | R93: 1.3575 | S93: =_xlfn.XLOOKUP(P93,'Annual Real'!A:A,'Annual Real'!B:B,0,0) -> 6.565224675 | T93: 9.966498871 | U93: 9.966498871 | V93: FALSE | W93: FALSE | X93: 0.02564103 | Y93: 0.002112044918 | Z93: 1.084908369 | AA93: 7 | AB93: 1966-02-01 | AC93: 9.966498871
C94: ='Monthly Prices'!A82 -> 1966M04 | D94: 1966-03-01 | E94: 75 | F94: FALSE | G94: TRUE | H94: FALSE | J94: =INDEX('Monthly Prices'!B82:CB82,$G$4) -> 0.16 | K94: =IF(H94,INDEX('Monthly Prices'!B82:CB82,$G$4)*U94,FALSE) -> FALSE | L94: TRUE | M94: =INDEX('Monthly Prices'!B82:CB82,$G$5) -> 0.4249286651 | N94: =IF(H94,INDEX('Monthly Prices'!B82:CB82,$G$5)*U94,FALSE) -> FALSE | O94: TRUE | P94: 1966 | Q94: ='Monthly Prices'!B82 -> 1.36 | R94: 1.3575 | S94: =_xlfn.XLOOKUP(P94,'Annual Real'!A:A,'Annual Real'!B:B,0,0) -> 6.565224675 | T94: 9.945559742 | U94: 9.945559742 | V94: FALSE | W94: FALSE | X94: 0.02555911 | Y94: 0.002105374616 | Z94: 1.087192508 | AA94: 7 | AB94: 1966-03-01 | AC94: 9.945559742
C95: ='Monthly Prices'!A83 -> 1966M05 | D95: 1966-04-01 | E95: 76 | F95: FALSE | G95: TRUE | H95: FALSE | J95: =INDEX('Monthly Prices'!B83:CB83,$G$4) -> 0.16 | K95: =IF(H95,INDEX('Monthly Prices'!B83:CB83,$G$4)*U95,FALSE) -> FALSE | L95: TRUE | M95: =INDEX('Monthly Prices'!B83:CB83,$G$5) -> 0.4249286651 | N95: =IF(H95,INDEX('Monthly Prices'!B83:CB83,$G$5)*U95,FALSE) -> FALSE | O95: TRUE | P95: 1966 | Q95: ='Monthly Prices'!B83 -> 1.36 | R95: 1.3575 | S95: =_xlfn.XLOOKUP(P95,'Annual Real'!A:A,'Annual Real'!B:B,0,0) -> 6.565224675 | T95: 9.922166054 | U95: 9.922166054 | V95: FALSE | W95: FALSE | X95: 0.02866242 | Y95: 0.002357719806 | Z95: 1.089755803 | AA95: 7 | AB95: 1966-04-01 | AC95: 9.922166054
C96: ='Monthly Prices'!A84 -> 1966M06 | D96: 1966-05-01 | E96: 77 | F96: FALSE | G96: TRUE | H96: FALSE | J96: =INDEX('Monthly Prices'!B84:CB84,$G$4) -> 0.16 | K96: =IF(H96,INDEX('Monthly Prices'!B84:CB84,$G$4)*U96,FALSE) -> FALSE | L96: TRUE | M96: =INDEX('Monthly Prices'!B84:CB84,$G$5) -> 0.4249286651 | N96: =IF(H96,INDEX('Monthly Prices'!B84:CB84,$G$5)*U96,FALSE) -> FALSE | O96: TRUE | P96: 1966 | Q96: ='Monthly Prices'!B84 -> 1.36 | R96: 1.3575 | S96: =_xlfn.XLOOKUP(P96,'Annual Real'!A:A,'Annual Real'!B:B,0,0) -> 6.565224675 | T96: 9.898827393 | U96: 9.898827393 | V96: FALSE | W96: FALSE | X96: 0.02866242 | Y96: 0.002357719806 | Z96: 1.092325142 | AA96: 7 | AB96: 1966-05-01 | AC96: 9.898827393
C97: ='Monthly Prices'!A85 -> 1966M07 | D97: 1966-06-01 | E97: 78 | F97: FALSE | G97: TRUE | H97: FALSE | J97: =INDEX('Monthly Prices'!B85:CB85,$G$4) -> 0.16 | K97: =IF(H97,INDEX('Monthly Prices'!B85:CB85,$G$4)*U97,FALSE) -> FALSE | L97: TRUE | M97: =INDEX('Monthly Prices'!B85:CB85,$G$5) -> 0.4249286651 | N97: =IF(H97,INDEX('Monthly Prices'!B85:CB85,$G$5)*U97,FALSE) -> FALSE | O97: TRUE | P97: 1966 | Q97: ='Monthly Prices'!B85 -> 1.36 | R97: 1.3575 | S97: =_xlfn.XLOOKUP(P97,'Annual Real'!A:A,'Annual Real'!B:B,0,0) -> 6.565224675 | T97: 9.878225227 | U97: 9.878225227 | V97: FALSE | W97: FALSE | X97: 0.02531646 | Y97: 0.002085614074 | Z97: 1.094603311 | AA97: 7 | AB97: 1966-06-01 | AC97: 9.878225227
C98: ='Monthly Prices'!A86 -> 1966M08 | D98: 1966-07-01 | E98: 79 | F98: FALSE | G98: TRUE | H98: FALSE | J98: =INDEX('Monthly Prices'!B86:CB86,$G$4) -> 0.16 | K98: =IF(H98,INDEX('Monthly Prices'!B86:CB86,$G$4)*U98,FALSE) -> FALSE | L98: TRUE | M98: =INDEX('Monthly Prices'!B86:CB86,$G$5) -> 0.4249286651 | N98: =IF(H98,INDEX('Monthly Prices'!B86:CB86,$G$5)*U98,FALSE) -> FALSE | O98: TRUE | P98: 1966 | Q98: ='Monthly Prices'!B86 -> 1.36 | R98: 1.3575 | S98: =_xlfn.XLOOKUP(P98,'Annual Real'!A:A,'Annual Real'!B:B,0,0) -> 6.565224675 | T98: 9.855134768 | U98: 9.855134768 | V98: FALSE | W98: FALSE | X98: 0.02848101 | Y98: 0.002342987696 | Z98: 1.097167953 | AA98: 7 | AB98: 1966-07-01 | AC98: 9.855134768
C99: ='Monthly Prices'!A87 -> 1966M09 | D99: 1966-08-01 | E99: 80 | F99: FALSE | G99: TRUE | H99: FALSE | J99: =INDEX('Monthly Prices'!B87:CB87,$G$4) -> 0.16 | K99: =IF(H99,INDEX('Monthly Prices'!B87:CB87,$G$4)*U99,FALSE) -> FALSE | L99: TRUE | M99: =INDEX('Monthly Prices'!B87:CB87,$G$5) -> 0.4249286651 | N99: =IF(H99,INDEX('Monthly Prices'!B87:CB87,$G$5)*U99,FALSE) -> FALSE | O99: TRUE | P99: 1966 | Q99: ='Monthly Prices'!B87 -> 1.36 | R99: 1.3575 | S99: =_xlfn.XLOOKUP(P99,'Annual Real'!A:A,'Annual Real'!B:B,0,0) -> 6.565224675 | T99: 9.827072911 | U99: 9.827072911 | V99: FALSE | W99: FALSE | X99: 0.03481013 | Y99: 0.002855566102 | Z99: 1.100300988 | AA99: 7 | AB99: 1966-08-01 | AC99: 9.827072911
C100: ='Monthly Prices'!A88 -> 1966M10 | D100: 1966-09-01 | E100: 81 | F100: FALSE | G100: TRUE | H100: FALSE | J100: =INDEX('Monthly Prices'!B88:CB88,$G$4) -> 0.16 | K100: =IF(H100,INDEX('Monthly Prices'!B88:CB88,$G$4)*U100,FALSE) -> FALSE | L100: TRUE | M100: =INDEX('Monthly Prices'!B88:CB88,$G$5) -> 0.4249286651 | N100: =IF(H100,INDEX('Monthly Prices'!B88:CB88,$G$5)*U100,FALSE) -> FALSE | O100: TRUE | P100: 1966 | Q100: ='Monthly Prices'!B88 -> 1.36 | R100: 1.3575 | S100: =_xlfn.XLOOKUP(P100,'Annual Real'!A:A,'Annual Real'!B:B,0,0) -> 6.565224675 | T100: 9.799090959 | U100: 9.799090959 | V100: FALSE | W100: FALSE | X100: 0.03481013 | Y100: 0.002855566102 | Z100: 1.10344297 | AA100: 7 | AB100: 1966-09-01 | AC100: 9.799090959
C101: ='Monthly Prices'!A89 -> 1966M11 | D101: 1966-10-01 | E101: 82 | F101: FALSE | G101: TRUE | H101: FALSE | J101: =INDEX('Monthly Prices'!B89:CB89,$G$4) -> 0.16 | K101: =IF(H101,INDEX('Monthly Prices'!B89:CB89,$G$4)*U101,FALSE) -> FALSE | L101: TRUE | M101: =INDEX('Monthly Prices'!B89:CB89,$G$5) -> 0.4249286651 | N101: =IF(H101,INDEX('Monthly Prices'!B89:CB89,$G$5)*U101,FALSE) -> FALSE | O101: TRUE | P101: 1966 | Q101: ='Monthly Prices'!B89 -> 1.36 | R101: 1.3575 | S101: =_xlfn.XLOOKUP(P101,'Annual Real'!A:A,'Annual Real'!B:B,0,0) -> 6.565224675 | T101: 9.768796651 | U101: 9.768796651 | V101: FALSE | W101: FALSE | X101: 0.03785489 | Y101: 0.003101130026 | Z101: 1.106864891 | AA101: 7 | AB101: 1966-10-01 | AC101: 9.768796651
C102: ='Monthly Prices'!A90 -> 1966M12 | D102: 1966-11-01 | E102: 83 | F102: FALSE | G102: TRUE | H102: FALSE | J102: =INDEX('Monthly Prices'!B90:CB90,$G$4) -> 0.16 | K102: =IF(H102,INDEX('Monthly Prices'!B90:CB90,$G$4)*U102,FALSE) -> FALSE | L102: TRUE | M102: =INDEX('Monthly Prices'!B90:CB90,$G$5) -> 0.4249286651 | N102: =IF(H102,INDEX('Monthly Prices'!B90:CB90,$G$5)*U102,FALSE) -> FALSE | O102: TRUE | P102: 1966 | Q102: ='Monthly Prices'!B90 -> 1.36 | R102: 1.3575 | S102: =_xlfn.XLOOKUP(P102,'Annual Real'!A:A,'Annual Real'!B:B,0,0) -> 6.565224675 | T102: 9.738595998 | U102: 9.738595998 | V102: FALSE | W102: FALSE | X102: 0.03785489 | Y102: 0.003101130026 | Z102: 1.110297423 | AA102: 7 | AB102: 1966-11-01 | AC102: 9.738595998
C103: ='Monthly Prices'!A91 -> 1967M01 | D103: 1966-12-01 | E103: 84 | F103: FALSE | G103: TRUE | H103: FALSE | J103: =INDEX('Monthly Prices'!B91:CB91,$G$4) -> 0.16 | K103: =IF(H103,INDEX('Monthly Prices'!B91:CB91,$G$4)*U103,FALSE) -> FALSE | L103: TRUE | M103: =INDEX('Monthly Prices'!B91:CB91,$G$5) -> 0.4566473763 | N103: =IF(H103,INDEX('Monthly Prices'!B91:CB91,$G$5)*U103,FALSE) -> FALSE | O103: TRUE | P103: 1966 | Q103: ='Monthly Prices'!B91 -> 1.33 | R103: 1.3575 | S103: =_xlfn.XLOOKUP(P103,'Annual Real'!A:A,'Annual Real'!B:B,0,0) -> 6.565224675 | T103: 9.711037205 | U103: 9.711037205 | V103: FALSE | W103: FALSE | X103: 0.0345912 | Y103: 0.002837883593 | Z103: 1.113448317 | AA103: 7 | AB103: 1966-12-01 | AC103: 9.711037205
C104: ='Monthly Prices'!A92 -> 1967M02 | D104: 1967-01-01 | E104: 85 | F104: FALSE | G104: TRUE | H104: FALSE | J104: =INDEX('Monthly Prices'!B92:CB92,$G$4) -> 0.16 | K104: =IF(H104,INDEX('Monthly Prices'!B92:CB92,$G$4)*U104,FALSE) -> FALSE | L104: TRUE | M104: =INDEX('Monthly Prices'!B92:CB92,$G$5) -> 0.4566473763 | N104: =IF(H104,INDEX('Monthly Prices'!B92:CB92,$G$5)*U104,FALSE) -> FALSE | O104: TRUE | P104: 1967 | Q104: ='Monthly Prices'!B92 -> 1.33 | R104: 1.329166667 | S104: =_xlfn.XLOOKUP(P104,'Annual Real'!A:A,'Annual Real'!B:B,0,0) -> 6.364463393 | T104: 9.683556399 | U104: 9.683556399 | V104: FALSE | W104: FALSE | X104: 0.0345912 | Y104: 0.002837883593 | Z104: 1.116608154 | AA104: 7 | AB104: 1967-01-01 | AC104: 9.683556399
C105: ='Monthly Prices'!A93 -> 1967M03 | D105: 1967-02-01 | E105: 86 | F105: FALSE | G105: TRUE | H105: FALSE | J105: =INDEX('Monthly Prices'!B93:CB93,$G$4) -> 0.16 | K105: =IF(H105,INDEX('Monthly Prices'!B93:CB93,$G$4)*U105,FALSE) -> FALSE | L105: TRUE | M105: =INDEX('Monthly Prices'!B93:CB93,$G$5) -> 0.4566473763 | N105: =IF(H105,INDEX('Monthly Prices'!B93:CB93,$G$5)*U105,FALSE) -> FALSE | O105: TRUE | P105: 1967 | Q105: ='Monthly Prices'!B93 -> 1.33 | R105: 1.329166667 | S105: =_xlfn.XLOOKUP(P105,'Annual Real'!A:A,'Annual Real'!B:B,0,0) -> 6.364463393 | T105: 9.661199711 | U105: 9.661199711 | V105: FALSE | W105: FALSE | X105: 0.028125 | Y105: 0.002314069583 | Z105: 1.119192063 | AA105: 7 | AB105: 1967-02-01 | AC105: 9.661199711
C106: ='Monthly Prices'!A94 -> 1967M04 | D106: 1967-03-01 | E106: 87 | F106: FALSE | G106: TRUE | H106: FALSE | J106: =INDEX('Monthly Prices'!B94:CB94,$G$4) -> 0.16 | K106: =IF(H106,INDEX('Monthly Prices'!B94:CB94,$G$4)*U106,FALSE) -> FALSE | L106: TRUE | M106: =INDEX('Monthly Prices'!B94:CB94,$G$5) -> 0.4566473763 | N106: =IF(H106,INDEX('Monthly Prices'!B94:CB94,$G$5)*U106,FALSE) -> FALSE | O106: TRUE | P106: 1967 | Q106: ='Monthly Prices'!B94 -> 1.33 | R106: 1.329166667 | S106: =_xlfn.XLOOKUP(P106,'Annual Real'!A:A,'Annual Real'!B:B,0,0) -> 6.364463393 | T106: 9.638963096 | U106: 9.638963096 | V106: FALSE | W106: FALSE | X106: 0.02803738 | Y106: 0.002306950946 | Z106: 1.121773984 | AA106: 7 | AB106: 1967-03-01 | AC106: 9.638963096
C107: ='Monthly Prices'!A95 -> 1967M05 | D107: 1967-04-01 | E107: 88 | F107: FALSE | G107: TRUE | H107: FALSE | J107: =INDEX('Monthly Prices'!B95:CB95,$G$4) -> 0.16 | K107: =IF(H107,INDEX('Monthly Prices'!B95:CB95,$G$4)*U107,FALSE) -> FALSE | L107: TRUE | M107: =INDEX('Monthly Prices'!B95:CB95,$G$5) -> 0.4566473763 | N107: =IF(H107,INDEX('Monthly Prices'!B95:CB95,$G$5)*U107,FALSE) -> FALSE | O107: TRUE | P107: 1967 | Q107: ='Monthly Prices'!B95 -> 1.33 | R107: 1.329166667 | S107: =_xlfn.XLOOKUP(P107,'Annual Real'!A:A,'Annual Real'!B:B,0,0) -> 6.364463393 | T107: 9.619330837 | U107: 9.619330837 | V107: FALSE | W107: FALSE | X107: 0.0247678 | Y107: 0.002040917371 | Z107: 1.124063432 | AA107: 7 | AB107: 1967-04-01 | AC107: 9.619330837
C108: ='Monthly Prices'!A96 -> 1967M06 | D108: 1967-05-01 | E108: 89 | F108: FALSE | G108: TRUE | H108: FALSE | J108: =INDEX('Monthly Prices'!B96:CB96,$G$4) -> 0.16 | K108: =IF(H108,INDEX('Monthly Prices'!B96:CB96,$G$4)*U108,FALSE) -> FALSE | L108: TRUE | M108: =INDEX('Monthly Prices'!B96:CB96,$G$5) -> 0.4566473763 | N108: =IF(H108,INDEX('Monthly Prices'!B96:CB96,$G$5)*U108,FALSE) -> FALSE | O108: TRUE | P108: 1967 | Q108: ='Monthly Prices'!B96 -> 1.33 | R108: 1.329166667 | S108: =_xlfn.XLOOKUP(P108,'Annual Real'!A:A,'Annual Real'!B:B,0,0) -> 6.364463393 | T108: 9.597325654 | U108: 9.597325654 | V108: FALSE | W108: FALSE | X108: 0.02786378 | Y108: 0.002292845269 | Z108: 1.126640736 | AA108: 7 | AB108: 1967-05-01 | AC108: 9.597325654
C109: ='Monthly Prices'!A97 -> 1967M07 | D109: 1967-06-01 | E109: 90 | F109: FALSE | G109: TRUE | H109: FALSE | J109: =INDEX('Monthly Prices'!B97:CB97,$G$4) -> 0.16 | K109: =IF(H109,INDEX('Monthly Prices'!B97:CB97,$G$4)*U109,FALSE) -> FALSE | L109: TRUE | M109: =INDEX('Monthly Prices'!B97:CB97,$G$5) -> 0.4566473763 | N109: =IF(H109,INDEX('Monthly Prices'!B97:CB97,$G$5)*U109,FALSE) -> FALSE | O109: TRUE | P109: 1967 | Q109: ='Monthly Prices'!B97 -> 1.33 | R109: 1.329166667 | S109: =_xlfn.XLOOKUP(P109,'Annual Real'!A:A,'Annual Real'!B:B,0,0) -> 6.364463393 | T109: 9.575437576 | U109: 9.575437576 | V109: FALSE | W109: FALSE | X109: 0.02777778 | Y109: 0.002285856625 | Z109: 1.129216075 | AA109: 7 | AB109: 1967-06-01 | AC109: 9.575437576
C110: ='Monthly Prices'!A98 -> 1967M08 | D110: 1967-07-01 | E110: 91 | F110: FALSE | G110: TRUE | H110: FALSE | J110: =INDEX('Monthly Prices'!B98:CB98,$G$4) -> 0.16 | K110: =IF(H110,INDEX('Monthly Prices'!B98:CB98,$G$4)*U110,FALSE) -> FALSE | L110: TRUE | M110: =INDEX('Monthly Prices'!B98:CB98,$G$5) -> 0.4566473763 | N110: =IF(H110,INDEX('Monthly Prices'!B98:CB98,$G$5)*U110,FALSE) -> FALSE | O110: TRUE | P110: 1967 | Q110: ='Monthly Prices'!B98 -> 1.33 | R110: 1.329166667 | S110: =_xlfn.XLOOKUP(P110,'Annual Real'!A:A,'Annual Real'!B:B,0,0) -> 6.364463393 | T110: 9.553665627 | U110: 9.553665627 | V110: FALSE | W110: FALSE | X110: 0.02769231 | Y110: 0.002278910519 | Z110: 1.131789457 | AA110: 7 | AB110: 1967-07-01 | AC110: 9.553665627
C111: ='Monthly Prices'!A99 -> 1967M09 | D111: 1967-08-01 | E111: 92 | F111: FALSE | G111: TRUE | H111: FALSE | J111: =INDEX('Monthly Prices'!B99:CB99,$G$4) -> 0.16 | K111: =IF(H111,INDEX('Monthly Prices'!B99:CB99,$G$4)*U111,FALSE) -> FALSE | L111: TRUE | M111: =INDEX('Monthly Prices'!B99:CB99,$G$5) -> 0.4566473763 | N111: =IF(H111,INDEX('Monthly Prices'!B99:CB99,$G$5)*U111,FALSE) -> FALSE | O111: TRUE | P111: 1967 | Q111: ='Monthly Prices'!B99 -> 1.33 | R111: 1.329166667 | S111: =_xlfn.XLOOKUP(P111,'Annual Real'!A:A,'Annual Real'!B:B,0,0) -> 6.364463393 | T111: 9.534442033 | U111: 9.534442033 | V111: FALSE | W111: FALSE | X111: 0.02446483 | Y111: 0.002016226454 | Z111: 1.134071401 | AA111: 7 | AB111: 1967-08-01 | AC111: 9.534442033
C112: ='Monthly Prices'!A100 -> 1967M10 | D112: 1967-09-01 | E112: 93 | F112: FALSE | G112: TRUE | H112: FALSE | J112: =INDEX('Monthly Prices'!B100:CB100,$G$4) -> 0.16 | K112: =IF(H112,INDEX('Monthly Prices'!B100:CB100,$G$4)*U112,FALSE) -> FALSE | L112: TRUE | M112: =INDEX('Monthly Prices'!B100:CB100,$G$5) -> 0.4566473763 | N112: =IF(H112,INDEX('Monthly Prices'!B100:CB100,$G$5)*U112,FALSE) -> FALSE | O112: TRUE | P112: 1967 | Q112: ='Monthly Prices'!B100 -> 1.33 | R112: 1.329166667 | S112: =_xlfn.XLOOKUP(P112,'Annual Real'!A:A,'Annual Real'!B:B,0,0) -> 6.364463393 | T112: 9.512893955 | U112: 9.512893955 | V112: FALSE | W112: FALSE | X112: 0.02752294 | Y112: 0.002265144336 | Z112: 1.136640237 | AA112: 7 | AB112: 1967-09-01 | AC112: 9.512893955
C113: ='Monthly Prices'!A101 -> 1967M11 | D113: 1967-10-01 | E113: 94 | F113: FALSE | G113: TRUE | H113: FALSE | J113: =INDEX('Monthly Prices'!B101:CB101,$G$4) -> 0.16 | K113: =IF(H113,INDEX('Monthly Prices'!B101:CB101,$G$4)*U113,FALSE) -> FALSE | L113: TRUE | M113: =INDEX('Monthly Prices'!B101:CB101,$G$5) -> 0.4566473763 | N113: =IF(H113,INDEX('Monthly Prices'!B101:CB101,$G$5)*U113,FALSE) -> FALSE | O113: TRUE | P113: 1967 | Q113: ='Monthly Prices'!B101 -> 1.33 | R113: 1.329166667 | S113: =_xlfn.XLOOKUP(P113,'Annual Real'!A:A,'Annual Real'!B:B,0,0) -> 6.364463393 | T113: 9.493867259 | U113: 9.493867259 | V113: FALSE | W113: FALSE | X113: 0.02431611 | Y113: 0.002004103883 | Z113: 1.138918182 | AA113: 7 | AB113: 1967-10-01 | AC113: 9.493867259
C114: ='Monthly Prices'!A102 -> 1967M12 | D114: 1967-11-01 | E114: 95 | F114: FALSE | G114: TRUE | H114: FALSE | J114: =INDEX('Monthly Prices'!B102:CB102,$G$4) -> 0.16 | K114: =IF(H114,INDEX('Monthly Prices'!B102:CB102,$G$4)*U114,FALSE) -> FALSE | L114: TRUE | M114: =INDEX('Monthly Prices'!B102:CB102,$G$5) -> 0.4566473763 | N114: =IF(H114,INDEX('Monthly Prices'!B102:CB102,$G$5)*U114,FALSE) -> FALSE | O114: TRUE | P114: 1967 | Q114: ='Monthly Prices'!B102 -> 1.33 | R114: 1.329166667 | S114: =_xlfn.XLOOKUP(P114,'Annual Real'!A:A,'Annual Real'!B:B,0,0) -> 6.364463393 | T114: 9.472539432 | U114: 9.472539432 | V114: FALSE | W114: FALSE | X114: 0.02735562 | Y114: 0.002251542732 | Z114: 1.141482505 | AA114: 7 | AB114: 1967-11-01 | AC114: 9.472539432
C115: ='Monthly Prices'!A103 -> 1968M01 | D115: 1967-12-01 | E115: 96 | F115: FALSE | G115: TRUE | H115: FALSE | J115: =INDEX('Monthly Prices'!B103:CB103,$G$4) -> 0.16 | K115: =IF(H115,INDEX('Monthly Prices'!B103:CB103,$G$4)*U115,FALSE) -> FALSE | L115: TRUE | M115: =INDEX('Monthly Prices'!B103:CB103,$G$5) -> 0.4518018774 | N115: =IF(H115,INDEX('Monthly Prices'!B103:CB103,$G$5)*U115,FALSE) -> FALSE | O115: TRUE | P115: 1967 | Q115: ='Monthly Prices'!B103 -> 1.32 | R115: 1.329166667 | S115: =_xlfn.XLOOKUP(P115,'Annual Real'!A:A,'Annual Real'!B:B,0,0) -> 6.364463393 | T115: 9.448933047 | U115: 9.448933047 | V115: FALSE | W115: FALSE | X115: 0.03039514 | Y115: 0.002498312239 | Z115: 1.144334284 | AA115: 7 | AB115: 1967-12-01 | AC115: 9.448933047
C116: ='Monthly Prices'!A104 -> 1968M02 | D116: 1968-01-01 | E116: 97 | F116: FALSE | G116: TRUE | H116: FALSE | J116: =INDEX('Monthly Prices'!B104:CB104,$G$4) -> 0.16 | K116: =IF(H116,INDEX('Monthly Prices'!B104:CB104,$G$4)*U116,FALSE) -> FALSE | L116: TRUE | M116: =INDEX('Monthly Prices'!B104:CB104,$G$5) -> 0.4518018774 | N116: =IF(H116,INDEX('Monthly Prices'!B104:CB104,$G$5)*U116,FALSE) -> FALSE | O116: TRUE | P116: 1968 | Q116: ='Monthly Prices'!B104 -> 1.32 | R116: 1.315833333 | S116: =_xlfn.XLOOKUP(P116,'Annual Real'!A:A,'Annual Real'!B:B,0,0) -> 6.372129832 | T116: 9.420766328 | U116: 9.420766328 | V116: FALSE | W116: FALSE | X116: 0.03647416 | Y116: 0.002989854269 | Z116: 1.147755677 | AA116: 7 | AB116: 1968-01-01 | AC116: 9.420766328
C117: ='Monthly Prices'!A105 -> 1968M03 | D117: 1968-02-01 | E117: 98 | F117: FALSE | G117: TRUE | H117: FALSE | J117: =INDEX('Monthly Prices'!B105:CB105,$G$4) -> 0.16 | K117: =IF(H117,INDEX('Monthly Prices'!B105:CB105,$G$4)*U117,FALSE) -> FALSE | L117: TRUE | M117: =INDEX('Monthly Prices'!B105:CB105,$G$5) -> 0.4518018774 | N117: =IF(H117,INDEX('Monthly Prices'!B105:CB105,$G$5)*U117,FALSE) -> FALSE | O117: TRUE | P117: 1968 | Q117: ='Monthly Prices'!B105 -> 1.32 | R117: 1.315833333 | S117: =_xlfn.XLOOKUP(P117,'Annual Real'!A:A,'Annual Real'!B:B,0,0) -> 6.372129832 | T117: 9.39039183 | U117: 9.39039183 | V117: FALSE | W117: FALSE | X117: 0.03951368 | Y117: 0.003234635881 | Z117: 1.151468249 | AA117: 7 | AB117: 1968-02-01 | AC117: 9.39039183
C118: ='Monthly Prices'!A106 -> 1968M04 | D118: 1968-03-01 | E118: 99 | F118: FALSE | G118: TRUE | H118: FALSE | J118: =INDEX('Monthly Prices'!B106:CB106,$G$4) -> 0.16 | K118: =IF(H118,INDEX('Monthly Prices'!B106:CB106,$G$4)*U118,FALSE) -> FALSE | L118: TRUE | M118: =INDEX('Monthly Prices'!B106:CB106,$G$5) -> 0.4518018774 | N118: =IF(H118,INDEX('Monthly Prices'!B106:CB106,$G$5)*U118,FALSE) -> FALSE | O118: TRUE | P118: 1968 | Q118: ='Monthly Prices'!B106 -> 1.32 | R118: 1.315833333 | S118: =_xlfn.XLOOKUP(P118,'Annual Real'!A:A,'Annual Real'!B:B,0,0) -> 6.372129832 | T118: 9.360205119 | U118: 9.360205119 | V118: FALSE | W118: FALSE | X118: 0.03939394 | Y118: 0.003225005283 | Z118: 1.15518174 | AA118: 7 | AB118: 1968-03-01 | AC118: 9.360205119
C119: ='Monthly Prices'!A107 -> 1968M05 | D119: 1968-04-01 | E119: 100 | F119: FALSE | G119: TRUE | H119: FALSE | J119: =INDEX('Monthly Prices'!B107:CB107,$G$4) -> 0.16 | K119: =IF(H119,INDEX('Monthly Prices'!B107:CB107,$G$4)*U119,FALSE) -> FALSE | L119: TRUE | M119: =INDEX('Monthly Prices'!B107:CB107,$G$5) -> 0.4518018774 | N119: =IF(H119,INDEX('Monthly Prices'!B107:CB107,$G$5)*U119,FALSE) -> FALSE | O119: TRUE | P119: 1968 | Q119: ='Monthly Prices'!B107 -> 1.32 | R119: 1.315833333 | S119: =_xlfn.XLOOKUP(P119,'Annual Real'!A:A,'Annual Real'!B:B,0,0) -> 6.372129832 | T119: 9.330204485 | U119: 9.330204485 | V119: FALSE | W119: FALSE | X119: 0.03927492 | Y119: 0.003215431587 | Z119: 1.158896148 | AA119: 7 | AB119: 1968-04-01 | AC119: 9.330204485
C120: ='Monthly Prices'!A108 -> 1968M06 | D120: 1968-05-01 | E120: 101 | F120: FALSE | G120: TRUE | H120: FALSE | J120: =INDEX('Monthly Prices'!B108:CB108,$G$4) -> 0.16 | K120: =IF(H120,INDEX('Monthly Prices'!B108:CB108,$G$4)*U120,FALSE) -> FALSE | L120: TRUE | M120: =INDEX('Monthly Prices'!B108:CB108,$G$5) -> 0.4518018774 | N120: =IF(H120,INDEX('Monthly Prices'!B108:CB108,$G$5)*U120,FALSE) -> FALSE | O120: TRUE | P120: 1968 | Q120: ='Monthly Prices'!B108 -> 1.32 | R120: 1.315833333 | S120: =_xlfn.XLOOKUP(P120,'Annual Real'!A:A,'Annual Real'!B:B,0,0) -> 6.372129832 | T120: 9.300388225 | U120: 9.300388225 | V120: FALSE | W120: FALSE | X120: 0.03915663 | Y120: 0.003205915614 | Z120: 1.162611471 | AA120: 7 | AB120: 1968-05-01 | AC120: 9.300388225
C121: ='Monthly Prices'!A109 -> 1968M07 | D121: 1968-06-01 | E121: 102 | F121: FALSE | G121: TRUE | H121: FALSE | J121: =INDEX('Monthly Prices'!B109:CB109,$G$4) -> 0.16 | K121: =IF(H121,INDEX('Monthly Prices'!B109:CB109,$G$4)*U121,FALSE) -> FALSE | L121: TRUE | M121: =INDEX('Monthly Prices'!B109:CB109,$G$5) -> 0.4518018774 | N121: =IF(H121,INDEX('Monthly Prices'!B109:CB109,$G$5)*U121,FALSE) -> FALSE | O121: TRUE | P121: 1968 | Q121: ='Monthly Prices'!B109 -> 1.32 | R121: 1.315833333 | S121: =_xlfn.XLOOKUP(P121,'Annual Real'!A:A,'Annual Real'!B:B,0,0) -> 6.372129832 | T121: 9.268525325 | U121: 9.268525325 | V121: FALSE | W121: FALSE | X121: 0.04204204 | Y121: 0.003437752899 | Z121: 1.166608242 | AA121: 7 | AB121: 1968-06-01 | AC121: 9.268525325
C122: ='Monthly Prices'!A110 -> 1968M08 | D122: 1968-07-01 | E122: 103 | F122: FALSE | G122: TRUE | H122: FALSE | J122: =INDEX('Monthly Prices'!B110:CB110,$G$4) -> 0.16 | K122: =IF(H122,INDEX('Monthly Prices'!B110:CB110,$G$4)*U122,FALSE) -> FALSE | L122: TRUE | M122: =INDEX('Monthly Prices'!B110:CB110,$G$5) -> 0.4518018774 | N122: =IF(H122,INDEX('Monthly Prices'!B110:CB110,$G$5)*U122,FALSE) -> FALSE | O122: TRUE | P122: 1968 | Q122: ='Monthly Prices'!B110 -> 1.32 | R122: 1.315833333 | S122: =_xlfn.XLOOKUP(P122,'Annual Real'!A:A,'Annual Real'!B:B,0,0) -> 6.372129832 | T122: 9.234656114 | U122: 9.234656114 | V122: FALSE | W122: FALSE | X122: 0.04491018 | Y122: 0.003667620116 | Z122: 1.170886918 | AA122: 7 | AB122: 1968-07-01 | AC122: 9.234656114
C123: ='Monthly Prices'!A111 -> 1968M09 | D123: 1968-08-01 | E123: 104 | F123: FALSE | G123: TRUE | H123: FALSE | J123: =INDEX('Monthly Prices'!B111:CB111,$G$4) -> 0.16 | K123: =IF(H123,INDEX('Monthly Prices'!B111:CB111,$G$4)*U123,FALSE) -> FALSE | L123: TRUE | M123: =INDEX('Monthly Prices'!B111:CB111,$G$5) -> 0.4518018774 | N123: =IF(H123,INDEX('Monthly Prices'!B111:CB111,$G$5)*U123,FALSE) -> FALSE | O123: TRUE | P123: 1968 | Q123: ='Monthly Prices'!B111 -> 1.32 | R123: 1.315833333 | S123: =_xlfn.XLOOKUP(P123,'Annual Real'!A:A,'Annual Real'!B:B,0,0) -> 6.372129832 | T123: 9.201009048 | U123: 9.201009048 | V123: FALSE | W123: FALSE | X123: 0.04477612 | Y123: 0.003656888764 | Z123: 1.175168721 | AA123: 7 | AB123: 1968-08-01 | AC123: 9.201009048
C124: ='Monthly Prices'!A112 -> 1968M10 | D124: 1968-09-01 | E124: 105 | F124: FALSE | G124: TRUE | H124: FALSE | J124: =INDEX('Monthly Prices'!B112:CB112,$G$4) -> 0.16 | K124: =IF(H124,INDEX('Monthly Prices'!B112:CB112,$G$4)*U124,FALSE) -> FALSE | L124: TRUE | M124: =INDEX('Monthly Prices'!B112:CB112,$G$5) -> 0.4518018774 | N124: =IF(H124,INDEX('Monthly Prices'!B112:CB112,$G$5)*U124,FALSE) -> FALSE | O124: TRUE | P124: 1968 | Q124: ='Monthly Prices'!B112 -> 1.32 | R124: 1.315833333 | S124: =_xlfn.XLOOKUP(P124,'Annual Real'!A:A,'Annual Real'!B:B,0,0) -> 6.372129832 | T124: 9.167582025 | U124: 9.167582025 | V124: FALSE | W124: FALSE | X124: 0.04464286 | Y124: 0.003646220199 | Z124: 1.179453645 | AA124: 7 | AB124: 1968-09-01 | AC124: 9.167582025
C125: ='Monthly Prices'!A113 -> 1968M11 | D125: 1968-10-01 | E125: 106 | F125: FALSE | G125: TRUE | H125: FALSE | J125: =INDEX('Monthly Prices'!B113:CB113,$G$4) -> 0.16 | K125: =IF(H125,INDEX('Monthly Prices'!B113:CB113,$G$4)*U125,FALSE) -> FALSE | L125: TRUE | M125: =INDEX('Monthly Prices'!B113:CB113,$G$5) -> 0.4518018774 | N125: =IF(H125,INDEX('Monthly Prices'!B113:CB113,$G$5)*U125,FALSE) -> FALSE | O125: TRUE | P125: 1968 | Q125: ='Monthly Prices'!B113 -> 1.32 | R125: 1.315833333 | S125: =_xlfn.XLOOKUP(P125,'Annual Real'!A:A,'Annual Real'!B:B,0,0) -> 6.372129832 | T125: 9.132213801 | U125: 9.132213801 | V125: FALSE | W125: FALSE | X125: 0.04747775 | Y125: 0.003872908029 | Z125: 1.184021561 | AA125: 7 | AB125: 1968-10-01 | AC125: 9.132213801
C126: ='Monthly Prices'!A114 -> 1968M12 | D126: 1968-11-01 | E126: 107 | F126: FALSE | G126: TRUE | H126: FALSE | J126: =INDEX('Monthly Prices'!B114:CB114,$G$4) -> 0.16 | K126: =IF(H126,INDEX('Monthly Prices'!B114:CB114,$G$4)*U126,FALSE) -> FALSE | L126: TRUE | M126: =INDEX('Monthly Prices'!B114:CB114,$G$5) -> 0.4518018774 | N126: =IF(H126,INDEX('Monthly Prices'!B114:CB114,$G$5)*U126,FALSE) -> FALSE | O126: TRUE | P126: 1968 | Q126: ='Monthly Prices'!B114 -> 1.32 | R126: 1.315833333 | S126: =_xlfn.XLOOKUP(P126,'Annual Real'!A:A,'Annual Real'!B:B,0,0) -> 6.372129832 | T126: 9.097083695 | U126: 9.097083695 | V126: FALSE | W126: FALSE | X126: 0.04733728 | Y126: 0.003861688801 | Z126: 1.188593883 | AA126: 7 | AB126: 1968-11-01 | AC126: 9.097083695
C127: ='Monthly Prices'!A115 -> 1969M01 | D127: 1968-12-01 | E127: 108 | F127: FALSE | G127: TRUE | H127: FALSE | J127: =INDEX('Monthly Prices'!B115:CB115,$G$4) -> 0.17 | K127: =IF(H127,INDEX('Monthly Prices'!B115:CB115,$G$4)*U127,FALSE) -> FALSE | L127: TRUE | M127: =INDEX('Monthly Prices'!B115:CB115,$G$5) -> 0.4518199182 | N127: =IF(H127,INDEX('Monthly Prices'!B115:CB115,$G$5)*U127,FALSE) -> FALSE | O127: TRUE | P127: 1968 | Q127: ='Monthly Prices'!B115 -> 1.27 | R127: 1.315833333 | S127: =_xlfn.XLOOKUP(P127,'Annual Real'!A:A,'Annual Real'!B:B,0,0) -> 6.372129832 | T127: 9.062189422 | U127: 9.062189422 | V127: FALSE | W127: FALSE | X127: 0.04719764 | Y127: 0.003850534498 | Z127: 1.193170605 | AA127: 7 | AB127: 1968-12-01 | AC127: 9.062189422
C128: ='Monthly Prices'!A116 -> 1969M02 | D128: 1969-01-01 | E128: 109 | F128: FALSE | G128: TRUE | H128: FALSE | J128: =INDEX('Monthly Prices'!B116:CB116,$G$4) -> 0.17 | K128: =IF(H128,INDEX('Monthly Prices'!B116:CB116,$G$4)*U128,FALSE) -> FALSE | L128: TRUE | M128: =INDEX('Monthly Prices'!B116:CB116,$G$5) -> 0.4518199182 | N128: =IF(H128,INDEX('Monthly Prices'!B116:CB116,$G$5)*U128,FALSE) -> FALSE | O128: TRUE | P128: 1969 | Q128: ='Monthly Prices'!B116 -> 1.27 | R128: 1.265 | S128: =_xlfn.XLOOKUP(P128,'Annual Real'!A:A,'Annual Real'!B:B,0,0) -> 5.819224679 | T128: 9.029738377 | U128: 9.029738377 | V128: FALSE | W128: FALSE | X128: 0.04398827 | Y128: 0.003593796738 | Z128: 1.197458618 | AA128: 7 | AB128: 1969-01-01 | AC128: 9.029738377
C129: ='Monthly Prices'!A117 -> 1969M03 | D129: 1969-02-01 | E129: 110 | F129: FALSE | G129: TRUE | H129: FALSE | J129: =INDEX('Monthly Prices'!B117:CB117,$G$4) -> 0.17 | K129: =IF(H129,INDEX('Monthly Prices'!B117:CB117,$G$4)*U129,FALSE) -> FALSE | L129: TRUE | M129: =INDEX('Monthly Prices'!B117:CB117,$G$5) -> 0.4518199182 | N129: =IF(H129,INDEX('Monthly Prices'!B117:CB117,$G$5)*U129,FALSE) -> FALSE | O129: TRUE | P129: 1969 | Q129: ='Monthly Prices'!B117 -> 1.27 | R129: 1.265 | S129: =_xlfn.XLOOKUP(P129,'Annual Real'!A:A,'Annual Real'!B:B,0,0) -> 5.819224679 | T129: 8.995398847 | U129: 8.995398847 | V129: FALSE | W129: FALSE | X129: 0.04678362 | Y129: 0.003817454979 | Z129: 1.202029862 | AA129: 7 | AB129: 1969-02-01 | AC129: 8.995398847
C130: ='Monthly Prices'!A118 -> 1969M04 | D130: 1969-03-01 | E130: 111 | F130: FALSE | G130: TRUE | H130: FALSE | J130: =INDEX('Monthly Prices'!B118:CB118,$G$4) -> 0.17 | K130: =IF(H130,INDEX('Monthly Prices'!B118:CB118,$G$4)*U130,FALSE) -> FALSE | L130: TRUE | M130: =INDEX('Monthly Prices'!B118:CB118,$G$5) -> 0.4518199182 | N130: =IF(H130,INDEX('Monthly Prices'!B118:CB118,$G$5)*U130,FALSE) -> FALSE | O130: TRUE | P130: 1969 | Q130: ='Monthly Prices'!B118 -> 1.27 | R130: 1.265 | S130: =_xlfn.XLOOKUP(P130,'Annual Real'!A:A,'Annual Real'!B:B,0,0) -> 5.819224679 | T130: 8.957139423 | U130: 8.957139423 | V130: FALSE | W130: FALSE | X130: 0.05247813 | Y130: 0.004271388759 | Z130: 1.207164199 | AA130: 7 | AB130: 1969-03-01 | AC130: 8.957139423
C131: ='Monthly Prices'!A119 -> 1969M05 | D131: 1969-04-01 | E131: 112 | F131: FALSE | G131: TRUE | H131: FALSE | J131: =INDEX('Monthly Prices'!B119:CB119,$G$4) -> 0.17 | K131: =IF(H131,INDEX('Monthly Prices'!B119:CB119,$G$4)*U131,FALSE) -> FALSE | L131: TRUE | M131: =INDEX('Monthly Prices'!B119:CB119,$G$5) -> 0.4518199182 | N131: =IF(H131,INDEX('Monthly Prices'!B119:CB119,$G$5)*U131,FALSE) -> FALSE | O131: TRUE | P131: 1969 | Q131: ='Monthly Prices'!B119 -> 1.27 | R131: 1.265 | S131: =_xlfn.XLOOKUP(P131,'Annual Real'!A:A,'Annual Real'!B:B,0,0) -> 5.819224679 | T131: 8.917100315 | U131: 8.917100315 | V131: FALSE | W131: FALSE | X131: 0.05523256 | Y131: 0.004490148865 | Z131: 1.212584546 | AA131: 7 | AB131: 1969-04-01 | AC131: 8.917100315
C132: ='Monthly Prices'!A120 -> 1969M06 | D132: 1969-05-01 | E132: 113 | F132: FALSE | G132: TRUE | H132: FALSE | J132: =INDEX('Monthly Prices'!B120:CB120,$G$4) -> 0.17 | K132: =IF(H132,INDEX('Monthly Prices'!B120:CB120,$G$4)*U132,FALSE) -> FALSE | L132: TRUE | M132: =INDEX('Monthly Prices'!B120:CB120,$G$5) -> 0.4518199182 | N132: =IF(H132,INDEX('Monthly Prices'!B120:CB120,$G$5)*U132,FALSE) -> FALSE | O132: TRUE | P132: 1969 | Q132: ='Monthly Prices'!B120 -> 1.27 | R132: 1.265 | S132: =_xlfn.XLOOKUP(P132,'Annual Real'!A:A,'Annual Real'!B:B,0,0) -> 5.819224679 | T132: 8.877352432 | U132: 8.877352432 | V132: FALSE | W132: FALSE | X132: 0.05507246 | Y132: 0.004477447869 | Z132: 1.21801383 | AA132: 7 | AB132: 1969-05-01 | AC132: 8.877352432
C133: ='Monthly Prices'!A121 -> 1969M07 | D133: 1969-06-01 | E133: 114 | F133: FALSE | G133: TRUE | H133: FALSE | J133: =INDEX('Monthly Prices'!B121:CB121,$G$4) -> 0.17 | K133: =IF(H133,INDEX('Monthly Prices'!B121:CB121,$G$4)*U133,FALSE) -> FALSE | L133: TRUE | M133: =INDEX('Monthly Prices'!B121:CB121,$G$5) -> 0.4518199182 | N133: =IF(H133,INDEX('Monthly Prices'!B121:CB121,$G$5)*U133,FALSE) -> FALSE | O133: TRUE | P133: 1969 | Q133: ='Monthly Prices'!B121 -> 1.27 | R133: 1.265 | S133: =_xlfn.XLOOKUP(P133,'Annual Real'!A:A,'Annual Real'!B:B,0,0) -> 5.819224679 | T133: 8.838003333 | U133: 8.838003333 | V133: FALSE | W133: FALSE | X133: 0.05475504 | Y133: 0.004452261194 | Z133: 1.223436746 | AA133: 7 | AB133: 1969-06-01 | AC133: 8.838003333
C134: ='Monthly Prices'!A122 -> 1969M08 | D134: 1969-07-01 | E134: 115 | F134: FALSE | G134: TRUE | H134: FALSE | J134: =INDEX('Monthly Prices'!B122:CB122,$G$4) -> 0.17 | K134: =IF(H134,INDEX('Monthly Prices'!B122:CB122,$G$4)*U134,FALSE) -> FALSE | L134: TRUE | M134: =INDEX('Monthly Prices'!B122:CB122,$G$5) -> 0.4518199182 | N134: =IF(H134,INDEX('Monthly Prices'!B122:CB122,$G$5)*U134,FALSE) -> FALSE | O134: TRUE | P134: 1969 | Q134: ='Monthly Prices'!B122 -> 1.27 | R134: 1.265 | S134: =_xlfn.XLOOKUP(P134,'Annual Real'!A:A,'Annual Real'!B:B,0,0) -> 5.819224679 | T134: 8.799046816 | U134: 8.799046816 | V134: FALSE | W134: FALSE | X134: 0.05444126 | Y134: 0.004427356516 | Z134: 1.228853336 | AA134: 7 | AB134: 1969-07-01 | AC134: 8.799046816
C135: ='Monthly Prices'!A123 -> 1969M09 | D135: 1969-08-01 | E135: 116 | F135: FALSE | G135: TRUE | H135: FALSE | J135: =INDEX('Monthly Prices'!B123:CB123,$G$4) -> 0.17 | K135: =IF(H135,INDEX('Monthly Prices'!B123:CB123,$G$4)*U135,FALSE) -> FALSE | L135: TRUE | M135: =INDEX('Monthly Prices'!B123:CB123,$G$5) -> 0.4518199182 | N135: =IF(H135,INDEX('Monthly Prices'!B123:CB123,$G$5)*U135,FALSE) -> FALSE | O135: TRUE | P135: 1969 | Q135: ='Monthly Prices'!B123 -> 1.27 | R135: 1.265 | S135: =_xlfn.XLOOKUP(P135,'Annual Real'!A:A,'Annual Real'!B:B,0,0) -> 5.819224679 | T135: 8.758394204 | U135: 8.758394204 | V135: FALSE | W135: FALSE | X135: 0.05714286 | Y135: 0.004641559977 | Z135: 1.234557133 | AA135: 7 | AB135: 1969-08-01 | AC135: 8.758394204
C136: ='Monthly Prices'!A124 -> 1969M10 | D136: 1969-09-01 | E136: 117 | F136: FALSE | G136: TRUE | H136: FALSE | J136: =INDEX('Monthly Prices'!B124:CB124,$G$4) -> 0.17 | K136: =IF(H136,INDEX('Monthly Prices'!B124:CB124,$G$4)*U136,FALSE) -> FALSE | L136: TRUE | M136: =INDEX('Monthly Prices'!B124:CB124,$G$5) -> 0.4518199182 | N136: =IF(H136,INDEX('Monthly Prices'!B124:CB124,$G$5)*U136,FALSE) -> FALSE | O136: TRUE | P136: 1969 | Q136: ='Monthly Prices'!B124 -> 1.27 | R136: 1.265 | S136: =_xlfn.XLOOKUP(P136,'Annual Real'!A:A,'Annual Real'!B:B,0,0) -> 5.819224679 | T136: 8.718041301 | U136: 8.718041301 | V136: FALSE | W136: FALSE | X136: 0.05698006 | Y136: 0.004628666167 | Z136: 1.240271486 | AA136: 7 | AB136: 1969-09-01 | AC136: 8.718041301
C137: ='Monthly Prices'!A125 -> 1969M11 | D137: 1969-10-01 | E137: 118 | F137: FALSE | G137: TRUE | H137: FALSE | J137: =INDEX('Monthly Prices'!B125:CB125,$G$4) -> 0.17 | K137: =IF(H137,INDEX('Monthly Prices'!B125:CB125,$G$4)*U137,FALSE) -> FALSE | L137: TRUE | M137: =INDEX('Monthly Prices'!B125:CB125,$G$5) -> 0.4518199182 | N137: =IF(H137,INDEX('Monthly Prices'!B125:CB125,$G$5)*U137,FALSE) -> FALSE | O137: TRUE | P137: 1969 | Q137: ='Monthly Prices'!B125 -> 1.27 | R137: 1.265 | S137: =_xlfn.XLOOKUP(P137,'Annual Real'!A:A,'Annual Real'!B:B,0,0) -> 5.819224679 | T137: 8.678095232 | U137: 8.678095232 | V137: FALSE | W137: FALSE | X137: 0.05665722 | Y137: 0.004603091754 | Z137: 1.245980569 | AA137: 7 | AB137: 1969-10-01 | AC137: 8.678095232
C138: ='Monthly Prices'!A126 -> 1969M12 | D138: 1969-11-01 | E138: 119 | F138: FALSE | G138: TRUE | H138: FALSE | J138: =INDEX('Monthly Prices'!B126:CB126,$G$4) -> 0.17 | K138: =IF(H138,INDEX('Monthly Prices'!B126:CB126,$G$4)*U138,FALSE) -> FALSE | L138: TRUE | M138: =INDEX('Monthly Prices'!B126:CB126,$G$5) -> 0.4518199182 | N138: =IF(H138,INDEX('Monthly Prices'!B126:CB126,$G$5)*U138,FALSE) -> FALSE | O138: TRUE | P138: 1969 | Q138: ='Monthly Prices'!B126 -> 1.27 | R138: 1.265 | S138: =_xlfn.XLOOKUP(P138,'Annual Real'!A:A,'Annual Real'!B:B,0,0) -> 5.819224679 | T138: 8.636519237 | U138: 8.636519237 | V138: FALSE | W138: FALSE | X138: 0.05932203 | Y138: 0.004813975892 | Z138: 1.25197869 | AA138: 7 | AB138: 1969-11-01 | AC138: 8.636519237
C139: ='Monthly Prices'!A127 -> 1970M01 | D139: 1969-12-01 | E139: 120 | F139: FALSE | G139: TRUE | H139: FALSE | J139: =INDEX('Monthly Prices'!B127:CB127,$G$4) -> 0.17 | K139: =IF(H139,INDEX('Monthly Prices'!B127:CB127,$G$4)*U139,FALSE) -> FALSE | L139: TRUE | M139: =INDEX('Monthly Prices'!B127:CB127,$G$5) -> 0.4472180101 | N139: =IF(H139,INDEX('Monthly Prices'!B127:CB127,$G$5)*U139,FALSE) -> FALSE | O139: TRUE | P139: 1969 | Q139: ='Monthly Prices'!B127 -> 1.21 | R139: 1.265 | S139: =_xlfn.XLOOKUP(P139,'Annual Real'!A:A,'Annual Real'!B:B,0,0) -> 5.819224679 | T139: 8.593353186 | U139: 8.593353186 | V139: FALSE | W139: FALSE | X139: 0.06197183 | Y139: 0.005023190551 | Z139: 1.258267617 | AA139: 7 | AB139: 1969-12-01 | AC139: 8.593353186
C140: ='Monthly Prices'!A128 -> 1970M02 | D140: 1970-01-01 | E140: 121 | F140: FALSE | G140: TRUE | H140: FALSE | J140: =INDEX('Monthly Prices'!B128:CB128,$G$4) -> 0.17 | K140: =IF(H140,INDEX('Monthly Prices'!B128:CB128,$G$4)*U140,FALSE) -> FALSE | L140: TRUE | M140: =INDEX('Monthly Prices'!B128:CB128,$G$5) -> 0.4472180101 | N140: =IF(H140,INDEX('Monthly Prices'!B128:CB128,$G$5)*U140,FALSE) -> FALSE | O140: TRUE | P140: 1970 | Q140: ='Monthly Prices'!B128 -> 1.21 | R140: 1.245833333 | S140: =_xlfn.XLOOKUP(P140,'Annual Real'!A:A,'Annual Real'!B:B,0,0) -> 5.212235611 | T140: 8.550519693 | U140: 8.550519693 | V140: FALSE | W140: FALSE | X140: 0.06179775 | Y140: 0.005009460779 | Z140: 1.264570859 | AA140: 7 | AB140: 1970-01-01 | AC140: 8.550519693
C141: ='Monthly Prices'!A129 -> 1970M03 | D141: 1970-02-01 | E141: 122 | F141: FALSE | G141: TRUE | H141: FALSE | J141: =INDEX('Monthly Prices'!B129:CB129,$G$4) -> 0.17 | K141: =IF(H141,INDEX('Monthly Prices'!B129:CB129,$G$4)*U141,FALSE) -> FALSE | L141: TRUE | M141: =INDEX('Monthly Prices'!B129:CB129,$G$5) -> 0.4472180101 | N141: =IF(H141,INDEX('Monthly Prices'!B129:CB129,$G$5)*U141,FALSE) -> FALSE | O141: TRUE | P141: 1970 | Q141: ='Monthly Prices'!B129 -> 1.21 | R141: 1.245833333 | S141: =_xlfn.XLOOKUP(P141,'Annual Real'!A:A,'Annual Real'!B:B,0,0) -> 5.212235611 | T141: 8.50813027 | U141: 8.50813027 | V141: FALSE | W141: FALSE | X141: 0.06145251 | Y141: 0.00498222543 | Z141: 1.270871236 | AA141: 7 | AB141: 1970-02-01 | AC141: 8.50813027
C142: ='Monthly Prices'!A130 -> 1970M04 | D142: 1970-03-01 | E142: 123 | F142: FALSE | G142: TRUE | H142: FALSE | J142: =INDEX('Monthly Prices'!B130:CB130,$G$4) -> 0.17 | K142: =IF(H142,INDEX('Monthly Prices'!B130:CB130,$G$4)*U142,FALSE) -> FALSE | L142: TRUE | M142: =INDEX('Monthly Prices'!B130:CB130,$G$5) -> 0.4472180101 | N142: =IF(H142,INDEX('Monthly Prices'!B130:CB130,$G$5)*U142,FALSE) -> FALSE | O142: TRUE | P142: 1970 | Q142: ='Monthly Prices'!B130 -> 1.21 | R142: 1.245833333 | S142: =_xlfn.XLOOKUP(P142,'Annual Real'!A:A,'Annual Real'!B:B,0,0) -> 5.212235611 | T142: 8.468135221 | U142: 8.468135221 | V142: FALSE | W142: FALSE | X142: 0.05817174 | Y142: 0.004723005513 | Z142: 1.276873568 | AA142: 7 | AB142: 1970-03-01 | AC142: 8.468135221
C143: ='Monthly Prices'!A131 -> 1970M05 | D143: 1970-04-01 | E143: 124 | F143: FALSE | G143: TRUE | H143: FALSE | J143: =INDEX('Monthly Prices'!B131:CB131,$G$4) -> 0.17 | K143: =IF(H143,INDEX('Monthly Prices'!B131:CB131,$G$4)*U143,FALSE) -> FALSE | L143: TRUE | M143: =INDEX('Monthly Prices'!B131:CB131,$G$5) -> 0.4472180101 | N143: =IF(H143,INDEX('Monthly Prices'!B131:CB131,$G$5)*U143,FALSE) -> FALSE | O143: TRUE | P143: 1970 | Q143: ='Monthly Prices'!B131 -> 1.21 | R143: 1.245833333 | S143: =_xlfn.XLOOKUP(P143,'Annual Real'!A:A,'Annual Real'!B:B,0,0) -> 5.212235611 | T143: 8.426714413 | U143: 8.426714413 | V143: FALSE | W143: FALSE | X143: 0.06060606 | Y143: 0.00491541617 | Z143: 1.283149933 | AA143: 7 | AB143: 1970-04-01 | AC143: 8.426714413
C144: ='Monthly Prices'!A132 -> 1970M06 | D144: 1970-05-01 | E144: 125 | F144: FALSE | G144: TRUE | H144: FALSE | J144: =INDEX('Monthly Prices'!B132:CB132,$G$4) -> 0.17 | K144: =IF(H144,INDEX('Monthly Prices'!B132:CB132,$G$4)*U144,FALSE) -> FALSE | L144: TRUE | M144: =INDEX('Monthly Prices'!B132:CB132,$G$5) -> 0.4472180101 | N144: =IF(H144,INDEX('Monthly Prices'!B132:CB132,$G$5)*U144,FALSE) -> FALSE | O144: TRUE | P144: 1970 | Q144: ='Monthly Prices'!B132 -> 1.21 | R144: 1.245833333 | S144: =_xlfn.XLOOKUP(P144,'Annual Real'!A:A,'Annual Real'!B:B,0,0) -> 5.212235611 | T144: 8.385605918 | U144: 8.385605918 | V144: FALSE | W144: FALSE | X144: 0.06043956 | Y144: 0.004902268777 | Z144: 1.289440279 | AA144: 7 | AB144: 1970-05-01 | AC144: 8.385605918
C145: ='Monthly Prices'!A133 -> 1970M07 | D145: 1970-06-01 | E145: 126 | F145: FALSE | G145: TRUE | H145: FALSE | J145: =INDEX('Monthly Prices'!B133:CB133,$G$4) -> 0.17 | K145: =IF(H145,INDEX('Monthly Prices'!B133:CB133,$G$4)*U145,FALSE) -> FALSE | L145: TRUE | M145: =INDEX('Monthly Prices'!B133:CB133,$G$5) -> 0.4472180101 | N145: =IF(H145,INDEX('Monthly Prices'!B133:CB133,$G$5)*U145,FALSE) -> FALSE | O145: TRUE | P145: 1970 | Q145: ='Monthly Prices'!B133 -> 1.21 | R145: 1.245833333 | S145: =_xlfn.XLOOKUP(P145,'Annual Real'!A:A,'Annual Real'!B:B,0,0) -> 5.212235611 | T145: 8.34491458 | U145: 8.34491458 | V145: FALSE | W145: FALSE | X145: 0.06010929 | Y145: 0.00487618396 | Z145: 1.295727827 | AA145: 7 | AB145: 1970-06-01 | AC145: 8.34491458
C146: ='Monthly Prices'!A134 -> 1970M08 | D146: 1970-07-01 | E146: 127 | F146: FALSE | G146: TRUE | H146: FALSE | J146: =INDEX('Monthly Prices'!B134:CB134,$G$4) -> 0.17 | K146: =IF(H146,INDEX('Monthly Prices'!B134:CB134,$G$4)*U146,FALSE) -> FALSE | L146: TRUE | M146: =INDEX('Monthly Prices'!B134:CB134,$G$5) -> 0.4472180101 | N146: =IF(H146,INDEX('Monthly Prices'!B134:CB134,$G$5)*U146,FALSE) -> FALSE | O146: TRUE | P146: 1970 | Q146: ='Monthly Prices'!B134 -> 1.21 | R146: 1.245833333 | S146: =_xlfn.XLOOKUP(P146,'Annual Real'!A:A,'Annual Real'!B:B,0,0) -> 5.212235611 | T146: 8.304633988 | U146: 8.304633988 | V146: FALSE | W146: FALSE | X146: 0.05978261 | Y146: 0.004850375354 | Z146: 1.302012593 | AA146: 7 | AB146: 1970-07-01 | AC146: 8.304633988
C147: ='Monthly Prices'!A135 -> 1970M09 | D147: 1970-08-01 | E147: 128 | F147: FALSE | G147: TRUE | H147: FALSE | J147: =INDEX('Monthly Prices'!B135:CB135,$G$4) -> 0.17 | K147: =IF(H147,INDEX('Monthly Prices'!B135:CB135,$G$4)*U147,FALSE) -> FALSE | L147: TRUE | M147: =INDEX('Monthly Prices'!B135:CB135,$G$5) -> 0.4472180101 | N147: =IF(H147,INDEX('Monthly Prices'!B135:CB135,$G$5)*U147,FALSE) -> FALSE | O147: TRUE | P147: 1970 | Q147: ='Monthly Prices'!B135 -> 1.21 | R147: 1.245833333 | S147: =_xlfn.XLOOKUP(P147,'Annual Real'!A:A,'Annual Real'!B:B,0,0) -> 5.212235611 | T147: 8.268281536 | U147: 8.268281536 | V147: FALSE | W147: FALSE | X147: 0.05405406 | Y147: 0.004396615137 | Z147: 1.307737042 | AA147: 7 | AB147: 1970-08-01 | AC147: 8.268281536
C148: ='Monthly Prices'!A136 -> 1970M10 | D148: 1970-09-01 | E148: 129 | F148: =AND(E148>=$M$4,L148) -> FALSE | G148: =AND(E148<=$M$5,O148) -> TRUE | H148: =AND(F148:G148) -> FALSE | I148: =IF(H148,D148,NA) ->  | J148: =INDEX('Monthly Prices'!B136:CB136,$G$4) -> 0.17 | K148: =IF(H148,INDEX('Monthly Prices'!B136:CB136,$G$4)*U148,FALSE) -> FALSE | L148: TRUE | M148: =INDEX('Monthly Prices'!B136:CB136,$G$5) -> 0.4472180101 | N148: =IF(H148,INDEX('Monthly Prices'!B136:CB136,$G$5)*U148,FALSE) -> FALSE | O148: =AND(ISNUMBER(M148),M148>0) -> TRUE | P148: 1970 | Q148: ='Monthly Prices'!B136 -> 1.21 | R148: 1.245833333 | S148: =_xlfn.XLOOKUP(P148,'Annual Real'!A:A,'Annual Real'!B:B,0,0) -> 5.212235611 | T148: 8.230430955 | U148: 8.230430955 | V148: FALSE | W148: FALSE | X148: 0.05660378 | Y148: 0.004598857708 | Z148: 1.313751138 | AA148: 7 | AB148: 1970-09-01 | AC148: 8.230430955
C149: ='Monthly Prices'!A137 -> 1970M11 | D149: =EDATE(D148,1) -> 1970-10-01 | E149: =E148+1 -> 130 | F149: FALSE | G149: TRUE | H149: FALSE | J149: =INDEX('Monthly Prices'!B137:CB137,$G$4) -> 0.17 | K149: =IF(H149,INDEX('Monthly Prices'!B137:CB137,$G$4)*U149,FALSE) -> FALSE | L149: =ISNUMBER(J149) -> TRUE | M149: =INDEX('Monthly Prices'!B137:CB137,$G$5) -> 0.4472180101 | N149: =IF(H149,INDEX('Monthly Prices'!B137:CB137,$G$5)*U149,FALSE) -> FALSE | O149: TRUE | P149: =YEAR(D149) -> 1970 | Q149: ='Monthly Prices'!B137 -> 1.21 | R149: =AVERAGEIF(P:P,P149,Q:Q) -> 1.245833333 | S149: =_xlfn.XLOOKUP(P149,'Annual Real'!A:A,'Annual Real'!B:B,0,0) -> 5.212235611 | T149: =AC149 -> 8.192949792 | U149: =IF($U$19,T149,1) -> 8.192949792 | V149: FALSE | W149: FALSE | X149: =LOOKUP(D149,INDIRECT("'"&$X$14&"'!A:A"),INDIRECT("'"&$X$14&"'!B:B"))/100 -> 0.05630027 | Y149: =(1+X149)^(1/12)-1 -> 0.004574806911 | Z149: =Z148*(1+Y149) -> 1.319761296 | AA149: =LEN(C149) -> 7 | AB149: =IF(AA149>2,D149,0) -> 1970-10-01 | AC149: =$AC$17/Z149 -> 8.192949792
C150: ='Monthly Prices'!A138 -> 1970M12 | D150: 1970-11-01 | E150: 131 | F150: FALSE | G150: TRUE | H150: FALSE | J150: =INDEX('Monthly Prices'!B138:CB138,$G$4) -> 0.17 | K150: =IF(H150,INDEX('Monthly Prices'!B138:CB138,$G$4)*U150,FALSE) -> FALSE | L150: TRUE | M150: =INDEX('Monthly Prices'!B138:CB138,$G$5) -> 0.4472180101 | N150: =IF(H150,INDEX('Monthly Prices'!B138:CB138,$G$5)*U150,FALSE) -> FALSE | O150: TRUE | P150: 1970 | Q150: ='Monthly Prices'!B138 -> 1.21 | R150: 1.245833333 | S150: =_xlfn.XLOOKUP(P150,'Annual Real'!A:A,'Annual Real'!B:B,0,0) -> 5.212235611 | T150: 8.155832544 | U150: 8.155832544 | V150: =IF(AND(H149,H150),LN(K150/K149)) -> FALSE | W150: =IF(AND($H149,$H150),LN(N150/N149)) -> FALSE | X150: 0.056 | Y150: 0.004551006625 | Z150: 1.325767538 | AA150: 7 | AB150: 1970-11-01 | AC150: 8.155832544
C151: ='Monthly Prices'!A139 -> 1971M01 | D151: 1970-12-01 | E151: 132 | F151: FALSE | G151: TRUE | H151: FALSE | J151: =INDEX('Monthly Prices'!B139:CB139,$G$4) -> 0.18 | K151: =IF(H151,INDEX('Monthly Prices'!B139:CB139,$G$4)*U151,FALSE) -> FALSE | L151: TRUE | M151: =INDEX('Monthly Prices'!B139:CB139,$G$5) -> 0.5022435438 | N151: =IF(H151,INDEX('Monthly Prices'!B139:CB139,$G$5)*U151,FALSE) -> FALSE | O151: TRUE | P151: 1970 | Q151: ='Monthly Prices'!B139 -> 1.64 | R151: 1.245833333 | S151: =_xlfn.XLOOKUP(P151,'Annual Real'!A:A,'Annual Real'!B:B,0,0) -> 5.212235611 | T151: 8.119073818 | U151: 8.119073818 | V151: FALSE | W151: FALSE | X151: 0.05570292 | Y151: 0.004527453082 | Z151: 1.331769889 | AA151: 7 | AB151: 1970-12-01 | AC151: 8.119073818
C152: ='Monthly Prices'!A140 -> 1971M02 | D152: 1971-01-01 | E152: 133 | F152: FALSE | G152: TRUE | H152: FALSE | J152: =INDEX('Monthly Prices'!B140:CB140,$G$4) -> 0.18 | K152: =IF(H152,INDEX('Monthly Prices'!B140:CB140,$G$4)*U152,FALSE) -> FALSE | L152: TRUE | M152: =INDEX('Monthly Prices'!B140:CB140,$G$5) -> 0.5022435438 | N152: =IF(H152,INDEX('Monthly Prices'!B140:CB140,$G$5)*U152,FALSE) -> FALSE | O152: TRUE | P152: 1971 | Q152: ='Monthly Prices'!B140 -> 1.64 | R152: 1.700833333 | S152: =_xlfn.XLOOKUP(P152,'Annual Real'!A:A,'Annual Real'!B:B,0,0) -> 6.922073764 | T152: 8.084265179 | U152: 8.084265179 | V152: FALSE | W152: FALSE | X152: 0.05291005 | Y152: 0.004305727028 | Z152: 1.337504126 | AA152: 7 | AB152: 1971-01-01 | AC152: 8.084265179
C153: ='Monthly Prices'!A141 -> 1971M03 | D153: 1971-02-01 | E153: 134 | F153: FALSE | G153: TRUE | H153: FALSE | J153: =INDEX('Monthly Prices'!B141:CB141,$G$4) -> 0.18 | K153: =IF(H153,INDEX('Monthly Prices'!B141:CB141,$G$4)*U153,FALSE) -> FALSE | L153: TRUE | M153: =INDEX('Monthly Prices'!B141:CB141,$G$5) -> 0.5022435438 | N153: =IF(H153,INDEX('Monthly Prices'!B141:CB141,$G$5)*U153,FALSE) -> FALSE | O153: TRUE | P153: 1971 | Q153: ='Monthly Prices'!B141 -> 1.64 | R153: 1.700833333 | S153: =_xlfn.XLOOKUP(P153,'Annual Real'!A:A,'Annual Real'!B:B,0,0) -> 6.922073764 | T153: 8.051462524 | U153: 8.051462524 | V153: FALSE | W153: FALSE | X153: 0.05 | Y153: 0.004074123784 | Z153: 1.342953284 | AA153: 7 | AB153: 1971-02-01 | AC153: 8.051462524
C154: ='Monthly Prices'!A142 -> 1971M04 | D154: 1971-03-01 | E154: 135 | F154: FALSE | G154: TRUE | H154: FALSE | J154: =INDEX('Monthly Prices'!B142:CB142,$G$4) -> 0.18 | K154: =IF(H154,INDEX('Monthly Prices'!B142:CB142,$G$4)*U154,FALSE) -> FALSE | L154: TRUE | M154: =INDEX('Monthly Prices'!B142:CB142,$G$5) -> 0.5022435438 | N154: =IF(H154,INDEX('Monthly Prices'!B142:CB142,$G$5)*U154,FALSE) -> FALSE | O154: TRUE | P154: 1971 | Q154: ='Monthly Prices'!B142 -> 1.64 | R154: 1.700833333 | S154: =_xlfn.XLOOKUP(P154,'Annual Real'!A:A,'Annual Real'!B:B,0,0) -> 6.922073764 | T154: 8.020628296 | U154: 8.020628296 | V154: FALSE | W154: FALSE | X154: 0.04712042 | Y154: 0.003844365656 | Z154: 1.348116087 | AA154: 7 | AB154: 1971-03-01 | AC154: 8.020628296
C155: ='Monthly Prices'!A143 -> 1971M05 | D155: 1971-04-01 | E155: 136 | F155: FALSE | G155: TRUE | H155: FALSE | J155: =INDEX('Monthly Prices'!B143:CB143,$G$4) -> 0.18 | K155: =IF(H155,INDEX('Monthly Prices'!B143:CB143,$G$4)*U155,FALSE) -> FALSE | L155: TRUE | M155: =INDEX('Monthly Prices'!B143:CB143,$G$5) -> 0.5022435438 | N155: =IF(H155,INDEX('Monthly Prices'!B143:CB143,$G$5)*U155,FALSE) -> FALSE | O155: TRUE | P155: 1971 | Q155: ='Monthly Prices'!B143 -> 1.64 | R155: 1.700833333 | S155: =_xlfn.XLOOKUP(P155,'Annual Real'!A:A,'Annual Real'!B:B,0,0) -> 6.922073764 | T155: 7.993459028 | U155: 7.993459028 | V155: FALSE | W155: FALSE | X155: 0.04155844 | Y155: 0.003398937626 | Z155: 1.35269825 | AA155: 7 | AB155: 1971-04-01 | AC155: 7.993459028
C156: ='Monthly Prices'!A144 -> 1971M06 | D156: 1971-05-01 | E156: 137 | F156: FALSE | G156: TRUE | H156: FALSE | J156: =INDEX('Monthly Prices'!B144:CB144,$G$4) -> 0.18 | K156: =IF(H156,INDEX('Monthly Prices'!B144:CB144,$G$4)*U156,FALSE) -> FALSE | L156: TRUE | M156: =INDEX('Monthly Prices'!B144:CB144,$G$5) -> 0.5022435438 | N156: =IF(H156,INDEX('Monthly Prices'!B144:CB144,$G$5)*U156,FALSE) -> FALSE | O156: TRUE | P156: 1971 | Q156: ='Monthly Prices'!B144 -> 1.64 | R156: 1.700833333 | S156: =_xlfn.XLOOKUP(P156,'Annual Real'!A:A,'Annual Real'!B:B,0,0) -> 6.922073764 | T156: 7.96480122 | U156: 7.96480122 | V156: FALSE | W156: FALSE | X156: 0.04404145 | Y156: 0.003598056833 | Z156: 1.357565335 | AA156: 7 | AB156: 1971-05-01 | AC156: 7.96480122
C157: ='Monthly Prices'!A145 -> 1971M07 | D157: 1971-06-01 | E157: 138 | F157: FALSE | G157: TRUE | H157: FALSE | J157: =INDEX('Monthly Prices'!B145:CB145,$G$4) -> 0.18 | K157: =IF(H157,INDEX('Monthly Prices'!B145:CB145,$G$4)*U157,FALSE) -> FALSE | L157: TRUE | M157: =INDEX('Monthly Prices'!B145:CB145,$G$5) -> 0.5022435438 | N157: =IF(H157,INDEX('Monthly Prices'!B145:CB145,$G$5)*U157,FALSE) -> FALSE | O157: TRUE | P157: 1971 | Q157: ='Monthly Prices'!B145 -> 1.74 | R157: 1.700833333 | S157: =_xlfn.XLOOKUP(P157,'Annual Real'!A:A,'Annual Real'!B:B,0,0) -> 6.922073764 | T157: 7.934759157 | U157: 7.934759157 | V157: FALSE | W157: FALSE | X157: 0.04639175 | Y157: 0.003786134159 | Z157: 1.362705259 | AA157: 7 | AB157: 1971-06-01 | AC157: 7.934759157
C158: ='Monthly Prices'!A146 -> 1971M08 | D158: 1971-07-01 | E158: 139 | F158: FALSE | G158: TRUE | H158: FALSE | J158: =INDEX('Monthly Prices'!B146:CB146,$G$4) -> 0.18 | K158: =IF(H158,INDEX('Monthly Prices'!B146:CB146,$G$4)*U158,FALSE) -> FALSE | L158: TRUE | M158: =INDEX('Monthly Prices'!B146:CB146,$G$5) -> 0.5022435438 | N158: =IF(H158,INDEX('Monthly Prices'!B146:CB146,$G$5)*U158,FALSE) -> FALSE | O158: TRUE | P158: 1971 | Q158: ='Monthly Prices'!B146 -> 1.74 | R158: 1.700833333 | S158: =_xlfn.XLOOKUP(P158,'Annual Real'!A:A,'Annual Real'!B:B,0,0) -> 6.922073764 | T158: 7.906596924 | U158: 7.906596924 | V158: FALSE | W158: FALSE | X158: 0.04358974 | Y158: 0.003561865326 | Z158: 1.367559032 | AA158: 7 | AB158: 1971-07-01 | AC158: 7.906596924
C159: ='Monthly Prices'!A147 -> 1971M09 | D159: 1971-08-01 | E159: 140 | F159: FALSE | G159: TRUE | H159: FALSE | J159: =INDEX('Monthly Prices'!B147:CB147,$G$4) -> 0.18 | K159: =IF(H159,INDEX('Monthly Prices'!B147:CB147,$G$4)*U159,FALSE) -> FALSE | L159: TRUE | M159: =INDEX('Monthly Prices'!B147:CB147,$G$5) -> 0.5022435438 | N159: =IF(H159,INDEX('Monthly Prices'!B147:CB147,$G$5)*U159,FALSE) -> FALSE | O159: TRUE | P159: 1971 | Q159: ='Monthly Prices'!B147 -> 1.74 | R159: 1.700833333 | S159: =_xlfn.XLOOKUP(P159,'Annual Real'!A:A,'Annual Real'!B:B,0,0) -> 6.922073764 | T159: 7.876923652 | U159: 7.876923652 | V159: FALSE | W159: FALSE | X159: 0.04615385 | Y159: 0.003767114385 | Z159: 1.372710783 | AA159: 7 | AB159: 1971-08-01 | AC159: 7.876923652
C160: ='Monthly Prices'!A148 -> 1971M10 | D160: 1971-09-01 | E160: 141 | F160: FALSE | G160: TRUE | H160: FALSE | J160: =INDEX('Monthly Prices'!B148:CB148,$G$4) -> 0.18 | K160: =IF(H160,INDEX('Monthly Prices'!B148:CB148,$G$4)*U160,FALSE) -> FALSE | L160: TRUE | M160: =INDEX('Monthly Prices'!B148:CB148,$G$5) -> 0.5022435438 | N160: =IF(H160,INDEX('Monthly Prices'!B148:CB148,$G$5)*U160,FALSE) -> FALSE | O160: TRUE | P160: 1971 | Q160: ='Monthly Prices'!B148 -> 1.74 | R160: 1.700833333 | S160: =_xlfn.XLOOKUP(P160,'Annual Real'!A:A,'Annual Real'!B:B,0,0) -> 6.922073764 | T160: 7.850707459 | U160: 7.850707459 | V160: FALSE | W160: FALSE | X160: 0.04081633 | Y160: 0.003339341381 | Z160: 1.377294733 | AA160: 7 | AB160: 1971-09-01 | AC160: 7.850707459
C161: ='Monthly Prices'!A149 -> 1971M11 | D161: 1971-10-01 | E161: 142 | F161: FALSE | G161: TRUE | H161: FALSE | J161: =INDEX('Monthly Prices'!B149:CB149,$G$4) -> 0.18 | K161: =IF(H161,INDEX('Monthly Prices'!B149:CB149,$G$4)*U161,FALSE) -> FALSE | L161: TRUE | M161: =INDEX('Monthly Prices'!B149:CB149,$G$5) -> 0.5022435438 | N161: =IF(H161,INDEX('Monthly Prices'!B149:CB149,$G$5)*U161,FALSE) -> FALSE | O161: TRUE | P161: 1971 | Q161: ='Monthly Prices'!B149 -> 1.74 | R161: 1.700833333 | S161: =_xlfn.XLOOKUP(P161,'Annual Real'!A:A,'Annual Real'!B:B,0,0) -> 6.922073764 | T161: 7.826300833 | U161: 7.826300833 | V161: FALSE | W161: FALSE | X161: 0.03807106 | Y161: 0.003118539306 | Z161: 1.381589881 | AA161: 7 | AB161: 1971-10-01 | AC161: 7.826300833
C162: ='Monthly Prices'!A150 -> 1971M12 | D162: 1971-11-01 | E162: 143 | F162: FALSE | G162: TRUE | H162: FALSE | J162: =INDEX('Monthly Prices'!B150:CB150,$G$4) -> 0.18 | K162: =IF(H162,INDEX('Monthly Prices'!B150:CB150,$G$4)*U162,FALSE) -> FALSE | L162: TRUE | M162: =INDEX('Monthly Prices'!B150:CB150,$G$5) -> 0.5022435438 | N162: =IF(H162,INDEX('Monthly Prices'!B150:CB150,$G$5)*U162,FALSE) -> FALSE | O162: TRUE | P162: 1971 | Q162: ='Monthly Prices'!B150 -> 1.74 | R162: 1.700833333 | S162: =_xlfn.XLOOKUP(P162,'Annual Real'!A:A,'Annual Real'!B:B,0,0) -> 6.922073764 | T162: 7.805262752 | U162: 7.805262752 | V162: FALSE | W162: FALSE | X162: 0.03282828 | Y162: 0.00269537117 | Z162: 1.385313779 | AA162: 7 | AB162: 1971-11-01 | AC162: 7.805262752
C163: ='Monthly Prices'!A151 -> 1972M01 | D163: 1971-12-01 | E163: 144 | F163: FALSE | G163: TRUE | H163: FALSE | J163: =INDEX('Monthly Prices'!B151:CB151,$G$4) -> 0.19 | K163: =IF(H163,INDEX('Monthly Prices'!B151:CB151,$G$4)*U163,FALSE) -> FALSE | L163: TRUE | M163: =INDEX('Monthly Prices'!B151:CB151,$G$5) -> 0.5421659866 | N163: =IF(H163,INDEX('Monthly Prices'!B151:CB151,$G$5)*U163,FALSE) -> FALSE | O163: TRUE | P163: 1971 | Q163: ='Monthly Prices'!B151 -> 1.77 | R163: 1.700833333 | S163: =_xlfn.XLOOKUP(P163,'Annual Real'!A:A,'Annual Real'!B:B,0,0) -> 6.922073764 | T163: 7.784384841 | U163: 7.784384841 | V163: FALSE | W163: FALSE | X163: 0.03266332 | Y163: 0.002682024587 | Z163: 1.389029224 | AA163: 7 | AB163: 1971-12-01 | AC163: 7.784384841
C164: ='Monthly Prices'!A152 -> 1972M02 | D164: 1972-01-01 | E164: 145 | F164: FALSE | G164: TRUE | H164: FALSE | J164: =INDEX('Monthly Prices'!B152:CB152,$G$4) -> 0.19 | K164: =IF(H164,INDEX('Monthly Prices'!B152:CB152,$G$4)*U164,FALSE) -> FALSE | L164: TRUE | M164: =INDEX('Monthly Prices'!B152:CB152,$G$5) -> 0.5421659866 | N164: =IF(H164,INDEX('Monthly Prices'!B152:CB152,$G$5)*U164,FALSE) -> FALSE | O164: TRUE | P164: 1972 | Q164: ='Monthly Prices'!B152 -> 1.77 | R164: 1.845833333 | S164: =_xlfn.XLOOKUP(P164,'Annual Real'!A:A,'Annual Real'!B:B,0,0) -> 6.833715314 | T164: 7.763562775 | U164: 7.763562775 | V164: FALSE | W164: FALSE | X164: 0.03266332 | Y164: 0.002682024587 | Z164: 1.392754635 | AA164: 7 | AB164: 1972-01-01 | AC164: 7.763562775
C165: ='Monthly Prices'!A153 -> 1972M03 | D165: 1972-02-01 | E165: 146 | F165: FALSE | G165: TRUE | H165: FALSE | J165: =INDEX('Monthly Prices'!B153:CB153,$G$4) -> 0.19 | K165: =IF(H165,INDEX('Monthly Prices'!B153:CB153,$G$4)*U165,FALSE) -> FALSE | L165: TRUE | M165: =INDEX('Monthly Prices'!B153:CB153,$G$5) -> 0.5421659866 | N165: =IF(H165,INDEX('Monthly Prices'!B153:CB153,$G$5)*U165,FALSE) -> FALSE | O165: TRUE | P165: 1972 | Q165: ='Monthly Prices'!B153 -> 1.77 | R165: 1.845833333 | S165: =_xlfn.XLOOKUP(P165,'Annual Real'!A:A,'Annual Real'!B:B,0,0) -> 6.833715314 | T165: 7.741283504 | U165: 7.741283504 | V165: FALSE | W165: FALSE | X165: 0.03508772 | Y165: 0.002877981522 | Z165: 1.396762957 | AA165: 7 | AB165: 1972-02-01 | AC165: 7.741283504
C166: ='Monthly Prices'!A154 -> 1972M04 | D166: 1972-03-01 | E166: 147 | F166: FALSE | G166: TRUE | H166: FALSE | J166: =INDEX('Monthly Prices'!B154:CB154,$G$4) -> 0.19 | K166: =IF(H166,INDEX('Monthly Prices'!B154:CB154,$G$4)*U166,FALSE) -> FALSE | L166: TRUE | M166: =INDEX('Monthly Prices'!B154:CB154,$G$5) -> 0.5421659866 | N166: =IF(H166,INDEX('Monthly Prices'!B154:CB154,$G$5)*U166,FALSE) -> FALSE | O166: TRUE | P166: 1972 | Q166: ='Monthly Prices'!B154 -> 1.77 | R166: 1.845833333 | S166: =_xlfn.XLOOKUP(P166,'Annual Real'!A:A,'Annual Real'!B:B,0,0) -> 6.833715314 | T166: 7.719122684 | U166: 7.719122684 | V166: FALSE | W166: FALSE | X166: 0.035 | Y166: 0.002870898719 | Z166: 1.400772922 | AA166: 7 | AB166: 1972-03-01 | AC166: 7.719122684
C167: ='Monthly Prices'!A155 -> 1972M05 | D167: 1972-04-01 | E167: 148 | F167: FALSE | G167: TRUE | H167: FALSE | J167: =INDEX('Monthly Prices'!B155:CB155,$G$4) -> 0.19 | K167: =IF(H167,INDEX('Monthly Prices'!B155:CB155,$G$4)*U167,FALSE) -> FALSE | L167: TRUE | M167: =INDEX('Monthly Prices'!B155:CB155,$G$5) -> 0.5421659866 | N167: =IF(H167,INDEX('Monthly Prices'!B155:CB155,$G$5)*U167,FALSE) -> FALSE | O167: TRUE | P167: 1972 | Q167: ='Monthly Prices'!B155 -> 1.77 | R167: 1.845833333 | S167: =_xlfn.XLOOKUP(P167,'Annual Real'!A:A,'Annual Real'!B:B,0,0) -> 6.833715314 | T167: 7.697079396 | U167: 7.697079396 | V167: FALSE | W167: FALSE | X167: 0.03491272 | Y167: 0.002863850897 | Z167: 1.404784527 | AA167: 7 | AB167: 1972-04-01 | AC167: 7.697079396
C168: ='Monthly Prices'!A156 -> 1972M06 | D168: 1972-05-01 | E168: 149 | F168: FALSE | G168: TRUE | H168: FALSE | J168: =INDEX('Monthly Prices'!B156:CB156,$G$4) -> 0.19 | K168: =IF(H168,INDEX('Monthly Prices'!B156:CB156,$G$4)*U168,FALSE) -> FALSE | L168: TRUE | M168: =INDEX('Monthly Prices'!B156:CB156,$G$5) -> 0.5421659866 | N168: =IF(H168,INDEX('Monthly Prices'!B156:CB156,$G$5)*U168,FALSE) -> FALSE | O168: TRUE | P168: 1972 | Q168: ='Monthly Prices'!B156 -> 1.77 | R168: 1.845833333 | S168: =_xlfn.XLOOKUP(P168,'Annual Real'!A:A,'Annual Real'!B:B,0,0) -> 6.833715314 | T168: 7.67674196 | U168: 7.67674196 | V168: FALSE | W168: FALSE | X168: 0.03225806 | Y168: 0.002649227513 | Z168: 1.40850612 | AA168: 7 | AB168: 1972-05-01 | AC168: 7.67674196
C169: ='Monthly Prices'!A157 -> 1972M07 | D169: 1972-06-01 | E169: 150 | F169: FALSE | G169: TRUE | H169: FALSE | J169: =INDEX('Monthly Prices'!B157:CB157,$G$4) -> 0.19 | K169: =IF(H169,INDEX('Monthly Prices'!B157:CB157,$G$4)*U169,FALSE) -> FALSE | L169: TRUE | M169: =INDEX('Monthly Prices'!B157:CB157,$G$5) -> 0.5421659866 | N169: =IF(H169,INDEX('Monthly Prices'!B157:CB157,$G$5)*U169,FALSE) -> FALSE | O169: TRUE | P169: 1972 | Q169: ='Monthly Prices'!B157 -> 1.87 | R169: 1.845833333 | S169: =_xlfn.XLOOKUP(P169,'Annual Real'!A:A,'Annual Real'!B:B,0,0) -> 6.833715314 | T169: 7.659659092 | U169: 7.659659092 | V169: FALSE | W169: FALSE | X169: 0.0270936 | Y169: 0.002230238794 | Z169: 1.411647425 | AA169: 7 | AB169: 1972-06-01 | AC169: 7.659659092
C170: ='Monthly Prices'!A158 -> 1972M08 | D170: 1972-07-01 | E170: 151 | F170: FALSE | G170: TRUE | H170: FALSE | J170: =INDEX('Monthly Prices'!B158:CB158,$G$4) -> 0.19 | K170: =IF(H170,INDEX('Monthly Prices'!B158:CB158,$G$4)*U170,FALSE) -> FALSE | L170: TRUE | M170: =INDEX('Monthly Prices'!B158:CB158,$G$5) -> 0.5421659866 | N170: =IF(H170,INDEX('Monthly Prices'!B158:CB158,$G$5)*U170,FALSE) -> FALSE | O170: TRUE | P170: 1972 | Q170: ='Monthly Prices'!B158 -> 1.87 | R170: 1.845833333 | S170: =_xlfn.XLOOKUP(P170,'Annual Real'!A:A,'Annual Real'!B:B,0,0) -> 6.833715314 | T170: 7.641133835 | U170: 7.641133835 | V170: FALSE | W170: FALSE | X170: 0.02948403 | Y170: 0.002424412061 | Z170: 1.41506984 | AA170: 7 | AB170: 1972-07-01 | AC170: 7.641133835
C171: ='Monthly Prices'!A159 -> 1972M09 | D171: 1972-08-01 | E171: 152 | F171: FALSE | G171: TRUE | H171: FALSE | J171: =INDEX('Monthly Prices'!B159:CB159,$G$4) -> 0.19 | K171: =IF(H171,INDEX('Monthly Prices'!B159:CB159,$G$4)*U171,FALSE) -> FALSE | L171: TRUE | M171: =INDEX('Monthly Prices'!B159:CB159,$G$5) -> 0.5421659866 | N171: =IF(H171,INDEX('Monthly Prices'!B159:CB159,$G$5)*U171,FALSE) -> FALSE | O171: TRUE | P171: 1972 | Q171: ='Monthly Prices'!B159 -> 1.87 | R171: 1.845833333 | S171: =_xlfn.XLOOKUP(P171,'Annual Real'!A:A,'Annual Real'!B:B,0,0) -> 6.833715314 | T171: 7.622697976 | U171: 7.622697976 | V171: FALSE | W171: FALSE | X171: 0.02941176 | Y171: 0.002418547671 | Z171: 1.418492254 | AA171: 7 | AB171: 1972-08-01 | AC171: 7.622697976
C172: ='Monthly Prices'!A160 -> 1972M10 | D172: 1972-09-01 | E172: 153 | F172: FALSE | G172: TRUE | H172: FALSE | J172: =INDEX('Monthly Prices'!B160:CB160,$G$4) -> 0.19 | K172: =IF(H172,INDEX('Monthly Prices'!B160:CB160,$G$4)*U172,FALSE) -> FALSE | L172: TRUE | M172: =INDEX('Monthly Prices'!B160:CB160,$G$5) -> 0.5421659866 | N172: =IF(H172,INDEX('Monthly Prices'!B160:CB160,$G$5)*U172,FALSE) -> FALSE | O172: TRUE | P172: 1972 | Q172: ='Monthly Prices'!B160 -> 1.87 | R172: 1.845833333 | S172: =_xlfn.XLOOKUP(P172,'Annual Real'!A:A,'Annual Real'!B:B,0,0) -> 6.833715314 | T172: 7.602799744 | U172: 7.602799744 | V172: FALSE | W172: FALSE | X172: 0.03186275 | Y172: 0.002617224303 | Z172: 1.422204767 | AA172: 7 | AB172: 1972-09-01 | AC172: 7.602799744
C173: ='Monthly Prices'!A161 -> 1972M11 | D173: 1972-10-01 | E173: 154 | F173: FALSE | G173: TRUE | H173: FALSE | J173: =INDEX('Monthly Prices'!B161:CB161,$G$4) -> 0.19 | K173: =IF(H173,INDEX('Monthly Prices'!B161:CB161,$G$4)*U173,FALSE) -> FALSE | L173: TRUE | M173: =INDEX('Monthly Prices'!B161:CB161,$G$5) -> 0.5421659866 | N173: =IF(H173,INDEX('Monthly Prices'!B161:CB161,$G$5)*U173,FALSE) -> FALSE | O173: TRUE | P173: 1972 | Q173: ='Monthly Prices'!B161 -> 1.87 | R173: 1.845833333 | S173: =_xlfn.XLOOKUP(P173,'Annual Real'!A:A,'Annual Real'!B:B,0,0) -> 6.833715314 | T173: 7.581505652 | U173: 7.581505652 | V173: FALSE | W173: FALSE | X173: 0.03422983 | Y173: 0.002808689006 | Z173: 1.426199298 | AA173: 7 | AB173: 1972-10-01 | AC173: 7.581505652
C174: ='Monthly Prices'!A162 -> 1972M12 | D174: 1972-11-01 | E174: 155 | F174: FALSE | G174: TRUE | H174: FALSE | J174: =INDEX('Monthly Prices'!B162:CB162,$G$4) -> 0.19 | K174: =IF(H174,INDEX('Monthly Prices'!B162:CB162,$G$4)*U174,FALSE) -> FALSE | L174: TRUE | M174: =INDEX('Monthly Prices'!B162:CB162,$G$5) -> 0.5421659866 | N174: =IF(H174,INDEX('Monthly Prices'!B162:CB162,$G$5)*U174,FALSE) -> FALSE | O174: TRUE | P174: 1972 | Q174: ='Monthly Prices'!B162 -> 1.87 | R174: 1.845833333 | S174: =_xlfn.XLOOKUP(P174,'Annual Real'!A:A,'Annual Real'!B:B,0,0) -> 6.833715314 | T174: 7.558783689 | U174: 7.558783689 | V174: FALSE | W174: FALSE | X174: 0.03667482 | Y174: 0.003006034291 | Z174: 1.430486502 | AA174: 7 | AB174: 1972-11-01 | AC174: 7.558783689
C175: ='Monthly Prices'!A163 -> 1973M01 | D175: 1972-12-01 | E175: 156 | F175: FALSE | G175: TRUE | H175: FALSE | J175: =INDEX('Monthly Prices'!B163:CB163,$G$4) -> 0.21 | K175: =IF(H175,INDEX('Monthly Prices'!B163:CB163,$G$4)*U175,FALSE) -> FALSE | L175: TRUE | M175: =INDEX('Monthly Prices'!B163:CB163,$G$5) -> 0.6935067243 | N175: =IF(H175,INDEX('Monthly Prices'!B163:CB163,$G$5)*U175,FALSE) -> FALSE | O175: TRUE | P175: 1972 | Q175: ='Monthly Prices'!B163 -> 2.08 | R175: 1.845833333 | S175: =_xlfn.XLOOKUP(P175,'Annual Real'!A:A,'Annual Real'!B:B,0,0) -> 6.833715314 | T175: 7.537714053 | U175: 7.537714053 | V175: FALSE | W175: FALSE | X175: 0.03406326 | Y175: 0.002795228896 | Z175: 1.434485039 | AA175: 7 | AB175: 1972-12-01 | AC175: 7.537714053
C176: ='Monthly Prices'!A164 -> 1973M02 | D176: 1973-01-01 | E176: 157 | F176: FALSE | G176: TRUE | H176: FALSE | J176: =INDEX('Monthly Prices'!B164:CB164,$G$4) -> 0.21 | K176: =IF(H176,INDEX('Monthly Prices'!B164:CB164,$G$4)*U176,FALSE) -> FALSE | L176: TRUE | M176: =INDEX('Monthly Prices'!B164:CB164,$G$5) -> 0.6935067243 | N176: =IF(H176,INDEX('Monthly Prices'!B164:CB164,$G$5)*U176,FALSE) -> FALSE | O176: TRUE | P176: 1973 | Q176: ='Monthly Prices'!B164 -> 2.08 | R176: 3.7175 | S176: =_xlfn.XLOOKUP(P176,'Annual Real'!A:A,'Annual Real'!B:B,0,0) -> 9.089702394 | T176: 7.515231159 | U176: 7.515231159 | V176: FALSE | W176: FALSE | X176: 0.03649635 | Y176: 0.002991643679 | Z176: 1.438776507 | AA176: 7 | AB176: 1973-01-01 | AC176: 7.515231159
C177: ='Monthly Prices'!A165 -> 1973M03 | D177: 1973-02-01 | E177: 158 | F177: FALSE | G177: TRUE | H177: FALSE | J177: =INDEX('Monthly Prices'!B165:CB165,$G$4) -> 0.21 | K177: =IF(H177,INDEX('Monthly Prices'!B165:CB165,$G$4)*U177,FALSE) -> FALSE | L177: TRUE | M177: =INDEX('Monthly Prices'!B165:CB165,$G$5) -> 0.6935067243 | N177: =IF(H177,INDEX('Monthly Prices'!B165:CB165,$G$5)*U177,FALSE) -> FALSE | O177: TRUE | P177: 1973 | Q177: ='Monthly Prices'!B165 -> 2.08 | R177: 3.7175 | S177: =_xlfn.XLOOKUP(P177,'Annual Real'!A:A,'Annual Real'!B:B,0,0) -> 9.089702394 | T177: 7.491464746 | U177: 7.491464746 | V177: FALSE | W177: FALSE | X177: 0.03874092 | Y177: 0.003172465474 | Z177: 1.443340976 | AA177: 7 | AB177: 1973-02-01 | AC177: 7.491464746
C178: ='Monthly Prices'!A166 -> 1973M04 | D178: 1973-03-01 | E178: 159 | F178: FALSE | G178: TRUE | H178: FALSE | J178: =INDEX('Monthly Prices'!B166:CB166,$G$4) -> 0.21 | K178: =IF(H178,INDEX('Monthly Prices'!B166:CB166,$G$4)*U178,FALSE) -> FALSE | L178: TRUE | M178: =INDEX('Monthly Prices'!B166:CB166,$G$5) -> 0.6935067243 | N178: =IF(H178,INDEX('Monthly Prices'!B166:CB166,$G$5)*U178,FALSE) -> FALSE | O178: TRUE | P178: 1973 | Q178: ='Monthly Prices'!B166 -> 2.35 | R178: 3.7175 | S178: =_xlfn.XLOOKUP(P178,'Annual Real'!A:A,'Annual Real'!B:B,0,0) -> 9.089702394 | T178: 7.463504125 | U178: 7.463504125 | V178: FALSE | W178: FALSE | X178: 0.04589372 | Y178: 0.003746312816 | Z178: 1.448748182 | AA178: 7 | AB178: 1973-03-01 | AC178: 7.463504125
C179: ='Monthly Prices'!A167 -> 1973M05 | D179: 1973-04-01 | E179: 160 | F179: FALSE | G179: TRUE | H179: FALSE | J179: =INDEX('Monthly Prices'!B167:CB167,$G$4) -> 0.21 | K179: =IF(H179,INDEX('Monthly Prices'!B167:CB167,$G$4)*U179,FALSE) -> FALSE | L179: TRUE | M179: =INDEX('Monthly Prices'!B167:CB167,$G$5) -> 0.6935067243 | N179: =IF(H179,INDEX('Monthly Prices'!B167:CB167,$G$5)*U179,FALSE) -> FALSE | O179: TRUE | P179: 1973 | Q179: ='Monthly Prices'!B167 -> 2.35 | R179: 3.7175 | S179: =_xlfn.XLOOKUP(P179,'Annual Real'!A:A,'Annual Real'!B:B,0,0) -> 9.089702394 | T179: 7.432864991 | U179: 7.432864991 | V179: FALSE | W179: FALSE | X179: 0.05060241 | Y179: 0.004122116268 | Z179: 1.454720091 | AA179: 7 | AB179: 1973-04-01 | AC179: 7.432864991
C180: ='Monthly Prices'!A168 -> 1973M06 | D180: 1973-05-01 | E180: 161 | F180: FALSE | G180: TRUE | H180: FALSE | J180: =INDEX('Monthly Prices'!B168:CB168,$G$4) -> 0.21 | K180: =IF(H180,INDEX('Monthly Prices'!B168:CB168,$G$4)*U180,FALSE) -> FALSE | L180: TRUE | M180: =INDEX('Monthly Prices'!B168:CB168,$G$5) -> 0.6935067243 | N180: =IF(H180,INDEX('Monthly Prices'!B168:CB168,$G$5)*U180,FALSE) -> FALSE | O180: TRUE | P180: 1973 | Q180: ='Monthly Prices'!B168 -> 2.35 | R180: 3.7175 | S180: =_xlfn.XLOOKUP(P180,'Annual Real'!A:A,'Annual Real'!B:B,0,0) -> 9.089702394 | T180: 7.399606844 | U180: 7.399606844 | V180: FALSE | W180: FALSE | X180: 0.05528846 | Y180: 0.004494583088 | Z180: 1.461258451 | AA180: 7 | AB180: 1973-05-01 | AC180: 7.399606844
C181: ='Monthly Prices'!A169 -> 1973M07 | D181: 1973-06-01 | E181: 162 | F181: FALSE | G181: TRUE | H181: FALSE | J181: =INDEX('Monthly Prices'!B169:CB169,$G$4) -> 0.21 | K181: =IF(H181,INDEX('Monthly Prices'!B169:CB169,$G$4)*U181,FALSE) -> FALSE | L181: TRUE | M181: =INDEX('Monthly Prices'!B169:CB169,$G$5) -> 0.6935067243 | N181: =IF(H181,INDEX('Monthly Prices'!B169:CB169,$G$5)*U181,FALSE) -> FALSE | O181: TRUE | P181: 1973 | Q181: ='Monthly Prices'!B169 -> 2.7 | R181: 3.7175 | S181: =_xlfn.XLOOKUP(P181,'Annual Real'!A:A,'Annual Real'!B:B,0,0) -> 9.089702394 | T181: 7.363791118 | U181: 7.363791118 | V181: FALSE | W181: FALSE | X181: 0.05995204 | Y181: 0.004863761694 | Z181: 1.468365664 | AA181: 7 | AB181: 1973-06-01 | AC181: 7.363791118
C182: ='Monthly Prices'!A170 -> 1973M08 | D182: 1973-07-01 | E182: 163 | F182: FALSE | G182: TRUE | H182: FALSE | J182: =INDEX('Monthly Prices'!B170:CB170,$G$4) -> 0.21 | K182: =IF(H182,INDEX('Monthly Prices'!B170:CB170,$G$4)*U182,FALSE) -> FALSE | L182: TRUE | M182: =INDEX('Monthly Prices'!B170:CB170,$G$5) -> 0.6935067243 | N182: =IF(H182,INDEX('Monthly Prices'!B170:CB170,$G$5)*U182,FALSE) -> FALSE | O182: TRUE | P182: 1973 | Q182: ='Monthly Prices'!B170 -> 2.7 | R182: 3.7175 | S182: =_xlfn.XLOOKUP(P182,'Annual Real'!A:A,'Annual Real'!B:B,0,0) -> 9.089702394 | T182: 7.329690765 | U182: 7.329690765 | V182: FALSE | W182: FALSE | X182: 0.05727923 | Y182: 0.004652359122 | Z182: 1.475197029 | AA182: 7 | AB182: 1973-07-01 | AC182: 7.329690765
C183: ='Monthly Prices'!A171 -> 1973M09 | D183: 1973-08-01 | E183: 164 | F183: FALSE | G183: TRUE | H183: FALSE | J183: =INDEX('Monthly Prices'!B171:CB171,$G$4) -> 0.21 | K183: =IF(H183,INDEX('Monthly Prices'!B171:CB171,$G$4)*U183,FALSE) -> FALSE | L183: TRUE | M183: =INDEX('Monthly Prices'!B171:CB171,$G$5) -> 0.6935067243 | N183: =IF(H183,INDEX('Monthly Prices'!B171:CB171,$G$5)*U183,FALSE) -> FALSE | O183: TRUE | P183: 1973 | Q183: ='Monthly Prices'!B171 -> 2.7 | R183: 3.7175 | S183: =_xlfn.XLOOKUP(P183,'Annual Real'!A:A,'Annual Real'!B:B,0,0) -> 9.089702394 | T183: 7.286322365 | U183: 7.286322365 | V183: FALSE | W183: FALSE | X183: 0.07380952 | Y183: 0.005952028738 | Z183: 1.483977444 | AA183: 7 | AB183: 1973-08-01 | AC183: 7.286322365
C184: ='Monthly Prices'!A172 -> 1973M10 | D184: 1973-09-01 | E184: 165 | F184: FALSE | G184: TRUE | H184: FALSE | J184: =INDEX('Monthly Prices'!B172:CB172,$G$4) -> 0.21 | K184: =IF(H184,INDEX('Monthly Prices'!B172:CB172,$G$4)*U184,FALSE) -> FALSE | L184: TRUE | M184: =INDEX('Monthly Prices'!B172:CB172,$G$5) -> 0.6935067243 | N184: =IF(H184,INDEX('Monthly Prices'!B172:CB172,$G$5)*U184,FALSE) -> FALSE | O184: TRUE | P184: 1973 | Q184: ='Monthly Prices'!B172 -> 4.1 | R184: 3.7175 | S184: =_xlfn.XLOOKUP(P184,'Annual Real'!A:A,'Annual Real'!B:B,0,0) -> 9.089702394 | T184: 7.243309125 | U184: 7.243309125 | V184: FALSE | W184: FALSE | X184: 0.0736342 | Y184: 0.005938340967 | Z184: 1.492789808 | AA184: 7 | AB184: 1973-09-01 | AC184: 7.243309125
C185: ='Monthly Prices'!A173 -> 1973M11 | D185: 1973-10-01 | E185: 166 | F185: FALSE | G185: TRUE | H185: FALSE | J185: =INDEX('Monthly Prices'!B173:CB173,$G$4) -> 0.21 | K185: =IF(H185,INDEX('Monthly Prices'!B173:CB173,$G$4)*U185,FALSE) -> FALSE | L185: TRUE | M185: =INDEX('Monthly Prices'!B173:CB173,$G$5) -> 0.6935067243 | N185: =IF(H185,INDEX('Monthly Prices'!B173:CB173,$G$5)*U185,FALSE) -> FALSE | O185: TRUE | P185: 1973 | Q185: ='Monthly Prices'!B173 -> 4.1 | R185: 3.7175 | S185: =_xlfn.XLOOKUP(P185,'Annual Real'!A:A,'Annual Real'!B:B,0,0) -> 9.089702394 | T185: 7.198107263 | U185: 7.198107263 | V185: FALSE | W185: FALSE | X185: 0.07801418 | Y185: 0.006279687277 | Z185: 1.502164061 | AA185: 7 | AB185: 1973-10-01 | AC185: 7.198107263
C186: ='Monthly Prices'!A174 -> 1973M12 | D186: 1973-11-01 | E186: 167 | F186: FALSE | G186: TRUE | H186: FALSE | J186: =INDEX('Monthly Prices'!B174:CB174,$G$4) -> 0.21 | K186: =IF(H186,INDEX('Monthly Prices'!B174:CB174,$G$4)*U186,FALSE) -> FALSE | L186: TRUE | M186: =INDEX('Monthly Prices'!B174:CB174,$G$5) -> 0.6935067243 | N186: =IF(H186,INDEX('Monthly Prices'!B174:CB174,$G$5)*U186,FALSE) -> FALSE | O186: TRUE | P186: 1973 | Q186: ='Monthly Prices'!B174 -> 4.1 | R186: 3.7175 | S186: =_xlfn.XLOOKUP(P186,'Annual Real'!A:A,'Annual Real'!B:B,0,0) -> 9.089702394 | T186: 7.150686612 | U186: 7.150686612 | V186: FALSE | W186: FALSE | X186: 0.08254717 | Y186: 0.006631622054 | Z186: 1.512125845 | AA186: 7 | AB186: 1973-11-01 | AC186: 7.150686612
C187: ='Monthly Prices'!A175 -> 1974M01 | D187: 1973-12-01 | E187: 168 | F187: FALSE | G187: TRUE | H187: FALSE | J187: =INDEX('Monthly Prices'!B175:CB175,$G$4) -> 0.29 | K187: =IF(H187,INDEX('Monthly Prices'!B175:CB175,$G$4)*U187,FALSE) -> FALSE | L187: TRUE | M187: =INDEX('Monthly Prices'!B175:CB175,$G$5) -> 1.73 | N187: =IF(H187,INDEX('Monthly Prices'!B175:CB175,$G$5)*U187,FALSE) -> FALSE | O187: TRUE | P187: 1973 | Q187: ='Monthly Prices'!B175 -> 13 | R187: 3.7175 | S187: =_xlfn.XLOOKUP(P187,'Annual Real'!A:A,'Annual Real'!B:B,0,0) -> 9.089702394 | T187: 7.101116831 | U187: 7.101116831 | V187: FALSE | W187: FALSE | X187: 0.08705882 | Y187: 0.006980561234 | Z187: 1.522681332 | AA187: 7 | AB187: 1973-12-01 | AC187: 7.101116831
C188: ='Monthly Prices'!A176 -> 1974M02 | D188: 1974-01-01 | E188: 169 | F188: FALSE | G188: TRUE | H188: FALSE | J188: =INDEX('Monthly Prices'!B176:CB176,$G$4) -> 0.29 | K188: =IF(H188,INDEX('Monthly Prices'!B176:CB176,$G$4)*U188,FALSE) -> FALSE | L188: TRUE | M188: =INDEX('Monthly Prices'!B176:CB176,$G$5) -> 1.73 | N188: =IF(H188,INDEX('Monthly Prices'!B176:CB176,$G$5)*U188,FALSE) -> FALSE | O188: TRUE | P188: 1974 | Q188: ='Monthly Prices'!B176 -> 13 | R188: 10.75999943 | S188: =_xlfn.XLOOKUP(P188,'Annual Real'!A:A,'Annual Real'!B:B,0,0) -> 29.15785585 | T188: 7.048206693 | U188: 7.048206693 | V188: FALSE | W188: FALSE | X188: 0.09389671 | Y188: 0.007506893547 | Z188: 1.534111939 | AA188: 7 | AB188: 1974-01-01 | AC188: 7.048206693
C189: ='Monthly Prices'!A177 -> 1974M03 | D189: 1974-02-01 | E189: 170 | F189: FALSE | G189: TRUE | H189: FALSE | J189: =INDEX('Monthly Prices'!B177:CB177,$G$4) -> 0.29 | K189: =IF(H189,INDEX('Monthly Prices'!B177:CB177,$G$4)*U189,FALSE) -> FALSE | L189: TRUE | M189: =INDEX('Monthly Prices'!B177:CB177,$G$5) -> 1.73 | N189: =IF(H189,INDEX('Monthly Prices'!B177:CB177,$G$5)*U189,FALSE) -> FALSE | O189: TRUE | P189: 1974 | Q189: ='Monthly Prices'!B177 -> 13 | R189: 10.75999943 | S189: =_xlfn.XLOOKUP(P189,'Annual Real'!A:A,'Annual Real'!B:B,0,0) -> 29.15785585 | T189: 6.992324466 | U189: 6.992324466 | V189: FALSE | W189: FALSE | X189: 0.1002331 | Y189: 0.007991938607 | Z189: 1.546372467 | AA189: 7 | AB189: 1974-02-01 | AC189: 6.992324466
C190: ='Monthly Prices'!A178 -> 1974M04 | D190: 1974-03-01 | E190: 171 | F190: FALSE | G190: TRUE | H190: FALSE | J190: =INDEX('Monthly Prices'!B178:CB178,$G$4) -> 0.29 | K190: =IF(H190,INDEX('Monthly Prices'!B178:CB178,$G$4)*U190,FALSE) -> FALSE | L190: TRUE | M190: =INDEX('Monthly Prices'!B178:CB178,$G$5) -> 1.73 | N190: =IF(H190,INDEX('Monthly Prices'!B178:CB178,$G$5)*U190,FALSE) -> FALSE | O190: TRUE | P190: 1974 | Q190: ='Monthly Prices'!B178 -> 10.59999847 | R190: 10.75999943 | S190: =_xlfn.XLOOKUP(P190,'Annual Real'!A:A,'Annual Real'!B:B,0,0) -> 29.15785585 | T190: 6.934948484 | U190: 6.934948484 | V190: FALSE | W190: FALSE | X190: 0.1039261 | Y190: 0.008273454684 | Z190: 1.55916631 | AA190: 7 | AB190: 1974-03-01 | AC190: 6.934948484
C191: ='Monthly Prices'!A179 -> 1974M05 | D191: 1974-04-01 | E191: 172 | F191: FALSE | G191: TRUE | H191: FALSE | J191: =INDEX('Monthly Prices'!B179:CB179,$G$4) -> 0.29 | K191: =IF(H191,INDEX('Monthly Prices'!B179:CB179,$G$4)*U191,FALSE) -> FALSE | L191: TRUE | M191: =INDEX('Monthly Prices'!B179:CB179,$G$5) -> 1.73 | N191: =IF(H191,INDEX('Monthly Prices'!B179:CB179,$G$5)*U191,FALSE) -> FALSE | O191: TRUE | P191: 1974 | Q191: ='Monthly Prices'!B179 -> 10.59999847 | R191: 10.75999943 | S191: =_xlfn.XLOOKUP(P191,'Annual Real'!A:A,'Annual Real'!B:B,0,0) -> 29.15785585 | T191: 6.879607764 | U191: 6.879607764 | V191: FALSE | W191: FALSE | X191: 0.1009174 | Y191: 0.008044167868 | Z191: 1.571708505 | AA191: 7 | AB191: 1974-04-01 | AC191: 6.879607764
C192: ='Monthly Prices'!A180 -> 1974M06 | D192: 1974-05-01 | E192: 173 | F192: FALSE | G192: TRUE | H192: FALSE | J192: =INDEX('Monthly Prices'!B180:CB180,$G$4) -> 0.29 | K192: =IF(H192,INDEX('Monthly Prices'!B180:CB180,$G$4)*U192,FALSE) -> FALSE | L192: TRUE | M192: =INDEX('Monthly Prices'!B180:CB180,$G$5) -> 1.73 | N192: =IF(H192,INDEX('Monthly Prices'!B180:CB180,$G$5)*U192,FALSE) -> FALSE | O192: TRUE | P192: 1974 | Q192: ='Monthly Prices'!B180 -> 10.59999847 | R192: 10.75999943 | S192: =_xlfn.XLOOKUP(P192,'Annual Real'!A:A,'Annual Real'!B:B,0,0) -> 29.15785585 | T192: 6.821544223 | U192: 6.821544223 | V192: FALSE | W192: FALSE | X192: 0.1070615 | Y192: 0.008511788324 | Z192: 1.585086555 | AA192: 7 | AB192: 1974-05-01 | AC192: 6.821544223
C193: ='Monthly Prices'!A181 -> 1974M07 | D193: 1974-06-01 | E193: 174 | F193: FALSE | G193: TRUE | H193: FALSE | J193: =INDEX('Monthly Prices'!B181:CB181,$G$4) -> 0.29 | K193: =IF(H193,INDEX('Monthly Prices'!B181:CB181,$G$4)*U193,FALSE) -> FALSE | L193: TRUE | M193: =INDEX('Monthly Prices'!B181:CB181,$G$5) -> 1.73 | N193: =IF(H193,INDEX('Monthly Prices'!B181:CB181,$G$5)*U193,FALSE) -> FALSE | O193: TRUE | P193: 1974 | Q193: ='Monthly Prices'!B181 -> 10 | R193: 10.75999943 | S193: =_xlfn.XLOOKUP(P193,'Annual Real'!A:A,'Annual Real'!B:B,0,0) -> 29.15785585 | T193: 6.763189365 | U193: 6.763189365 | V193: FALSE | W193: FALSE | X193: 0.1085973 | Y193: 0.008628304619 | Z193: 1.598763165 | AA193: 7 | AB193: 1974-06-01 | AC193: 6.763189365
C194: ='Monthly Prices'!A182 -> 1974M08 | D194: 1974-07-01 | E194: 175 | F194: FALSE | G194: TRUE | H194: FALSE | J194: =INDEX('Monthly Prices'!B182:CB182,$G$4) -> 0.29 | K194: =IF(H194,INDEX('Monthly Prices'!B182:CB182,$G$4)*U194,FALSE) -> FALSE | L194: TRUE | M194: =INDEX('Monthly Prices'!B182:CB182,$G$5) -> 1.73 | N194: =IF(H194,INDEX('Monthly Prices'!B182:CB182,$G$5)*U194,FALSE) -> FALSE | O194: TRUE | P194: 1974 | Q194: ='Monthly Prices'!B182 -> 10 | R194: 10.75999943 | S194: =_xlfn.XLOOKUP(P194,'Annual Real'!A:A,'Annual Real'!B:B,0,0) -> 29.15785585 | T194: 6.702054381 | U194: 6.702054381 | V194: FALSE | W194: FALSE | X194: 0.1151241 | Y194: 0.009121827515 | Z194: 1.613346807 | AA194: 7 | AB194: 1974-07-01 | AC194: 6.702054381
C195: ='Monthly Prices'!A183 -> 1974M09 | D195: 1974-08-01 | E195: 176 | F195: FALSE | G195: TRUE | H195: FALSE | J195: =INDEX('Monthly Prices'!B183:CB183,$G$4) -> 0.29 | K195: =IF(H195,INDEX('Monthly Prices'!B183:CB183,$G$4)*U195,FALSE) -> FALSE | L195: TRUE | M195: =INDEX('Monthly Prices'!B183:CB183,$G$5) -> 1.73 | N195: =IF(H195,INDEX('Monthly Prices'!B183:CB183,$G$5)*U195,FALSE) -> FALSE | O195: TRUE | P195: 1974 | Q195: ='Monthly Prices'!B183 -> 10 | R195: 10.75999943 | S195: =_xlfn.XLOOKUP(P195,'Annual Real'!A:A,'Annual Real'!B:B,0,0) -> 29.15785585 | T195: 6.644696625 | U195: 6.644696625 | V195: FALSE | W195: FALSE | X195: 0.1086475 | Y195: 0.008632110636 | Z195: 1.627273395 | AA195: 7 | AB195: 1974-08-01 | AC195: 6.644696625
C196: ='Monthly Prices'!A184 -> 1974M10 | D196: 1974-09-01 | E196: 177 | F196: FALSE | G196: TRUE | H196: FALSE | J196: =INDEX('Monthly Prices'!B184:CB184,$G$4) -> 0.29 | K196: =IF(H196,INDEX('Monthly Prices'!B184:CB184,$G$4)*U196,FALSE) -> FALSE | L196: TRUE | M196: =INDEX('Monthly Prices'!B184:CB184,$G$5) -> 1.73 | N196: =IF(H196,INDEX('Monthly Prices'!B184:CB184,$G$5)*U196,FALSE) -> FALSE | O196: TRUE | P196: 1974 | Q196: ='Monthly Prices'!B184 -> 10.29999924 | R196: 10.75999943 | S196: =_xlfn.XLOOKUP(P196,'Annual Real'!A:A,'Annual Real'!B:B,0,0) -> 29.15785585 | T196: 6.582499245 | U196: 6.582499245 | V196: FALSE | W196: FALSE | X196: 0.119469 | Y196: 0.009448900445 | Z196: 1.642649339 | AA196: 7 | AB196: 1974-09-01 | AC196: 6.582499245
C197: ='Monthly Prices'!A185 -> 1974M11 | D197: 1974-10-01 | E197: 178 | F197: FALSE | G197: TRUE | H197: FALSE | J197: =INDEX('Monthly Prices'!B185:CB185,$G$4) -> 0.29 | K197: =IF(H197,INDEX('Monthly Prices'!B185:CB185,$G$4)*U197,FALSE) -> FALSE | L197: TRUE | M197: =INDEX('Monthly Prices'!B185:CB185,$G$5) -> 1.73 | N197: =IF(H197,INDEX('Monthly Prices'!B185:CB185,$G$5)*U197,FALSE) -> FALSE | O197: TRUE | P197: 1974 | Q197: ='Monthly Prices'!B185 -> 10.29999924 | R197: 10.75999943 | S197: =_xlfn.XLOOKUP(P197,'Annual Real'!A:A,'Annual Real'!B:B,0,0) -> 29.15785585 | T197: 6.520328568 | U197: 6.520328568 | V197: FALSE | W197: FALSE | X197: 0.120614 | Y197: 0.009534899366 | Z197: 1.658311836 | AA197: 7 | AB197: 1974-10-01 | AC197: 6.520328568
C198: ='Monthly Prices'!A186 -> 1974M12 | D198: 1974-11-01 | E198: 179 | F198: FALSE | G198: TRUE | H198: FALSE | J198: =INDEX('Monthly Prices'!B186:CB186,$G$4) -> 0.29 | K198: =IF(H198,INDEX('Monthly Prices'!B186:CB186,$G$4)*U198,FALSE) -> FALSE | L198: TRUE | M198: =INDEX('Monthly Prices'!B186:CB186,$G$5) -> 1.73 | N198: =IF(H198,INDEX('Monthly Prices'!B186:CB186,$G$5)*U198,FALSE) -> FALSE | O198: TRUE | P198: 1974 | Q198: ='Monthly Prices'!B186 -> 10.29999924 | R198: 10.75999943 | S198: =_xlfn.XLOOKUP(P198,'Annual Real'!A:A,'Annual Real'!B:B,0,0) -> 29.15785585 | T198: 6.458077726 | U198: 6.458077726 | V198: FALSE | W198: FALSE | X198: 0.1220044 | Y198: 0.009639221619 | Z198: 1.674296671 | AA198: 7 | AB198: 1974-11-01 | AC198: 6.458077726
C199: ='Monthly Prices'!A187 -> 1975M01 | D199: 1974-12-01 | E199: 180 | F199: FALSE | G199: TRUE | H199: FALSE | J199: =INDEX('Monthly Prices'!B187:CB187,$G$4) -> 0.43 | K199: =IF(H199,INDEX('Monthly Prices'!B187:CB187,$G$4)*U199,FALSE) -> FALSE | L199: TRUE | M199: =INDEX('Monthly Prices'!B187:CB187,$G$5) -> 1.682093591 | N199: =IF(H199,INDEX('Monthly Prices'!B187:CB187,$G$5)*U199,FALSE) -> FALSE | O199: TRUE | P199: 1974 | Q199: ='Monthly Prices'!B187 -> 10.42000008 | R199: 10.75999943 | S199: =_xlfn.XLOOKUP(P199,'Annual Real'!A:A,'Annual Real'!B:B,0,0) -> 29.15785585 | T199: 6.395769739 | U199: 6.395769739 | V199: FALSE | W199: FALSE | X199: 0.1233766 | Y199: 0.009742062196 | Z199: 1.690607773 | AA199: 7 | AB199: 1974-12-01 | AC199: 6.395769739
C200: ='Monthly Prices'!A188 -> 1975M02 | D200: 1975-01-01 | E200: 181 | F200: FALSE | G200: TRUE | H200: FALSE | J200: =INDEX('Monthly Prices'!B188:CB188,$G$4) -> 0.43 | K200: =IF(H200,INDEX('Monthly Prices'!B188:CB188,$G$4)*U200,FALSE) -> FALSE | L200: TRUE | M200: =INDEX('Monthly Prices'!B188:CB188,$G$5) -> 1.682093591 | N200: =IF(H200,INDEX('Monthly Prices'!B188:CB188,$G$5)*U200,FALSE) -> FALSE | O200: TRUE | P200: 1975 | Q200: ='Monthly Prices'!B188 -> 10.42000008 | R200: 10.52333347 | S200: =_xlfn.XLOOKUP(P200,'Annual Real'!A:A,'Annual Real'!B:B,0,0) -> 24.956436 | T200: 6.336583582 | U200: 6.336583582 | V200: FALSE | W200: FALSE | X200: 0.1180258 | Y200: 0.009340389313 | Z200: 1.706398708 | AA200: 7 | AB200: 1975-01-01 | AC200: 6.336583582
C201: ='Monthly Prices'!A189 -> 1975M03 | D201: 1975-02-01 | E201: 182 | F201: FALSE | G201: TRUE | H201: FALSE | J201: =INDEX('Monthly Prices'!B189:CB189,$G$4) -> 0.43 | K201: =IF(H201,INDEX('Monthly Prices'!B189:CB189,$G$4)*U201,FALSE) -> FALSE | L201: TRUE | M201: =INDEX('Monthly Prices'!B189:CB189,$G$5) -> 1.682093591 | N201: =IF(H201,INDEX('Monthly Prices'!B189:CB189,$G$5)*U201,FALSE) -> FALSE | O201: TRUE | P201: 1975 | Q201: ='Monthly Prices'!B189 -> 10.42000008 | R201: 10.52333347 | S201: =_xlfn.XLOOKUP(P201,'Annual Real'!A:A,'Annual Real'!B:B,0,0) -> 24.956436 | T201: 6.280637484 | U201: 6.280637484 | V201: FALSE | W201: FALSE | X201: 0.1122881 | Y201: 0.008907710028 | Z201: 1.721598813 | AA201: 7 | AB201: 1975-02-01 | AC201: 6.280637484
C202: ='Monthly Prices'!A190 -> 1975M04 | D202: 1975-03-01 | E202: 183 | F202: FALSE | G202: TRUE | H202: FALSE | J202: =INDEX('Monthly Prices'!B190:CB190,$G$4) -> 0.43 | K202: =IF(H202,INDEX('Monthly Prices'!B190:CB190,$G$4)*U202,FALSE) -> FALSE | L202: TRUE | M202: =INDEX('Monthly Prices'!B190:CB190,$G$5) -> 1.682093591 | N202: =IF(H202,INDEX('Monthly Prices'!B190:CB190,$G$5)*U202,FALSE) -> FALSE | O202: TRUE | P202: 1975 | Q202: ='Monthly Prices'!B190 -> 10.42000008 | R202: 10.52333347 | S202: =_xlfn.XLOOKUP(P202,'Annual Real'!A:A,'Annual Real'!B:B,0,0) -> 24.956436 | T202: 6.229767408 | U202: 6.229767408 | V202: FALSE | W202: FALSE | X202: 0.1025105 | Y202: 0.008165646179 | Z202: 1.73565678 | AA202: 7 | AB202: 1975-03-01 | AC202: 6.229767408
C203: ='Monthly Prices'!A191 -> 1975M05 | D203: 1975-04-01 | E203: 184 | F203: FALSE | G203: TRUE | H203: FALSE | J203: =INDEX('Monthly Prices'!B191:CB191,$G$4) -> 0.43 | K203: =IF(H203,INDEX('Monthly Prices'!B191:CB191,$G$4)*U203,FALSE) -> FALSE | L203: TRUE | M203: =INDEX('Monthly Prices'!B191:CB191,$G$5) -> 1.682093591 | N203: =IF(H203,INDEX('Monthly Prices'!B191:CB191,$G$5)*U203,FALSE) -> FALSE | O203: TRUE | P203: 1975 | Q203: ='Monthly Prices'!B191 -> 10.42000008 | R203: 10.52333347 | S203: =_xlfn.XLOOKUP(P203,'Annual Real'!A:A,'Annual Real'!B:B,0,0) -> 24.956436 | T203: 6.179508925 | U203: 6.179508925 | V203: FALSE | W203: FALSE | X203: 0.1020833 | Y203: 0.008133086786 | Z203: 1.749773027 | AA203: 7 | AB203: 1975-04-01 | AC203: 6.179508925
C204: ='Monthly Prices'!A192 -> 1975M06 | D204: 1975-05-01 | E204: 185 | F204: FALSE | G204: TRUE | H204: FALSE | J204: =INDEX('Monthly Prices'!B192:CB192,$G$4) -> 0.43 | K204: =IF(H204,INDEX('Monthly Prices'!B192:CB192,$G$4)*U204,FALSE) -> FALSE | L204: TRUE | M204: =INDEX('Monthly Prices'!B192:CB192,$G$5) -> 1.682093591 | N204: =IF(H204,INDEX('Monthly Prices'!B192:CB192,$G$5)*U204,FALSE) -> FALSE | O204: TRUE | P204: 1975 | Q204: ='Monthly Prices'!B192 -> 10.42000008 | R204: 10.52333347 | S204: =_xlfn.XLOOKUP(P204,'Annual Real'!A:A,'Annual Real'!B:B,0,0) -> 24.956436 | T204: 6.133113715 | U204: 6.133113715 | V204: FALSE | W204: FALSE | X204: 0.0946502 | Y204: 0.007564707264 | Z204: 1.763009548 | AA204: 7 | AB204: 1975-05-01 | AC204: 6.133113715
... 611 more rows

Sheet Monthly Prices
A1: World Bank Commodity Price Data (The Pink Sheet)
A2: monthly prices in nominal US dollars, 1960 to present
A3: (monthly series are available only in nominal US dollars)
A4: Updated on April 02, 2025
B5: Crude oil, average | C5: Crude oil, Brent | D5: Crude oil, Dubai | E5: Crude oil, WTI | F5: Coal, Australian | G5: Coal, South African ** | H5: Natural gas, US | I5: Natural gas, Europe | J5: Liquefied natural gas, Japan | K5: Natural gas index | L5: Cocoa | M5: Coffee, Arabica | N5: Coffee, Robusta | O5: Tea, avg 3 auctions | P5: Tea, Colombo | Q5: Tea, Kolkata | R5: Tea, Mombasa | S5: Coconut oil | T5: Groundnuts | U5: Fish meal | V5: Groundnut oil ** | W5: Palm oil | X5: Palm kernel oil | Y5: Soybeans | Z5: Soybean oil | AA5: Soybean meal | AB5: Rapeseed oil | AC5: Sunflower oil | AD5: Barley | AE5: Maize | AF5: Sorghum | AG5: Rice, Thai 5% | AH5: Rice, Thai 25% | AI5: Rice, Thai A.1 | AJ5: Rice, Viet Namese 5% | AK5: Wheat, US SRW | AL5: Wheat, US HRW | AM5: Banana, Europe | AN5: Banana, US | AO5: Orange | AP5: Beef ** | AQ5: Chicken ** | AR5: Lamb ** | AS5: Shrimps, Mexican | AT5: Sugar, EU | AU5: Sugar, US | AV5: Sugar, world | AW5: Tobacco, US import u.v. | AX5: Logs, Cameroon | AY5: Logs, Malaysian | AZ5: Sawnwood, Cameroon | BA5: Sawnwood, Malaysian | BB5: Plywood | BC5: Cotton, A Index | BD5: Rubber, TSR20 ** | BE5: Rubber, RSS3 | BF5: Phosphate rock | BG5: DAP | BH5: TSP | BI5: Urea | BJ5: Potassium chloride ** | BK5: Aluminum | BL5: Iron ore, cfr spot | BM5: Copper | BN5: Lead | BO5: Tin | BP5: Nickel | BQ5: Zinc | BR5: Gold | BS5: Platinum | BT5: Silver
B6: ($/bbl) | C6: ($/bbl) | D6: ($/bbl) | E6: ($/bbl) | F6: ($/mt) | G6: ($/mt) | H6: ($/mmbtu) | I6: ($/mmbtu) | J6: ($/mmbtu) | K6: (2010=100) | L6: ($/kg) | M6: ($/kg) | N6: ($/kg) | O6: ($/kg) | P6: ($/kg) | Q6: ($/kg) | R6: ($/kg) | S6: ($/mt) | T6: ($/mt) | U6: ($/mt) | V6: ($/mt) | W6: ($/mt) | X6: ($/mt) | Y6: ($/mt) | Z6: ($/mt) | AA6: ($/mt) | AB6: ($/mt) | AC6: ($/mt) | AD6: ($/mt) | AE6: ($/mt) | AF6: ($/mt) | AG6: ($/mt) | AH6: ($/mt) | AI6: ($/mt) | AJ6: ($/mt) | AK6: ($/mt) | AL6: ($/mt) | AM6: ($/kg) | AN6: ($/kg) | AO6: ($/kg) | AP6: ($/kg) | AQ6: ($/kg) | AR6: ($/kg) | AS6: ($/kg) | AT6: ($/kg) | AU6: ($/kg) | AV6: ($/kg) | AW6: ($/mt) | AX6: ($/cubic meter) | AY6: ($/cubic meter) | AZ6: ($/cubic meter) | BA6: ($/cubic meter) | BB6: (cents/sheet) | BC6: ($/kg) | BD6: ($/kg) | BE6: ($/kg) | BF6: ($/mt) | BG6: ($/mt) | BH6: ($/mt) | BI6: ($/mt) | BJ6: ($/mt) | BK6: ($/mt) | BL6: ($/dmtu) | BM6: ($/mt) | BN6: ($/mt) | BO6: ($/mt) | BP6: ($/mt) | BQ6: ($/mt) | BR6: ($/troy oz) | BS6: ($/troy oz) | BT6: ($/troy oz)
A7: 1960M01 | B7: 1.630000114 | C7: 1.630000114 | D7: 1.630000114 | E7: … | F7: … | G7: … | H7: 0.14 | I7: 0.4047739963 | J7: … | K7: … | L7: 0.634 | M7: 0.9409 | N7: 0.6968643 | O7: 1.0297 | P7: 0.9303009 | Q7: 1.121401 | R7: 1.0374 | S7: 390 | T7: … | U7: … | V7: 334 | W7: 233 | X7: … | Y7: 94 | Z7: 204 | AA7: 91.9 | AB7: … | AC7: … | AD7: 20.36480039 | AE7: 45 | AF7: 39 | AG7: 104.45 | AH7: … | AI7: … | AJ7: … | AK7: … | AL7: 59.89 | AM7: … | AN7: 0.14308 | AO7: 0.1151 | AP7: 0.7055 | AQ7: 0.2973687919 | AR7: … | AS7: 1.433003 | AT7: 0.12235641 | AU7: 0.11684486 | AV7: 0.0666 | AW7: 1736.87 | AX7: … | AY7: 31.94 | AZ7: … | BA7: 149.1749784 | BB7: … | BC7: 0.6486 | BD7: … | BE7: 0.8223 | BF7: 13 | BG7: ... | BH7: 53 | BI7: 42.25 | BJ7: 28.5 | BK7: 511.4718323 | BL7: 11.42 | BM7: 715.4 | BN7: 206.1 | BO7: 2180.4 | BP7: 1631 | BQ7: 260.8 | BR7: 35.27 | BS7: 83.5 | BT7: 0.9137
A8: 1960M02 | B8: 1.630000114 | C8: 1.630000114 | D8: 1.630000114 | E8: … | F8: … | G8: … | H8: 0.14 | I8: 0.4047739963 | J8: … | K8: … | L8: 0.608 | M8: 0.9469 | N8: 0.6887074 | O8: 1.0297 | P8: 0.9303009 | Q8: 1.121401 | R8: 1.0374 | S8: 379 | T8: … | U8: … | V8: 341 | W8: 229 | X8: … | Y8: 91 | Z8: 201 | AA8: 86.7 | AB8: … | AC8: … | AD8: 20.41046355 | AE8: 44 | AF8: 39 | AG8: 103.54 | AH8: … | AI8: … | AJ8: … | AK8: … | AL8: 60.99 | AM8: … | AN8: 0.14308 | AO8: 0.1092 | AP8: 0.7121 | AQ8: 0.2974245468 | AR8: … | AS8: 1.4991416 | AT8: 0.12235641 | AU8: 0.11904948 | AV8: 0.0679 | AW8: 1736.87 | AX8: … | AY8: 31.94 | AZ8: … | BA8: 149.1749784 | BB8: … | BC8: 0.6453 | BD8: … | BE8: 0.8289 | BF8: 13 | BG8: ... | BH8: 53 | BI8: 42.25 | BJ8: 28.5 | BK8: 511.4718323 | BL8: 11.42 | BM8: 728.19 | BN8: 203.7 | BO8: 2180.4 | BP8: 1631 | BQ8: 244.9 | BR8: 35.27 | BS8: 83.5 | BT8: 0.9137
A9: 1960M03 | B9: 1.630000114 | C9: 1.630000114 | D9: 1.630000114 | E9: … | F9: … | G9: … | H9: 0.14 | I9: 0.4047739963 | J9: … | K9: … | L9: 0.5789 | M9: 0.9281 | N9: 0.6887074 | O9: 1.0297 | P9: 0.9303009 | Q9: 1.121401 | R9: 1.0374 | S9: 361 | T9: … | U9: … | V9: 338 | W9: 225 | X9: … | Y9: 92 | Z9: 201 | AA9: 84.1 | AB9: … | AC9: … | AD9: 20.71817486 | AE9: 45 | AF9: 35 | AG9: 103.79 | AH9: … | AI9: … | AJ9: … | AK9: … | AL9: 61.73 | AM9: … | AN9: 0.14308 | AO9: 0.1319 | AP9: 0.7694 | AQ9: 0.297834044 | AR9: … | AS9: 1.4991416 | AT9: 0.12235641 | AU9: 0.1212541 | AV9: 0.0683 | AW9: 1736.87 | AX9: … | AY9: 31.94 | AZ9: … | BA9: 149.1749784 | BB9: … | BC9: 0.6464 | BD9: … | BE9: 0.8576 | BF9: 13 | BG9: ... | BH9: 53 | BI9: 42.25 | BJ9: 28.5 | BK9: 511.4718323 | BL9: 11.42 | BM9: 684.94 | BN9: 210.3 | BO9: 2173.8 | BP9: 1631 | BQ9: 248.7 | BR9: 35.27 | BS9: 83.5 | BT9: 0.9137
A10: 1960M04 | B10: 1.630000114 | C10: 1.630000114 | D10: 1.630000114 | E10: … | F10: … | G10: … | H10: 0.14 | I10: 0.4047739963 | J10: … | K10: … | L10: 0.5983 | M10: 0.9303 | N10: 0.6845187 | O10: 1.0297 | P10: 0.9303009 | Q10: 1.121401 | R10: 1.0374 | S10: 338 | T10: … | U10: … | V10: 333 | W10: 225 | X10: … | Y10: 93 | Z10: 207 | AA10: 86.7 | AB10: … | AC10: … | AD10: 20.63803636 | AE10: 45 | AF10: 35 | AG10: 100.97 | AH10: … | AI10: … | AJ10: … | AK10: … | AL10: 60.99 | AM10: … | AN10: 0.14308 | AO10: 0.1363 | AP10: 0.8378 | AQ10: 0.2990214827 | AR10: … | AS10: 1.6755112 | AT10: 0.12235641 | AU10: 0.12345872 | AV10: 0.0681 | AW10: 1736.87 | AX10: … | AY10: 31.94 | AZ10: … | BA10: 149.1749784 | BB10: … | BC10: 0.6435 | BD10: … | BE10: 0.8642 | BF10: 13 | BG10: ... | BH10: 53 | BI10: 42.25 | BJ10: 28.5 | BK10: 511.4718323 | BL10: 11.42 | BM10: 723.11 | BN10: 213.6 | BO10: 2178.2 | BP10: 1631 | BQ10: 254.6 | BR10: 35.27 | BS10: 83.5 | BT10: 0.9137
A11: 1960M05 | B11: 1.630000114 | C11: 1.630000114 | D11: 1.630000114 | E11: … | F11: … | G11: … | H11: 0.14 | I11: 0.4047739963 | J11: … | K11: … | L11: 0.6001 | M11: 0.92 | N11: 0.6906915 | O11: 1.0297 | P11: 0.9303009 | Q11: 1.121401 | R11: 1.0374 | S11: 321 | T11: … | U11: … | V11: 335 | W11: 225 | X11: … | Y11: 93 | Z11: 209 | AA11: 81.5 | AB11: … | AC11: … | AD11: 20.60605583 | AE11: 48 | AF11: 35 | AG11: 102.15 | AH11: … | AI11: … | AJ11: … | AK11: … | AL11: 57.69 | AM11: … | AN11: 0.149 | AO11: 0.1444 | AP11: 0.7562 | AQ11: 0.2990314775 | AR11: … | AS11: 1.763696 | AT11: 0.12235641 | AU11: 0.1212541 | AV11: 0.0683 | AW11: 1736.87 | AX11: … | AY11: 31.94 | AZ11: … | BA11: 149.1749784 | BB11: … | BC11: 0.6468 | BD11: … | BE11: 0.9281 | BF11: 13 | BG11: ... | BH11: 53 | BI11: 42.25 | BJ11: 28.5 | BK11: 511.4718323 | BL11: 11.42 | BM11: 684.75 | BN11: 213.4 | BO11: 2162.7 | BP11: 1631 | BQ11: 253.8 | BR11: 35.27 | BS11: 83.5 | BT11: 0.9137
A12: 1960M06 | B12: 1.630000114 | C12: 1.630000114 | D12: 1.630000114 | E12: … | F12: … | G12: … | H12: 0.14 | I12: 0.4047739963 | J12: … | K12: … | L12: 0.5944 | M12: 0.9123 | N12: 0.6968643 | O12: 1.0297 | P12: 0.9303009 | Q12: 1.121401 | R12: 1.0374 | S12: 287 | T12: … | U12: … | V12: 334 | W12: 219 | X12: … | Y12: 91 | Z12: 218 | AA12: 80.3 | AB12: … | AC12: … | AD12: 20.12653582 | AE12: 47 | AF12: 36 | AG12: 103.13 | AH12: … | AI12: … | AJ12: … | AK12: … | AL12: 55.48 | AM12: … | AN12: 0.149 | AO12: 0.1385 | AP12: 0.7077 | AQ12: 0.2996431214 | AR12: … | AS12: 1.763696 | AT12: 0.12235641 | AU12: 0.12566334 | AV12: 0.0666 | AW12: 1736.87 | AX12: … | AY12: 31.94 | AZ12: … | BA12: 149.1749784 | BB12: … | BC12: 0.6559 | BD12: … | BE12: 0.8929 | BF12: 13 | BG12: ... | BH12: 53 | BI12: 42.25 | BJ12: 28.5 | BK12: 511.4718323 | BL12: 11.42 | BM12: 691.59 | BN12: 202.4 | BO12: 2184.8 | BP12: 1631 | BQ12: 249.8 | BR12: 35.27 | BS12: 83.5 | BT12: 0.9137
A13: 1960M07 | B13: 1.630000114 | C13: 1.630000114 | D13: 1.630000114 | E13: … | F13: … | G13: … | H13: 0.14 | I13: 0.4047739963 | J13: … | K13: … | L13: 0.6045 | M13: 0.916 | N13: 0.6906915 | O13: 1.0297 | P13: 0.9303009 | Q13: 1.121401 | R13: 1.0374 | S13: 298 | T13: … | U13: … | V13: 336 | W13: 221 | X13: … | Y13: 92 | Z13: 224 | AA13: 77.7 | AB13: … | AC13: … | AD13: 20.03778575 | AE13: 47 | AF13: 39.9 | AG13: 102.05 | AH13: … | AI13: … | AJ13: … | AK13: … | AL13: 54.75 | AM13: … | AN13: 0.149 | AO13: 0.1292 | AP13: 0.7474 | AQ13: 0.3000240305 | AR13: … | AS13: 1.7416498 | AT13: 0.12235641 | AU13: 0.1322772 | AV13: 0.0728 | AW13: 1736.87 | AX13: … | AY13: 31.94 | AZ13: … | BA13: 149.1749784 | BB13: … | BC13: 0.6572 | BD13: … | BE13: 0.787 | BF13: 13 | BG13: ... | BH13: 53 | BI13: 42.25 | BJ13: 28.5 | BK13: 511.4718323 | BL13: 11.42 | BM13: 702.39 | BN13: 196.2 | BO13: 2248.7 | BP13: 1631 | BQ13: 248.7 | BR13: 35.27 | BS13: 83.5 | BT13: 0.9137
A14: 1960M08 | B14: 1.630000114 | C14: 1.630000114 | D14: 1.630000114 | E14: … | F14: … | G14: … | H14: 0.14 | I14: 0.4047739963 | J14: … | K14: … | L14: 0.5882 | M14: 0.9292 | N14: 0.6988484 | O14: 1.0297 | P14: 0.9303009 | Q14: 1.121401 | R14: 1.0374 | S14: 292 | T14: … | U14: … | V14: 336 | W14: 225 | X14: … | Y14: 93 | Z14: 237 | AA14: 77.7 | AB14: … | AC14: … | AD14: 20.13317893 | AE14: 47 | AF14: 39 | AG14: 109.71 | AH14: … | AI14: … | AJ14: … | AK14: … | AL14: 55.12 | AM14: … | AN14: 0.12699 | AO14: 0.1292 | AP14: 0.7826 | AQ14: 0.3008283988 | AR14: … | AS14: 1.5873264 | AT14: 0.12235641 | AU14: 0.12786796 | AV14: 0.0741 | AW14: 1736.87 | AX14: … | AY14: 31.94 | AZ14: … | BA14: 149.1749784 | BB14: … | BC14: 0.6534 | BD14: … | BE14: 0.7209 | BF14: 13 | BG14: ... | BH14: 53 | BI14: 42.25 | BJ14: 28.5 | BK14: 511.4718323 | BL14: 11.42 | BM14: 675.94 | BN14: 195.3 | BO14: 2204.6 | BP14: 1631 | BQ14: 241 | BR14: 35.27 | BS14: 83.5 | BT14: 0.9137
A15: 1960M09 | B15: 1.630000114 | C15: 1.630000114 | D15: 1.630000114 | E15: … | F15: … | G15: … | H15: 0.14 | I15: 0.4047739963 | J15: … | K15: … | L15: 0.5827 | M15: 0.9226 | N15: 0.7028166 | O15: 1.0297 | P15: 0.9303009 | Q15: 1.121401 | R15: 1.0374 | S15: 276 | T15: … | U15: … | V15: 323 | W15: 224 | X15: … | Y15: 92 | Z15: 231 | AA15: 82.8 | AB15: … | AC15: … | AD15: 20.26041462 | AE15: 46 | AF15: 35 | AG15: 116.1 | AH15: … | AI15: … | AJ15: … | AK15: … | AL15: 56.59 | AM15: … | AN15: 0.138 | AO15: 0.1292 | AP15: 0.8091 | AQ15: 0.3024557646 | AR15: … | AS15: 1.5211878 | AT15: 0.12235641 | AU15: 0.1322772 | AV15: 0.0725 | AW15: 1736.87 | AX15: … | AY15: 31.94 | AZ15: … | BA15: 149.1749784 | BB15: … | BC15: 0.6618 | BD15: … | BE15: 0.7275 | BF15: 13 | BG15: ... | BH15: 53 | BI15: 42.25 | BJ15: 28.5 | BK15: 511.4718323 | BL15: 11.42 | BM15: 647.06 | BN15: 192.7 | BO15: 2226.7 | BP15: 1631 | BQ15: 240.1 | BR15: 35.27 | BS15: 83.5 | BT15: 0.9137
A16: 1960M10 | B16: 1.630000114 | C16: 1.630000114 | D16: 1.630000114 | E16: … | F16: … | G16: … | H16: 0.14 | I16: 0.4047739963 | J16: … | K16: … | L16: 0.5858 | M16: 0.9237 | N16: 0.7067849 | O16: 1.0297 | P16: 0.9303009 | Q16: 1.121401 | R16: 1.0374 | S16: 280 | T16: … | U16: … | V16: 310 | W16: 222 | X16: … | Y16: 88 | Z16: 237 | AA16: 75.1 | AB16: … | AC16: … | AD16: 19.72291032 | AE16: 42 | AF16: 35 | AG16: 115.21 | AH16: … | AI16: … | AJ16: … | AK16: … | AL16: 56.95 | AM16: … | AN16: 0.1541 | AO16: 0.1292 | AP16: 0.7099 | AQ16: 0.3020039008 | AR16: … | AS16: 1.6314188 | AT16: 0.12235641 | AU16: 0.13007258 | AV16: 0.0538 | AW16: 1736.87 | AX16: … | AY16: 31.94 | AZ16: … | BA16: 149.1749784 | BB16: … | BC16: 0.6656 | BD16: … | BE16: 0.6856 | BF16: 13 | BG16: ... | BH16: 53 | BI16: 42.25 | BJ16: 28.5 | BK16: 511.4718323 | BL16: 11.42 | BM16: 612.66 | BN16: 185.2 | BO16: 2226.7 | BP16: 1631 | BQ16: 242.3 | BR16: 35.27 | BS16: 83.5 | BT16: 0.9137
A17: 1960M11 | B17: 1.630000114 | C17: 1.630000114 | D17: 1.630000114 | E17: … | F17: … | G17: … | H17: 0.14 | I17: 0.4047739963 | J17: … | K17: … | L17: 0.5695 | M17: 0.9116 | N17: 0.7089895 | O17: 1.0297 | P17: 0.9303009 | Q17: 1.121401 | R17: 1.0374 | S17: 274 | T17: … | U17: … | V17: 303 | W17: 222 | X17: … | Y17: 90 | Z17: 259 | AA17: 68.6 | AB17: … | AC17: … | AD17: 19.19704755 | AE17: 38 | AF17: 35 | AG17: 114.43 | AH17: … | AI17: … | AJ17: … | AK17: … | AL17: 57.69 | AM17: … | AN17: 0.127 | AO17: 0.1488 | AP17: 0.6349 | AQ17: 0.3016439859 | AR17: … | AS17: 1.6314188 | AT17: 0.12235641 | AU17: 0.13007258 | AV17: 0.052 | AW17: 1736.87 | AX17: … | AY17: 31.94 | AZ17: … | BA17: 149.1749784 | BB17: … | BC17: 0.6651 | BD17: … | BE17: 0.6283 | BF17: 13 | BG17: ... | BH17: 53 | BI17: 42.25 | BJ17: 28.5 | BK17: 511.4718323 | BL17: 11.42 | BM17: 642.13 | BN17: 188.1 | BO17: 2204.6 | BP17: 1631 | BQ17: 241.4 | BR17: 35.27 | BS17: 83.5 | BT17: 0.9137
A18: 1960M12 | B18: 1.630000114 | C18: 1.630000114 | D18: 1.630000114 | E18: … | F18: … | G18: … | H18: 0.14 | I18: 0.4047739963 | J18: … | K18: … | L18: 0.5238 | M18: 0.9006 | N18: 0.6968643 | O18: 1.0297 | P18: 0.9303009 | Q18: 1.121401 | R18: 1.0374 | S18: 252 | T18: … | U18: … | V18: 301 | W18: 223 | X18: … | Y18: 93 | Z18: 259 | AA18: 79 | AB18: … | AC18: … | AD18: 19.62896468 | AE18: 40 | AF18: 36 | AG18: 112.66 | AH18: … | AI18: … | AJ18: … | AK18: … | AL18: 58.05 | AM18: … | AN18: 0.149 | AO18: 0.1188 | AP18: 0.6658 | AQ18: 0.3042832467 | AR18: … | AS18: 1.5211878 | AT18: 0.12235641 | AU18: 0.13007258 | AV18: 0.0635 | AW18: 1736.87 | AX18: … | AY18: 31.94 | AZ18: … | BA18: 149.1749784 | BB18: … | BC18: 0.6649 | BD18: … | BE18: 0.6195 | BF18: 13 | BG18: ... | BH18: 53 | BI18: 42.25 | BJ18: 28.5 | BK18: 511.4718323 | BL18: 11.42 | BM18: 636.91 | BN18: 179.2 | BO18: 2189.2 | BP18: 1631 | BQ18: 228.2 | BR18: 35.27 | BS18: 83.5 | BT18: 0.9137
A19: 1961M01 | B19: 1.57 | C19: 1.57 | D19: 1.57 | E19: … | F19: … | G19: … | H19: 0.15 | I19: 0.4047739963 | J19: … | K19: … | L19: 0.485 | M19: 0.9145 | N19: 0.6765823 | O19: 0.9518 | P19: 0.8925009 | Q19: 0.978601 | R19: 0.9841996 | S19: 269 | T19: … | U19: … | V19: 331 | W19: 223 | X19: … | Y19: 102 | Z19: 278 | AA19: 85.4 | AB19: … | AC19: … | AD19: 20.27695551 | AE19: 43 | AF19: 38 | AG19: 113.47 | AH19: … | AI19: … | AJ19: … | AK19: … | AL19: 58.79 | AM19: … | AN19: 0.127 | AO19: 0.1143 | AP19: 0.6371 | AQ19: 0.3061167055 | AR19: … | AS19: 1.5211878 | AT19: 0.124340568 | AU19: 0.12786796 | AV19: 0.0646 | AW19: 1563.19 | AX19: … | AY19: 33.06 | AZ19: … | BA19: 151.9772808 | BB19: … | BC19: 0.6636 | BD19: … | BE19: 0.5997 | BF19: 13 | BG19: ... | BH19: 52 | BI19: 42.25 | BJ19: 30 | BK19: 511.4718323 | BL19: 11.02 | BM19: 606.71 | BN19: 175.9 | BO19: 2162.7 | BP19: 1711 | BQ19: 218 | BR19: 35.25 | BS19: 83.5 | BT19: 0.9137
A20: 1961M02 | B20: 1.57 | C20: 1.57 | D20: 1.57 | E20: … | F20: … | G20: … | H20: 0.15 | I20: 0.4047739963 | J20: … | K20: … | L20: 0.4881 | M20: 0.9167 | N20: 0.6765823 | O20: 0.9518 | P20: 0.8925009 | Q20: 0.978601 | R20: 0.9841996 | S20: 281 | T20: … | U20: … | V20: 349 | W20: 228 | X20: … | Y20: 114 | Z20: 303 | AA20: 94.6 | AB20: … | AC20: … | AD20: 20.53174281 | AE20: 44 | AF20: 39 | AG20: 109.52 | AH20: … | AI20: … | AJ20: … | AK20: … | AL20: 59.16 | AM20: … | AN20: 0.127 | AO20: 0.1116 | AP20: 0.6393 | AQ20: 0.3082766123 | AR20: … | AS20: 1.543234 | AT20: 0.124340568 | AU20: 0.12566334 | AV20: 0.0626 | AW20: 1563.19 | AX20: … | AY20: 33.06 | AZ20: … | BA20: 151.9772808 | BB20: … | BC20: 0.6784 | BD20: … | BE20: 0.5754 | BF20: 13 | BG20: ... | BH20: 52 | BI20: 42.25 | BJ20: 30 | BK20: 511.4718323 | BL20: 11.02 | BM20: 616.63 | BN20: 179.9 | BO20: 2187 | BP20: 1711 | BQ20: 228.2 | BR20: 35.25 | BS20: 83.5 | BT20: 0.9137
A21: 1961M03 | B21: 1.57 | C21: 1.57 | D21: 1.57 | E21: … | F21: … | G21: … | H21: 0.15 | I21: 0.4047739963 | J21: … | K21: … | L21: 0.4581 | M21: 0.9105 | N21: 0.6684254 | O21: 0.9518 | P21: 0.8925009 | Q21: 0.978601 | R21: 0.9841996 | S21: 276 | T21: … | U21: … | V21: 373 | W21: 231 | X21: … | Y21: 121 | Z21: 311 | AA21: 98.5 | AB21: … | AC21: … | AD21: 20.38784919 | AE21: 44 | AF21: 39 | AG21: 117.65 | AH21: … | AI21: … | AJ21: … | AK21: … | AL21: 58.05 | AM21: … | AN21: 0.14308 | AO21: 0.1238 | AP21: 0.7826 | AQ21: 0.3096311952 | AR21: … | AS21: 1.5211878 | AT21: 0.124340568 | AU21: 0.12345872 | AV21: 0.0626 | AW21: 1563.19 | AX21: … | AY21: 33.06 | AZ21: … | BA21: 151.9772808 | BB21: … | BC21: 0.6748 | BD21: … | BE21: 0.6151 | BF21: 13 | BG21: ... | BH21: 52 | BI21: 42.25 | BJ21: 30 | BK21: 511.4718323 | BL21: 11.02 | BM21: 621.26 | BN21: 181.7 | BO21: 2248.7 | BP21: 1711 | BQ21: 233.2 | BR21: 35.25 | BS21: 83.5 | BT21: 0.9137
A22: 1961M04 | B22: 1.57 | C22: 1.57 | D22: 1.57 | E22: … | F22: … | G22: … | H22: 0.15 | I22: 0.4047739963 | J22: … | K22: … | L22: 0.4354 | M22: 0.9017 | N22: 0.6644572 | O22: 0.9518 | P22: 0.8925009 | Q22: 0.978601 | R22: 0.9841996 | S22: 269 | T22: … | U22: … | V22: 369 | W22: 233 | X22: … | Y22: 129 | Z22: 322 | AA22: 110.7 | AB22: … | AC22: … | AD22: 20.14268321 | AE22: 43 | AF22: 38 | AG22: 115.17 | AH22: … | AI22: … | AJ22: … | AK22: … | AL22: 57.32 | AM22: … | AN22: 0.14308 | AO22: 0.1293 | AP22: 0.7099 | AQ22: 0.3120086493 | AR22: … | AS22: 1.5211878 | AT22: 0.124340568 | AU22: 0.12345872 | AV22: 0.0668 | AW22: 1563.19 | AX22: … | AY22: 33.06 | AZ22: … | BA22: 151.9772808 | BB22: … | BC22: 0.6726 | BD22: … | BE22: 0.6393 | BF22: 13 | BG22: ... | BH22: 52 | BI22: 42.25 | BJ22: 30 | BK22: 511.4718323 | BL22: 11.02 | BM22: 631.84 | BN22: 185 | BO22: 2308.2 | BP22: 1711 | BQ22: 231.3 | BR22: 35.25 | BS22: 83.5 | BT22: 0.9137
A23: 1961M05 | B23: 1.57 | C23: 1.57 | D23: 1.57 | E23: … | F23: … | G23: … | H23: 0.15 | I23: 0.4047739963 | J23: … | K23: … | L23: 0.4848 | M23: 0.8929 | N23: 0.6622526 | O23: 0.9518 | P23: 0.8925009 | Q23: 0.978601 | R23: 0.9841996 | S23: 258 | T23: … | U23: … | V23: 352 | W23: 234 | X23: … | Y23: 122 | Z23: 314 | AA23: 109.1 | AB23: … | AC23: … | AD23: 20.25290294 | AE23: 45 | AF23: 42 | AG23: 119.42 | AH23: … | AI23: … | AJ23: … | AK23: … | AL23: 55.85 | AM23: … | AN23: 0.129 | AO23: 0.1293 | AP23: 0.6371 | AQ23: 0.3126442582 | AR23: … | AS23: 1.4991416 | AT23: 0.124340568 | AU23: 0.13007258 | AV23: 0.0703 | AW23: 1563.19 | AX23: … | AY23: 33.06 | AZ23: … | BA23: 151.9772808 | BB23: … | BC23: 0.6781 | BD23: … | BE23: 0.6437 | BF23: 13 | BG23: ... | BH23: 52 | BI23: 42.25 | BJ23: 30 | BK23: 511.4718323 | BL23: 11.02 | BM23: 668.44 | BN23: 183.6 | BO23: 2376.6 | BP23: 1711 | BQ23: 227.1 | BR23: 35.25 | BS23: 83.5 | BT23: 0.9137
A24: 1961M06 | B24: 1.57 | C24: 1.57 | D24: 1.57 | E24: … | F24: … | G24: … | H24: 0.15 | I24: 0.4047739963 | J24: … | K24: … | L24: 0.4907 | M24: 0.8891 | N24: 0.6664412 | O24: 0.9518 | P24: 0.8925009 | Q24: 0.978601 | R24: 0.9841996 | S24: 243 | T24: … | U24: … | V24: 330 | W24: 233 | X24: … | Y24: 114 | Z24: 295 | AA24: 98.5 | AB24: … | AC24: … | AD24: 19.88461219 | AE24: 44 | AF24: 45 | AG24: 121.4 | AH24: … | AI24: … | AJ24: … | AK24: … | AL24: 54.38 | AM24: … | AN24: 0.121 | AO24: 0.1932 | AP24: 0.6768 | AQ24: 0.3121095449 | AR24: … | AS24: 1.5211878 | AT24: 0.124340568 | AU24: 0.13007258 | AV24: 0.0655 | AW24: 1563.19 | AX24: … | AY24: 33.06 | AZ24: … | BA24: 151.9772808 | BB24: … | BC24: 0.6764 | BD24: … | BE24: 0.6063 | BF24: 13 | BG24: ... | BH24: 52 | BI24: 42.25 | BJ24: 30 | BK24: 511.4718323 | BL24: 11.02 | BM24: 652.12 | BN24: 178.4 | BO24: 2467 | BP24: 1711 | BQ24: 217.8 | BR24: 35.25 | BS24: 83.5 | BT24: 0.9137
A25: 1961M07 | B25: 1.57 | C25: 1.57 | D25: 1.57 | E25: … | F25: … | G25: … | H25: 0.15 | I25: 0.4047739963 | J25: … | K25: … | L25: 0.4753 | M25: 0.8929 | N25: 0.6684254 | O25: 0.9518 | P25: 0.8925009 | Q25: 0.978601 | R25: 0.9841996 | S25: 245 | T25: … | U25: … | V25: 328 | W25: 229 | X25: … | Y25: 112 | Z25: 282 | AA25: 99.9 | AB25: … | AC25: … | AD25: 20.44330927 | AE25: 45 | AF25: 45 | AG25: 123.41 | AH25: … | AI25: … | AJ25: … | AK25: … | AL25: 56.59 | AM25: … | AN25: 0.132 | AO25: 0.133 | AP25: 0.668 | AQ25: 0.3131289183 | AR25: … | AS25: 1.5652802 | AT25: 0.124340568 | AU25: 0.12786796 | AV25: 0.0609 | AW25: 1563.19 | AX25: … | AY25: 33.06 | AZ25: … | BA25: 151.9772808 | BB25: … | BC25: 0.6757 | BD25: … | BE25: 0.6085 | BF25: 13 | BG25: ... | BH25: 52 | BI25: 42.25 | BJ25: 30 | BK25: 511.4718323 | BL25: 11.02 | BM25: 633.39 | BN25: 178.8 | BO25: 2519.9 | BP25: 1711 | BQ25: 214.7 | BR25: 35.25 | BS25: 83.5 | BT25: 0.9137
A26: 1961M08 | B26: 1.57 | C26: 1.57 | D26: 1.57 | E26: … | F26: … | G26: … | H26: 0.15 | I26: 0.4047739963 | J26: … | K26: … | L26: 0.4795 | M26: 0.8935 | N26: 0.6684254 | O26: 0.9518 | P26: 0.8925009 | Q26: 0.978601 | R26: 0.9841996 | S26: 248 | T26: … | U26: … | V26: 321 | W26: 226 | X26: … | Y26: 101 | Z26: 276 | AA26: 102.5 | AB26: … | AC26: … | AD26: 20.6774791 | AE26: 44 | AF26: 44 | AG26: 119.63 | AH26: … | AI26: … | AJ26: … | AK26: … | AL26: 58.79 | AM26: … | AN26: 0.132 | AO26: 0.133 | AP26: 0.6945 | AQ26: 0.3143071711 | AR26: … | AS26: 1.8077884 | AT26: 0.124340568 | AU26: 0.1212541 | AV26: 0.0536 | AW26: 1563.19 | AX26: … | AY26: 33.06 | AZ26: … | BA26: 151.9772808 | BB26: … | BC26: 0.6717 | BD26: … | BE26: 0.6151 | BF26: 13 | BG26: ... | BH26: 52 | BI26: 42.25 | BJ26: 30 | BK26: 511.4718323 | BL26: 11.02 | BM26: 636.47 | BN26: 178.4 | BO26: 2605.9 | BP26: 1711 | BQ26: 210.8 | BR26: 35.25 | BS26: 83.5 | BT26: 0.9137
A27: 1961M09 | B27: 1.57 | C27: 1.57 | D27: 1.57 | E27: … | F27: … | G27: … | H27: 0.15 | I27: 0.4047739963 | J27: … | K27: … | L27: 0.465 | M27: 0.8891 | N27: 0.6723936 | O27: 0.9518 | P27: 0.8925009 | Q27: 0.978601 | R27: 0.9841996 | S27: 243 | T27: … | U27: … | V27: 301 | W27: 226 | X27: … | Y27: 98 | Z27: 267 | AA27: 92 | AB27: … | AC27: … | AD27: 20.72334963 | AE27: 43 | AF27: 45 | AG27: 118.99 | AH27: … | AI27: … | AJ27: … | AK27: … | AL27: 59.89 | AM27: … | AN27: 0.1459 | AO27: 0.133 | AP27: 0.7055 | AQ27: 0.3136909445 | AR27: … | AS27: 1.8959732 | AT27: 0.124340568 | AU27: 0.1212541 | AV27: 0.0542 | AW27: 1563.19 | AX27: … | AY27: 33.06 | AZ27: … | BA27: 151.9772808 | BB27: … | BC27: 0.6737 | BD27: … | BE27: 0.6173 | BF27: 13 | BG27: ... | BH27: 52 | BI27: 42.25 | BJ27: 30 | BK27: 511.4718323 | BL27: 11.02 | BM27: 632.72 | BN27: 176.4 | BO27: 2630.1 | BP27: 1711 | BQ27: 203.7 | BR27: 35.25 | BS27: 83.5 | BT27: 0.9137
A28: 1961M10 | B28: 1.57 | C28: 1.57 | D28: 1.57 | E28: … | F28: … | G28: … | H28: 0.15 | I28: 0.4047739963 | J28: … | K28: … | L28: 0.4603 | M28: 0.8852 | N28: 0.6723936 | O28: 0.9518 | P28: 0.8925009 | Q28: 0.978601 | R28: 0.9841996 | S28: 236 | T28: … | U28: … | V28: 293 | W28: 226 | X28: … | Y28: 98 | Z28: 270 | AA28: 86.7 | AB28: … | AC28: … | AD28: 21.56732615 | AE28: 47.64 | AF28: 40 | AG28: 120.32 | AH28: … | AI28: … | AJ28: … | AK28: … | AL28: 60.26 | AM28: … | AN28: 0.132 | AO28: 0.133 | AP28: 0.6746 | AQ28: 0.3137289051 | AR28: … | AS28: 1.9400656 | AT28: 0.124340568 | AU28: 0.12345872 | AV28: 0.0527 | AW28: 1563.19 | AX28: … | AY28: 33.06 | AZ28: … | BA28: 151.9772808 | BB28: … | BC28: 0.6764 | BD28: … | BE28: 0.593 | BF28: 13 | BG28: ... | BH28: 52 | BI28: 42.25 | BJ28: 30 | BK28: 511.4718323 | BL28: 11.02 | BM28: 630.3 | BN28: 172.5 | BO28: 2605.9 | BP28: 1711 | BQ28: 198.2 | BR28: 35.25 | BS28: 83.5 | BT28: 0.9137
A29: 1961M11 | B29: 1.57 | C29: 1.57 | D29: 1.57 | E29: … | F29: … | G29: … | H29: 0.15 | I29: 0.4047739963 | J29: … | K29: … | L29: 0.4808 | M29: 0.883 | N29: 0.6704095 | O29: 0.9518 | P29: 0.8925009 | Q29: 0.978601 | R29: 0.9841996 | S29: 236 | T29: … | U29: … | V29: 297 | W29: 226 | X29: … | Y29: 100 | Z29: 265 | AA29: 92 | AB29: … | AC29: … | AD29: 21.96639031 | AE29: 48.42 | AF29: 41 | AG29: 128.32 | AH29: … | AI29: … | AJ29: … | AK29: … | AL29: 61.73 | AM29: … | AN29: 0.149 | AO29: 0.1565 | AP29: 0.6371 | AQ29: 0.3153626158 | AR29: … | AS29: 1.9621118 | AT29: 0.124340568 | AU29: 0.12566334 | AV29: 0.0509 | AW29: 1563.19 | AX29: … | AY29: 33.06 | AZ29: … | BA29: 151.9772808 | BB29: … | BC29: 0.6643 | BD29: … | BE29: 0.5423 | BF29: 13 | BG29: ... | BH29: 52 | BI29: 42.25 | BJ29: 30 | BK29: 511.4718323 | BL29: 11.02 | BM29: 632.28 | BN29: 166.4 | BO29: 2667.6 | BP29: 1711 | BQ29: 191.8 | BR29: 35.25 | BS29: 83.5 | BT29: 0.9231
A30: 1961M12 | B30: 1.57 | C30: 1.57 | D30: 1.57 | E30: … | F30: … | G30: … | H30: 0.15 | I30: 0.4047739963 | J30: … | K30: … | L30: 0.5397 | M30: 0.8774 | N30: 0.6664412 | O30: 0.9518 | P30: 0.8925009 | Q30: 0.978601 | R30: 0.9841996 | S30: 237 | T30: … | U30: … | V30: 319 | W30: 226 | X30: … | Y30: 101 | Z30: 265 | AA30: 93 | AB30: … | AC30: … | AD30: 22.1218769 | AE30: 48.42 | AF30: 41 | AG30: 120.1 | AH30: … | AI30: … | AJ30: … | AK30: … | AL30: 62.46 | AM30: … | AN30: 0.138 | AO30: 0.1061 | AP30: 0.7209 | AQ30: 0.3163479541 | AR30: … | AS30: 2.0282504 | AT30: 0.124340568 | AU30: 0.12786796 | AV30: 0.0487 | AW30: 1563.19 | AX30: … | AY30: 33.06 | AZ30: … | BA30: 151.9772808 | BB30: … | BC30: 0.6605 | BD30: … | BE30: 0.56 | BF30: 13 | BG30: ... | BH30: 52 | BI30: 42.25 | BJ30: 30 | BK30: 511.4718323 | BL30: 11.02 | BM30: 634.85 | BN30: 166.7 | BO30: 2619.1 | BP30: 1711 | BQ30: 196.9 | BR30: 35.25 | BS30: 83.5 | BT30: 1.0332
A31: 1962M01 | B31: 1.52 | C31: 1.52 | D31: 1.52 | E31: … | F31: … | G31: … | H31: 0.16 | I31: 0.4047739963 | J31: … | K31: … | L31: 0.4588 | M31: 0.8774 | N31: 0.6684254 | O31: 0.973 | P31: 0.8610009 | Q31: 1.104601 | R31: 0.9533996 | S31: 246.9 | T31: … | U31: … | V31: 327.94 | W31: 235.89 | X31: … | Y31: 101.41 | Z31: 265 | AA31: 80.2 | AB31: … | AC31: … | AD31: 21.79724665 | AE31: 48.03 | AF31: 44.53 | AG31: 117.79 | AH31: … | AI31: … | AJ31: … | AK31: … | AL31: 60.63 | AM31: … | AN31: 0.131 | AO31: 0.101 | AP31: 0.7628 | AQ31: 0.3151882948 | AR31: … | AS31: 2.0282504 | AT31: 0.126324726 | AU31: 0.12786796 | AV31: 0.0465 | AW31: 1404.9 | AX31: … | AY31: 36.39 | AZ31: … | BA31: 160.0609688 | BB31: … | BC31: 0.6598 | BD31: … | BE31: 0.5754 | BF31: 11.5 | BG31: ... | BH31: 51 | BI31: 42.25 | BJ31: 30 | BK31: 511.4718323 | BL31: 11.01 | BM31: 635.37 | BN31: 162.9 | BO31: 2610.3 | BP31: 1761 | BQ31: 193.6 | BR31: 35.23 | BS31: 83.5 | BT31: 1.0428
A32: 1962M02 | B32: 1.52 | C32: 1.52 | D32: 1.52 | E32: … | F32: … | G32: … | H32: 0.16 | I32: 0.4047739963 | J32: … | K32: … | L32: 0.4945 | M32: 0.877 | N32: 0.6684254 | O32: 0.973 | P32: 0.8610009 | Q32: 1.104601 | R32: 0.9533996 | S32: 248.6 | T32: … | U32: … | V32: 299.28 | W32: 237 | X32: … | Y32: 100.59 | Z32: 259 | AA32: 77.9 | AB32: … | AC32: … | AD32: 21.95367182 | AE32: 48.03 | AF32: 44.53 | AG32: 119.18 | AH32: … | AI32: … | AJ32: … | AK32: … | AL32: 61.36 | AM32: … | AN32: 0.136 | AO32: 0.1031 | AP32: 0.7584 | AQ32: 0.3153355302 | AR32: … | AS32: 2.0723428 | AT32: 0.126324726 | AU32: 0.12786796 | AV32: 0.0498 | AW32: 1404.9 | AX32: … | AY32: 36.39 | AZ32: … | BA32: 160.0609688 | BB32: … | BC32: 0.6631 | BD32: … | BE32: 0.5952 | BF32: 11.5 | BG32: ... | BH32: 51 | BI32: 42.25 | BJ32: 30 | BK32: 504.8579712 | BL32: 11.01 | BM32: 647.94 | BN32: 161.9 | BO32: 2623.5 | BP32: 1761 | BQ32: 189.6 | BR32: 35.23 | BS32: 83.5 | BT32: 1.0247
A33: 1962M03 | B33: 1.52 | C33: 1.52 | D33: 1.52 | E33: … | F33: … | G33: … | H33: 0.16 | I33: 0.4047739963 | J33: … | K33: … | L33: 0.4414 | M33: 0.8609 | N33: 0.6704095 | O33: 0.973 | P33: 0.8610009 | Q33: 1.104601 | R33: 0.9533996 | S33: 250.8 | T33: … | U33: … | V33: 290.73 | W33: 223.22 | X33: … | Y33: 102.79 | Z33: 256 | AA33: 82.5 | AB33: … | AC33: … | AD33: 22.17561033 | AE33: 48.82 | AF33: 45.64 | AG33: 123.75 | AH33: … | AI33: … | AJ33: … | AK33: … | AL33: 61.73 | AM33: … | AN33: 0.149 | AO33: 0.1072 | AP33: 0.7055 | AQ33: 0.3166511479 | AR33: … | AS33: 2.0723428 | AT33: 0.126324726 | AU33: 0.12786796 | AV33: 0.0558 | AW33: 1404.9 | AX33: … | AY33: 36.39 | AZ33: … | BA33: 160.0609688 | BB33: … | BC33: 0.6634 | BD33: … | BE33: 0.5754 | BF33: 11.5 | BG33: ... | BH33: 51 | BI33: 42.25 | BJ33: 30 | BK33: 496.0394897 | BL33: 11.01 | BM33: 647.5 | BN33: 167.1 | BO33: 2652.2 | BP33: 1761 | BQ33: 191.4 | BR33: 35.23 | BS33: 83.5 | BT33: 1.015
A34: 1962M04 | B34: 1.52 | C34: 1.52 | D34: 1.52 | E34: … | F34: … | G34: … | H34: 0.16 | I34: 0.4047739963 | J34: … | K34: … | L34: 0.4647 | M34: 0.8466 | N34: 0.6743777 | O34: 0.973 | P34: 0.8610009 | Q34: 1.104601 | R34: 0.9533996 | S34: 260.7 | T34: … | U34: … | V34: 281.64 | W34: 220.46 | X34: … | Y34: 104.44 | Z34: 254 | AA34: 83.7 | AB34: … | AC34: … | AD34: 22.27341883 | AE34: 48.82 | AF34: 46.52 | AG34: 130.84 | AH34: … | AI34: … | AJ34: … | AK34: … | AL34: 62.1 | AM34: … | AN34: 0.1459 | AO34: 0.1024 | AP34: 0.6548 | AQ34: 0.3173892335 | AR34: … | AS34: 2.094389 | AT34: 0.126324726 | AU34: 0.12786796 | AV34: 0.0571 | AW34: 1404.9 | AX34: … | AY34: 36.39 | AZ34: … | BA34: 160.0609688 | BB34: … | BC34: 0.6598 | BD34: … | BE34: 0.5666 | BF34: 11.5 | BG34: ... | BH34: 51 | BI34: 42.25 | BJ34: 30 | BK34: 496.0394897 | BL34: 11.01 | BM34: 645.95 | BN34: 166.7 | BO34: 2614.7 | BP34: 1761 | BQ34: 191.4 | BR34: 35.23 | BS34: 83.5 | BT34: 1.015
A35: 1962M05 | B35: 1.52 | C35: 1.52 | D35: 1.52 | E35: … | F35: … | G35: … | H35: 0.16 | I35: 0.4047739963 | J35: … | K35: … | L35: 0.4654 | M35: 0.8256 | N35: 0.6723936 | O35: 0.973 | P35: 0.8610009 | Q35: 1.104601 | R35: 0.9533996 | S35: 253.3 | T35: … | U35: … | V35: 270.34 | W35: 219.08 | X35: … | Y35: 103.62 | Z35: 234 | AA35: 85.9 | AB35: … | AC35: … | AD35: 22.67514773 | AE35: 49.6 | AF35: 47.18 | AG35: 149.14 | AH35: … | AI35: … | AJ35: … | AK35: … | AL35: 63.57 | AM35: … | AN35: 0.1369 | AO35: 0.1017 | AP35: 0.7297 | AQ35: 0.3182855276 | AR35: … | AS35: 2.1605276 | AT35: 0.126324726 | AU35: 0.12786796 | AV35: 0.0553 | AW35: 1404.9 | AX35: … | AY35: 36.39 | AZ35: … | BA35: 160.0609688 | BB35: … | BC35: 0.6598 | BD35: … | BE35: 0.5644 | BF35: 11.5 | BG35: ... | BH35: 51 | BI35: 42.25 | BJ35: 30 | BK35: 496.0394897 | BL35: 11.01 | BM35: 645.73 | BN35: 164.9 | BO35: 2533.1 | BP35: 1761 | BQ35: 188.5 | BR35: 35.23 | BS35: 83.5 | BT35: 1.015
A36: 1962M06 | B36: 1.52 | C36: 1.52 | D36: 1.52 | E36: … | F36: … | G36: … | H36: 0.16 | I36: 0.4047739963 | J36: … | K36: … | L36: 0.4729 | M36: 0.8047 | N36: 0.6723936 | O36: 0.973 | P36: 0.8610009 | Q36: 1.104601 | R36: 0.9533996 | S36: 239.5 | T36: … | U36: … | V36: 264.59 | W36: 216.33 | X36: … | Y36: 102.24 | Z36: 215 | AA36: 89.4 | AB36: … | AC36: … | AD36: 22.83210596 | AE36: 49.6 | AF36: 47.18 | AG36: 144.11 | AH36: … | AI36: … | AJ36: … | AK36: … | AL36: 64.3 | AM36: … | AN36: 0.1239 | AO36: 0.1038 | AP36: 0.7893 | AQ36: 0.3193753236 | AR36: … | AS36: 2.2707586 | AT36: 0.126324726 | AU36: 0.12786796 | AV36: 0.0562 | AW36: 1404.9 | AX36: … | AY36: 36.39 | AZ36: … | BA36: 160.0609688 | BB36: … | BC36: 0.6572 | BD36: … | BE36: 0.5401 | BF36: 11.5 | BG36: ... | BH36: 51 | BI36: 42.25 | BJ36: 30 | BK36: 496.0394897 | BL36: 11.01 | BM36: 645.51 | BN36: 159 | BO36: 2414.1 | BP36: 1761 | BQ36: 184.7 | BR36: 35.23 | BS36: 83.5 | BT36: 1.0227
A37: 1962M07 | B37: 1.52 | C37: 1.52 | D37: 1.52 | E37: … | F37: … | G37: … | H37: 0.16 | I37: 0.4047739963 | J37: … | K37: … | L37: 0.461 | M37: 0.8131 | N37: 0.6765823 | O37: 0.973 | P37: 0.8610009 | Q37: 1.104601 | R37: 0.9533996 | S37: 240.3 | T37: … | U37: … | V37: 266.76 | W37: 212.75 | X37: … | Y37: 100.86 | Z37: 198 | AA37: 91.7 | AB37: … | AC37: … | AD37: 22.92273673 | AE37: 48.82 | AF37: 44.34 | AG37: 144.22 | AH37: … | AI37: … | AJ37: … | AK37: … | AL37: 65.4 | AM37: … | AN37: 0.11508 | AO37: 0.108 | AP37: 0.7562 | AQ37: 0.32026979 | AR37: … | AS37: 2.2707586 | AT37: 0.126324726 | AU37: 0.12786796 | AV37: 0.0621 | AW37: 1404.9 | AX37: … | AY37: 36.39 | AZ37: … | BA37: 160.0609688 | BB37: … | BC37: 0.649 | BD37: … | BE37: 0.5467 | BF37: 11.5 | BG37: ... | BH37: 51 | BI37: 42.25 | BJ37: 30 | BK37: 496.0394897 | BL37: 11.01 | BM37: 645.51 | BN37: 148.4 | BO37: 2376.6 | BP37: 1761 | BQ37: 182.1 | BR37: 35.23 | BS37: 83.5 | BT37: 1.0355
A38: 1962M08 | B38: 1.52 | C38: 1.52 | D38: 1.52 | E38: … | F38: … | G38: … | H38: 0.16 | I38: 0.4047739963 | J38: … | K38: … | L38: 0.4588 | M38: 0.819 | N38: 0.6845187 | O38: 0.973 | P38: 0.8610009 | Q38: 1.104601 | R38: 0.9533996 | S38: 244.7 | T38: … | U38: … | V38: 265.1 | W38: 209.16 | X38: … | Y38: 95.35 | Z38: 198 | AA38: 94 | AB38: … | AC38: … | AD38: 22.87706754 | AE38: 47.24 | AF38: 42.55 | AG38: 142.92 | AH38: … | AI38: … | AJ38: … | AK38: … | AL38: 66.51 | AM38: … | AN38: 0.1151 | AO38: 0.108 | AP38: 0.7452 | AQ38: 0.3211581218 | AR38: … | AS38: 2.3809896 | AT38: 0.126324726 | AU38: 0.13007258 | AV38: 0.0646 | AW38: 1404.9 | AX38: … | AY38: 36.39 | AZ38: … | BA38: 160.0609688 | BB38: … | BC38: 0.6387 | BD38: … | BE38: 0.5313 | BF38: 11.5 | BG38: ... | BH38: 51 | BI38: 42.25 | BJ38: 30 | BK38: 496.0394897 | BL38: 11.01 | BM38: 645.51 | BN38: 140.7 | BO38: 2350.1 | BP38: 1761 | BQ38: 178.1 | BR38: 35.23 | BS38: 83.5 | BT38: 1.083
A39: 1962M09 | B39: 1.52 | C39: 1.52 | D39: 1.52 | E39: … | F39: … | G39: … | H39: 0.16 | I39: 0.4047739963 | J39: … | K39: … | L39: 0.45 | M39: 0.8256 | N39: 0.6946597 | O39: 0.973 | P39: 0.8610009 | Q39: 1.104601 | R39: 0.9533996 | S39: 246.6 | T39: … | U39: … | V39: 268.69 | W39: 205.3 | X39: … | Y39: 95.35 | Z39: 198 | AA39: 102 | AB39: … | AC39: … | AD39: 22.8642603 | AE39: 47.64 | AF39: 42.55 | AG39: 140.64 | AH39: … | AI39: … | AJ39: … | AK39: … | AL39: 65.77 | AM39: … | AN39: 0.119 | AO39: 0.108 | AP39: 0.8003 | AQ39: 0.322833288 | AR39: … | AS39: 2.535313 | AT39: 0.126324726 | AU39: 0.12786796 | AV39: 0.0626 | AW39: 1404.9 | AX39: … | AY39: 36.39 | AZ39: … | BA39: 160.0609688 | BB39: … | BC39: 0.627 | BD39: … | BE39: 0.5401 | BF39: 11.5 | BG39: ... | BH39: 51 | BI39: 42.25 | BJ39: 30 | BK39: 496.0394897 | BL39: 11.01 | BM39: 645.51 | BN39: 143.1 | BO39: 2350.1 | BP39: 1761 | BQ39: 176.6 | BR39: 35.23 | BS39: 83.5 | BT39: 1.1546
A40: 1962M10 | B40: 1.52 | C40: 1.52 | D40: 1.52 | E40: … | F40: … | G40: … | H40: 0.16 | I40: 0.4047739963 | J40: … | K40: … | L40: 0.4365 | M40: 0.8109 | N40: 0.6946597 | O40: 0.973 | P40: 0.8610009 | Q40: 1.104601 | R40: 0.9533996 | S40: 253.5 | T40: … | U40: … | V40: 251.6 | W40: 196.76 | X40: … | Y40: 97 | Z40: 212 | AA40: 92.8 | AB40: … | AC40: … | AD40: 22.66588607 | AE40: 47.64 | AF40: 42.77 | AG40: 142.95 | AH40: … | AI40: … | AJ40: … | AK40: … | AL40: 64.3 | AM40: … | AN40: 0.1239 | AO40: 0.108 | AP40: 0.6768 | AQ40: 0.3220819889 | AR40: … | AS40: 2.4912206 | AT40: 0.126324726 | AU40: 0.13007258 | AV40: 0.0666 | AW40: 1404.9 | AX40: … | AY40: 36.39 | AZ40: … | BA40: 160.0609688 | BB40: … | BC40: 0.6266 | BD40: … | BE40: 0.5688 | BF40: 11.5 | BG40: ... | BH40: 51 | BI40: 42.25 | BJ40: 30 | BK40: 496.0394897 | BL40: 11.01 | BM40: 645.95 | BN40: 146.2 | BO40: 2358.9 | BP40: 1761 | BQ40: 181.9 | BR40: 35.23 | BS40: 83.5 | BT40: 1.206
A41: 1962M11 | B41: 1.52 | C41: 1.52 | D41: 1.52 | E41: … | F41: … | G41: … | H41: 0.16 | I41: 0.4047739963 | J41: … | K41: … | L41: 0.4383 | M41: 0.8124 | N41: 0.6926757 | O41: 0.973 | P41: 0.8610009 | Q41: 1.104601 | R41: 0.9533996 | S41: 257.4 | T41: … | U41: … | V41: 251.05 | W41: 208.06 | X41: … | Y41: 100.59 | Z41: 220 | AA41: 94 | AB41: … | AC41: … | AD41: 23.5370409 | AE41: 48.42 | AF41: 43.43 | AG41: 142.5 | AH41: … | AI41: … | AJ41: … | AK41: … | AL41: 68.71 | AM41: … | AN41: 0.1499 | AO41: 0.1446 | AP41: 0.5886 | AQ41: 0.3228107563 | AR41: … | AS41: 2.3809896 | AT41: 0.126324726 | AU41: 0.12786796 | AV41: 0.0754 | AW41: 1404.9 | AX41: … | AY41: 36.39 | AZ41: … | BA41: 160.0609688 | BB41: … | BC41: 0.6345 | BD41: … | BE41: 0.5776 | BF41: 11.5 | BG41: ... | BH41: 51 | BI41: 42.25 | BJ41: 30 | BK41: 496.0394897 | BL41: 11.01 | BM41: 645.51 | BN41: 149.7 | BO41: 2407.4 | BP41: 1761 | BQ41: 188.5 | BR41: 35.23 | BS41: 83.5 | BT41: 1.1917
A42: 1962M12 | B42: 1.52 | C42: 1.52 | D42: 1.52 | E42: … | F42: … | G42: … | H42: 0.16 | I42: 0.4047739963 | J42: … | K42: … | L42: 0.4533 | M42: 0.8179 | N42: 0.7169259 | O42: 0.973 | P42: 0.8610009 | Q42: 1.104601 | R42: 0.9533996 | S42: 272.3 | T42: … | U42: … | V42: 254.36 | W42: 210.82 | X42: … | Y42: 102.24 | Z42: 215 | AA42: 94 | AB42: … | AC42: … | AD42: 23.85507759 | AE42: 51.18 | AF42: 45.19 | AG42: 121.07 | AH42: … | AI42: … | AJ42: … | AK42: … | AL42: 67.61 | AM42: … | AN42: 0.131 | AO42: 0.1003 | AP42: 0.6019 | AQ42: 0.3233635221 | AR42: … | AS42: 2.2707586 | AT42: 0.126324726 | AU42: 0.13007258 | AV42: 0.0882 | AW42: 1404.9 | AX42: … | AY42: 36.39 | AZ42: … | BA42: 160.0609688 | BB42: … | BC42: 0.653 | BD42: … | BE42: 0.582 | BF42: 11.5 | BG42: ... | BH42: 51 | BI42: 42.25 | BJ42: 30 | BK42: 496.0394897 | BL42: 11.01 | BM42: 645.73 | BN42: 152.8 | BO42: 2365.6 | BP42: 1761 | BQ42: 184.7 | BR42: 35.23 | BS42: 83.5 | BT42: 1.1987
A43: 1963M01 | B43: 1.5 | C43: 1.5 | D43: 1.5 | E43: … | F43: … | G43: … | H43: 0.16 | I43: 0.3913511379 | J43: … | K43: … | L43: 0.4991 | M43: 0.8267 | N43: 0.6521116 | O43: 0.9529 | P43: 0.8148008 | Q43: 1.083601 | R43: 0.9603996 | S43: 278.9 | T43: … | U43: … | V43: 261.25 | W43: 217.71 | X43: … | Y43: 107.47 | Z43: 223 | AA43: 92.3 | AB43: … | AC43: … | AD43: 24.08490904 | AE43: 52.75 | AF43: 46.52 | AG43: 121.77 | AH43: … | AI43: … | AJ43: … | AK43: … | AL43: 67.24 | AM43: … | AN43: 0.131 | AO43: 0.0801 | AP43: 0.571 | AQ43: 0.3236646198 | AR43: … | AS43: 2.2928048 | AT43: 0.12676565 | AU43: 0.13448182 | AV43: 0.1157 | AW43: 1343.61 | AX43: … | AY43: 36.67 | AZ43: … | BA43: 160.7248476 | BB43: … | BC43: 0.6581 | BD43: … | BE43: 0.5732 | BF43: 11.5 | BG43: ... | BH43: 52 | BI43: 42.25 | BJ43: 30 | BK43: 496.0394897 | BL43: 11.02 | BM43: 645.51 | BN43: 149.4 | BO43: 2350.1 | BP43: 1741 | BQ43: 186.3 | BR43: 35.09 | BS43: 83.5 | BT43: 1.2438
A44: 1963M02 | B44: 1.5 | C44: 1.5 | D44: 1.5 | E44: … | F44: … | G44: … | H44: 0.16 | I44: 0.3913511379 | J44: … | K44: … | L44: 0.5439 | M44: 0.8031 | N44: 0.6137521 | O44: 0.9529 | P44: 0.8148008 | Q44: 1.083601 | R44: 0.9603996 | S44: 272.5 | T44: … | U44: … | V44: 264.83 | W44: 217.71 | X44: … | Y44: 109.96 | Z44: 231 | AA44: 92.3 | AB44: … | AC44: … | AD44: 24.3687747 | AE44: 53.15 | AF44: 47.18 | AG44: 123.35 | AH44: … | AI44: … | AJ44: … | AK44: … | AL44: 68.34 | AM44: … | AN44: 0.131 | AO44: 0.0806 | AP44: 0.5556 | AQ44: 0.3244877545 | AR44: … | AS44: 2.2928048 | AT44: 0.12676565 | AU44: 0.13668644 | AV44: 0.1305 | AW44: 1343.61 | AX44: … | AY44: 36.67 | AZ44: … | BA44: 160.7248476 | BB44: … | BC44: 0.6546 | BD44: … | BE44: 0.5644 | BF44: 11.5 | BG44: ... | BH44: 52 | BI44: 42.25 | BJ44: 30 | BK44: 496.0394897 | BL44: 11.02 | BM44: 645.51 | BN44: 150.6 | BO44: 2350.1 | BP44: 1742 | BQ44: 191.6 | BR44: 35.09 | BS44: 83.5 | BT44: 1.2564
A45: 1963M03 | B45: 1.5 | C45: 1.5 | D45: 1.5 | E45: … | F45: … | G45: … | H45: 0.16 | I45: 0.3913511379 | J45: … | K45: … | L45: 0.5318 | M45: 0.8109 | N45: 0.6157362 | O45: 0.9529 | P45: 0.8148008 | Q45: 1.083601 | R45: 0.9603996 | S45: 272.5 | T45: … | U45: … | V45: 264.28 | W45: 217.71 | X45: … | Y45: 109.13 | Z45: 229 | AA45: 90.1 | AB45: … | AC45: … | AD45: 24.4633609 | AE45: 52.36 | AF45: 47.18 | AG45: 123.28 | AH45: … | AI45: … | AJ45: … | AK45: … | AL45: 69.45 | AM45: … | AN45: 0.131 | AO45: 0.0847 | AP45: 0.5622 | AQ45: 0.3249776759 | AR45: … | AS45: 2.2928048 | AT45: 0.12676565 | AU45: 0.14109568 | AV45: 0.1431 | AW45: 1343.61 | AX45: … | AY45: 36.94 | AZ45: … | BA45: 161.3628116 | BB45: … | BC45: 0.6495 | BD45: … | BE45: 0.5445 | BF45: 11.5 | BG45: ... | BH45: 52 | BI45: 42.25 | BJ45: 30 | BK45: 496.0394897 | BL45: 11.02 | BM45: 645.51 | BN45: 153.7 | BO45: 2358.9 | BP45: 1742 | BQ45: 197.5 | BR45: 35.09 | BS45: 83.5 | BT45: 1.2714
A46: 1963M04 | B46: 1.5 | C46: 1.5 | D46: 1.5 | E46: … | F46: … | G46: … | H46: 0.16 | I46: 0.3913511379 | J46: … | K46: … | L46: 0.5631 | M46: 0.808 | N46: 0.6157362 | O46: 0.9529 | P46: 0.8148008 | Q46: 1.083601 | R46: 0.9603996 | S46: 278.3 | T46: … | U46: … | V46: 261.52 | W46: 217.71 | X46: … | Y46: 107.2 | Z46: 229 | AA46: 86.8 | AB46: … | AC46: … | AD46: 24.67675011 | AE46: 51.97 | AF46: 46.3 | AG46: 122.38 | AH46: … | AI46: … | AJ46: … | AK46: … | AL46: 70.92 | AM46: … | AN46: 0.131 | AO46: 0.0969 | AP46: 0.6504 | AQ46: 0.3252848807 | AR46: … | AS46: 2.2928048 | AT46: 0.12676565 | AU46: 0.16314188 | AV46: 0.1647 | AW46: 1343.61 | AX46: … | AY46: 36.94 | AZ46: … | BA46: 161.3628116 | BB46: … | BC46: 0.6422 | BD46: … | BE46: 0.549 | BF46: 11.5 | BG46: ... | BH46: 52 | BI46: 42.25 | BJ46: 30 | BK46: 496.0394897 | BL46: 11.02 | BM46: 645.73 | BN46: 159.4 | BO46: 2427.3 | BP46: 1741 | BQ46: 204.4 | BR46: 35.09 | BS46: 78.5 | BT46: 1.2729
A47: 1963M05 | B47: 1.5 | C47: 1.5 | D47: 1.5 | E47: … | F47: … | G47: … | H47: 0.16 | I47: 0.3913511379 | J47: … | K47: … | L47: 0.6076 | M47: 0.797 | N47: 0.6117679 | O47: 0.9529 | P47: 0.8148008 | Q47: 1.083601 | R47: 0.9603996 | S47: 279.7 | T47: … | U47: … | V47: 268.69 | W47: 217.71 | X47: … | Y47: 109.13 | Z47: 231 | AA47: 86.8 | AB47: … | AC47: … | AD47: 24.2440757 | AE47: 52.36 | AF47: 46.52 | AG47: 123.17 | AH47: … | AI47: … | AJ47: … | AK47: … | AL47: 67.61 | AM47: … | AN47: 0.131 | AO47: 0.1143 | AP47: 0.69 | AQ47: 0.326112136 | AR47: … | AS47: 2.2266662 | AT47: 0.12676565 | AU47: 0.22487124 | AV47: 0.2191 | AW47: 1343.61 | AX47: … | AY47: 37.78 | AZ47: … | BA47: 163.3339955 | BB47: … | BC47: 0.6391 | BD47: … | BE47: 0.5401 | BF47: 11.5 | BG47: ... | BH47: 52 | BI47: 42.25 | BJ47: 30 | BK47: 496.0394897 | BL47: 11.02 | BM47: 645.51 | BN47: 167.1 | BO47: 2495.6 | BP47: 1742 | BQ47: 209.4 | BR47: 35.09 | BS47: 78.5 | BT47: 1.2787
A48: 1963M06 | B48: 1.5 | C48: 1.5 | D48: 1.5 | E48: … | F48: … | G48: … | H48: 0.16 | I48: 0.3913511379 | J48: … | K48: … | L48: 0.5622 | M48: 0.7992 | N48: 0.6117679 | O48: 0.9529 | P48: 0.8148008 | Q48: 1.083601 | R48: 0.9603996 | S48: 282.5 | T48: … | U48: … | V48: 274.47 | W48: 219.91 | X48: … | Y48: 108.3 | Z48: 231 | AA48: 90.1 | AB48: … | AC48: … | AD48: 23.1730495 | AE48: 55.51 | AF48: 48.28 | AG48: 128.13 | AH48: … | AI48: … | AJ48: … | AK48: … | AL48: 58.42 | AM48: … | AN48: 0.131 | AO48: 0.1204 | AP48: 0.69 | AQ48: 0.3274634089 | AR48: … | AS48: 2.20462 | AT48: 0.12676565 | AU48: 0.17857422 | AV48: 0.2154 | AW48: 1343.61 | AX48: … | AY48: 37.5 | AZ48: … | BA48: 162.6791954 | BB48: … | BC48: 0.6389 | BD48: … | BE48: 0.5313 | BF48: 11.5 | BG48: ... | BH48: 52 | BI48: 42.25 | BJ48: 30 | BK48: 496.0394897 | BL48: 11.02 | BM48: 645.73 | BN48: 179 | BO48: 2500 | BP48: 1742 | BQ48: 209.2 | BR48: 35.09 | BS48: 78.5 | BT48: 1.2768
A49: 1963M07 | B49: 1.5 | C49: 1.5 | D49: 1.5 | E49: … | F49: … | G49: … | H49: 0.16 | I49: 0.3913511379 | J49: … | K49: … | L49: 0.5249 | M49: 0.8064 | N49: 0.6157362 | O49: 0.9529 | P49: 0.8148008 | Q49: 1.083601 | R49: 0.9603996 | S49: 286.3 | T49: … | U49: … | V49: 274.47 | W49: 221.84 | X49: … | Y49: 108.58 | Z49: 229 | AA49: 91 | AB49: … | AC49: … | AD49: 23.24643674 | AE49: 56.69 | AF49: 48.38 | AG49: 130.63 | AH49: … | AI49: … | AJ49: … | AK49: … | AL49: 57.69 | AM49: … | AN49: 0.131 | AO49: 0.094 | AP49: 0.7562 | AQ49: 0.328435723 | AR49: … | AS49: 2.0282504 | AT49: 0.12676565 | AU49: 0.16314188 | AV49: 0.1975 | AW49: 1343.61 | AX49: … | AY49: 36.11 | AZ49: … | BA49: 159.3947361 | BB49: … | BC49: 0.6385 | BD49: … | BE49: 0.5203 | BF49: 11.5 | BG49: ... | BH49: 52 | BI49: 42.25 | BJ49: 30 | BK49: 496.0394897 | BL49: 11.02 | BM49: 645.51 | BN49: 179.5 | BO49: 2482.4 | BP49: 1741 | BQ49: 204.8 | BR49: 35.09 | BS49: 78.5 | BT49: 1.2899
A50: 1963M08 | B50: 1.5 | C50: 1.5 | D50: 1.5 | E50: … | F50: … | G50: … | H50: 0.16 | I50: 0.3913511379 | J50: … | K50: … | L50: 0.521 | M50: 0.8047 | N50: 0.6117679 | O50: 0.9529 | P50: 0.8148008 | Q50: 1.083601 | R50: 0.9603996 | S50: 291.8 | T50: … | U50: … | V50: 264.55 | W50: 224.6 | X50: … | Y50: 105.82 | Z50: 207 | AA50: 91 | AB50: … | AC50: … | AD50: 23.25004988 | AE50: 55.51 | AF50: 47.84 | AG50: 129.86 | AH50: … | AI50: … | AJ50: … | AK50: … | AL50: 58.42 | AM50: … | AN50: 0.168 | AO50: 0.094 | AP50: 0.8333 | AQ50: 0.3292709915 | AR50: … | AS50: 1.7196036 | AT50: 0.12676565 | AU50: 0.1322772 | AV50: 0.1413 | AW50: 1343.61 | AX50: … | AY50: 34.72 | AZ50: … | BA50: 156.0515828 | BB50: … | BC50: 0.6433 | BD50: … | BE50: 0.4916 | BF50: 11.5 | BG50: ... | BH50: 52 | BI50: 42.25 | BJ50: 30 | BK50: 496.0394897 | BL50: 11.02 | BM50: 645.51 | BN50: 184.7 | BO50: 2495.6 | BP50: 1742 | BQ50: 210.3 | BR50: 35.09 | BS50: 78.95 | BT50: 1.2878
A51: 1963M09 | B51: 1.5 | C51: 1.5 | D51: 1.5 | E51: … | F51: … | G51: … | H51: 0.16 | I51: 0.3913511379 | J51: … | K51: … | L51: 0.5509 | M51: 0.802 | N51: 0.6238931 | O51: 0.9529 | P51: 0.8148008 | Q51: 1.083601 | R51: 0.9603996 | S51: 297.6 | T51: … | U51: … | V51: 265.66 | W51: 224.6 | X51: … | Y51: 108.58 | Z51: 204 | AA51: 91 | AB51: … | AC51: … | AD51: 23.74628066 | AE51: 55.9 | AF51: 48.94 | AG51: 130.29 | AH51: … | AI51: … | AJ51: … | AK51: … | AL51: 60.63 | AM51: … | AN51: 0.1561 | AO51: 0.094 | AP51: 0.6967 | AQ51: 0.3301083841 | AR51: … | AS51: 1.6755112 | AT51: 0.12676565 | AU51: 0.14991416 | AV51: 0.1607 | AW51: 1343.61 | AX51: … | AY51: 33.89 | AZ51: … | BA51: 154.0259082 | BB51: … | BC51: 0.6499 | BD51: … | BE51: 0.4806 | BF51: 11.5 | BG51: ... | BH51: 52 | BI51: 42.25 | BJ51: 30 | BK51: 496.0394897 | BL51: 11.02 | BM51: 645.51 | BN51: 187 | BO51: 2572.8 | BP51: 1742 | BQ51: 211.2 | BR51: 35.09 | BS51: 80.75 | BT51: 1.2926
A52: 1963M10 | B52: 1.5 | C52: 1.5 | D52: 1.5 | E52: … | F52: … | G52: … | H52: 0.16 | I52: 0.3913511379 | J52: … | K52: … | L52: 0.5807 | M52: 0.8042 | N52: 0.6258772 | O52: 0.9529 | P52: 0.8148008 | Q52: 1.083601 | R52: 0.9603996 | S52: 303.7 | T52: … | U52: … | V52: 275.58 | W52: 227.35 | X52: … | Y52: 116.84 | Z52: 234 | AA52: 91 | AB52: … | AC52: … | AD52: 24.13976486 | AE52: 53.15 | AF52: 48.98 | AG52: 128.72 | AH52: … | AI52: … | AJ52: … | AK52: … | AL52: 65.04 | AM52: … | AN52: 0.1759 | AO52: 0.094 | AP52: 0.668 | AQ52: 0.3309479064 | AR52: … | AS52: 1.5873264 | AT52: 0.12676565 | AU52: 0.19400656 | AV52: 0.2304 | AW52: 1343.61 | AX52: … | AY52: 32.78 | AZ52: … | BA52: 151.2808527 | BB52: … | BC52: 0.6453 | BD52: … | BE52: 0.496 | BF52: 11.5 | BG52: ... | BH52: 52 | BI52: 42.25 | BJ52: 30 | BK52: 507.0625916 | BL52: 11.02 | BM52: 645.51 | BN52: 192 | BO52: 2590.4 | BP52: 1741 | BQ52: 220.9 | BR52: 35.09 | BS52: 80.5 | BT52: 1.293
A53: 1963M11 | B53: 1.5 | C53: 1.5 | D53: 1.5 | E53: … | F53: … | G53: … | H53: 0.16 | I53: 0.3913511379 | J53: … | K53: … | L53: 0.5706 | M53: 0.8069 | N53: 0.6318295 | O53: 0.9529 | P53: 0.8148008 | Q53: 1.083601 | R53: 0.9603996 | S53: 303.4 | T53: … | U53: … | V53: 274.47 | W53: 230.11 | X53: … | Y53: 116.02 | Z53: 223 | AA53: 91 | AB53: … | AC53: … | AD53: 24.05495381 | AE53: 52.36 | AF53: 48.98 | AG53: 124.84 | AH53: … | AI53: … | AJ53: … | AK53: … | AL53: 65.04 | AM53: … | AN53: 0.153 | AO53: 0.094 | AP53: 0.6327 | AQ53: 0.3317895638 | AR53: … | AS53: 1.653465 | AT53: 0.12676565 | AU53: 0.19180194 | AV53: 0.2542 | AW53: 1343.61 | AX53: … | AY53: 32.5 | AZ53: … | BA53: 150.5816828 | BB53: … | BC53: 0.6435 | BD53: … | BE53: 0.496 | BF53: 11.5 | BG53: ... | BH53: 52 | BI53: 42.25 | BJ53: 30 | BK53: 507.0625916 | BL53: 11.02 | BM53: 645.73 | BN53: 190.5 | BO53: 2687.4 | BP53: 1742 | BQ53: 231.5 | BR53: 35.09 | BS53: 82.97 | BT53: 1.293
A54: 1963M12 | B54: 1.5 | C54: 1.5 | D54: 1.5 | E54: … | F54: … | G54: … | H54: 0.16 | I54: 0.3913511379 | J54: … | K54: … | L54: 0.5723 | M54: 0.7998 | N54: 0.6521116 | O54: 0.9529 | P54: 0.8148008 | Q54: 1.083601 | R54: 0.9603996 | S54: 288.8 | T54: … | U54: … | V54: 272.27 | W54: 231.76 | X54: … | Y54: 114.09 | Z54: 212 | AA54: 98.8 | AB54: … | AC54: … | AD54: 24.28128331 | AE54: 53.54 | AF54: 48.98 | AG54: 121.54 | AH54: … | AI54: … | AJ54: … | AK54: … | AL54: 65.04 | AM54: … | AN54: 0.159 | AO54: 0.0811 | AP54: 0.69 | AQ54: 0.3338047968 | AR54: … | AS54: 1.6975574 | AT54: 0.12676565 | AU54: 0.18077884 | AV54: 0.2262 | AW54: 1343.61 | AX54: … | AY54: 33.33 | AZ54: … | BA54: 152.6462714 | BB54: … | BC54: 0.6442 | BD54: … | BE54: 0.4696 | BF54: 11.5 | BG54: ... | BH54: 52 | BI54: 42.25 | BJ54: 30 | BK54: 507.0625916 | BL54: 11.02 | BM54: 650.14 | BN54: 204.8 | BO54: 2782.2 | BP54: 1742 | BQ54: 261 | BR54: 35.09 | BS54: 83.5 | BT54: 1.293
A55: 1964M01 | B55: 1.45 | C55: 1.45 | D55: 1.45 | E55: … | F55: … | G55: … | H55: 0.15 | I55: 0.3841498024 | J55: … | K55: … | L55: 0.5549 | M55: 0.9259 | N55: 0.7008326 | O55: 0.927 | P55: 0.8190008 | Q55: 1.039501 | R55: 0.9225996 | S55: 286.9 | T55: … | U55: … | V55: 269.79 | W55: 232.86 | X55: … | Y55: 116.84 | Z55: 215 | AA55: 98.8 | AB55: … | AC55: … | AD55: 24.39335944 | AE55: 55.12 | AF55: 49.6 | AG55: 124.01 | AH55: … | AI55: … | AJ55: … | AK55: … | AL55: 64.04 | AM55: … | AN55: 0.1519 | AO55: 0.0766 | AP55: 0.7297 | AQ55: 0.3346537197 | AR55: … | AS55: 1.763696 | AT55: 0.12676565 | AU55: 0.19180194 | AV55: 0.231 | AW55: 1488.3 | AX55: … | AY55: 32.78 | AZ55: … | BA55: 151.2808527 | BB55: … | BC55: 0.6559 | BD55: … | BE55: 0.4519 | BF55: 12.5 | BG55: ... | BH55: 53 | BI55: 60.5 | BJ55: 32.5 | BK55: 507.0625916 | BL55: 10.24 | BM55: 655.65 | BN55: 217.6 | BO55: 2872.6 | BP55: 1741 | BQ55: 264.1 | BR55: 35.1 | BS55: 88.27 | BT55: 1.293
A56: 1964M02 | B56: 1.45 | C56: 1.45 | D56: 1.45 | E56: … | F56: … | G56: … | H56: 0.15 | I56: 0.3841498024 | J56: … | K56: … | L56: 0.5077 | M56: 0.9414 | N56: 0.7211145 | O56: 0.927 | P56: 0.8190008 | Q56: 1.039501 | R56: 0.9225996 | S56: 271.4 | T56: … | U56: … | V56: 258.49 | W56: 232.59 | X56: … | Y56: 112.71 | Z56: 209 | AA56: 95.5 | AB56: … | AC56: … | AD56: 24.42431181 | AE56: 52.75 | AF56: 49.9 | AG56: 119.06 | AH56: … | AI56: … | AJ56: … | AK56: … | AL56: 66.14 | AM56: … | AN56: 0.1601 | AO56: 0.0805 | AP56: 0.7915 | AQ56: 0.3349808471 | AR56: … | AS56: 1.6975574 | AT56: 0.12676565 | AU56: 0.16314188 | AV56: 0.1991 | AW56: 1488.3 | AX56: … | AY56: 32.78 | AZ56: … | BA56: 151.2808527 | BB56: … | BC56: 0.6556 | BD56: … | BE56: 0.4718 | BF56: 12.5 | BG56: ... | BH56: 53 | BI56: 60.5 | BJ56: 32.5 | BK56: 507.0625916 | BL56: 10.24 | BM56: 693.79 | BN56: 223.1 | BO56: 3060 | BP56: 1742 | BQ56: 270.5 | BR56: 35.1 | BS56: 88.5 | BT56: 1.293
A57: 1964M03 | B57: 1.45 | C57: 1.45 | D57: 1.45 | E57: … | F57: … | G57: … | H57: 0.15 | I57: 0.3841498024 | J57: … | K57: … | L57: 0.5084 | M57: 1.0351 | N57: 0.7797561 | O57: 0.927 | P57: 0.8190008 | Q57: 1.039501 | R57: 0.9225996 | S57: 280.5 | T57: … | U57: … | V57: 265.1 | W57: 232.86 | X57: … | Y57: 110.51 | Z57: 209 | AA57: 94.4 | AB57: … | AC57: … | AD57: 24.84060998 | AE57: 54.33 | AF57: 48.98 | AG57: 115.11 | AH57: … | AI57: … | AJ57: … | AK57: … | AL57: 66.87 | AM57: … | AN57: 0.1649 | AO57: 0.0871 | AP57: 0.8157 | AQ57: 0.335629326 | AR57: … | AS57: 1.6314188 | AT57: 0.12676565 | AU57: 0.14770954 | AV57: 0.1612 | AW57: 1488.3 | AX57: … | AY57: 31.94 | AZ57: … | BA57: 149.1749784 | BB57: … | BC57: 0.6548 | BD57: … | BE57: 0.496 | BF57: 12.5 | BG57: ... | BH57: 53 | BI57: 60.5 | BJ57: 32.5 | BK57: 524.6994629 | BL57: 10.24 | BM57: 745.16 | BN57: 223.8 | BO57: 2958.6 | BP57: 1742 | BQ57: 277.1 | BR57: 35.1 | BS57: 88.5 | BT57: 1.293
A58: 1964M04 | B58: 1.45 | C58: 1.45 | D58: 1.45 | E58: … | F58: … | G58: … | H58: 0.15 | I58: 0.3841498024 | J58: … | K58: … | L58: 0.4784 | M58: 1.0042 | N58: 0.8161315 | O58: 0.927 | P58: 0.8190008 | Q58: 1.039501 | R58: 0.9225996 | S58: 280.3 | T58: … | U58: … | V58: 273.1 | W58: 232.86 | X58: … | Y58: 106.65 | Z58: 204 | AA58: 90 | AB58: … | AC58: … | AD58: 25.19431727 | AE58: 55.51 | AF58: 48.06 | AG58: 116.89 | AH58: … | AI58: … | AJ58: … | AK58: … | AL58: 67.61 | AM58: … | AN58: 0.201 | AO58: 0.0858 | AP58: 0.8289 | AQ58: 0.3357598501 | AR58: … | AS58: 1.6093726 | AT58: 0.12676565 | AU58: 0.14991416 | AV58: 0.1711 | AW58: 1488.3 | AX58: … | AY58: 30.56 | AZ58: … | BA58: 145.6592066 | BB58: … | BC58: 0.6521 | BD58: … | BE58: 0.4982 | BF58: 12.5 | BG58: ... | BH58: 53 | BI58: 60.5 | BJ58: 32.5 | BK58: 529.1088867 | BL58: 10.24 | BM58: 861.56 | BN58: 226.8 | BO58: 2879.2 | BP58: 1741 | BQ58: 298.7 | BR58: 35.1 | BS58: 88.5 | BT58: 1.293
A59: 1964M05 | B59: 1.45 | C59: 1.45 | D59: 1.45 | E59: … | F59: … | G59: … | H59: 0.15 | I59: 0.3841498024 | J59: … | K59: … | L59: 0.4766 | M59: 1.0203 | N59: 0.8284771 | O59: 0.927 | P59: 0.8190008 | Q59: 1.039501 | R59: 0.9225996 | S59: 282.5 | T59: … | U59: … | V59: 292.39 | W59: 232.86 | X59: … | Y59: 104.72 | Z59: 215 | AA59: 84.5 | AB59: … | AC59: … | AD59: 25.61094016 | AE59: 55.9 | AF59: 48.06 | AG59: 117.02 | AH59: … | AI59: … | AJ59: … | AK59: … | AL59: 69.45 | AM59: … | AN59: 0.205 | AO59: 0.0792 | AP59: 0.8708 | AQ59: 0.335670426 | AR59: … | AS59: 1.6314188 | AT59: 0.12676565 | AU59: 0.1322772 | AV59: 0.1545 | AW59: 1488.3 | AX59: … | AY59: 29.44 | AZ59: … | BA59: 142.7517846 | BB59: … | BC59: 0.6559 | BD59: … | BE59: 0.496 | BF59: 12.5 | BG59: ... | BH59: 53 | BI59: 60.5 | BJ59: 32.5 | BK59: 529.1088867 | BL59: 10.24 | BM59: 828.28 | BN59: 243.8 | BO59: 2910.1 | BP59: 1742 | BQ59: 343 | BR59: 35.1 | BS59: 88.5 | BT59: 1.293
A60: 1964M06 | B60: 1.45 | C60: 1.45 | D60: 1.45 | E60: … | F60: … | G60: … | H60: 0.15 | I60: 0.3841498024 | J60: … | K60: … | L60: 0.4954 | M60: 1.0053 | N60: 0.8465545 | O60: 0.927 | P60: 0.8190008 | Q60: 1.039501 | R60: 0.9225996 | S60: 294.9 | T60: … | U60: … | V60: 317.19 | W60: 233.96 | X60: … | Y60: 104.44 | Z60: 212 | AA60: 85.6 | AB60: … | AC60: … | AD60: 24.95411839 | AE60: 56.3 | AF60: 47.4 | AG60: 119.18 | AH60: … | AI60: … | AJ60: … | AK60: … | AL60: 65.04 | AM60: … | AN60: 0.207 | AO60: 0.0871 | AP60: 0.8554 | AQ60: 0.3366729336 | AR60: … | AS60: 1.8077884 | AT60: 0.12676565 | AU60: 0.12786796 | AV60: 0.1155 | AW60: 1488.3 | AX60: … | AY60: 29.44 | AZ60: … | BA60: 142.7517846 | BB60: … | BC60: 0.6594 | BD60: … | BE60: 0.4894 | BF60: 12.5 | BG60: ... | BH60: 53 | BI60: 60.5 | BJ60: 32.5 | BK60: 529.1088867 | BL60: 10.24 | BM60: 808.43 | BN60: 246.3 | BO60: 3265 | BP60: 1742 | BQ60: 357.1 | BR60: 35.1 | BS60: 88.5 | BT60: 1.293
A61: 1964M07 | B61: 1.45 | C61: 1.45 | D61: 1.45 | E61: … | F61: … | G61: … | H61: 0.15 | I61: 0.3841498024 | J61: … | K61: … | L61: 0.5077 | M61: 1.0214 | N61: 0.8183361 | O61: 0.927 | P61: 0.8190008 | Q61: 1.039501 | R61: 0.9225996 | S61: 303.7 | T61: … | U61: … | V61: 335.1 | W61: 235.34 | X61: … | Y61: 102.24 | Z61: 209 | AA61: 84.5 | AB61: … | AC61: … | AD61: 25.57003687 | AE61: 55.9 | AF61: 47.4 | AG61: 122.61 | AH61: … | AI61: … | AJ61: … | AK61: … | AL61: 68.71 | AM61: … | AN61: 0.168 | AO61: 0.084 | AP61: 0.9414 | AQ61: 0.3373052423 | AR61: … | AS61: 1.8298346 | AT61: 0.12676565 | AU61: 0.12345872 | AV61: 0.1034 | AW61: 1488.3 | AX61: … | AY61: 29.17 | AZ61: … | BA61: 142.0433162 | BB61: … | BC61: 0.6488 | BD61: … | BE61: 0.4784 | BF61: 12.5 | BG61: ... | BH61: 53 | BI61: 60.5 | BJ61: 32.5 | BK61: 529.1088867 | BL61: 10.24 | BM61: 854.95 | BN61: 270.9 | BO61: 3452.4 | BP61: 1741 | BQ61: 385.1 | BR61: 35.1 | BS61: 88.5 | BT61: 1.293
A62: 1964M08 | B62: 1.45 | C62: 1.45 | D62: 1.45 | E62: … | F62: … | G62: … | H62: 0.15 | I62: 0.3841498024 | J62: … | K62: … | L62: 0.4985 | M62: 1.049 | N62: 0.8183361 | O62: 0.927 | P62: 0.8190008 | Q62: 1.039501 | R62: 0.9225996 | S62: 303.1 | T62: … | U62: … | V62: 323.53 | W62: 235.62 | X62: … | Y62: 104.44 | Z62: 223 | AA62: 82.5 | AB62: … | AC62: … | AD62: 25.42422699 | AE62: 54.72 | AF62: 47.62 | AG62: 122.92 | AH62: … | AI62: … | AJ62: … | AK62: … | AL62: 68.71 | AM62: … | AN62: 0.1561 | AO62: 0.084 | AP62: 0.8995 | AQ62: 0.3377795862 | AR62: … | AS62: 1.763696 | AT62: 0.12676565 | AU62: 0.12345872 | AV62: 0.0933 | AW62: 1488.3 | AX62: … | AY62: 29.17 | AZ62: … | BA62: 142.0433162 | BB62: … | BC62: 0.6437 | BD62: … | BE62: 0.4784 | BF62: 12.5 | BG62: ... | BH62: 53 | BI62: 60.5 | BJ62: 32.5 | BK62: 529.1088867 | BL62: 10.24 | BM62: 999.33 | BN62: 300.9 | BO62: 3512 | BP62: 1742 | BQ62: 345.2 | BR62: 35.1 | BS62: 88.5 | BT62: 1.293
A63: 1964M09 | B63: 1.45 | C63: 1.45 | D63: 1.45 | E63: … | F63: … | G63: … | H63: 0.15 | I63: 0.3841498024 | J63: … | K63: … | L63: 0.5104 | M63: 1.0373 | N63: 0.7898972 | O63: 0.927 | P63: 0.8190008 | Q63: 1.039501 | R63: 0.9225996 | S63: 302.6 | T63: … | U63: … | V63: 346.68 | W63: 237.55 | X63: … | Y63: 109.96 | Z63: 243 | AA63: 92.2 | AB63: … | AC63: … | AD63: 25.593646 | AE63: 55.12 | AF63: 48.5 | AG63: 123.44 | AH63: … | AI63: … | AJ63: … | AK63: … | AL63: 69.08 | AM63: … | AN63: 0.1759 | AO63: 0.084 | AP63: 0.8179 | AQ63: 0.3402139749 | AR63: … | AS63: 1.8959732 | AT63: 0.12676565 | AU63: 0.12345872 | AV63: 0.0783 | AW63: 1488.3 | AX63: … | AY63: 28.89 | AZ63: … | BA63: 141.3054146 | BB63: … | BC63: 0.6482 | BD63: … | BE63: 0.4982 | BF63: 12.5 | BG63: ... | BH63: 53 | BI63: 60.5 | BJ63: 32.5 | BK63: 529.1088867 | BL63: 10.24 | BM63: 1162.05 | BN63: 300.9 | BO63: 3933 | BP63: 1742 | BQ63: 355.1 | BR63: 35.1 | BS63: 88.5 | BT63: 1.293
A64: 1964M10 | B64: 1.45 | C64: 1.45 | D64: 1.45 | E64: … | F64: … | G64: … | H64: 0.15 | I64: 0.3841498024 | J64: … | K64: … | L64: 0.509 | M64: 1.0379 | N64: 0.7738038 | O64: 0.927 | P64: 0.8190008 | Q64: 1.039501 | R64: 0.9225996 | S64: 311.4 | T64: … | U64: … | V64: 370.65 | W64: 250.77 | X64: … | Y64: 114.09 | Z64: 270 | AA64: 88.9 | AB64: … | AC64: … | AD64: 25.19559289 | AE64: 52.8 | AF64: 47.4 | AG64: 121.48 | AH64: … | AI64: … | AJ64: … | AK64: … | AL64: 68.71 | AM64: … | AN64: 0.164 | AO64: 0.084 | AP64: 0.8444 | AQ64: 0.3405104854 | AR64: … | AS64: 1.9180194 | AT64: 0.12676565 | AU64: 0.12566334 | AV64: 0.0769 | AW64: 1488.3 | AX64: … | AY64: 28.89 | AZ64: … | BA64: 141.3054146 | BB64: … | BC64: 0.646 | BD64: … | BE64: 0.5181 | BF64: 12.5 | BG64: ... | BH64: 53 | BI64: 60.5 | BJ64: 32.5 | BK64: 529.1088867 | BL64: 10.24 | BM64: 1358.27 | BN64: 331.8 | BO64: 4371.8 | BP64: 1741 | BQ64: 334.4 | BR64: 35.1 | BS64: 88.5 | BT64: 1.293
A65: 1964M11 | B65: 1.45 | C65: 1.45 | D65: 1.45 | E65: … | F65: … | G65: … | H65: 0.15 | I65: 0.3841498024 | J65: … | K65: … | L65: 0.5201 | M65: 1.034 | N65: 0.787913 | O65: 0.927 | P65: 0.8190008 | Q65: 1.039501 | R65: 0.9225996 | S65: 314.4 | T65: … | U65: … | V65: 359.63 | W65: 254.91 | X65: … | Y65: 117.67 | Z65: 270 | AA65: 84.5 | AB65: … | AC65: … | AD65: 25.11402178 | AE65: 52.8 | AF65: 47.18 | AG65: 120.97 | AH65: … | AI65: … | AJ65: … | AK65: … | AL65: 67.98 | AM65: … | AN65: 0.1649 | AO65: 0.084 | AP65: 0.8356 | AQ65: 0.3405987999 | AR65: … | AS65: 2.094389 | AT65: 0.12676565 | AU65: 0.12345872 | AV65: 0.0725 | AW65: 1488.3 | AX65: … | AY65: 29.44 | AZ65: … | BA65: 142.7517846 | BB65: … | BC65: 0.6413 | BD65: … | BE65: 0.5093 | BF65: 12.5 | BG65: ... | BH65: 53 | BI65: 60.5 | BJ65: 32.5 | BK65: 529.1088867 | BL65: 10.24 | BM65: 1400.37 | BN65: 365.1 | BO65: 4105 | BP65: 1742 | BQ65: 344.6 | BR65: 35.1 | BS65: 88.5 | BT65: 1.293
A66: 1964M12 | B66: 1.45 | C66: 1.45 | D66: 1.45 | E66: … | F66: … | G66: … | H66: 0.15 | I66: 0.3841498024 | J66: … | K66: … | L66: 0.5018 | M66: 1.0053 | N66: 0.7636628 | O66: 0.927 | P66: 0.8190008 | Q66: 1.039501 | R66: 0.9225996 | S66: 326 | T66: … | U66: … | V66: 372.86 | W66: 261.25 | X66: … | Y66: 121.8 | Z66: 317 | AA66: 86.7 | AB66: … | AC66: … | AD66: 25.40541829 | AE66: 54.33 | AF66: 48.72 | AG66: 119.08 | AH66: … | AI66: … | AJ66: … | AK66: … | AL66: 67.98 | AM66: … | AN66: 0.1261 | AO66: 0.0917 | AP66: 0.8598 | AQ66: 0.3418025425 | AR66: … | AS66: 2.1164352 | AT66: 0.12456103 | AU66: 0.1322772 | AV66: 0.0591 | AW66: 1488.3 | AX66: … | AY66: 30.56 | AZ66: … | BA66: 145.6592066 | BB66: … | BC66: 0.6426 | BD66: … | BE66: 0.5004 | BF66: 12.5 | BG66: ... | BH66: 53 | BI66: 60.5 | BJ66: 32.5 | BK66: 540.1318359 | BL66: 10.24 | BM66: 1269.2 | BN66: 383.6 | BO66: 3633.2 | BP66: 1742 | BQ66: 343 | BR66: 35.1 | BS66: 88.5 | BT66: 1.293
A67: 1965M01 | B67: 1.42 | C67: 1.42 | D67: 1.42 | E67: … | F67: … | G67: … | H67: 0.16 | I67: 0.4107661052 | J67: … | K67: … | L67: 0.47 | M67: 1.0119 | N67: 0.6283022 | O67: 1.0003 | P67: 0.8463009 | Q67: 1.142401 | R67: 1.0122 | S67: 337.6 | T67: … | U67: … | V67: 361.28 | W67: 266.21 | X67: … | Y67: 123.46 | Z67: 284 | AA67: 92.4 | AB67: … | AC67: … | AD67: 25.37793499 | AE67: 55.9 | AF67: 49.82 | AG67: 114.61 | AH67: … | AI67: … | AJ67: … | AK67: … | AL67: 66.14 | AM67: … | AN67: 0.127 | AO67: 0.0759 | AP67: 0.8525 | AQ67: 0.3435677569 | AR67: … | AS67: 2.094389 | AT67: 0.12456103 | AU67: 0.13889106 | AV67: 0.0513 | AW67: 1265.41 | AX67: … | AY67: 30.56 | AZ67: … | BA67: 145.6592066 | BB67: … | BC67: 0.6424 | BD67: … | BE67: 0.5137 | BF67: 14 | BG67: ... | BH67: 54 | BI67: 65.75 | BJ67: 29.5 | BK67: 540.1318359 | BL67: 10.24 | BM67: 1000.68 | BN67: 347.9 | BO67: 3456.8 | BP67: 1735 | BQ67: 322.3 | BR67: 35.12 | BS67: 93 | BT67: 1.293
A68: 1965M02 | B68: 1.42 | C68: 1.42 | D68: 1.42 | E68: … | F68: … | G68: … | H68: 0.16 | I68: 0.4107661052 | J68: … | K68: … | L68: 0.4191 | M68: 1.0384 | N68: 0.6371205 | O68: 1.0003 | P68: 0.8463009 | Q68: 1.142401 | R68: 1.0122 | S68: 356.9 | T68: … | U68: … | V68: 373.13 | W68: 283.02 | X68: … | Y68: 128.42 | Z68: 303 | AA68: 96 | AB68: … | AC68: … | AD68: 24.67937518 | AE68: 56.69 | AF68: 49.82 | AG68: 115.94 | AH68: … | AI68: … | AJ68: … | AK68: … | AL68: 61.36 | AM68: … | AN68: 0.1581 | AO68: 0.077 | AP68: 0.8519 | AQ68: 0.3452018143 | AR68: … | AS68: 2.0062042 | AT68: 0.12456103 | AU68: 0.13889106 | AV68: 0.0476 | AW68: 1265.41 | AX68: … | AY68: 33.33 | AZ68: … | BA68: 152.6462714 | BB68: … | BC68: 0.6737 | BD68: … | BE68: 0.5181 | BF68: 14 | BG68: ... | BH68: 54 | BI68: 65.75 | BJ68: 29.5 | BK68: 540.1318359 | BL68: 10.24 | BM68: 1179.91 | BN68: 389.6 | BO68: 3390.7 | BP68: 1735 | BQ68: 320.3 | BR68: 35.12 | BS68: 98.5 | BT68: 1.293
A69: 1965M03 | B69: 1.42 | C69: 1.42 | D69: 1.42 | E69: … | F69: … | G69: … | H69: 0.16 | I69: 0.4107661052 | J69: … | K69: … | L69: 0.353 | M69: 0.9899 | N69: 0.5798017 | O69: 1.0003 | P69: 0.8463009 | Q69: 1.142401 | R69: 1.0122 | S69: 356.9 | T69: … | U69: … | V69: 344.2 | W69: 292.11 | X69: … | Y69: 124.84 | Z69: 300 | AA69: 93.6 | AB69: … | AC69: … | AD69: 24.71034044 | AE69: 57.08 | AF69: 48.94 | AG69: 115.56 | AH69: … | AI69: … | AJ69: … | AK69: … | AL69: 60.99 | AM69: … | AN69: 0.1519 | AO69: 0.078 | AP69: 0.8514 | AQ69: 0.3459028367 | AR69: … | AS69: 2.0282504 | AT69: 0.12456103 | AU69: 0.1322772 | AV69: 0.0534 | AW69: 1265.41 | AX69: … | AY69: 34.17 | AZ69: … | BA69: 154.7117931 | BB69: … | BC69: 0.6464 | BD69: … | BE69: 0.5203 | BF69: 14 | BG69: ... | BH69: 54 | BI69: 65.75 | BJ69: 29.5 | BK69: 540.1318359 | BL69: 10.24 | BM69: 1237.23 | BN69: 395.3 | BO69: 3584.7 | BP69: 1735 | BQ69: 315.9 | BR69: 35.12 | BS69: 98.5 | BT69: 1.293
A70: 1965M04 | B70: 1.42 | C70: 1.42 | D70: 1.42 | E70: … | F70: … | G70: … | H70: 0.16 | I70: 0.4107661052 | J70: … | K70: … | L70: 0.3457 | M70: 0.9744 | N70: 0.5469536 | O70: 1.0003 | P70: 0.8463009 | Q70: 1.142401 | R70: 1.0122 | S70: 356.9 | T70: … | U70: … | V70: 325.73 | W70: 297.62 | X70: … | Y70: 123.46 | Z70: 295 | AA70: 94.8 | AB70: … | AC70: … | AD70: 24.60484353 | AE70: 57.48 | AF70: 47.84 | AG70: 113.29 | AH70: … | AI70: … | AJ70: … | AK70: … | AL70: 59.89 | AM70: … | AN70: 0.162 | AO70: 0.0921 | AP70: 0.8527 | AQ70: 0.3471696177 | AR70: … | AS70: 2.0723428 | AT70: 0.12456103 | AU70: 0.1322772 | AV70: 0.0512 | AW70: 1265.41 | AX70: … | AY70: 35.56 | AZ70: … | BA70: 158.0791083 | BB70: … | BC70: 0.6493 | BD70: … | BE70: 0.5335 | BF70: 14 | BG70: ... | BH70: 54 | BI70: 65.75 | BJ70: 29.5 | BK70: 540.1318359 | BL70: 10.24 | BM70: 1348.34 | BN70: 353 | BO70: 3944.1 | BP70: 1735 | BQ70: 315.9 | BR70: 35.12 | BS70: 98.5 | BT70: 1.293
A71: 1965M05 | B71: 1.42 | C71: 1.42 | D71: 1.42 | E71: … | F71: … | G71: … | H71: 0.16 | I71: 0.4107661052 | J71: … | K71: … | L71: 0.3276 | M71: 0.9612 | N71: 0.4872098 | O71: 1.0003 | P71: 0.8463009 | Q71: 1.142401 | R71: 1.0122 | S71: 356.9 | T71: … | U71: … | V71: 293.76 | W71: 303.13 | X71: … | Y71: 118.5 | Z71: 256 | AA71: 93.6 | AB71: … | AC71: … | AD71: 24.68019174 | AE71: 58.66 | AF71: 47.84 | AG71: 111.77 | AH71: … | AI71: … | AJ71: … | AK71: … | AL71: 59.16 | AM71: … | AN71: 0.1499 | AO71: 0.1463 | AP71: 0.8404 | AQ71: 0.348061745 | AR71: … | AS71: 2.0502966 | AT71: 0.12456103 | AU71: 0.13668644 | AV71: 0.0496 | AW71: 1265.41 | AX71: … | AY71: 35.56 | AZ71: … | BA71: 158.0791083 | BB71: … | BC71: 0.6504 | BD71: … | BE71: 0.5313 | BF71: 14 | BG71: ... | BH71: 54 | BI71: 65.75 | BJ71: 29.5 | BK71: 540.1318359 | BL71: 15.3 | BM71: 1378.55 | BN71: 302 | BO71: 4215.2 | BP71: 1735 | BQ71: 323.4 | BR71: 35.12 | BS71: 98.5 | BT71: 1.293
A72: 1965M06 | B72: 1.42 | C72: 1.42 | D72: 1.42 | E72: … | F72: … | G72: … | H72: 0.16 | I72: 0.4107661052 | J72: … | K72: … | L72: 0.2906 | M72: 0.9811 | N72: 0.6130906 | O72: 1.0003 | P72: 0.8463009 | Q72: 1.142401 | R72: 1.0122 | S72: 420.5 | T72: … | U72: … | V72: 296.52 | W72: 294.87 | X72: … | Y72: 122.08 | Z72: 256 | AA72: 93.6 | AB72: … | AC72: … | AD72: 24.44930955 | AE72: 58.26 | AF72: 47.84 | AG72: 110.88 | AH72: … | AI72: … | AJ72: … | AK72: … | AL72: 58.05 | AM72: … | AN72: 0.166 | AO72: 0.11 | AP72: 0.8618 | AQ72: 0.3491462469 | AR72: … | AS72: 1.9621118 | AT72: 0.12456103 | AU72: 0.13668644 | AV72: 0.0412 | AW72: 1265.41 | AX72: … | AY72: 35.56 | AZ72: … | BA72: 158.0791083 | BB72: … | BC72: 0.629 | BD72: … | BE72: 0.5225 | BF72: 14 | BG72: ... | BH72: 54 | BI72: 65.75 | BJ72: 29.5 | BK72: 540.1318359 | BL72: 10.24 | BM72: 1308.88 | BN72: 278.7 | BO72: 4131.5 | BP72: 1735 | BQ72: 314.4 | BR72: 35.12 | BS72: 98.5 | BT72: 1.293
A73: 1965M07 | B73: 1.42 | C73: 1.42 | D73: 1.42 | E73: … | F73: … | G73: … | H73: 0.16 | I73: 0.4107661052 | J73: … | K73: … | L73: 0.259 | M73: 0.9811 | N73: 0.7162645 | O73: 1.0003 | P73: 0.8463009 | Q73: 1.142401 | R73: 1.0122 | S73: 372.6 | T73: … | U73: … | V73: 301.76 | W73: 279.99 | X73: … | Y73: 119.88 | Z73: 248 | AA73: 101.8 | AB73: … | AC73: … | AD73: 24.11917795 | AE73: 56.69 | AF73: 47.84 | AG73: 112.04 | AH73: … | AI73: … | AJ73: … | AK73: … | AL73: 57.32 | AM73: … | AN73: 0.177 | AO73: 0.096 | AP73: 0.8807 | AQ73: 0.3514937158 | AR73: … | AS73: 1.9400656 | AT73: 0.12456103 | AU73: 0.13448182 | AV73: 0.0408 | AW73: 1265.41 | AX73: … | AY73: 35.56 | AZ73: … | BA73: 158.0791083 | BB73: … | BC73: 0.6349 | BD73: … | BE73: 0.4938 | BF73: 14 | BG73: ... | BH73: 54 | BI73: 65.75 | BJ73: 29.5 | BK73: 540.1318359 | BL73: 10.24 | BM73: 1134.06 | BN73: 271.6 | BO73: 3966.1 | BP73: 1735 | BQ73: 310.4 | BR73: 35.12 | BS73: 98.5 | BT73: 1.293
A74: 1965M08 | B74: 1.42 | C74: 1.42 | D74: 1.42 | E74: … | F74: … | G74: … | H74: 0.16 | I74: 0.4107661052 | J74: … | K74: … | L74: 0.3258 | M74: 1.0009 | N74: 0.7949677 | O74: 1.0003 | P74: 0.8463009 | Q74: 1.142401 | R74: 1.0122 | S74: 334.8 | T74: … | U74: … | V74: 299.28 | W74: 257.66 | X74: … | Y74: 110.78 | Z74: 234 | AA74: 96 | AB74: … | AC74: … | AD74: 23.99647842 | AE74: 55.12 | AF74: 47.4 | AG74: 116.92 | AH74: … | AI74: … | AJ74: … | AK74: … | AL74: 57.69 | AM74: … | AN74: 0.17 | AO74: 0.096 | AP74: 0.8942 | AQ74: 0.3517058388 | AR74: … | AS74: 1.873927 | AT74: 0.12456103 | AU74: 0.13668644 | AV74: 0.0377 | AW74: 1265.41 | AX74: … | AY74: 35.56 | AZ74: … | BA74: 158.0791083 | BB74: … | BC74: 0.6312 | BD74: … | BE74: 0.4828 | BF74: 14 | BG74: ... | BH74: 54 | BI74: 65.75 | BJ74: 29.5 | BK74: 540.1318359 | BL74: 10.24 | BM74: 1209.9 | BN74: 272 | BO74: 4091.8 | BP74: 1735 | BQ74: 303.6 | BR74: 35.12 | BS74: 98.5 | BT74: 1.293
A75: 1965M09 | B75: 1.42 | C75: 1.42 | D75: 1.42 | E75: … | F75: … | G75: … | H75: 0.16 | I75: 0.4107661052 | J75: … | K75: … | L75: 0.3649 | M75: 0.9987 | N75: 0.7775516 | O75: 1.0003 | P75: 0.8463009 | Q75: 1.142401 | R75: 1.0122 | S75: 312 | T75: … | U75: … | V75: 308.92 | W75: 246.64 | X75: … | Y75: 106.1 | Z75: 248 | AA75: 105.3 | AB75: … | AC75: … | AD75: 23.99364398 | AE75: 53.93 | AF75: 47.4 | AG75: 126.55 | AH75: … | AI75: … | AJ75: … | AK75: … | AL75: 58.42 | AM75: … | AN75: 0.1821 | AO75: 0.096 | AP75: 0.9132 | AQ75: 0.3541989753 | AR75: … | AS75: 1.8959732 | AT75: 0.12456103 | AU75: 0.13668644 | AV75: 0.039 | AW75: 1265.41 | AX75: … | AY75: 36.11 | AZ75: … | BA75: 159.3947361 | BB75: … | BC75: 0.631 | BD75: … | BE75: 0.4762 | BF75: 14 | BG75: ... | BH75: 54 | BI75: 65.75 | BJ75: 29.5 | BK75: 540.1318359 | BL75: 10.24 | BM75: 1327.84 | BN75: 289.2 | BO75: 4208.6 | BP75: 1735 | BQ75: 299.6 | BR75: 35.12 | BS75: 98.5 | BT75: 1.293
A76: 1965M10 | B76: 1.42 | C76: 1.42 | D76: 1.42 | E76: … | F76: … | G76: … | H76: 0.16 | I76: 0.4107661052 | J76: … | K76: … | L76: 0.3706 | M76: 1.0097 | N76: 0.8073132 | O76: 1.0003 | P76: 0.8463009 | Q76: 1.142401 | R76: 1.0122 | S76: 331 | T76: … | U76: … | V76: 324.08 | W76: 250.22 | X76: … | Y76: 104.44 | Z76: 284 | AA76: 97.1 | AB76: … | AC76: … | AD76: 23.59557737 | AE76: 51.57 | AF76: 46.52 | AG76: 126.65 | AH76: … | AI76: … | AJ76: … | AK76: … | AL76: 58.05 | AM76: … | AN76: 0.1889 | AO76: 0.096 | AP76: 0.9292 | AQ76: 0.3540733703 | AR76: … | AS76: 1.9180194 | AT76: 0.12456103 | AU76: 0.13889106 | AV76: 0.0428 | AW76: 1265.41 | AX76: … | AY76: 36.11 | AZ76: … | BA76: 159.3947361 | BB76: … | BC76: 0.6245 | BD76: … | BE76: 0.4718 | BF76: 14 | BG76: ... | BH76: 54 | BI76: 65.75 | BJ76: 29.5 | BK76: 540.1318359 | BL76: 10.24 | BM76: 1401.92 | BN76: 306.9 | BO76: 4010.2 | BP76: 1735 | BQ76: 307.8 | BR76: 35.12 | BS76: 98.5 | BT76: 1.293
A77: 1965M11 | B77: 1.42 | C77: 1.42 | D77: 1.42 | E77: … | F77: … | G77: … | H77: 0.16 | I77: 0.4107661052 | J77: … | K77: … | L77: 0.3986 | M77: 1.0251 | N77: 0.7568286 | O77: 1.0003 | P77: 0.8463009 | Q77: 1.142401 | R77: 1.0122 | S77: 334.8 | T77: … | U77: … | V77: 336.2 | W77: 250.22 | X77: … | Y77: 107.47 | Z77: 276 | AA77: 103 | AB77: … | AC77: … | AD77: 23.63474704 | AE77: 51.57 | AF77: 46.3 | AG77: 129.2 | AH77: … | AI77: … | AJ77: … | AK77: … | AL77: 58.05 | AM77: … | AN77: 0.1519 | AO77: 0.096 | AP77: 0.9094 | AQ77: 0.3560733477 | AR77: … | AS77: 2.0062042 | AT77: 0.12456103 | AU77: 0.13668644 | AV77: 0.0377 | AW77: 1265.41 | AX77: … | AY77: 36.11 | AZ77: … | BA77: 159.3947361 | BB77: … | BC77: 0.6228 | BD77: … | BE77: 0.4894 | BF77: 14 | BG77: ... | BH77: 54 | BI77: 65.75 | BJ77: 29.5 | BK77: 540.1318359 | BL77: 10.24 | BM77: 1469.16 | BN77: 299.2 | BO77: 3820.6 | BP77: 1735 | BQ77: 298.7 | BR77: 35.12 | BS77: 98.5 | BT77: 1.293
A78: 1965M12 | B78: 1.42 | C78: 1.42 | D78: 1.42 | E78: … | F78: … | G78: … | H78: 0.16 | I78: 0.4107661052 | J78: … | K78: … | L78: 0.4588 | M78: 1.0318 | N78: 0.7936449 | O78: 1.0003 | P78: 0.8463009 | Q78: 1.142401 | R78: 1.0122 | S78: 330.7 | T78: … | U78: … | V78: 322.15 | W78: 248.57 | X78: … | Y78: 112.99 | Z78: 256 | AA78: 97.1 | AB78: … | AC78: … | AD78: 24.29600581 | AE78: 55.12 | AF78: 47.62 | AG78: 132.06 | AH78: … | AI78: … | AJ78: … | AK78: … | AL78: 58.42 | AM78: … | AN78: 0.1281 | AO78: 0.0927 | AP78: 0.942 | AQ78: 0.3562832739 | AR78: … | AS78: 2.0062042 | AT78: 0.12456103 | AU78: 0.13448182 | AV78: 0.0383 | AW78: 1265.41 | AX78: … | AY78: 36.11 | AZ78: … | BA78: 159.3947361 | BB78: … | BC78: 0.6195 | BD78: … | BE78: 0.5049 | BF78: 14 | BG78: ... | BH78: 54 | BI78: 65.75 | BJ78: 29.5 | BK78: 540.1318359 | BL78: 10.24 | BM78: 1517.66 | BN78: 300.7 | BO78: 3869.1 | BP78: 1735 | BQ78: 302.7 | BR78: 35.12 | BS78: 98.5 | BT78: 1.293
A79: 1966M01 | B79: 1.36 | C79: 1.36 | D79: 1.36 | E79: … | F79: … | G79: … | H79: 0.16 | I79: 0.4249286651 | J79: … | K79: … | L79: 0.4731 | M79: 1.0119 | N79: 0.8015813 | O79: 0.9599 | P79: 0.7602008 | Q79: 1.205401 | R79: 0.9141996 | S79: 355.5 | T79: … | U79: … | V79: 307.27 | W79: 246.92 | X79: … | Y79: 119.6 | Z79: 267 | AA79: 101.93 | AB79: … | AC79: … | AD79: 24.63215651 | AE79: 57.08 | AF79: 47.62 | AG79: 125.51 | AH79: … | AI79: … | AJ79: … | AK79: … | AL79: 58.42 | AM79: … | AN79: 0.129 | AO79: 0.0914 | AP79: 0.9676 | AQ79: 0.3581358251 | AR79: … | AS79: 2.314851 | AT79: 0.130954428 | AU79: 0.13889106 | AV79: 0.0531 | AW79: 1581.22 | AX79: … | AY79: 36.11 | AZ79: … | BA79: 159.3947361 | BB79: … | BC79: 0.6195 | BD79: … | BE79: 0.5051 | BF79: 13 | BG79: ... | BH79: 50 | BI79: 59.25 | BJ79: 27.5 | BK79: 540.1318359 | BL79: 9.52 | BM79: 1679.04 | BN79: 301.2 | BO79: 3926.4 | BP79: 1739 | BQ79: 302.7 | BR79: 35.13 | BS79: 98.5 | BT79: 1.293
A80: 1966M02 | B80: 1.36 | C80: 1.36 | D80: 1.36 | E80: … | F80: … | G80: … | H80: 0.16 | I80: 0.4249286651 | J80: … | K80: … | L80: 0.4718 | M80: 0.9722 | N80: 0.7577103 | O80: 0.9599 | P80: 0.7602008 | Q80: 1.205401 | R80: 0.9141996 | S80: 348.6 | T80: … | U80: … | V80: 299.69 | W80: 248.02 | X80: … | Y80: 121.8 | Z80: 273 | AA80: 99.1 | AB80: … | AC80: … | AD80: 24.74463219 | AE80: 57.08 | AF80: 48.5 | AG80: 124.79 | AH80: … | AI80: … | AJ80: … | AK80: … | AL80: 58.79 | AM80: … | AN80: 0.143 | AO80: 0.0728 | AP80: 0.9641 | AQ80: 0.3585674732 | AR80: … | AS80: 2.314851 | AT80: 0.130954428 | AU80: 0.13889106 | AV80: 0.0489 | AW80: 1581.22 | AX80: … | AY80: 36.94 | AZ80: … | BA80: 161.3628116 | BB80: … | BC80: 0.6195 | BD80: … | BE80: 0.5066 | BF80: 13 | BG80: ... | BH80: 50 | BI80: 59.25 | BJ80: 27.5 | BK80: 540.1318359 | BL80: 9.52 | BM80: 1874.37 | BN80: 291.5 | BO80: 3877.9 | BP80: 1739 | BQ80: 299.8 | BR80: 35.13 | BS80: 98.5 | BT80: 1.293
A81: 1966M03 | B81: 1.36 | C81: 1.36 | D81: 1.36 | E81: … | F81: … | G81: … | H81: 0.16 | I81: 0.4249286651 | J81: … | K81: … | L81: 0.4896 | M81: 0.9546 | N81: 0.7438216 | O81: 0.9599 | P81: 0.7602008 | Q81: 1.205401 | R81: 0.9141996 | S81: 338.4 | T81: … | U81: … | V81: 292.8 | W81: 245.26 | X81: … | Y81: 119.88 | Z81: 265 | AA81: 92.5 | AB81: … | AC81: … | AD81: 24.54782111 | AE81: 55.51 | AF81: 47.4 | AG81: 131.73 | AH81: … | AI81: … | AJ81: … | AK81: … | AL81: 58.79 | AM81: … | AN81: 0.1731 | AO81: 0.085 | AP81: 1.0673 | AQ81: 0.358374602 | AR81: … | AS81: 2.314851 | AT81: 0.130954428 | AU81: 0.13668644 | AV81: 0.0472 | AW81: 1581.22 | AX81: … | AY81: 36.94 | AZ81: … | BA81: 161.3628116 | BB81: … | BC81: 0.639 | BD81: … | BE81: 0.5031 | BF81: 13 | BG81: ... | BH81: 50 | BI81: 59.25 | BJ81: 27.5 | BK81: 540.1318359 | BL81: 9.52 | BM81: 1874.81 | BN81: 292.8 | BO81: 3772.1 | BP81: 1739 | BQ81: 300.7 | BR81: 35.13 | BS81: 99.65 | BT81: 1.293
A82: 1966M04 | B82: 1.36 | C82: 1.36 | D82: 1.36 | E82: … | F82: … | G82: … | H82: 0.16 | I82: 0.4249286651 | J82: … | K82: … | L82: 0.5333 | M82: 0.9546 | N82: 0.7605763 | O82: 0.9599 | P82: 0.7602008 | Q82: 1.205401 | R82: 0.9141996 | S82: 331.2 | T82: … | U82: … | V82: 285.77 | W82: 233.69 | X82: … | Y82: 122.08 | Z82: 267 | AA82: 96.9 | AB82: … | AC82: … | AD82: 24.64817034 | AE82: 55.9 | AF82: 46.96 | AG82: 143.04 | AH82: … | AI82: … | AJ82: … | AK82: … | AL82: 58.79 | AM82: … | AN82: 0.1892 | AO82: 0.0914 | AP82: 1.0714 | AQ82: 0.3599530256 | AR82: … | AS82: 2.314851 | AT82: 0.130954428 | AU82: 0.13889106 | AV82: 0.0452 | AW82: 1581.22 | AX82: … | AY82: 36.39 | AZ82: … | BA82: 160.0609688 | BB82: … | BC82: 0.6184 | BD82: … | BE82: 0.4848 | BF82: 13 | BG82: ... | BH82: 50 | BI82: 59.25 | BJ82: 27.5 | BK82: 540.1318359 | BL82: 9.52 | BM82: 1907.44 | BN82: 280.4 | BO82: 3763.3 | BP82: 1739 | BQ82: 278.7 | BR82: 35.13 | BS82: 100 | BT82: 1.293
A83: 1966M05 | B83: 1.36 | C83: 1.36 | D83: 1.36 | E83: … | F83: … | G83: … | H83: 0.16 | I83: 0.4249286651 | J83: … | K83: … | L83: 0.513 | M83: 0.9458 | N83: 0.7652059 | O83: 0.9599 | P83: 0.7602008 | Q83: 1.205401 | R83: 0.9141996 | S83: 330.7 | T83: … | U83: … | V83: 288.31 | W83: 225.7 | X83: … | Y83: 124.84 | Z83: 256 | AA83: 102.4 | AB83: … | AC83: … | AD83: 24.56941688 | AE83: 55.12 | AF83: 46.96 | AG83: 140.86 | AH83: … | AI83: … | AJ83: … | AK83: … | AL83: 58.79 | AM83: … | AN83: 0.1841 | AO83: 0.0877 | AP83: 1.043 | AQ83: 0.3616734465 | AR83: … | AS83: 2.314851 | AT83: 0.130954428 | AU83: 0.13889106 | AV83: 0.045 | AW83: 1581.22 | AX83: … | AY83: 36.94 | AZ83: … | BA83: 161.3628116 | BB83: … | BC83: 0.6228 | BD83: … | BE83: 0.4949 | BF83: 13 | BG83: ... | BH83: 50 | BI83: 59.25 | BJ83: 27.5 | BK83: 540.1318359 | BL83: 9.52 | BM83: 1663.61 | BN83: 261.9 | BO83: 3688.3 | BP83: 1739 | BQ83: 270 | BR83: 35.13 | BS83: 100 | BT83: 1.293
A84: 1966M06 | B84: 1.36 | C84: 1.36 | D84: 1.36 | E84: … | F84: … | G84: … | H84: 0.16 | I84: 0.4249286651 | J84: … | K84: … | L84: 0.5267 | M84: 0.9237 | N84: 0.7409557 | O84: 0.8132 | P84: 0.7602008 | Q84: 0.7653333 | R84: 0.9141996 | S84: 332.1 | T84: … | U84: … | V84: 288.31 | W84: 225.42 | X84: … | Y84: 130.62 | Z84: 256 | AA84: 117.8 | AB84: … | AC84: … | AD84: 25.54338202 | AE84: 57.08 | AF84: 46.74 | AG84: 144.45 | AH84: … | AI84: … | AJ84: … | AK84: … | AL84: 62.1 | AM84: … | AN84: 0.181 | AO84: 0.084 | AP84: 0.9923 | AQ84: 0.3647232958 | AR84: … | AS84: 2.314851 | AT84: 0.130954428 | AU84: 0.13889106 | AV84: 0.037 | AW84: 1581.22 | AX84: … | AY84: 36.94 | AZ84: … | BA84: 161.3628116 | BB84: … | BC84: 0.6182 | BD84: … | BE84: 0.4733 | BF84: 13 | BG84: ... | BH84: 50 | BI84: 59.25 | BJ84: 27.5 | BK84: 540.1318359 | BL84: 9.52 | BM84: 1695.79 | BN84: 259.3 | BO84: 3516.4 | BP84: 1739 | BQ84: 272.1 | BR84: 35.13 | BS84: 100 | BT84: 1.293
A85: 1966M07 | B85: 1.36 | C85: 1.36 | D85: 1.36 | E85: … | F85: … | G85: … | H85: 0.16 | I85: 0.4249286651 | J85: … | K85: … | L85: 0.5761 | M85: 0.9171 | N85: 0.729051 | O85: 0.8132 | P85: 0.7602008 | Q85: 0.7653333 | R85: 0.9141996 | S85: 330.4 | T85: … | U85: … | V85: 294.59 | W85: 235.34 | X85: … | Y85: 138.89 | Z85: 267 | AA85: 123.3 | AB85: … | AC85: … | AD85: 26.51018437 | AE85: 59.05 | AF85: 47.18 | AG85: 153.3 | AH85: … | AI85: … | AJ85: … | AK85: … | AL85: 65.4 | AM85: … | AN85: 0.144 | AO85: 0.084 | AP85: 0.9669 | AQ85: 0.3663165472 | AR85: … | AS85: 2.314851 | AT85: 0.130954428 | AU85: 0.14109568 | AV85: 0.0379 | AW85: 1581.22 | AX85: … | AY85: 36.94 | AZ85: … | BA85: 161.3628116 | BB85: … | BC85: 0.6151 | BD85: … | BE85: 0.4656 | BF85: 13 | BG85: ... | BH85: 50 | BI85: 59.25 | BJ85: 27.5 | BK85: 540.1318359 | BL85: 9.52 | BM85: 1567.93 | BN85: 263.4 | BO85: 3514.2 | BP85: 1739 | BQ85: 264.6 | BR85: 35.13 | BS85: 100 | BT85: 1.293
A86: 1966M08 | B86: 1.36 | C86: 1.36 | D86: 1.36 | E86: … | F86: … | G86: … | H86: 0.16 | I86: 0.4249286651 | J86: … | K86: … | L86: 0.573 | M86: 0.9171 | N86: 0.7189101 | O86: 0.8132 | P86: 0.7602008 | Q86: 0.7653333 | R86: 0.9141996 | S86: 319.1 | T86: … | U86: … | V86: 304.84 | W86: 239.75 | X86: … | Y86: 140.27 | Z86: 276 | AA86: 124.4 | AB86: … | AC86: … | AD86: 27.51208083 | AE86: 62.6 | AF86: 50.49 | AG86: 150.39 | AH86: … | AI86: … | AJ86: … | AK86: … | AL86: 67.61 | AM86: … | AN86: 0.157 | AO86: 0.084 | AP86: 1 | AQ86: 0.3673392134 | AR86: … | AS86: 2.314851 | AT86: 0.130954428 | AU86: 0.1433003 | AV86: 0.0359 | AW86: 1581.22 | AX86: … | AY86: 36.94 | AZ86: … | BA86: 161.3628116 | BB86: … | BC86: 0.6195 | BD86: … | BE86: 0.4581 | BF86: 13 | BG86: ... | BH86: 50 | BI86: 59.25 | BJ86: 27.5 | BK86: 540.1318359 | BL86: 9.52 | BM86: 1195.34 | BN86: 242.5 | BO86: 3428.2 | BP86: 1739 | BQ86: 264.6 | BR86: 35.13 | BS86: 100 | BT86: 1.293
A87: 1966M09 | B87: 1.36 | C87: 1.36 | D87: 1.36 | E87: … | F87: … | G87: … | H87: 0.16 | I87: 0.4249286651 | J87: … | K87: … | L87: 0.5022 | M87: 0.8995 | N87: 0.6995097 | O87: 0.8132 | P87: 0.7602008 | Q87: 0.7653333 | R87: 0.9141996 | S87: 317.2 | T87: … | U87: … | V87: 298.73 | W87: 239.75 | X87: … | Y87: 127.59 | Z87: 267 | AA87: 112.3 | AB87: … | AC87: … | AD87: 27.24653073 | AE87: 61.02 | AF87: 51.59 | AG87: 155.39 | AH87: … | AI87: … | AJ87: … | AK87: … | AL87: 67.24 | AM87: … | AN87: 0.139 | AO87: 0.084 | AP87: 1.0529 | AQ87: 0.3666176815 | AR87: … | AS87: 2.314851 | AT87: 0.130954428 | AU87: 0.1433003 | AV87: 0.0329 | AW87: 1581.22 | AX87: … | AY87: 36.94 | AZ87: … | BA87: 161.3628116 | BB87: … | BC87: 0.6072 | BD87: … | BE87: 0.4299 | BF87: 13 | BG87: ... | BH87: 50 | BI87: 59.25 | BJ87: 27.5 | BK87: 540.1318359 | BL87: 9.52 | BM87: 1128.32 | BN87: 254.2 | BO87: 3377.5 | BP87: 1739 | BQ87: 270.5 | BR87: 35.13 | BS87: 100 | BT87: 1.293
A88: 1966M10 | B88: 1.36 | C88: 1.36 | D88: 1.36 | E88: … | F88: … | G88: … | H88: 0.16 | I88: 0.4249286651 | J88: … | K88: … | L88: 0.5084 | M88: 0.8885 | N88: 0.7171464 | O88: 0.8132 | P88: 0.7602008 | Q88: 0.7653333 | R88: 0.9141996 | S88: 303.1 | T88: … | U88: … | V88: 291.84 | W88: 230.93 | X88: … | Y88: 120.15 | Z88: 251 | AA88: 104.6 | AB88: … | AC88: … | AD88: 26.71904877 | AE88: 58.66 | AF88: 48.72 | AG88: 164.26 | AH88: … | AI88: … | AJ88: … | AK88: … | AL88: 66.14 | AM88: … | AN88: 0.1281 | AO88: 0.084 | AP88: 1.0529 | AQ88: 0.3663874387 | AR88: … | AS88: 2.314851 | AT88: 0.130954428 | AU88: 0.14550492 | AV88: 0.0337 | AW88: 1581.22 | AX88: … | AY88: 36.94 | AZ88: … | BA88: 161.3628116 | BB88: … | BC88: 0.6316 | BD88: … | BE88: 0.4515 | BF88: 13 | BG88: ... | BH88: 50 | BI88: 59.25 | BJ88: 27.5 | BK88: 540.1318359 | BL88: 9.52 | BM88: 1275.37 | BN88: 233.7 | BO88: 3362 | BP88: 1739 | BQ88: 276 | BR88: 35.13 | BS88: 100 | BT88: 1.293
A89: 1966M11 | B89: 1.36 | C89: 1.36 | D89: 1.36 | E89: … | F89: … | G89: … | H89: 0.16 | I89: 0.4249286651 | J89: … | K89: … | L89: 0.4952 | M89: 0.8869 | N89: 0.7200123 | O89: 0.8132 | P89: 0.7602008 | Q89: 0.7653333 | R89: 0.9141996 | S89: 277.8 | T89: … | U89: … | V89: 292.66 | W89: 225.97 | X89: … | Y89: 121.25 | Z89: 248 | AA89: 101.3 | AB89: … | AC89: … | AD89: 26.75583173 | AE89: 59.05 | AF89: 49.38 | AG89: 166.11 | AH89: … | AI89: … | AJ89: … | AK89: … | AL89: 65.77 | AM89: … | AN89: 0.138 | AO89: 0.084 | AP89: 1.0311 | AQ89: 0.3667678763 | AR89: … | AS89: 2.314851 | AT89: 0.130954428 | AU89: 0.1433003 | AV89: 0.0311 | AW89: 1581.22 | AX89: … | AY89: 36.94 | AZ89: … | BA89: 161.3628116 | BB89: … | BC89: 0.6314 | BD89: … | BE89: 0.4517 | BF89: 13 | BG89: ... | BH89: 50 | BI89: 59.25 | BJ89: 27.5 | BK89: 540.1318359 | BL89: 9.52 | BM89: 1301.61 | BN89: 222.7 | BO89: 3320.2 | BP89: 1739 | BQ89: 288.1 | BR89: 35.13 | BS89: 100 | BT89: 1.293
A90: 1966M12 | B90: 1.36 | C90: 1.36 | D90: 1.36 | E90: … | F90: … | G90: … | H90: 0.16 | I90: 0.4249286651 | J90: … | K90: … | L90: 0.5492 | M90: 0.8728 | N90: 0.7151622 | O90: 0.8132 | P90: 0.7602008 | Q90: 0.7653333 | R90: 0.9141996 | S90: 300.4 | T90: … | U90: … | V90: 310.85 | W90: 230.93 | X90: … | Y90: 120.98 | Z90: 245 | AA90: 107.9 | AB90: … | AC90: … | AD90: 27.51203013 | AE90: 61.41 | AF90: 51.37 | AG90: 142.6 | AH90: … | AI90: … | AJ90: … | AK90: … | AL90: 67.61 | AM90: … | AN90: 0.14 | AO90: 0.076 | AP90: 1.0587 | AQ90: 0.3686455208 | AR90: … | AS90: 2.314851 | AT90: 0.130954428 | AU90: 0.1433003 | AV90: 0.0298 | AW90: 1581.22 | AX90: … | AY90: 36.94 | AZ90: … | BA90: 161.3628116 | BB90: … | BC90: 0.6314 | BD90: … | BE90: 0.4341 | BF90: 13 | BG90: ... | BH90: 50 | BI90: 59.25 | BJ90: 27.5 | BK90: 540.1318359 | BL90: 9.52 | BM90: 1214.53 | BN90: 224.2 | BO90: 3335.6 | BP90: 1739 | BQ90: 285.5 | BR90: 35.13 | BS90: 100 | BT90: 1.293
A91: 1967M01 | B91: 1.33 | C91: 1.33 | D91: 1.33 | E91: … | F91: … | G91: … | H91: 0.16 | I91: 0.4566473763 | J91: … | K91: … | L91: 0.5739 | M91: 0.8501 | N91: 0.7056826 | O91: 0.8402 | P91: 0.7308007 | Q91: 0.7986667 | R91: 0.9911996 | S91: 310 | T91: … | U91: … | V91: 303.41 | W91: 234.24 | X91: … | Y91: 117.4 | Z91: 231 | AA91: 104.6 | AB91: … | AC91: … | AD91: 27.3045923 | AE91: 60.23 | AF91: 52.91 | AG91: 142.27 | AH91: … | AI91: … | AJ91: … | AK91: … | AL91: 67.24 | AM91: … | AN91: 0.157 | AO91: 0.1764 | AP91: 1.0783 | AQ91: 0.3690440126 | AR91: … | AS91: 2.2928048 | AT91: 0.129411194 | AU91: 0.1433003 | AV91: 0.0287 | AW91: 1299.43 | AX91: … | AY91: 36.94 | AZ91: … | BA91: 161.3628116 | BB91: … | BC91: 0.6449 | BD91: … | BE91: 0.4264 | BF91: 12 | BG91: 68.5 | BH91: 46.5 | BI91: 49.25 | BJ91: 25.5 | BK91: 540.1318359 | BL91: 8.86 | BM91: 1243.85 | BN91: 220.2 | BO91: 3302.5 | BP91: 1935.7 | BQ91: 279.5 | BR91: 34.95 | BS91: 102.93 | BT91: 1.293
A92: 1967M02 | B92: 1.33 | C92: 1.33 | D92: 1.33 | E92: … | F92: … | G92: … | H92: 0.16 | I92: 0.4566473763 | J92: … | K92: … | L92: 0.6078 | M92: 0.8441 | N92: 0.7286101 | O92: 0.8402 | P92: 0.7308007 | Q92: 0.7986667 | R92: 0.9911996 | S92: 316.9 | T92: … | U92: … | V92: 297.07 | W92: 230.66 | X92: … | Y92: 116.84 | Z92: 225 | AA92: 101.3 | AB92: … | AC92: … | AD92: 27.30021162 | AE92: 59.05 | AF92: 52.91 | AG92: 151.45 | AH92: … | AI92: … | AJ92: … | AK92: … | AL92: 67.98 | AM92: … | AN92: 0.143 | AO92: 0.1474 | AP92: 1.0642 | AQ92: 0.3692617268 | AR92: … | AS92: 2.2928048 | AT92: 0.129411194 | AU92: 0.14550492 | AV92: 0.037 | AW92: 1299.43 | AX92: … | AY92: 37.5 | AZ92: … | BA92: 162.6791954 | BB92: … | BC92: 0.6596 | BD92: … | BE92: 0.4085 | BF92: 12 | BG92: 68.5 | BH92: 46.5 | BI92: 49.25 | BJ92: 25.5 | BK92: 540.1318359 | BL92: 8.86 | BM92: 1220.48 | BN92: 221.8 | BO92: 3309.1 | BP92: 1935.7 | BQ92: 282.2 | BR92: 34.95 | BS92: 110.5 | BT92: 1.293
A93: 1967M03 | B93: 1.33 | C93: 1.33 | D93: 1.33 | E93: … | F93: … | G93: … | H93: 0.16 | I93: 0.4566473763 | J93: … | K93: … | L93: 0.5952 | M93: 0.8228 | N93: 0.7257441 | O93: 0.8402 | P93: 0.7308007 | Q93: 0.7986667 | R93: 0.9911996 | S93: 314.2 | T93: … | U93: … | V93: 300.65 | W93: 223.22 | X93: … | Y93: 115.74 | Z93: 231 | AA93: 98 | AB93: … | AC93: … | AD93: 27.68090395 | AE93: 59.05 | AF93: 54.89 | AG93: 163.53 | AH93: … | AI93: … | AJ93: … | AK93: … | AL93: 69.81 | AM93: … | AN93: 0.162 | AO93: 0.1592 | AP93: 1.0448 | AQ93: 0.3694627993 | AR93: … | AS93: 2.2928048 | AT93: 0.129411194 | AU93: 0.14550492 | AV93: 0.0346 | AW93: 1299.43 | AX93: … | AY93: 38.33 | AZ93: … | BA93: 164.6137443 | BB93: … | BC93: 0.6636 | BD93: … | BE93: 0.4083 | BF93: 12 | BG93: 68.5 | BH93: 46.5 | BI93: 49.25 | BJ93: 25.5 | BK93: 540.1318359 | BL93: 8.86 | BM93: 1098.34 | BN93: 228.4 | BO93: 3318 | BP93: 1935.7 | BQ93: 279.3 | BR93: 34.95 | BS93: 110.5 | BT93: 1.293
A94: 1967M04 | B94: 1.33 | C94: 1.33 | D94: 1.33 | E94: … | F94: … | G94: … | H94: 0.16 | I94: 0.4566473763 | J94: … | K94: … | L94: 0.5754 | M94: 0.8508 | N94: 0.7471284 | O94: 0.8402 | P94: 0.7308007 | Q94: 0.7986667 | R94: 0.9911996 | S94: 305.1 | T94: … | U94: … | V94: 292.39 | W94: 223.22 | X94: … | Y94: 116.29 | Z94: 227 | AA94: 95.8 | AB94: … | AC94: … | AD94: 27.26641317 | AE94: 57.87 | AF94: 54.23 | AG94: 168.53 | AH94: … | AI94: … | AJ94: … | AK94: … | AL94: 68.34 | AM94: … | AN94: 0.164 | AO94: 0.157 | AP94: 1.0569 | AQ94: 0.3698285862 | AR94: … | AS94: 2.2928048 | AT94: 0.129411194 | AU94: 0.14550492 | AV94: 0.0452 | AW94: 1299.43 | AX94: … | AY94: 38.33 | AZ94: … | BA94: 164.6137443 | BB94: … | BC94: 0.6614 | BD94: … | BE94: 0.4114 | BF94: 12 | BG94: 68.5 | BH94: 46.5 | BI94: 49.25 | BJ94: 25.5 | BK94: 540.1318359 | BL94: 8.86 | BM94: 994.72 | BN94: 226.6 | BO94: 3351 | BP94: 1935.7 | BQ94: 272.1 | BR94: 34.95 | BS94: 110.5 | BT94: 1.293
A95: 1967M05 | B95: 1.33 | C95: 1.33 | D95: 1.33 | E95: … | F95: … | G95: … | H95: 0.16 | I95: 0.4566473763 | J95: … | K95: … | L95: 0.5688 | M95: 0.8891 | N95: 0.7702765 | O95: 0.8402 | P95: 0.7308007 | Q95: 0.7986667 | R95: 0.9911996 | S95: 283.8 | T95: … | U95: … | V95: 288.8 | W95: 223.77 | X95: … | Y95: 116.29 | Z95: 224 | AA95: 94.7 | AB95: … | AC95: … | AD95: 27.1821742 | AE95: 57.08 | AF95: 54.45 | AG95: 175.8 | AH95: … | AI95: … | AJ95: … | AK95: … | AL95: 68.34 | AM95: … | AN95: 0.1499 | AO95: 0.1474 | AP95: 1.0351 | AQ95: 0.3703713238 | AR95: … | AS95: 2.2928048 | AT95: 0.129411194 | AU95: 0.14770954 | AV95: 0.056 | AW95: 1299.43 | AX95: … | AY95: 38.89 | AZ95: … | BA95: 165.9081117 | BB95: … | BC95: 0.6614 | BD95: … | BE95: 0.4039 | BF95: 12 | BG95: 68.5 | BH95: 46.5 | BI95: 49.25 | BJ95: 25.5 | BK95: 540.1318359 | BL95: 8.86 | BM95: 1036.17 | BN95: 226.2 | BO95: 3357.6 | BP95: 1935.7 | BQ95: 275.1 | BR95: 34.95 | BS95: 110.5 | BT95: 1.2959
A96: 1967M06 | B96: 1.33 | C96: 1.33 | D96: 1.33 | E96: … | F96: … | G96: … | H96: 0.16 | I96: 0.4566473763 | J96: … | K96: … | L96: 0.5792 | M96: 0.9092 | N96: 0.7824016 | O96: 0.8402 | P96: 0.7308007 | Q96: 0.7986667 | R96: 0.9911996 | S96: 319.7 | T96: … | U96: … | V96: 293.76 | W96: 229.28 | X96: … | Y96: 117.4 | Z96: 226 | AA96: 98.9 | AB96: … | AC96: … | AD96: 26.89027256 | AE96: 57.08 | AF96: 52.91 | AG96: 184.54 | AH96: … | AI96: … | AJ96: … | AK96: … | AL96: 66.51 | AM96: … | AN96: 0.1609 | AO96: 0.159 | AP96: 1.0362 | AQ96: 0.3717870654 | AR96: … | AS96: 2.2928048 | AT96: 0.129411194 | AU96: 0.14770954 | AV96: 0.0547 | AW96: 1299.43 | AX96: … | AY96: 38.89 | AZ96: … | BA96: 165.9081117 | BB96: … | BC96: 0.6667 | BD96: … | BE96: 0.4112 | BF96: 12 | BG96: 68.5 | BH96: 46.5 | BI96: 49.25 | BJ96: 25.5 | BK96: 540.1318359 | BL96: 8.86 | BM96: 1015.22 | BN96: 228.2 | BO96: 3366.5 | BP96: 1935.7 | BQ96: 274.3 | BR96: 34.95 | BS96: 110.5 | BT96: 1.301
A97: 1967M07 | B97: 1.33 | C97: 1.33 | D97: 1.33 | E97: … | F97: … | G97: … | H97: 0.16 | I97: 0.4566473763 | J97: … | K97: … | L97: 0.5686 | M97: 0.9026 | N97: 0.7407352 | O97: 0.8402 | P97: 0.7308007 | Q97: 0.7986667 | R97: 0.9911996 | S97: 318.3 | T97: … | U97: … | V97: 294.59 | W97: 228.73 | X97: … | Y97: 115.19 | Z97: 212 | AA97: 98.9 | AB97: … | AC97: … | AD97: 26.27104018 | AE97: 55.12 | AF97: 52.03 | AG97: 206.24 | AH97: … | AI97: … | AJ97: … | AK97: … | AL97: 64.67 | AM97: … | AN97: 0.159 | AO97: 0.159 | AP97: 1.0353 | AQ97: 0.3725165369 | AR97: … | AS97: 2.2928048 | AT97: 0.129411194 | AU97: 0.14770954 | AV97: 0.037 | AW97: 1299.43 | AX97: … | AY97: 38.89 | AZ97: … | BA97: 165.9081117 | BB97: … | BC97: 0.668 | BD97: … | BE97: 0.3988 | BF97: 12 | BG97: 68.5 | BH97: 43.5 | BI97: 49.25 | BJ97: 25.5 | BK97: 540.1318359 | BL97: 8.86 | BM97: 997.37 | BN97: 231.3 | BO97: 3362 | BP97: 1935.7 | BQ97: 267.2 | BR97: 34.95 | BS97: 110.5 | BT97: 1.5929
A98: 1967M08 | B98: 1.33 | C98: 1.33 | D98: 1.33 | E98: … | F98: … | G98: … | H98: 0.16 | I98: 0.4566473763 | J98: … | K98: … | L98: 0.5855 | M98: 0.8761 | N98: 0.7175872 | O98: 0.8402 | P98: 0.7308007 | Q98: 0.7986667 | R98: 0.9911996 | S98: 310 | T98: … | U98: … | V98: 291.56 | W98: 228.73 | X98: … | Y98: 111.13 | Z98: 210 | AA98: 98.9 | AB98: … | AC98: … | AD98: 25.64879656 | AE98: 51.97 | AF98: 50.26 | AG98: 207.22 | AH98: … | AI98: … | AJ98: … | AK98: … | AL98: 63.93 | AM98: … | AN98: 0.1499 | AO98: 0.159 | AP98: 1.0285 | AQ98: 0.3732474397 | AR98: … | AS98: 2.2928048 | AT98: 0.129411194 | AU98: 0.14770954 | AV98: 0.0362 | AW98: 1299.43 | AX98: … | AY98: 38.89 | AZ98: … | BA98: 165.9081117 | BB98: … | BC98: 0.6775 | BD98: … | BE98: 0.3748 | BF98: 12 | BG98: 68.5 | BH98: 43.5 | BI98: 49.25 | BJ98: 25.5 | BK98: 540.1318359 | BL98: 8.86 | BM98: 1044.55 | BN98: 232.3 | BO98: 3291.5 | BP98: 1935.7 | BQ98: 268.7 | BR98: 34.95 | BS98: 110.5 | BT98: 1.7498
A99: 1967M09 | B99: 1.33 | C99: 1.33 | D99: 1.33 | E99: … | F99: … | G99: … | H99: 0.16 | I99: 0.4566473763 | J99: … | K99: … | L99: 0.6239 | M99: 0.8607 | N99: 0.7239805 | O99: 0.8402 | P99: 0.7308007 | Q99: 0.7986667 | R99: 0.9911996 | S99: 324.9 | T99: … | U99: … | V99: 275.3 | W99: 225.15 | X99: … | Y99: 111.06 | Z99: 206 | AA99: 98.9 | AB99: … | AC99: … | AD99: 25.07862494 | AE99: 49.21 | AF99: 49.6 | AG99: 221.64 | AH99: … | AI99: … | AJ99: … | AK99: … | AL99: 63.2 | AM99: … | AN99: 0.1799 | AO99: 0.159 | AP99: 1.0384 | AQ99: 0.3739797765 | AR99: … | AS99: 2.2928048 | AT99: 0.129411194 | AU99: 0.14770954 | AV99: 0.037 | AW99: 1299.43 | AX99: … | AY99: 40.28 | AZ99: … | BA99: 169.084361 | BB99: … | BC99: 0.6909 | BD99: … | BE99: 0.3649 | BF99: 12 | BG99: 68.5 | BH99: 43.5 | BI99: 49.25 | BJ99: 25.5 | BK99: 540.1318359 | BL99: 8.86 | BM99: 1060.2 | BN99: 226.9 | BO99: 3267.2 | BP99: 1935.7 | BQ99: 264.6 | BR99: 34.95 | BS99: 110.5 | BT99: 1.6795
A100: 1967M10 | B100: 1.33 | C100: 1.33 | D100: 1.33 | E100: … | F100: … | G100: … | H100: 0.16 | I100: 0.4566473763 | J100: … | K100: … | L100: 0.6078 | M100: 0.8472 | N100: 0.729492 | O100: 0.8402 | P100: 0.7308007 | Q100: 0.7986667 | R100: 0.9911996 | S100: 350.5 | T100: … | U100: … | V100: 259.04 | W100: 221.56 | X100: … | Y100: 109.96 | Z100: 203 | AA100: 98.9 | AB100: … | AC100: … | AD100: 24.97713143 | AE100: 48.03 | AF100: 49.38 | AG100: 224.12 | AH100: … | AI100: … | AJ100: … | AK100: … | AL100: 63.57 | AM100: … | AN100: 0.179 | AO100: 0.159 | AP100: 1.0432 | AQ100: 0.3747135502 | AR100: … | AS100: 2.2928048 | AT100: 0.129411194 | AU100: 0.14991416 | AV100: 0.0428 | AW100: 1299.43 | AX100: … | AY100: 41.67 | AZ100: … | BA100: 172.2105768 | BB100: … | BC100: 0.7024 | BD100: … | BE100: 0.3618 | BF100: 12 | BG100: 68.5 | BH100: 43.5 | BI100: 49.25 | BJ100: 25.5 | BK100: 540.1318359 | BL100: 8.86 | BM100: 1138.47 | BN100: 225.7 | BO100: 3280.5 | BP100: 1935.7 | BQ100: 263.9 | BR100: 34.95 | BS100: 110.5 | BT100: 1.7859
A101: 1967M11 | B101: 1.33 | C101: 1.33 | D101: 1.33 | E101: … | F101: … | G101: … | H101: 0.16 | I101: 0.4566473763 | J101: … | K101: … | L101: 0.6442 | M101: 0.8666 | N101: 0.7477898 | O101: 0.8402 | P101: 0.7308007 | Q101: 0.7986667 | R101: 0.9911996 | S101: 376.2 | T101: … | U101: … | V101: 248.02 | W101: 217.98 | X101: … | Y101: 116.02 | Z101: 211 | AA101: 98.9 | AB101: … | AC101: … | AD101: 24.81447247 | AE101: 47.64 | AF101: 48.94 | AG101: 213.57 | AH101: … | AI101: … | AJ101: … | AK101: … | AL101: 62.83 | AM101: … | AN101: 0.1649 | AO101: 0.159 | AP101: 1.0126 | AQ101: 0.3754487637 | AR101: … | AS101: 2.2928048 | AT101: 0.129411194 | AU101: 0.14991416 | AV101: 0.0485 | AW101: 1299.43 | AX101: … | AY101: 41.67 | AZ101: … | BA101: 172.2105768 | BB101: … | BC101: 0.7055 | BD101: … | BE101: 0.3541 | BF101: 12 | BG101: 68.5 | BH101: 43.5 | BI101: 49.25 | BJ101: 25.5 | BK101: 540.1318359 | BL101: 8.86 | BM101: 1443.81 | BN101: 242.1 | BO101: 3298.1 | BP101: 1935.7 | BQ101: 287 | BR101: 34.95 | BS101: 110.5 | BT101: 1.9532
A102: 1967M12 | B102: 1.33 | C102: 1.33 | D102: 1.33 | E102: … | F102: … | G102: … | H102: 0.16 | I102: 0.4566473763 | J102: … | K102: … | L102: 0.6471 | M102: 0.8512 | N102: 0.7499944 | O102: 0.7915 | P102: 0.5846411 | Q102: 0.7986667 | R102: 0.9911996 | S102: 386.7 | T102: … | U102: … | V102: 250.85 | W102: 194.87 | X102: … | Y102: 113.38 | Z102: 196 | AA102: 98.9 | AB102: … | AC102: … | AD102: 24.589256 | AE102: 46.9 | AF102: 50.26 | AG102: 213.57 | AH102: … | AI102: … | AJ102: … | AK102: … | AL102: 62.1 | AM102: … | AN102: 0.134 | AO102: 0.1667 | AP102: 1.0201 | AQ102: 0.3761854197 | AR102: … | AS102: 2.2928048 | AT102: 0.129411194 | AU102: 0.14770954 | AV102: 0.047 | AW102: 1299.43 | AX102: … | AY102: 41.67 | AZ102: … | BA102: 172.2105768 | BB102: … | BC102: 0.7165 | BD102: … | BE102: 0.3574 | BF102: 12 | BG102: 68.5 | BH102: 43.5 | BI102: 49.25 | BJ102: 25.5 | BK102: 540.1318359 | BL102: 8.86 | BM102: 1324.09 | BN102: 222.4 | BO102: 3192.3 | BP102: 1935.7 | BQ102: 266.1 | BR102: 34.95 | BS102: 115.05 | BT102: 2.06
A103: 1968M01 | B103: 1.32 | C103: 1.32 | D103: 1.32 | E103: … | F103: … | G103: … | H103: 0.16 | I103: 0.4518018774 | J103: … | K103: … | L103: 0.6543 | M103: 0.866 | N103: 0.7596945 | O103: 0.7487 | P103: 0.6770413 | Q103: 0.7333334 | R103: 0.8357997 | S103: 398 | T103: … | U103: … | V103: 251.33 | W103: 191.33 | X103: … | Y103: 114.09 | Z103: 196 | AA103: 97 | AB103: … | AC103: … | AD103: 25.45191586 | AE103: 51.57 | AF103: 55.6 | AG103: 198.78 | AH103: … | AI103: … | AJ103: … | AK103: … | AL103: 62.1 | AM103: … | AN103: 0.114 | AO103: 0.1628 | AP103: 1.026 | AQ103: 0.3766110917 | AR103: … | AS103: 2.5794054 | AT103: 0.112215158 | AU103: 0.14991416 | AV103: 0.0467 | AW103: 1253.81 | AX103: … | AY103: 41.67 | AZ103: … | BA103: 172.2105768 | BB103: … | BC103: 0.7165 | BD103: … | BE103: 0.347 | BF103: 11.5 | BG103: 60.5 | BH103: 39 | BI103: 35.5 | BJ103: 24 | BK103: 540.1318359 | BL103: 8.77 | BM103: 1408.75 | BN103: 218 | BO103: 3126.2 | BP103: 2074.5 | BQ103: 262.8 | BR103: 35.5 | BS103: 114 | BT103: 1.9899
A104: 1968M02 | B104: 1.32 | C104: 1.32 | D104: 1.32 | E104: … | F104: … | G104: … | H104: 0.16 | I104: 0.4518018774 | J104: … | K104: … | L104: 0.6321 | M104: 0.8691 | N104: 0.7566082 | O104: 0.7487 | P104: 0.6770413 | Q104: 0.7333334 | R104: 0.8357997 | S104: 412.2 | T104: … | U104: … | V104: 255.34 | W104: 191.33 | X104: … | Y104: 114.56 | Z104: 193 | AA104: 97 | AB104: … | AC104: … | AD104: 25.56406273 | AE104: 51.18 | AF104: 58.1 | AG104: 207.03 | AH104: … | AI104: … | AJ104: … | AK104: … | AL104: 62.83 | AM104: … | AN104: 0.166 | AO104: 0.1706 | AP104: 1.0226 | AQ104: 0.3779388041 | AR104: … | AS104: 2.5794054 | AT104: 0.112215158 | AU104: 0.14991416 | AV104: 0.0461 | AW104: 1248.52 | AX104: … | AY104: 41.67 | AZ104: … | BA104: 172.2105768 | BB104: … | BC104: 0.7128 | BD104: … | BE104: 0.3269 | BF104: 11.5 | BG104: 60.5 | BH104: 39 | BI104: 35.5 | BJ104: 24 | BK104: 540.1318359 | BL104: 8.77 | BM104: 1719.82 | BN104: 227.5 | BO104: 3110.7 | BP104: 2074.5 | BQ104: 259.7 | BR104: 36 | BS104: 111.5 | BT104: 1.8547
A105: 1968M03 | B105: 1.32 | C105: 1.32 | D105: 1.32 | E105: … | F105: … | G105: … | H105: 0.16 | I105: 0.4518018774 | J105: … | K105: … | L105: 0.6235 | M105: 0.8821 | N105: 0.7548445 | O105: 0.7487 | P105: 0.6770413 | Q105: 0.7333334 | R105: 0.8357997 | S105: 423 | T105: … | U105: … | V105: 256.52 | W105: 191.33 | X105: … | Y105: 115.51 | Z105: 191 | AA105: 96 | AB105: … | AC105: … | AD105: 25.53764357 | AE105: 50 | AF105: 57 | AG105: 209.78 | AH105: … | AI105: … | AJ105: … | AK105: … | AL105: 63.57 | AM105: … | AN105: 0.162 | AO105: 0.1807 | AP105: 1.0251 | AQ105: 0.3791032216 | AR105: … | AS105: 2.5794054 | AT105: 0.112215158 | AU105: 0.14991416 | AV105: 0.0417 | AW105: 1234.74 | AX105: … | AY105: 41.67 | AZ105: … | BA105: 172.2105768 | BB105: … | BC105: 0.7099 | BD105: … | BE105: 0.3563 | BF105: 11.5 | BG105: 60.5 | BH105: 39 | BI105: 35.5 | BJ105: 24 | BK105: 540.1318359 | BL105: 8.77 | BM105: 1701.08 | BN105: 233.9 | BO105: 3112.9 | BP105: 2074.5 | BQ105: 257.5 | BR105: 37 | BS105: 111.5 | BT105: 2.1805
A106: 1968M04 | B106: 1.32 | C106: 1.32 | D106: 1.32 | E106: … | F106: … | G106: … | H106: 0.16 | I106: 0.4518018774 | J106: … | K106: … | L106: 0.6288 | M106: 0.886 | N106: 0.7533013 | O106: 0.7487 | P106: 0.6770413 | Q106: 0.7333334 | R106: 0.8357997 | S106: 435.8 | T106: … | U106: … | V106: 259.59 | W106: 188.97 | X106: … | Y106: 113.14 | Z106: 190 | AA106: 95 | AB106: … | AC106: … | AD106: 24.88921296 | AE106: 48.03 | AF106: 57 | AG106: 197.01 | AH106: … | AI106: … | AJ106: … | AK106: … | AL106: 61.73 | AM106: … | AN106: 0.1744 | AO106: 0.1818 | AP106: 1.0459 | AQ106: 0.3802694627 | AR106: … | AS106: 2.5794054 | AT106: 0.112215158 | AU106: 0.14991416 | AV106: 0.0388 | AW106: 1210.46 | AX106: … | AY106: 41.67 | AZ106: … | BA106: 172.2105768 | BB106: … | BC106: 0.711 | BD106: … | BE106: 0.3587 | BF106: 11.5 | BG106: 60.5 | BH106: 39 | BI106: 35.5 | BJ106: 24 | BK106: 540.1318359 | BL106: 8.77 | BM106: 1255.09 | BN106: 235 | BO106: 3106.3 | BP106: 2074.5 | BQ106: 258.2 | BR106: 37.86 | BS106: 111.5 | BT106: 2.2028
A107: 1968M05 | B107: 1.32 | C107: 1.32 | D107: 1.32 | E107: … | F107: … | G107: … | H107: 0.16 | I107: 0.4518018774 | J107: … | K107: … | L107: 0.6243 | M107: 0.8816 | N107: 0.7550649 | O107: 0.7487 | P107: 0.6770413 | Q107: 0.7333334 | R107: 0.8357997 | S107: 439.8 | T107: … | U107: … | V107: 271.64 | W107: 186.13 | X107: … | Y107: 114.32 | Z107: 189 | AA107: 96 | AB107: … | AC107: … | AD107: 24.72536842 | AE107: 48.42 | AF107: 53.1 | AG107: 187.09 | AH107: … | AI107: … | AJ107: … | AK107: … | AL107: 60.26 | AM107: … | AN107: 0.183 | AO107: 0.1918 | AP107: 1.0785 | AQ107: 0.3817809296 | AR107: … | AS107: 2.5794054 | AT107: 0.112215158 | AU107: 0.15211878 | AV107: 0.0414 | AW107: 1200.88 | AX107: … | AY107: 41.67 | AZ107: … | BA107: 172.2105768 | BB107: … | BC107: 0.7097 | BD107: … | BE107: 0.3704 | BF107: 11.5 | BG107: 60.5 | BH107: 39 | BI107: 35.5 | BJ107: 24 | BK107: 540.1318359 | BL107: 8.77 | BM107: 1096.58 | BN107: 237.7 | BO107: 3084.3 | BP107: 2074.5 | BQ107: 261.5 | BR107: 40.7 | BS107: 111.5 | BT107: 2.3768
A108: 1968M06 | B108: 1.32 | C108: 1.32 | D108: 1.32 | E108: … | F108: … | G108: … | H108: 0.16 | I108: 0.4518018774 | J108: … | K108: … | L108: 0.6133 | M108: 0.888 | N108: 0.7566082 | O108: 0.7487 | P108: 0.6770413 | Q108: 0.7333334 | R108: 0.8357997 | S108: 406.8 | T108: … | U108: … | V108: 279.2 | W108: 174.79 | X108: … | Y108: 111.96 | Z108: 178 | AA108: 96 | AB108: … | AC108: … | AD108: 24.90161395 | AE108: 47.64 | AF108: 51.3 | AG108: 179.34 | AH108: … | AI108: … | AJ108: … | AK108: … | AL108: 61.73 | AM108: … | AN108: 0.1523 | AO108: 0.1587 | AP108: 1.1062 | AQ108: 0.3831268677 | AR108: … | AS108: 2.5794054 | AT108: 0.112215158 | AU108: 0.1543234 | AV108: 0.0384 | AW108: 1205.41 | AX108: … | AY108: 38.89 | AZ108: … | BA108: 165.9081117 | BB108: … | BC108: 0.7 | BD108: … | BE108: 0.3986 | BF108: 11.5 | BG108: 60.5 | BH108: 39 | BI108: 35.5 | BJ108: 24 | BK108: 562.1779785 | BL108: 8.77 | BM108: 1136.7 | BN108: 238.5 | BO108: 3084.3 | BP108: 2074.5 | BQ108: 262.1 | BR108: 41.14 | BS108: 111.5 | BT108: 2.4641
A109: 1968M07 | B109: 1.32 | C109: 1.32 | D109: 1.32 | E109: … | F109: … | G109: … | H109: 0.16 | I109: 0.4518018774 | J109: … | K109: … | L109: 0.6257 | M109: 0.8814 | N109: 0.749774 | O109: 0.7487 | P109: 0.6770413 | Q109: 0.7333334 | R109: 0.8357997 | S109: 377.9 | T109: … | U109: … | V109: 261.25 | W109: 172.43 | X109: … | Y109: 110.78 | Z109: 162 | AA109: 96 | AB109: … | AC109: … | AD109: 25.20781033 | AE109: 47.24 | AF109: 49.8 | AG109: 181.69 | AH109: … | AI109: … | AJ109: … | AK109: … | AL109: 63.57 | AM109: … | AN109: 0.1585 | AO109: 0.1587 | AP109: 1.0992 | AQ109: 0.3844775509 | AR109: … | AS109: 2.5794054 | AT109: 0.112215158 | AU109: 0.1543234 | AV109: 0.0359 | AW109: 1173.9 | AX109: … | AY109: 38.89 | AZ109: … | BA109: 165.9081117 | BB109: … | BC109: 0.6918 | BD109: … | BE109: 0.3913 | BF109: 11.5 | BG109: 60.5 | BH109: 36 | BI109: 35.5 | BJ109: 24 | BK109: 562.1779785 | BL109: 8.77 | BM109: 1054.25 | BN109: 247.1 | BO109: 3075.4 | BP109: 2074.5 | BQ109: 265.7 | BR109: 39.46 | BS109: 122.5 | BT109: 2.3138
A110: 1968M08 | B110: 1.32 | C110: 1.32 | D110: 1.32 | E110: … | F110: … | G110: … | H110: 0.16 | I110: 0.4518018774 | J110: … | K110: … | L110: 0.6526 | M110: 0.8662 | N110: 0.7475694 | O110: 0.7487 | P110: 0.6770413 | Q110: 0.7333334 | R110: 0.8357997 | S110: 385.5 | T110: … | U110: … | V110: 266.68 | W110: 150.23 | X110: … | Y110: 105.82 | Z110: 157 | AA110: 96 | AB110: … | AC110: … | AD110: 24.87051229 | AE110: 44.88 | AF110: 46.9 | AG110: 177.69 | AH110: … | AI110: … | AJ110: … | AK110: … | AL110: 63.93 | AM110: … | AN110: 0.1378 | AO110: 0.1587 | AP110: 1.0968 | AQ110: 0.3858329958 | AR110: … | AS110: 2.5794054 | AT110: 0.112215158 | AU110: 0.1543234 | AV110: 0.0337 | AW110: 1180.58 | AX110: … | AY110: 38.89 | AZ110: … | BA110: 165.9081117 | BB110: … | BC110: 0.6837 | BD110: … | BE110: 0.3979 | BF110: 11.5 | BG110: 60.5 | BH110: 36 | BI110: 35.5 | BJ110: 24 | BK110: 562.1779785 | BL110: 8.77 | BM110: 1056.45 | BN110: 250.2 | BO110: 3062.2 | BP110: 2074.5 | BQ110: 269 | BR110: 39.19 | BS110: 122.5 | BT110: 2.1946
A111: 1968M09 | B111: 1.32 | C111: 1.32 | D111: 1.32 | E111: … | F111: … | G111: … | H111: 0.16 | I111: 0.4518018774 | J111: … | K111: … | L111: 0.7747 | M111: 0.8538 | N111: 0.749333 | O111: 0.7487 | P111: 0.6770413 | Q111: 0.7333334 | R111: 0.8357997 | S111: 375.6 | T111: … | U111: … | V111: 272.82 | W111: 141.73 | X111: … | Y111: 105.35 | Z111: 161 | AA111: 99 | AB111: … | AC111: … | AD111: 24.69520969 | AE111: 44.09 | AF111: 47.3 | AG111: 175.8 | AH111: … | AI111: … | AJ111: … | AK111: … | AL111: 63.57 | AM111: … | AN111: 0.1647 | AO111: 0.1587 | AP111: 1.1587 | AQ111: 0.3877028787 | AR111: … | AS111: 2.5794054 | AT111: 0.112215158 | AU111: 0.1543234 | AV111: 0.0304 | AW111: 1228.75 | AX111: … | AY111: 38.89 | AZ111: … | BA111: 165.9081117 | BB111: … | BC111: 0.6634 | BD111: … | BE111: 0.3942 | BF111: 11.5 | BG111: 60.5 | BH111: 36 | BI111: 35.5 | BJ111: 24 | BK111: 562.1779785 | BL111: 8.77 | BM111: 1110.03 | BN111: 251.5 | BO111: 3071 | BP111: 2074.5 | BQ111: 263 | BR111: 40.18 | BS111: 122.5 | BT111: 2.2085
A112: 1968M10 | B112: 1.32 | C112: 1.32 | D112: 1.32 | E112: … | F112: … | G112: … | H112: 0.16 | I112: 0.4518018774 | J112: … | K112: … | L112: 0.8305 | M112: 0.8545 | N112: 0.7400739 | O112: 0.7487 | P112: 0.6770413 | Q112: 0.7333334 | R112: 0.8357997 | S112: 373.7 | T112: … | U112: … | V112: 269.75 | W112: 141.73 | X112: … | Y112: 104.17 | Z112: 166 | AA112: 98 | AB112: … | AC112: … | AD112: 24.88857438 | AE112: 44.88 | AF112: 48.8 | AG112: 163.72 | AH112: … | AI112: … | AJ112: … | AK112: … | AL112: 63.57 | AM112: … | AN112: 0.1532 | AO112: 0.1587 | AP112: 1.1704 | AQ112: 0.3889008771 | AR112: … | AS112: 2.5794054 | AT112: 0.112215158 | AU112: 0.15652802 | AV112: 0.039 | AW112: 1183.73 | AX112: … | AY112: 38.89 | AZ112: … | BA112: 165.9081117 | BB112: … | BC112: 0.6563 | BD112: … | BE112: 0.4103 | BF112: 11.5 | BG112: 60.5 | BH112: 36 | BI112: 35.5 | BJ112: 24 | BK112: 562.1779785 | BL112: 8.77 | BM112: 1079.82 | BN112: 247.8 | BO112: 3110.7 | BP112: 2074.5 | BQ112: 262.1 | BR112: 39.21 | BS112: 122.5 | BT112: 1.9728
A113: 1968M11 | B113: 1.32 | C113: 1.32 | D113: 1.32 | E113: … | F113: … | G113: … | H113: 0.16 | I113: 0.4518018774 | J113: … | K113: … | L113: 0.9661 | M113: 0.8486 | N113: 0.7233191 | O113: 0.7487 | P113: 0.6770413 | Q113: 0.7333334 | R113: 0.8357997 | S113: 376 | T113: … | U113: … | V113: 284.63 | W113: 143.14 | X113: … | Y113: 108.89 | Z113: 173 | AA113: 97 | AB113: … | AC113: … | AD113: 25.66779827 | AE113: 49.21 | AF113: 52 | AG113: 157.14 | AH113: … | AI113: … | AJ113: … | AK113: … | AL113: 63.2 | AM113: … | AN113: 0.1373 | AO113: 0.1587 | AP113: 1.1034 | AQ113: 0.3901008409 | AR113: … | AS113: 2.5794054 | AT113: 0.112215158 | AU113: 0.1543234 | AV113: 0.0509 | AW113: 1167.22 | AX113: … | AY113: 38.89 | AZ113: … | BA113: 165.9081117 | BB113: … | BC113: 0.6345 | BD113: … | BE113: 0.4176 | BF113: 11.5 | BG113: 60.5 | BH113: 36 | BI113: 35.5 | BJ113: 24 | BK113: 562.1779785 | BL113: 8.77 | BM113: 1099.88 | BN113: 248.5 | BO113: 3320.2 | BP113: 2074.5 | BQ113: 264.1 | BR113: 39.78 | BS113: 122.5 | BT113: 2.0178
A114: 1968M12 | B114: 1.32 | C114: 1.32 | D114: 1.32 | E114: … | F114: … | G114: … | H114: 0.16 | I114: 0.4518018774 | J114: … | K114: … | L114: 1.0247 | M114: 0.8267 | N114: 0.7094303 | O114: 0.7487 | P114: 0.6770413 | Q114: 0.7333334 | R114: 0.8357997 | S114: 386.9 | T114: … | U114: … | V114: 320.06 | W114: 152.83 | X114: … | Y114: 111.02 | Z114: 181 | AA114: 94 | AB114: … | AC114: … | AD114: 25.56693043 | AE114: 48.42 | AF114: 53.9 | AG114: 159.89 | AH114: … | AI114: … | AJ114: … | AK114: … | AL114: 63.2 | AM114: … | AN114: 0.1338 | AO114: 0.1762 | AP114: 1.0897 | AQ114: 0.3909507187 | AR114: … | AS114: 2.5794054 | AT114: 0.112215158 | AU114: 0.1543234 | AV114: 0.0602 | AW114: 1165.63 | AX114: … | AY114: 38.89 | AZ114: … | BA114: 165.9081117 | BB114: … | BC114: 0.6246 | BD114: … | BE114: 0.4162 | BF114: 11.5 | BG114: 60.5 | BH114: 36 | BI114: 35.5 | BJ114: 24 | BK114: 562.1779785 | BL114: 8.77 | BM114: 1184.98 | BN114: 250.2 | BO114: 3258.4 | BP114: 2074.5 | BQ114: 269 | BR114: 41.08 | BS114: 122.5 | BT114: 1.9593
A115: 1969M01 | B115: 1.27 | C115: 1.27 | D115: 1.27 | E115: … | F115: … | G115: … | H115: 0.17 | I115: 0.4518199182 | J115: … | K115: … | L115: 0.9378 | M115: 0.8261 | N115: 0.7065644 | O115: 0.7262 | P115: 0.5964011 | Q115: 0.8626667 | R115: 0.7195997 | S115: 398.7 | T115: … | U115: … | V115: 319.59 | W115: 158.26 | X115: … | Y115: 111.49 | Z115: 181 | AA115: 95 | AB115: … | AC115: … | AD115: 25.96496778 | AE115: 50.39 | AF115: 53.2 | AG115: 162.35 | AH115: … | AI115: … | AJ115: … | AK115: … | AL115: 63.2 | AM115: … | AN115: 0.1418 | AO115: 0.145 | AP115: 1.0873 | AQ115: 0.3925064999 | AR115: … | AS115: 2.866006 | AT115: 0.112215158 | AU115: 0.15652802 | AV115: 0.0635 | AW115: 1135.81 | AX115: … | AY115: 38.89 | AZ115: … | BA115: 165.9081117 | BB115: … | BC115: 0.625 | BD115: … | BE115: 0.4262 | BF115: 11.25 | BG115: 58 | BH115: 38.5 | BI115: 26.6 | BJ115: 22 | BK115: 573.2011719 | BL115: 9.84 | BM115: 1255.53 | BN115: 254.2 | BO115: 3227.6 | BP115: 2363.4 | BQ115: 269.4 | BR115: 42.3 | BS115: 122.5 | BT115: 1.9789
A116: 1969M02 | B116: 1.27 | C116: 1.27 | D116: 1.27 | E116: … | F116: … | G116: … | H116: 0.17 | I116: 0.4518199182 | J116: … | K116: … | L116: 0.9105 | M116: 0.8419 | N116: 0.7081076 | O116: 0.7262 | P116: 0.5964011 | Q116: 0.8626667 | R116: 0.7195997 | S116: 396.4 | T116: … | U116: … | V116: 346.05 | W116: 158.26 | X116: … | Y116: 109.36 | Z116: 185 | AA116: 95 | AB116: … | AC116: … | AD116: 25.93808894 | AE116: 50.39 | AF116: 54.1 | AG116: 160.48 | AH116: … | AI116: … | AJ116: … | AK116: … | AL116: 62.83 | AM116: … | AN116: 0.1413 | AO116: 0.1493 | AP116: 1.0911 | AQ116: 0.3939871603 | AR116: … | AS116: 2.866006 | AT116: 0.112215158 | AU116: 0.15652802 | AV116: 0.0688 | AW116: 1097.91 | AX116: … | AY116: 38.89 | AZ116: … | BA116: 165.9081117 | BB116: … | BC116: 0.6283 | BD116: … | BE116: 0.4707 | BF116: 11.25 | BG116: 58 | BH116: 38.5 | BI116: 26.6 | BJ116: 22 | BK116: 584.2243652 | BL116: 9.84 | BM116: 1285.29 | BN116: 258.4 | BO116: 3245.2 | BP116: 2363.4 | BQ116: 267.4 | BR116: 42.6 | BS116: 122.5 | BT116: 1.8397
A117: 1969M03 | B117: 1.27 | C117: 1.27 | D117: 1.27 | E117: … | F117: … | G117: … | H117: 0.17 | I117: 0.4518199182 | J117: … | K117: … | L117: 0.8984 | M117: 0.8294 | N117: 0.6871642 | O117: 0.7262 | P117: 0.5964011 | Q117: 0.8626667 | R117: 0.7195997 | S117: 388.1 | T117: … | U117: … | V117: 347.82 | W117: 179.52 | X117: … | Y117: 110.55 | Z117: 178 | AA117: 94 | AB117: … | AC117: … | AD117: 25.84218777 | AE117: 50.39 | AF117: 53.1 | AG117: 166.96 | AH117: … | AI117: … | AJ117: … | AK117: … | AL117: 62.1 | AM117: … | AN117: 0.1521 | AO117: 0.1664 | AP117: 1.125 | AQ117: 0.3952945487 | AR117: … | AS117: 2.866006 | AT117: 0.112215158 | AU117: 0.15873264 | AV117: 0.0774 | AW117: 1098.65 | AX117: … | AY117: 38.89 | AZ117: … | BA117: 165.9081117 | BB117: … | BC117: 0.6283 | BD117: … | BE117: 0.509 | BF117: 11.25 | BG117: 58 | BH117: 38.5 | BI117: 26.6 | BJ117: 22 | BK117: 584.2243652 | BL117: 9.84 | BM117: 1278.46 | BN117: 261.2 | BO117: 3243 | BP117: 2363.4 | BQ117: 271.6 | BR117: 43.16 | BS117: 122.5 | BT117: 1.8257
A118: 1969M04 | B118: 1.27 | C118: 1.27 | D118: 1.27 | E118: … | F118: … | G118: … | H118: 0.17 | I118: 0.4518199182 | J118: … | K118: … | L118: 0.8759 | M118: 0.8135 | N118: 0.6589457 | O118: 0.7262 | P118: 0.5964011 | Q118: 0.8626667 | R118: 0.7195997 | S118: 376.3 | T118: … | U118: … | V118: 340.14 | W118: 170.07 | X118: … | Y118: 110.07 | Z118: 167 | AA118: 95 | AB118: … | AC118: … | AD118: 26.09310282 | AE118: 51.57 | AF118: 51.9 | AG118: 165.2 | AH118: … | AI118: … | AJ118: … | AK118: … | AL118: 62.1 | AM118: … | AN118: 0.1512 | AO118: 0.1845 | AP118: 1.1632 | AQ118: 0.3969652587 | AR118: … | AS118: 2.866006 | AT118: 0.112215158 | AU118: 0.15873264 | AV118: 0.0805 | AW118: 1110.75 | AX118: … | AY118: 38.89 | AZ118: … | BA118: 165.9081117 | BB118: … | BC118: 0.6272 | BD118: … | BE118: 0.5192 | BF118: 11.25 | BG118: 58 | BH118: 38.5 | BI118: 26.6 | BJ118: 22 | BK118: 584.2243652 | BL118: 9.84 | BM118: 1388.03 | BN118: 268.3 | BO118: 3304.7 | BP118: 2363.4 | BQ118: 272.7 | BR118: 43.31 | BS118: 122.5 | BT118: 1.7781
A119: 1969M05 | B119: 1.27 | C119: 1.27 | D119: 1.27 | E119: … | F119: … | G119: … | H119: 0.17 | I119: 0.4518199182 | J119: … | K119: … | L119: 0.8089 | M119: 0.8093 | N119: 0.6496865 | O119: 0.7262 | P119: 0.5964011 | Q119: 0.8626667 | R119: 0.7195997 | S119: 353.1 | T119: … | U119: … | V119: 345.17 | W119: 166.29 | X119: … | Y119: 112.44 | Z119: 170 | AA119: 96 | AB119: … | AC119: … | AD119: 26.61187885 | AE119: 54.33 | AF119: 49.9 | AG119: 171.09 | AH119: … | AI119: … | AJ119: … | AK119: … | AL119: 62.1 | AM119: … | AN119: 0.1739 | AO119: 0.176 | AP119: 1.241 | AQ119: 0.3986411416 | AR119: … | AS119: 2.866006 | AT119: 0.112215158 | AU119: 0.15873264 | AV119: 0.0805 | AW119: 1114.63 | AX119: … | AY119: 38.89 | AZ119: … | BA119: 165.9081117 | BB119: … | BC119: 0.6327 | BD119: … | BE119: 0.4971 | BF119: 11.25 | BG119: 58 | BH119: 38.5 | BI119: 26.6 | BJ119: 22 | BK119: 584.2243652 | BL119: 9.84 | BM119: 1392.44 | BN119: 278.2 | BO119: 3355.4 | BP119: 2363.4 | BQ119: 278.9 | BR119: 43.46 | BS119: 122.5 | BT119: 1.761
A120: 1969M06 | B120: 1.27 | C120: 1.27 | D120: 1.27 | E120: … | F120: … | G120: … | H120: 0.17 | I120: 0.4518199182 | J120: … | K120: … | L120: 0.8929 | M120: 0.795 | N120: 0.6772437 | O120: 0.7262 | P120: 0.5964011 | Q120: 0.8626667 | R120: 0.7195997 | S120: 339 | T120: … | U120: … | V120: 315.1 | W120: 165.35 | X120: … | Y120: 109.6 | Z120: 173 | AA120: 99 | AB120: … | AC120: … | AD120: 26.58305778 | AE120: 54.33 | AF120: 49 | AG120: 178.75 | AH120: … | AI120: … | AJ120: … | AK120: … | AL120: 61.73 | AM120: … | AN120: 0.1609 | AO120: 0.176 | AP120: 1.312 | AQ120: 0.4006716515 | AR120: … | AS120: 2.866006 | AT120: 0.112215158 | AU120: 0.15873264 | AV120: 0.0803 | AW120: 1125.81 | AX120: … | AY120: 38.89 | AZ120: … | BA120: 165.9081117 | BB120: … | BC120: 0.6248 | BD120: … | BE120: 0.5126 | BF120: 11.25 | BG120: 58 | BH120: 38.5 | BI120: 26.6 | BJ120: 22 | BK120: 584.2243652 | BL120: 9.84 | BM120: 1483.04 | BN120: 285.5 | BO120: 3379.7 | BP120: 2363.4 | BQ120: 281.3 | BR120: 41.44 | BS120: 122.5 | BT120: 1.6455
A121: 1969M07 | B121: 1.27 | C121: 1.27 | D121: 1.27 | E121: … | F121: … | G121: … | H121: 0.17 | I121: 0.4518199182 | J121: … | K121: … | L121: 0.9312 | M121: 0.7776 | N121: 0.6871642 | O121: 0.7262 | P121: 0.5964011 | Q121: 0.8626667 | R121: 0.7195997 | S121: 326.9 | T121: … | U121: … | V121: 323.37 | W121: 161.8 | X121: … | Y121: 101.57 | Z121: 180 | AA121: 95 | AB121: … | AC121: … | AD121: 26.26711376 | AE121: 53.93 | AF121: 51.5 | AG121: 180.51 | AH121: … | AI121: … | AJ121: … | AK121: … | AL121: 60.26 | AM121: … | AN121: 0.1539 | AO121: 0.176 | AP121: 1.3014 | AQ121: 0.4014746676 | AR121: … | AS121: 2.866006 | AT121: 0.112215158 | AU121: 0.14991416 | AV121: 0.0765 | AW121: 1149.61 | AX121: … | AY121: 38.89 | AZ121: … | BA121: 165.9081117 | BB121: … | BC121: 0.6138 | BD121: … | BE121: 0.5437 | BF121: 11.25 | BG121: 58 | BH121: 40 | BI121: 26.6 | BJ121: 22 | BK121: 584.2243652 | BL121: 9.84 | BM121: 1453.95 | BN121: 311.1 | BO121: 3439.2 | BP121: 2363.4 | BQ121: 283.7 | BR121: 41.76 | BS121: 122.5 | BT121: 1.6183
A122: 1969M08 | B122: 1.27 | C122: 1.27 | D122: 1.27 | E122: … | F122: … | G122: … | H122: 0.17 | I122: 0.4518199182 | J122: … | K122: … | L122: 0.9143 | M122: 0.8126 | N122: 0.724642 | O122: 0.7262 | P122: 0.5964011 | Q122: 0.8626667 | R122: 0.7195997 | S122: 330.7 | T122: … | U122: … | V122: 309.91 | W122: 171.49 | X122: … | Y122: 99.21 | Z122: 181 | AA122: 96 | AB122: … | AC122: … | AD122: 25.42218031 | AE122: 53.54 | AF122: 54.2 | AG122: 171.58 | AH122: … | AI122: … | AJ122: … | AK122: … | AL122: 56.22 | AM122: … | AN122: 0.1687 | AO122: 0.176 | AP122: 1.3748 | AQ122: 0.403169588 | AR122: … | AS122: 2.866006 | AT122: 0.112215158 | AU122: 0.15873264 | AV122: 0.065 | AW122: 1121.04 | AX122: … | AY122: 38.89 | AZ122: … | BA122: 165.9081117 | BB122: … | BC122: 0.5999 | BD122: … | BE122: 0.5787 | BF122: 11.25 | BG122: 58 | BH122: 40 | BI122: 26.6 | BJ122: 22 | BK122: 584.2243652 | BL122: 9.84 | BM122: 1606.73 | BN122: 315.9 | BO122: 3470.1 | BP122: 2363.4 | BQ122: 293.9 | BR122: 41.09 | BS122: 122.5 | BT122: 1.6526
A123: 1969M09 | B123: 1.27 | C123: 1.27 | D123: 1.27 | E123: … | F123: … | G123: … | H123: 0.17 | I123: 0.4518199182 | J123: … | K123: … | L123: 0.9008 | M123: 0.9026 | N123: 0.7630014 | O123: 0.7262 | P123: 0.5964011 | Q123: 0.8626667 | R123: 0.7195997 | S123: 332.6 | T123: … | U123: … | V123: 318.88 | W123: 180.94 | X123: … | Y123: 100.86 | Z123: 200 | AA123: 92 | AB123: … | AC123: … | AD123: 24.53795139 | AE123: 51.18 | AF123: 56.8 | AG123: 167.55 | AH123: … | AI123: … | AJ123: … | AK123: … | AL123: 53.65 | AM123: … | AN123: 0.1792 | AO123: 0.176 | AP123: 1.3203 | AQ123: 0.4039548734 | AR123: … | AS123: 2.866006 | AT123: 0.112215158 | AU123: 0.15873264 | AV123: 0.0604 | AW123: 1096.94 | AX123: … | AY123: 38.89 | AZ123: … | BA123: 165.9081117 | BB123: … | BC123: 0.6131 | BD123: … | BE123: 0.5426 | BF123: 11.25 | BG123: 58 | BH123: 40 | BI123: 26.6 | BJ123: 22 | BK123: 584.2243652 | BL123: 9.84 | BM123: 1578.95 | BN123: 302.5 | BO123: 3470.1 | BP123: 2363.4 | BQ123: 299.4 | BR123: 40.87 | BS123: 122.5 | BT123: 1.7855
A124: 1969M10 | B124: 1.27 | C124: 1.27 | D124: 1.27 | E124: … | F124: … | G124: … | H124: 0.17 | I124: 0.4518199182 | J124: … | K124: … | L124: 0.9186 | M124: 1.0401 | N124: 0.8450114 | O124: 0.7262 | P124: 0.5964011 | Q124: 0.8626667 | R124: 0.7195997 | S124: 336.6 | T124: … | U124: … | V124: 331.09 | W124: 203.14 | X124: … | Y124: 102.99 | Z124: 240 | AA124: 92 | AB124: … | AC124: … | AD124: 24.37996013 | AE124: 51.87 | AF124: 57.4 | AG124: 167.36 | AH124: … | AI124: … | AJ124: … | AK124: … | AL124: 52.18 | AM124: … | AN124: 0.1704 | AO124: 0.176 | AP124: 1.2324 | AQ124: 0.4054787207 | AR124: … | AS124: 2.866006 | AT124: 0.112215158 | AU124: 0.16093726 | AV124: 0.065 | AW124: 1139.14 | AX124: … | AY124: 38.89 | AZ124: … | BA124: 165.9081117 | BB124: … | BC124: 0.6272 | BD124: … | BE124: 0.5027 | BF124: 11.25 | BG124: 58 | BH124: 40 | BI124: 26.6 | BJ124: 22 | BK124: 601.8613281 | BL124: 9.84 | BM124: 1554.48 | BN124: 293.7 | BO124: 3534 | BP124: 2363.4 | BQ124: 298.9 | BR124: 40.44 | BS124: 122.75 | BT124: 1.8725
A125: 1969M11 | B125: 1.27 | C125: 1.27 | D125: 1.27 | E125: … | F125: … | G125: … | H125: 0.17 | I125: 0.4518199182 | J125: … | K125: … | L125: 0.9321 | M125: 1.0247 | N125: 0.8207611 | O125: 0.7262 | P125: 0.5964011 | Q125: 0.8626667 | R125: 0.7195997 | S125: 357.4 | T125: … | U125: … | V125: 346.64 | W125: 203.14 | X125: … | Y125: 106.53 | Z125: 260 | AA125: 91 | AB125: … | AC125: … | AD125: 24.62875313 | AE125: 53.16 | AF125: 57.5 | AG125: 167.55 | AH125: … | AI125: … | AJ125: … | AK125: … | AL125: 52.18 | AM125: … | AN125: 0.1642 | AO125: 0.176 | AP125: 1.2114 | AQ125: 0.4068182082 | AR125: … | AS125: 2.866006 | AT125: 0.112215158 | AU125: 0.15873264 | AV125: 0.067 | AW125: 1096.38 | AX125: … | AY125: 38.89 | AZ125: … | BA125: 165.9081117 | BB125: … | BC125: 0.6477 | BD125: … | BE125: 0.4537 | BF125: 11.25 | BG125: 58 | BH125: 40 | BI125: 26.6 | BJ125: 22 | BK125: 606.2705078 | BL125: 9.84 | BM125: 1631.42 | BN125: 315.7 | BO125: 3642 | BP125: 2363.4 | BQ125: 309.5 | BR125: 37.4 | BS125: 132.5 | BT125: 1.9231
A126: 1969M12 | B126: 1.27 | C126: 1.27 | D126: 1.27 | E126: … | F126: … | G126: … | H126: 0.17 | I126: 0.4518199182 | J126: … | K126: … | L126: 0.8512 | M126: 1.0479 | N126: 0.8284771 | O126: 0.7262 | P126: 0.5964011 | Q126: 0.8626667 | R126: 0.7195997 | S126: 399.4 | T126: … | U126: … | V126: 334.54 | W126: 255.11 | X126: … | Y126: 106.29 | Z126: 251 | AA126: 96 | AB126: … | AC126: … | AD126: 24.54062762 | AE126: 52.36 | AF126: 56.5 | AG126: 161.07 | AH126: … | AI126: … | AJ126: … | AK126: … | AL126: 52.18 | AM126: … | AN126: 0.1565 | AO126: 0.1632 | AP126: 1.2145 | AQ126: 0.4092876381 | AR126: … | AS126: 2.866006 | AT126: 0.112215158 | AU126: 0.1543234 | AV126: 0.0622 | AW126: 1061.92 | AX126: … | AY126: 38.89 | AZ126: … | BA126: 165.9081117 | BB126: … | BC126: 0.6559 | BD126: … | BE126: 0.4702 | BF126: 11.25 | BG126: 58 | BH126: 40 | BI126: 26.6 | BJ126: 22 | BK126: 606.2705078 | BL126: 9.84 | BM126: 1699.76 | BN126: 334 | BO126: 3818.4 | BP126: 2363.4 | BQ126: 310.2 | BR126: 35.17 | BS126: 132.5 | BT126: 1.8071
A127: 1970M01 | B127: 1.21 | C127: 1.21 | D127: 1.21 | E127: … | F127: 7.8 | G127: … | H127: 0.17 | I127: 0.4472180101 | J127: … | K127: … | L127: 0.675 | M127: 1.1369 | N127: 0.8619865 | O127: 0.835 | P127: 0.6266412 | Q127: 0.9906667 | R127: 0.8875996 | S127: 405.8 | T127: … | U127: … | V127: 349.83 | W127: 255.34 | X127: … | Y127: 107 | Z127: 252 | AA127: 101 | AB127: … | AC127: … | AD127: 25.52705957 | AE127: 58.4 | AF127: 51.8 | AG127: 140.45 | AH127: … | AI127: … | AJ127: … | AK127: … | AL127: 52.18 | AM127: … | AN127: 0.1656 | AO127: 0.1696 | AP127: 1.2957 | AQ127: 0.4117242458 | AR127: … | AS127: 2.7337288 | AT127: 0.112215158 | AU127: 0.1653465 | AV127: 0.0791 | AW127: 1078.11 | AX127: 42.99 | AY127: 38.89 | AZ127: 175 | BA127: 165.9081117 | BB127: … | BC127: 0.6448 | BD127: … | BE127: 0.5042 | BF127: 11 | BG127: 54 | BH127: 44 | BI127: 18.25 | BJ127: 31.5 | BK127: 606.2705078 | BL127: 9.84 | BM127: 1626.3 | BN127: 324.7 | BO127: 3842.7 | BP127: 2846.2 | BQ127: 302.4 | BR127: 34.94 | BS127: 132.5 | BT127: 1.8765
A128: 1970M02 | B128: 1.21 | C128: 1.21 | D128: 1.21 | E128: … | F128: 7.8 | G128: … | H128: 0.17 | I128: 0.4472180101 | J128: … | K128: … | L128: 0.675 | M128: 1.1453 | N128: 0.8474364 | O128: 0.835 | P128: 0.6266412 | Q128: 0.9906667 | R128: 0.8875996 | S128: 406.28 | T128: … | U128: … | V128: 346.99 | W128: 256.29 | X128: … | Y128: 110 | Z128: 257 | AA128: 102 | AB128: … | AC128: … | AD128: 25.56943559 | AE128: 58.4 | AF128: 51.8 | AG128: 133.38 | AH128: … | AI128: … | AJ128: … | AK128: … | AL128: 52.18 | AM128: … | AN128: 0.1744 | AO128: 0.1696 | AP128: 1.3338 | AQ128: 0.413331279 | AR128: … | AS128: 2.7337288 | AT128: 0.112215158 | AU128: 0.16314188 | AV128: 0.069 | AW128: 1114.27 | AX128: 42.99 | AY128: 40.63 | AZ128: 175 | BA128: 169.8761521 | BB128: … | BC128: 0.6516 | BD128: … | BE128: 0.4797 | BF128: 11 | BG128: 54 | BH128: 44 | BI128: 18.25 | BJ128: 31.5 | BK128: 606.2705078 | BL128: 9.84 | BM128: 1657.2 | BN128: 341 | BO128: 3767.7 | BP128: 2846.2 | BQ128: 298 | BR128: 34.99 | BS128: 132.5 | BT128: 1.8958
A129: 1970M03 | B129: 1.21 | C129: 1.21 | D129: 1.21 | E129: … | F129: 7.8 | G129: … | H129: 0.17 | I129: 0.4472180101 | J129: … | K129: … | L129: 0.675 | M129: 1.1711 | N129: 0.8679388 | O129: 0.835 | P129: 0.6266412 | Q129: 0.9906667 | R129: 0.8875996 | S129: 406.28 | T129: … | U129: … | V129: 343.45 | W129: 258.88 | X129: … | Y129: 111 | Z129: 268 | AA129: 97 | AB129: … | AC129: … | AD129: 25.61188195 | AE129: 58.4 | AF129: 51.8 | AG129: 126.31 | AH129: … | AI129: … | AJ129: … | AK129: … | AL129: 52.18 | AM129: … | AN129: 0.1936 | AO129: 0.159 | AP129: 1.3461 | AQ129: 0.4138796461 | AR129: … | AS129: 2.7337288 | AT129: 0.112215158 | AU129: 0.16093726 | AV129: 0.0745 | AW129: 1111.53 | AX129: 42.99 | AY129: 41.67 | AZ129: 175 | BA129: 172.2105768 | BB129: … | BC129: 0.657 | BD129: … | BE129: 0.4433 | BF129: 11 | BG129: 54 | BH129: 44 | BI129: 18.25 | BJ129: 31.5 | BK129: 606.2705078 | BL129: 9.84 | BM129: 1754 | BN129: 335.5 | BO129: 3796.4 | BP129: 2846.2 | BQ129: 296 | BR129: 35.09 | BS129: 132.5 | BT129: 1.8885
A130: 1970M04 | B130: 1.21 | C130: 1.21 | D130: 1.21 | E130: … | F130: 7.8 | G130: … | H130: 0.17 | I130: 0.4472180101 | J130: … | K130: … | L130: 0.675 | M130: 1.2028 | N130: 0.9129121 | O130: 0.835 | P130: 0.6266412 | Q130: 0.9906667 | R130: 0.8875996 | S130: 406.28 | T130: … | U130: … | V130: 358.57 | W130: 267.62 | X130: … | Y130: 112 | Z130: 298 | AA130: 97 | AB130: … | AC130: … | AD130: 25.65439878 | AE130: 58.4 | AF130: 51.8 | AG130: 121.59 | AH130: … | AI130: … | AJ130: … | AK130: … | AL130: 52.18 | AM130: … | AN130: 0.1713 | AO130: 0.1616 | AP130: 1.3622 | AQ130: 0.4153201367 | AR130: … | AS130: 2.7337288 | AT130: 0.112215158 | AU130: 0.16093726 | AV130: 0.0787 | AW130: 1119.96 | AX130: 42.99 | AY130: 41.81 | AZ130: 175 | BA130: 172.5227697 | BB130: … | BC130: 0.6618 | BD130: … | BE130: 0.4202 | BF130: 11 | BG130: 54 | BH130: 44 | BI130: 18.25 | BJ130: 31.5 | BK130: 612.8842773 | BL130: 9.84 | BM130: 1741.6 | BN130: 321.2 | BO130: 3849.3 | BP130: 2846.2 | BQ130: 293.4 | BR130: 35.62 | BS130: 132.5 | BT130: 1.8529
A131: 1970M05 | B131: 1.21 | C131: 1.21 | D131: 1.21 | E131: … | F131: 7.8 | G131: … | H131: 0.17 | I131: 0.4472180101 | J131: … | K131: … | L131: 0.675 | M131: 1.217 | N131: 0.9400282 | O131: 0.835 | P131: 0.6266412 | Q131: 0.9906667 | R131: 0.8875996 | S131: 399.19 | T131: … | U131: … | V131: 383.84 | W131: 278.73 | X131: … | Y131: 115 | Z131: 292 | AA131: 98 | AB131: … | AC131: … | AD131: 25.69698618 | AE131: 58.4 | AF131: 51.8 | AG131: 121.59 | AH131: … | AI131: … | AJ131: … | AK131: … | AL131: 52.18 | AM131: … | AN131: 0.1892 | AO131: 0.159 | AP131: 1.3349 | AQ131: 0.4169484097 | AR131: … | AS131: 2.7337288 | AT131: 0.112215158 | AU131: 0.16755112 | AV131: 0.0805 | AW131: 1074.77 | AX131: 42.99 | AY131: 43.5 | AZ131: 175 | BA131: 176.2541412 | BB131: … | BC131: 0.6645 | BD131: … | BE131: 0.4149 | BF131: 11 | BG131: 54 | BH131: 44 | BI131: 18.25 | BJ131: 31.5 | BK131: 617.2937012 | BL131: 9.84 | BM131: 1597.9 | BN131: 291.6 | BO131: 3736.8 | BP131: 2846.2 | BQ131: 291.7 | BR131: 35.95 | BS131: 132.5 | BT131: 1.67
A132: 1970M06 | B132: 1.21 | C132: 1.21 | D132: 1.21 | E132: … | F132: 7.8 | G132: … | H132: 0.17 | I132: 0.4472180101 | J132: … | K132: … | L132: 0.675 | M132: 1.2061 | N132: 0.9298873 | O132: 0.835 | P132: 0.6266412 | Q132: 0.9906667 | R132: 0.8875996 | S132: 389.74 | T132: … | U132: … | V132: 383.37 | W132: 277.07 | X132: … | Y132: 118 | Z132: 288 | AA132: 102 | AB132: … | AC132: … | AD132: 25.73964429 | AE132: 58.4 | AF132: 51.8 | AG132: 123.95 | AH132: … | AI132: … | AJ132: … | AK132: … | AL132: 52.18 | AM132: … | AN132: 0.1819 | AO132: 0.1563 | AP132: 1.2979 | AQ132: 0.4191157183 | AR132: … | AS132: 2.7337288 | AT132: 0.112215158 | AU132: 0.16755112 | AV132: 0.0842 | AW132: 1047.34 | AX132: 42.99 | AY132: 44.44 | AZ132: 175 | BA132: 178.3007288 | BB132: … | BC132: 0.666 | BD132: … | BE132: 0.412 | BF132: 11 | BG132: 54 | BH132: 44 | BI132: 18.25 | BJ132: 31.5 | BK132: 617.2937012 | BL132: 9.84 | BM132: 1458 | BN132: 308.2 | BO132: 3542.8 | BP132: 2846.2 | BQ132: 293.2 | BR132: 35.42 | BS132: 132.5 | BT132: 1.6394
A133: 1970M07 | B133: 1.21 | C133: 1.21 | D133: 1.21 | E133: … | F133: 7.8 | G133: … | H133: 0.17 | I133: 0.4472180101 | J133: … | K133: … | L133: 0.675 | M133: 1.2121 | N133: 0.9424534 | O133: 0.835 | P133: 0.6266412 | Q133: 0.9906667 | R133: 0.8875996 | S133: 389.74 | T133: … | U133: … | V133: 385.73 | W133: 261.01 | X133: … | Y133: 122 | Z133: 290 | AA133: 106 | AB133: … | AC133: … | AD133: 25.86384657 | AE133: 58.4 | AF133: 51.8 | AG133: 124.93 | AH133: … | AI133: … | AJ133: … | AK133: … | AL133: 52.54 | AM133: … | AN133: 0.1479 | AO133: 0.1696 | AP133: 1.2928 | AQ133: 0.421266576 | AR133: … | AS133: 2.7337288 | AT133: 0.112215158 | AU133: 0.16755112 | AV133: 0.0842 | AW133: 1065.43 | AX133: 42.99 | AY133: 44.44 | AZ133: 175 | BA133: 178.3007288 | BB133: … | BC133: 0.6721 | BD133: … | BE133: 0.3829 | BF133: 11 | BG133: 54 | BH133: 41 | BI133: 18.25 | BJ133: 31.5 | BK133: 617.2937012 | BL133: 9.84 | BM133: 1366.6 | BN133: 300.7 | BO133: 3498.7 | BP133: 2846.2 | BQ133: 298.1 | BR133: 35.32 | BS133: 132.5 | BT133: 1.6866
A134: 1970M08 | B134: 1.21 | C134: 1.21 | D134: 1.21 | E134: … | F134: 7.8 | G134: … | H134: 0.17 | I134: 0.4472180101 | J134: … | K134: … | L134: 0.675 | M134: 1.1828 | N134: 0.9446578 | O134: 0.835 | P134: 0.6266412 | Q134: 0.9906667 | R134: 0.8875996 | S134: 377.93 | T134: … | U134: … | V134: 392.11 | W134: 240.22 | X134: … | Y134: 120 | Z134: 270 | AA134: 107 | AB134: … | AC134: … | AD134: 26.23691576 | AE134: 58.4 | AF134: 51.8 | AG134: 128.08 | AH134: … | AI134: … | AJ134: … | AK134: … | AL134: 54.01 | AM134: … | AN134: 0.1598 | AO134: 0.1696 | AP134: 1.2469 | AQ134: 0.4229024924 | AR134: … | AS134: 2.7337288 | AT134: 0.112215158 | AU134: 0.16755112 | AV134: 0.0841 | AW134: 1082.6 | AX134: 42.99 | AY134: 44.44 | AZ134: 175 | BA134: 178.3007288 | BB134: … | BC134: 0.6826 | BD134: … | BE134: 0.3713 | BF134: 11 | BG134: 54 | BH134: 41 | BI134: 18.25 | BJ134: 31.5 | BK134: 617.2937012 | BL134: 9.84 | BM134: 1266.5 | BN134: 285.4 | BO134: 3620 | BP134: 2846.2 | BQ134: 298.1 | BR134: 35.38 | BS134: 132.5 | BT134: 1.7977
A135: 1970M09 | B135: 1.21 | C135: 1.21 | D135: 1.21 | E135: … | F135: 7.8 | G135: … | H135: 0.17 | I135: 0.4472180101 | J135: … | K135: … | L135: 0.675 | M135: 1.1603 | N135: 0.9387055 | O135: 0.835 | P135: 0.6266412 | Q135: 0.9906667 | R135: 0.8875996 | S135: 381 | T135: … | U135: … | V135: 364.47 | W135: 226.29 | X135: … | Y135: 119 | Z135: 276 | AA135: 106 | AB135: … | AC135: … | AD135: 26.76858157 | AE135: 58.4 | AF135: 51.8 | AG135: 125.72 | AH135: … | AI135: … | AJ135: … | AK135: … | AL135: 56.22 | AM135: … | AN135: 0.1618 | AO135: 0.1696 | AP135: 1.28 | AQ135: 0.42420408 | AR135: … | AS135: 2.7337288 | AT135: 0.112215158 | AU135: 0.16755112 | AV135: 0.0853 | AW135: 1071.75 | AX135: 42.99 | AY135: 44.44 | AZ135: 175 | BA135: 178.3007288 | BB135: … | BC135: 0.6918 | BD135: … | BE135: 0.3649 | BF135: 11 | BG135: 54 | BH135: 41 | BI135: 18.25 | BJ135: 31.5 | BK135: 617.2937012 | BL135: 9.84 | BM135: 1246.9 | BN135: 284.8 | BO135: 3646.4 | BP135: 2846.2 | BQ135: 300 | BR135: 36.19 | BS135: 132.5 | BT135: 1.8016
A136: 1970M10 | B136: 1.21 | C136: 1.21 | D136: 1.21 | E136: … | F136: 7.8 | G136: … | H136: 0.17 | I136: 0.4472180101 | J136: … | K136: … | L136: 0.675 | M136: 1.1197 | N136: 0.9415715 | O136: 0.835 | P136: 0.6266412 | Q136: 0.9906667 | R136: 0.8875996 | S136: 398.48 | T136: … | U136: … | V136: 390.22 | W136: 257.47 | X136: … | Y136: 123 | Z136: 304 | AA136: 104 | AB136: … | AC136: … | AD136: 27.36867983 | AE136: 58.4 | AF136: 51.8 | AG136: 124.44 | AH136: … | AI136: … | AJ136: … | AK136: … | AL136: 58.79 | AM136: … | AN136: 0.1693 | AO136: 0.1696 | AP136: 1.284 | AQ136: 0.4253340256 | AR136: … | AS136: 2.7337288 | AT136: 0.112215158 | AU136: 0.16755112 | AV136: 0.0866 | AW136: 1025.76 | AX136: 42.99 | AY136: 44.44 | AZ136: 175 | BA136: 178.3007288 | BB136: … | BC136: 0.6977 | BD136: … | BE136: 0.3481 | BF136: 11 | BG136: 54 | BH136: 41 | BI136: 18.25 | BJ136: 31.5 | BK136: 617.2937012 | BL136: 9.84 | BM136: 1142.4 | BN136: 285.2 | BO136: 3668.5 | BP136: 2846.2 | BQ136: 296.5 | BR136: 37.52 | BS136: 132.5 | BT136: 1.7458
A137: 1970M11 | B137: 1.21 | C137: 1.21 | D137: 1.21 | E137: … | F137: 7.8 | G137: … | H137: 0.17 | I137: 0.4472180101 | J137: … | K137: … | L137: 0.675 | M137: 1.0278 | N137: 0.9159985 | O137: 0.835 | P137: 0.6266412 | Q137: 0.9906667 | R137: 0.8875996 | S137: 401.56 | T137: … | U137: … | V137: 406.28 | W137: 269.99 | X137: … | Y137: 125 | Z137: 330 | AA137: 105 | AB137: … | AC137: … | AD137: 27.88019279 | AE137: 58.4 | AF137: 51.8 | AG137: 124.84 | AH137: … | AI137: … | AJ137: … | AK137: … | AL137: 60.99 | AM137: … | AN137: 0.1497 | AO137: 0.1696 | AP137: 1.2703 | AQ137: 0.4269890174 | AR137: … | AS137: 2.7337288 | AT137: 0.112215158 | AU137: 0.16314188 | AV137: 0.0901 | AW137: 1057.02 | AX137: 42.99 | AY137: 44.44 | AZ137: 175 | BA137: 178.3007288 | BB137: … | BC137: 0.709 | BD137: … | BE137: 0.3741 | BF137: 11 | BG137: 54 | BH137: 41 | BI137: 18.25 | BJ137: 31.5 | BK137: 617.2937012 | BL137: 9.84 | BM137: 1085.3 | BN137: 279.9 | BO137: 3615.6 | BP137: 2846.2 | BQ137: 293.2 | BR137: 37.44 | BS137: 132.5 | BT137: 1.7604
A138: 1970M12 | B138: 1.21 | C138: 1.21 | D138: 1.21 | E138: … | F138: 7.8 | G138: … | H138: 0.17 | I138: 0.4472180101 | J138: … | K138: … | L138: 0.675 | M138: 0.9775 | N138: 0.9190849 | O138: 0.835 | P138: 0.6266412 | Q138: 0.9906667 | R138: 0.8875996 | S138: 403.92 | T138: … | U138: … | V138: 437.69 | W138: 271.64 | X138: … | Y138: 121 | Z138: 311 | AA138: 106 | AB138: … | AC138: … | AD138: 28.38636321 | AE138: 58.4 | AF138: 51.8 | AG138: 120.42 | AH138: … | AI138: … | AJ138: … | AK138: … | AL138: 63.2 | AM138: … | AN138: 0.1285 | AO138: 0.1934 | AP138: 1.3069 | AQ138: 0.4286487867 | AR138: … | AS138: 2.7337288 | AT138: 0.112215158 | AU138: 0.1653465 | AV138: 0.0906 | AW138: 1063.19 | AX138: 42.99 | AY138: 44.44 | AZ138: 175 | BA138: 178.3007288 | BB138: … | BC138: 0.7165 | BD138: … | BE138: 0.3704 | BF138: 11 | BG138: 54 | BH138: 41 | BI138: 18.25 | BJ138: 31.5 | BK138: 617.2937012 | BL138: 9.84 | BM138: 1045.7 | BN138: 276.7 | BO138: 3496.5 | BP138: 2846.2 | BQ138: 289.2 | BR138: 37.44 | BS138: 132.5 | BT138: 1.6348
A139: 1971M01 | B139: 1.64 | C139: 1.64 | D139: 1.64 | E139: … | F139: 8.68 | G139: … | H139: 0.18 | I139: 0.5022435438 | J139: … | K139: … | L139: 0.538 | M139: 1.0031 | N139: 0.9298873 | O139: 0.7797 | P139: 0.6383995 | Q139: 0.7991994 | R139: 0.9015996 | S139: 409.82 | T139: … | U139: … | V139: 448.32 | W139: 273.29 | X139: … | Y139: 125 | Z139: 309 | AA139: 105 | AB139: … | AC139: … | AD139: 28.50975185 | AE139: 58.4 | AF139: 55.77 | AG139: 121.4 | AH139: … | AI139: … | AJ139: … | AK139: … | AL139: 63.57 | AM139: … | AN139: 0.138 | AO139: 0.1319 | AP139: 1.3358 | AQ139: 0.4299664241 | AR139: 0.8026 | AS139: 3.30693 | AT139: 0.112215158 | AU139: 0.16975574 | AV139: 0.104 | AW139: 1045.91 | AX139: 44.43 | AY139: 44.44 | AZ139: … | BA139: 178.3007288 | BB139: … | BC139: 0.7275 | BD139: … | BE139: 0.3534 | BF139: 11.25 | BG139: 57.5 | BH139: 40 | BI139: 16 | BJ139: 32.5 | BK139: 617.2937012 | BL139: 10.33 | BM139: 1010 | BN139: 262.5 | BO139: 3465.7 | BP139: 2932.1 | BQ139: 284.6 | BR139: 37.88 | BS139: 129 | BT139: 1.6396
A140: 1971M02 | B140: 1.64 | C140: 1.64 | D140: 1.64 | E140: … | F140: 8.68 | G140: … | H140: 0.18 | I140: 0.5022435438 | J140: … | K140: … | L140: 0.538 | M140: 0.9833 | N140: 0.9296668 | O140: 0.7781 | P140: 0.6695995 | Q140: 0.7631994 | R140: 0.9015996 | S140: 393.4 | T140: … | U140: … | V140: 479.5 | W140: 273.29 | X140: … | Y140: 125 | Z140: 297 | AA140: 101 | AB140: … | AC140: … | AD140: 28.55707926 | AE140: 58.4 | AF140: 55.77 | AG140: 105.1 | AH140: … | AI140: … | AJ140: … | AK140: … | AL140: 63.57 | AM140: … | AN140: 0.135 | AO140: 0.1462 | AP140: 1.3717 | AQ140: 0.4311503851 | AR140: 0.7913 | AS140: 3.30693 | AT140: 0.112215158 | AU140: 0.17416498 | AV140: 0.1063 | AW140: 1018.55 | AX140: 44.43 | AY140: 44.44 | AZ140: … | BA140: 178.3007288 | BB140: … | BC140: 0.7403 | BD140: … | BE140: 0.3333 | BF140: 11.25 | BG140: 57.5 | BH140: 40 | BI140: 16 | BJ140: 32.5 | BK140: 617.2937012 | BL140: 10.33 | BM140: 1020.2 | BN140: 266.1 | BO140: 3463.5 | BP140: 2932.1 | BQ140: 272.1 | BR140: 38.74 | BS140: 122.5 | BT140: 1.6003
A141: 1971M03 | B141: 1.64 | C141: 1.64 | D141: 1.64 | E141: … | F141: 8.68 | G141: … | H141: 0.18 | I141: 0.5022435438 | J141: … | K141: … | L141: 0.538 | M141: 1.0143 | N141: 0.9406896 | O141: 0.7565 | P141: 0.7031994 | Q141: 0.6647995 | R141: 0.9015996 | S141: 401.56 | T141: … | U141: … | V141: 481.87 | W141: 278.02 | X141: … | Y141: 124 | Z141: 300 | AA141: 100 | AB141: … | AC141: … | AD141: 28.4512035 | AE141: 58.4 | AF141: 55.77 | AG141: 98.91 | AH141: … | AI141: … | AJ141: … | AK141: … | AL141: 62.83 | AM141: … | AN141: 0.137 | AO141: 0.1524 | AP141: 1.3812 | AQ141: 0.4328718594 | AR141: 0.7846 | AS141: 3.30693 | AT141: 0.112215158 | AU141: 0.17196036 | AV141: 0.1034 | AW141: 1020.68 | AX141: 44.43 | AY141: 44.44 | AZ141: … | BA141: 178.3007288 | BB141: … | BC141: 0.7275 | BD141: … | BE141: 0.3353 | BF141: 11.25 | BG141: 57.5 | BH141: 40 | BI141: 16 | BJ141: 32.5 | BK141: 617.2937012 | BL141: 10.33 | BM141: 1144.1 | BN141: 267.4 | BO141: 3527.4 | BP141: 2932.1 | BQ141: 283.7 | BR141: 38.87 | BS141: 122.5 | BT141: 1.669
A142: 1971M04 | B142: 1.64 | C142: 1.64 | D142: 1.64 | E142: … | F142: 8.68 | G142: … | H142: 0.18 | I142: 0.5022435438 | J142: … | K142: … | L142: 0.538 | M142: 0.9894 | N142: 0.9400282 | O142: 1.0293 | P142: 0.6455995 | Q142: 1.540799 | R142: 0.9015996 | S142: 388.8 | T142: … | U142: … | V142: 462.97 | W142: 269.28 | X142: … | Y142: 119 | Z142: 292 | AA142: 98 | AB142: … | AC142: … | AD142: 28.42129862 | AE142: 58.4 | AF142: 55.77 | AG142: 95.67 | AH142: … | AI142: … | AJ142: … | AK142: … | AL142: 62.46 | AM142: … | AN142: 0.138 | AO142: 0.1711 | AP142: 1.4021 | AQ142: 0.4344097772 | AR142: 0.8191 | AS142: 3.30693 | AT142: 0.112215158 | AU142: 0.16975574 | AV142: 0.1005 | AW142: 1012.52 | AX142: 44.43 | AY142: 44.44 | AZ142: … | BA142: 178.3007288 | BB142: … | BC142: 0.7255 | BD142: … | BE142: 0.356 | BF142: 11.25 | BG142: 57.5 | BH142: 40 | BI142: 16 | BJ142: 32.5 | BK142: 617.2937012 | BL142: 10.33 | BM142: 1251.5 | BN142: 268 | BO142: 3562.7 | BP142: 2932.1 | BQ142: 283.5 | BR142: 39.01 | BS142: 122.5 | BT142: 1.726
A143: 1971M05 | B143: 1.64 | C143: 1.64 | D143: 1.64 | E143: … | F143: 8.68 | G143: … | H143: 0.18 | I143: 0.5022435438 | J143: … | K143: … | L143: 0.538 | M143: 1.0183 | N143: 0.9400282 | O143: 0.9141 | P143: 0.6551995 | Q143: 1.185599 | R143: 0.9015996 | S143: 359.04 | T143: … | U143: … | V143: 453.52 | W143: 242.82 | X143: … | Y143: 122 | Z143: 293 | AA143: 101 | AB143: … | AC143: … | AD143: 28.62275969 | AE143: 58.4 | AF143: 55.77 | AG143: 105.98 | AH143: … | AI143: … | AJ143: … | AK143: … | AL143: 63.2 | AM143: … | AN143: 0.139 | AO143: 0.1542 | AP143: 1.4039 | AQ143: 0.4368926057 | AR143: 0.7898 | AS143: 3.30693 | AT143: 0.112215158 | AU143: 0.17416498 | AV143: 0.0961 | AW143: 1038.8 | AX143: 44.43 | AY143: 44.31 | AZ143: … | BA143: 178.0188848 | BB143: … | BC143: 0.7535 | BD143: … | BE143: 0.3761 | BF143: 11.25 | BG143: 57.5 | BH143: 40 | BI143: 16 | BJ143: 32.5 | BK143: 617.2937012 | BL143: 10.33 | BM143: 1114.4 | BN143: 264.5 | BO143: 3520.8 | BP143: 2932.1 | BQ143: 287.7 | BR143: 40.52 | BS143: 122.5 | BT143: 1.6667
A144: 1971M06 | B144: 1.64 | C144: 1.64 | D144: 1.64 | E144: … | F144: 8.68 | G144: … | H144: 0.18 | I144: 0.5022435438 | J144: … | K144: … | L144: 0.538 | M144: 1.0022 | N144: 0.9340759 | O144: 0.8533 | P144: 0.6359995 | Q144: 1.022399 | R144: 0.9015996 | S144: 354.31 | T144: … | U144: … | V144: 441.24 | W144: 240.93 | X144: … | Y144: 127 | Z144: 310 | AA144: 104 | AB144: … | AC144: … | AD144: 28.28417917 | AE144: 58.4 | AF144: 55.77 | AG144: 109.22 | AH144: … | AI144: … | AJ144: … | AK144: … | AL144: 61.36 | AM144: … | AN144: 0.137 | AO144: 0.1542 | AP144: 1.3711 | AQ144: 0.4393730459 | AR144: 0.7582 | AS144: 3.30693 | AT144: 0.112215158 | AU144: 0.1763696 | AV144: 0.0915 | AW144: 1035.09 | AX144: 44.43 | AY144: 43.26 | AZ144: … | BA144: 175.7283573 | BB144: … | BC144: 0.7923 | BD144: … | BE144: 0.3424 | BF144: 11.25 | BG144: 57.5 | BH144: 40 | BI144: 16 | BJ144: 32.5 | BK144: 617.2937012 | BL144: 10.33 | BM144: 1074.2 | BN144: 273.3 | BO144: 3448 | BP144: 2932.1 | BQ144: 308.6 | BR144: 40.1 | BS144: 122.5 | BT144: 1.6081
A145: 1971M07 | B145: 1.74 | C145: 1.74 | D145: 1.74 | E145: … | F145: 8.68 | G145: … | H145: 0.18 | I145: 0.5022435438 | J145: … | K145: … | L145: 0.538 | M145: 0.9927 | N145: 0.928344 | O145: 0.9077 | P145: 0.6335995 | Q145: 1.187999 | R145: 0.9015996 | S145: 351.01 | T145: … | U145: … | V145: 439.58 | W145: 263.37 | X145: … | Y145: 134 | Z145: 336 | AA145: 107 | AB145: … | AC145: … | AD145: 28.33113213 | AE145: 58.4 | AF145: 55.77 | AG145: 111.48 | AH145: … | AI145: … | AJ145: … | AK145: … | AL145: 61.36 | AM145: … | AN145: 0.136 | AO145: 0.1542 | AP145: 1.3479 | AQ145: 0.441851845 | AR145: 0.7524 | AS145: 3.30693 | AT145: 0.112215158 | AU145: 0.1763696 | AV145: 0.092 | AW145: 1011.61 | AX145: 44.43 | AY145: 41.94 | AZ145: … | BA145: 172.8122327 | BB145: … | BC145: 0.7965 | BD145: … | BE145: 0.3314 | BF145: 11.25 | BG145: 66 | BH145: 46.5 | BI145: 16 | BJ145: 32.5 | BK145: 617.2937012 | BL145: 10.33 | BM145: 1115.3 | BN145: 261.9 | BO145: 3456.8 | BP145: 2932.1 | BQ145: 317.6 | BR145: 40.95 | BS145: 122.5 | BT145: 1.5808
A146: 1971M08 | B146: 1.74 | C146: 1.74 | D146: 1.74 | E146: … | F146: 8.68 | G146: … | H146: 0.18 | I146: 0.5022435438 | J146: … | K146: … | L146: 0.538 | M146: 1.0051 | N146: 0.9298873 | O146: 0.8626 | P146: 0.7128694 | Q146: 0.9732005 | R146: 0.9015996 | S146: 355.49 | T146: … | U146: … | V146: 439.64 | W146: 282.56 | X146: … | Y146: 131 | Z146: 335 | AA146: 108 | AB146: … | AC146: … | AD146: 28.29951031 | AE146: 58.4 | AF146: 55.77 | AG146: 113.35 | AH146: … | AI146: … | AJ146: … | AK146: … | AL146: 60.99 | AM146: … | AN146: 0.145 | AO146: 0.1542 | AP146: 1.3241 | AQ146: 0.4439813006 | AR146: 0.7502 | AS146: 3.30693 | AT146: 0.113758392 | AU146: 0.17857422 | AV146: 0.0937 | AW146: 1001.25 | AX146: 44.43 | AY146: 42.19 | AZ146: … | BA146: 173.3677348 | BB146: … | BC146: 0.8289 | BD146: … | BE146: 0.3157 | BF146: 11.25 | BG146: 66 | BH146: 46.5 | BI146: 16 | BJ146: 32.5 | BK146: 628.3166504 | BL146: 10.33 | BM146: 1097.9 | BN146: 258.3 | BO146: 3478.9 | BP146: 2932.1 | BQ146: 322.5 | BR146: 42.71 | BS146: 122.5 | BT146: 1.5866
A147: 1971M09 | B147: 1.74 | C147: 1.74 | D147: 1.74 | E147: … | F147: 8.68 | G147: … | H147: 0.18 | I147: 0.5022435438 | J147: … | K147: … | L147: 0.538 | M147: 0.9645 | N147: 0.9243758 | O147: 0.8546 | P147: 0.7260927 | Q147: 0.9360174 | R147: 0.9015996 | S147: 356.72 | T147: … | U147: … | V147: 429.75 | W147: 272.24 | X147: … | Y147: 124 | Z147: 296 | AA147: 99 | AB147: … | AC147: … | AD147: 28.34648871 | AE147: 58.4 | AF147: 55.77 | AG147: 120.61 | AH147: … | AI147: … | AJ147: … | AK147: … | AL147: 60.99 | AM147: … | AN147: 0.147 | AO147: 0.1542 | AP147: 1.2968 | AQ147: 0.4442880161 | AR147: 0.7901 | AS147: 3.30693 | AT147: 0.115522088 | AU147: 0.17416498 | AV147: 0.0879 | AW147: 1042.75 | AX147: 44.43 | AY147: 43.12 | AZ147: … | BA147: 175.4210303 | BB147: … | BC147: 0.8267 | BD147: … | BE147: 0.3232 | BF147: 11.25 | BG147: 66 | BH147: 46.5 | BI147: 16 | BJ147: 32.5 | BK147: 639.3398438 | BL147: 10.33 | BM147: 1056.4 | BN147: 239.2 | BO147: 3525.2 | BP147: 2932.1 | BQ147: 311.2 | BR147: 42.03 | BS147: 122.5 | BT147: 1.4214
A148: 1971M10 | B148: 1.74 | C148: 1.74 | D148: 1.74 | E148: … | F148: 8.68 | G148: … | H148: 0.18 | I148: 0.5022435438 | J148: … | K148: … | L148: 0.538 | M148: 0.9431 | N148: 0.9190849 | O148: 0.8477 | P148: 0.7049534 | Q148: 0.9366164 | R148: 0.9015996 | S148: 357.94 | T148: … | U148: … | V148: 404.03 | W148: 253.99 | X148: … | Y148: 125 | Z148: 305 | AA148: 101 | AB148: … | AC148: … | AD148: 28.23708645 | AE148: 58.4 | AF148: 55.77 | AG148: 121.69 | AH148: … | AI148: … | AJ148: … | AK148: … | AL148: 60.26 | AM148: … | AN148: 0.143 | AO148: 0.1542 | AP148: 1.3129 | AQ148: 0.4466334247 | AR148: 0.7979 | AS148: 3.30693 | AT148: 0.116403936 | AU148: 0.17416498 | AV148: 0.0928 | AW148: 1081.58 | AX148: 44.43 | AY148: 43.58 | AZ148: … | BA148: 176.4291059 | BB148: … | BC148: 0.8185 | BD148: … | BE148: 0.3157 | BF148: 11.25 | BG148: 66 | BH148: 46.5 | BI148: 16 | BJ148: 32.5 | BK148: 639.3398438 | BL148: 10.33 | BM148: 1041.2 | BN148: 229.5 | BO148: 3489.9 | BP148: 2932.1 | BQ148: 336.6 | BR148: 42.5 | BS148: 122.5 | BT148: 1.3358
A149: 1971M11 | B149: 1.74 | C149: 1.74 | D149: 1.74 | E149: … | F149: 8.68 | G149: … | H149: 0.18 | I149: 0.5022435438 | J149: … | K149: … | L149: 0.538 | M149: 0.9658 | N149: 0.9254781 | O149: 0.8207 | P149: 0.6930543 | Q149: 0.8675643 | R149: 0.9015996 | S149: 358.23 | T149: … | U149: … | V149: 396.01 | W149: 247.82 | X149: … | Y149: 125 | Z149: 301 | AA149: 102 | AB149: … | AC149: … | AD149: 28.28396123 | AE149: 58.4 | AF149: 55.77 | AG149: 118.06 | AH149: … | AI149: … | AJ149: … | AK149: … | AL149: 60.26 | AM149: … | AN149: 0.143 | AO149: 0.1542 | AP149: 1.2862 | AQ149: 0.4487964745 | AR149: 0.8479 | AS149: 3.30693 | AT149: 0.116624398 | AU149: 0.1763696 | AV149: 0.0935 | AW149: 1102.4 | AX149: 44.43 | AY149: 41.57 | AZ149: … | BA149: 171.9872864 | BB149: … | BC149: 0.8157 | BD149: … | BE149: 0.3153 | BF149: 11.25 | BG149: 66 | BH149: 46.5 | BI149: 16 | BJ149: 32.5 | BK149: 641.5444336 | BL149: 10.33 | BM149: 1013.9 | BN149: 221.8 | BO149: 3534 | BP149: 2932.1 | BQ149: 344.4 | BR149: 42.86 | BS149: 122.5 | BT149: 1.3199
A150: 1971M12 | B150: 1.74 | C150: 1.74 | D150: 1.74 | E150: … | F150: 8.68 | G150: … | H150: 0.18 | I150: 0.5022435438 | J150: … | K150: … | L150: 0.538 | M150: 1.0207 | N150: 0.9373828 | O150: 0.804 | P150: 0.7022277 | Q150: 0.8083196 | R150: 0.9015996 | S150: 300 | T150: … | U150: … | V150: 410.95 | W150: 233.69 | X150: … | Y150: 126 | Z150: 271 | AA150: 101 | AB150: … | AC150: … | AD150: 28.25095632 | AE150: 58.4 | AF150: 55.77 | AG150: 116.98 | AH150: … | AI150: … | AJ150: … | AK150: … | AL150: 59.89 | AM150: … | AN150: 0.144 | AO150: 0.1551 | AP150: 1.3166 | AQ150: 0.4505902934 | AR150: 0.877 | AS150: 3.30693 | AT150: 0.118167632 | AU150: 0.18298346 | AV150: 0.1275 | AW150: 1100.62 | AX150: 44.43 | AY150: 41.45 | AZ150: … | BA150: 171.7190116 | BB150: … | BC150: 0.8455 | BD150: … | BE150: 0.2928 | BF150: 11.25 | BG150: 66 | BH150: 46.5 | BI150: 16 | BJ150: 32.5 | BK150: 665.795166 | BL150: 10.33 | BM150: 1037.9 | BN150: 231 | BO150: 3670.7 | BP150: 2932.1 | BQ150: 358.9 | BR150: 43.48 | BS150: 122.5 | BT150: 1.3935
A151: 1972M01 | B151: 1.77 | C151: 1.77 | D151: 1.77 | E151: … | F151: 9.6 | G151: … | H151: 0.19 | I151: 0.5421659866 | J151: … | K151: … | L151: 0.644 | M151: 0.9905 | N151: 0.9296668 | O151: 0.7869 | P151: 0.7460141 | Q151: 0.8041081 | R151: 0.8105997 | S151: 300 | T151: … | U151: … | V151: 426.69 | W151: 218.34 | X151: … | Y151: 125 | Z151: 249 | AA151: 105 | AB151: … | AC151: … | AD151: 27.06295184 | AE151: 51.33 | AF151: 53.08 | AG151: 113.84 | AH151: … | AI151: … | AJ151: … | AK151: … | AL151: 59.89 | AM151: … | AN151: 0.131 | AO151: 0.1885 | AP151: 1.3858 | AQ151: 0.4533339114 | AR151: 0.92 | AS151: 4.1226394 | AT151: 0.1543234 | AU151: 0.19180194 | AV151: 0.1741 | AW151: 1106.83 | AX151: 52.48 | AY151: 40.35 | AZ151: … | BA151: 169.2429716 | BB151: … | BC151: 0.8884 | BD151: … | BE151: 0.3161 | BF151: 11.5 | BG151: 83 | BH151: 60 | BI151: 29.25 | BJ151: 33.5 | BK151: 670.2045898 | BL151: 10.33 | BM151: 1078 | BN151: 251.9 | BO151: 3626.6 | BP151: 3079.9 | BQ151: 379.8 | BR151: 45.75 | BS151: 122.5 | BT151: 1.4731
A152: 1972M02 | B152: 1.77 | C152: 1.77 | D152: 1.77 | E152: … | F152: 9.6 | G152: … | H152: 0.19 | I152: 0.5421659866 | J152: … | K152: … | L152: 0.644 | M152: 0.9996 | N152: 0.930769 | O152: 0.7923 | P152: 0.782494 | Q152: 0.7839261 | R152: 0.8105997 | S152: 250 | T152: … | U152: … | V152: 437.61 | W152: 185.17 | X152: … | Y152: 127 | Z152: 246 | AA152: 107 | AB152: … | AC152: … | AD152: 27.1789201 | AE152: 51.72 | AF152: 53.46 | AG152: 112.56 | AH152: … | AI152: … | AJ152: … | AK152: … | AL152: 59.89 | AM152: … | AN152: 0.14 | AO152: 0.1912 | AP152: 1.4042 | AQ152: 0.4564198636 | AR152: 0.8885 | AS152: 4.1226394 | AT152: 0.156087096 | AU152: 0.1873927 | AV152: 0.181 | AW152: 1115.16 | AX152: 52.48 | AY152: 42.13 | AZ152: … | BA152: 173.2345527 | BB152: … | BC152: 0.8964 | BD152: … | BE152: 0.3135 | BF152: 11.5 | BG152: 83 | BH152: 60 | BI152: 29.25 | BJ152: 33.5 | BK152: 670.2045898 | BL152: 10.33 | BM152: 1112.4 | BN152: 294.3 | BO152: 3631 | BP152: 3079.9 | BQ152: 389.7 | BR152: 48.26 | BS152: 122.5 | BT152: 1.5036
A153: 1972M03 | B153: 1.77 | C153: 1.77 | D153: 1.77 | E153: … | F153: 9.6 | G153: … | H153: 0.19 | I153: 0.5421659866 | J153: … | K153: … | L153: 0.644 | M153: 1.0192 | N153: 0.949508 | O153: 0.796 | P153: 0.8244459 | Q153: 0.7530807 | R153: 0.8105997 | S153: 210 | T153: … | U153: … | V153: 434.41 | W153: 216.68 | X153: … | Y153: 135 | Z153: 258 | AA153: 114 | AB153: … | AC153: … | AD153: 27.36711536 | AE153: 52.51 | AF153: 53.57 | AG153: 113.05 | AH153: … | AI153: … | AJ153: … | AK153: … | AL153: 59.89 | AM153: … | AN153: 0.133 | AO153: 0.1648 | AP153: 1.4548 | AQ153: 0.4604018283 | AR153: 0.9176 | AS153: 4.1226394 | AT153: 0.157189406 | AU153: 0.18959732 | AV153: 0.185 | AW153: 1088.67 | AX153: 52.48 | AY153: 43.98 | AZ153: … | BA153: 177.3017216 | BB153: … | BC153: 0.8707 | BD153: … | BE153: 0.3097 | BF153: 11.5 | BG153: 83 | BH153: 60 | BI153: 29.25 | BJ153: 33.5 | BK153: 670.2045898 | BL153: 10.33 | BM153: 1108.2 | BN153: 320.5 | BO153: 3789.7 | BP153: 3079.9 | BQ153: 397.4 | BR153: 48.33 | BS153: 122.5 | BT153: 1.5364
A154: 1972M04 | B154: 1.77 | C154: 1.77 | D154: 1.77 | E154: … | F154: 9.6 | G154: … | H154: 0.19 | I154: 0.5421659866 | J154: … | K154: … | L154: 0.644 | M154: 1.0115 | N154: 0.9627353 | O154: 0.814 | P154: 0.809854 | Q154: 0.8214722 | R154: 0.8105997 | S154: 200 | T154: … | U154: … | V154: 439.9 | W154: 227.34 | X154: … | Y154: 140 | Z154: 272 | AA154: 117 | AB154: … | AC154: … | AD154: 27.70040595 | AE154: 53.68 | AF154: 53.68 | AG154: 111.58 | AH154: … | AI154: … | AJ154: … | AK154: … | AL154: 60.26 | AM154: … | AN154: 0.135 | AO154: 0.1542 | AP154: 1.4991 | AQ154: 0.4636767418 | AR154: 0.9307 | AS154: 4.1226394 | AT154: 0.15652802 | AU154: 0.18518808 | AV154: 0.156 | AW154: 1066.04 | AX154: 52.48 | AY154: 43.57 | AZ154: … | BA154: 176.4072434 | BB154: … | BC154: 0.8651 | BD154: … | BE154: 0.3064 | BF154: 11.5 | BG154: 83 | BH154: 60 | BI154: 29.25 | BJ154: 33.5 | BK154: 670.2045898 | BL154: 10.33 | BM154: 1133 | BN154: 315.9 | BO154: 3844.9 | BP154: 3079.9 | BQ154: 395 | BR154: 49.03 | BS154: 122.5 | BT154: 1.572
A155: 1972M05 | B155: 1.77 | C155: 1.77 | D155: 1.77 | E155: … | F155: 9.6 | G155: … | H155: 0.19 | I155: 0.5421659866 | J155: … | K155: … | L155: 0.644 | M155: 1.0377 | N155: 0.9647195 | O155: 0.8577 | P155: 0.802558 | Q155: 0.9598383 | R155: 0.8105997 | S155: 220 | T155: … | U155: … | V155: 441.52 | W155: 227.51 | X155: … | Y155: 140 | Z155: 252 | AA155: 117 | AB155: … | AC155: … | AD155: 27.88868332 | AE155: 54.48 | AF155: 51.53 | AG155: 114.13 | AH155: … | AI155: … | AJ155: … | AK155: … | AL155: 60.26 | AM155: … | AN155: 0.1411 | AO155: 0.1331 | AP155: 1.5055 | AQ155: 0.4664567091 | AR155: 0.9847 | AS155: 4.1226394 | AT155: 0.15652802 | AU155: 0.17857422 | AV155: 0.1462 | AW155: 1060.87 | AX155: 52.48 | AY155: 42.54 | AZ155: … | BA155: 174.1429004 | BB155: … | BC155: 0.8598 | BD155: … | BE155: 0.3263 | BF155: 11.5 | BG155: 83 | BH155: 60 | BI155: 29.25 | BJ155: 33.5 | BK155: 599.6567383 | BL155: 10.33 | BM155: 1106.4 | BN155: 317.9 | BO155: 3765.5 | BP155: 3079.9 | BQ155: 386.2 | BR155: 54.62 | BS155: 122.5 | BT155: 1.583
A156: 1972M06 | B156: 1.77 | C156: 1.77 | D156: 1.77 | E156: … | F156: 9.6 | G156: … | H156: 0.19 | I156: 0.5421659866 | J156: … | K156: … | L156: 0.644 | M156: 1.0697 | N156: 0.9625149 | O156: 0.8665 | P156: 0.7350701 | Q156: 1.053885 | R156: 0.8105997 | S156: 248.46 | T156: … | U156: … | V156: 422.12 | W156: 216.13 | X156: … | Y156: 138 | Z156: 234 | AA156: 119 | AB156: … | AC156: … | AD156: 27.57409741 | AE156: 52.9 | AF156: 49.82 | AG156: 118.35 | AH156: … | AI156: … | AJ156: … | AK156: … | AL156: 59.89 | AM156: … | AN156: 0.137 | AO156: 0.1331 | AP156: 1.5351 | AQ156: 0.4695934689 | AR156: 1.229 | AS156: 4.1226394 | AT156: 0.154543862 | AU156: 0.18077884 | AV156: 0.1395 | AW156: 1072.21 | AX156: 52.48 | AY156: 40.75 | AZ156: … | BA156: 170.1469005 | BB156: … | BC156: 0.8313 | BD156: … | BE156: 0.3267 | BF156: 11.5 | BG156: 83 | BH156: 60 | BI156: 29.25 | BJ156: 33.5 | BK156: 566.5874023 | BL156: 10.33 | BM156: 1063.2 | BN156: 311.9 | BO156: 3741.2 | BP156: 3079.9 | BQ156: 371 | BR156: 62.09 | BS156: 122.5 | BT156: 1.569
A157: 1972M07 | B157: 1.87 | C157: 1.87 | D157: 1.87 | E157: … | F157: 9.6 | G157: … | H157: 0.19 | I157: 0.5421659866 | J157: … | K157: … | L157: 0.644 | M157: 1.2361 | N157: 1.043863 | O157: 0.7878 | P157: 0.5455723 | Q157: 1.007215 | R157: 0.8105997 | S157: 222.41 | T157: … | U157: … | V157: 403.2 | W157: 214.6 | X157: … | Y157: 141 | Z157: 226 | AA157: 127 | AB157: … | AC157: … | AD157: 27.90835788 | AE157: 54.07 | AF157: 51.92 | AG157: 119.33 | AH157: … | AI157: … | AJ157: … | AK157: … | AL157: 60.26 | AM157: … | AN157: 0.1311 | AO157: 0.1331 | AP157: 1.5066 | AQ157: 0.4737246678 | AR157: 1.1514 | AS157: 4.1226394 | AT157: 0.146386768 | AU157: 0.1873927 | AV157: 0.1225 | AW157: 1062.48 | AX157: 52.48 | AY157: 39.02 | AZ157: … | BA157: 166.2073611 | BB157: … | BC157: 0.7815 | BD157: … | BE157: 0.3241 | BF157: 11.5 | BG157: 99 | BH157: 75 | BI157: 29.25 | BJ157: 33.5 | BK157: 537.9272461 | BL157: 10.33 | BM157: 1034.6 | BN157: 303.7 | BO157: 3732.4 | BP157: 3079.9 | BQ157: 363.7 | BR157: 65.66 | BS157: 128 | BT157: 1.7358
A158: 1972M08 | B158: 1.87 | C158: 1.87 | D158: 1.87 | E158: … | F158: 9.6 | G158: … | H158: 0.19 | I158: 0.5421659866 | J158: … | K158: … | L158: 0.644 | M158: 1.2009 | N158: 1.040557 | O158: 0.772 | P158: 0.6359375 | Q158: 0.8693136 | R158: 0.8105997 | S158: 217.02 | T158: … | U158: … | V158: 413.54 | W158: 220.64 | X158: … | Y158: 141 | Z158: 223 | AA158: 126 | AB158: … | AC158: … | AD158: 28.62866726 | AE158: 55.66 | AF158: 54.94 | AG158: 135.55 | AH158: … | AI158: … | AJ158: … | AK158: … | AL158: 62.1 | AM158: … | AN158: 0.142 | AO158: 0.1331 | AP158: 1.4916 | AQ158: 0.4764038586 | AR158: 1.2221 | AS158: 4.1226394 | AT158: 0.146827692 | AU158: 0.19400656 | AV158: 0.1378 | AW158: 1081.81 | AX158: 52.48 | AY158: 39.27 | AZ158: … | BA158: 166.7815547 | BB158: … | BC158: 0.7415 | BD158: … | BE158: 0.317 | BF158: 11.5 | BG158: 99 | BH158: 75 | BI158: 29.25 | BJ158: 33.5 | BK158: 540.1318359 | BL158: 10.33 | BM158: 1046.7 | BN158: 297.8 | BO158: 3754.5 | BP158: 3079.9 | BQ158: 363.5 | BR158: 67.03 | BS158: 132.5 | BT158: 1.8461
A159: 1972M09 | B159: 1.87 | C159: 1.87 | D159: 1.87 | E159: … | F159: 9.6 | G159: … | H159: 0.19 | I159: 0.5421659866 | J159: … | K159: … | L159: 0.644 | M159: 1.1687 | N159: 1.034604 | O159: 0.7563 | P159: 0.69375 | Q159: 0.7644187 | R159: 0.8105997 | S159: 226 | T159: … | U159: … | V159: 412.33 | W159: 224.87 | X159: … | Y159: 135 | Z159: 225 | AA159: 138 | AB159: … | AC159: … | AD159: 32.15085874 | AE159: 59.2 | AF159: 58.2 | AG159: 144.8 | AH159: … | AI159: … | AJ159: … | AK159: … | AL159: 76.06 | AM159: … | AN159: 0.133 | AO159: 0.1331 | AP159: 1.4577 | AQ159: 0.4811275361 | AR159: 1.2 | AS159: 4.1226394 | AT159: 0.146386768 | AU159: 0.19400656 | AV159: 0.1558 | AW159: 1062.84 | AX159: 52.48 | AY159: 39.38 | AZ159: … | BA159: 167.033667 | BB159: … | BC159: 0.733 | BD159: … | BE159: 0.308 | BF159: 11.5 | BG159: 99 | BH159: 75 | BI159: 29.25 | BJ159: 33.5 | BK159: 537.9272461 | BL159: 10.33 | BM159: 1060.6 | BN159: 302.4 | BO159: 3803 | BP159: 3079.9 | BQ159: 368.4 | BR159: 65.46 | BS159: 132.5 | BT159: 1.7767
A160: 1972M10 | B160: 1.87 | C160: 1.87 | D160: 1.87 | E160: … | F160: 9.6 | G160: … | H160: 0.19 | I160: 0.5421659866 | J160: … | K160: … | L160: 0.644 | M160: 1.1779 | N160: 1.036809 | O160: 0.7401 | P160: 0.632931 | Q160: 0.7768683 | R160: 0.8105997 | S160: 232 | T160: … | U160: … | V160: 401.48 | W160: 224.02 | X160: … | Y160: 136 | Z160: 228 | AA160: 135 | AB160: … | AC160: … | AD160: 33.93238012 | AE160: 57.22 | AF160: 56.88 | AG160: 148.7 | AH160: … | AI160: … | AJ160: … | AK160: … | AL160: 87.45 | AM160: … | AN160: 0.135 | AO160: 0.1331 | AP160: 1.4687 | AQ160: 0.4835575873 | AR160: 1.1093 | AS160: 4.1226394 | AT160: 0.143741224 | AU160: 0.19400656 | AV160: 0.1633 | AW160: 1061.76 | AX160: 52.48 | AY160: 39.46 | AZ160: … | BA160: 167.216818 | BB160: … | BC160: 0.7799 | BD160: … | BE160: 0.3602 | BF160: 11.5 | BG160: 99 | BH160: 75 | BI160: 29.25 | BJ160: 33.5 | BK160: 537.9272461 | BL160: 10.33 | BM160: 917.5 | BN160: 297.2 | BO160: 3758.9 | BP160: 3079.9 | BQ160: 363.7 | BR160: 64.86 | BS160: 132.5 | BT160: 1.8106
A161: 1972M11 | B161: 1.87 | C161: 1.87 | D161: 1.87 | E161: … | F161: 9.6 | G161: … | H161: 0.19 | I161: 0.5421659866 | J161: … | K161: … | L161: 0.644 | M161: 1.1859 | N161: 1.044304 | O161: 0.7099 | P161: 0.5837871 | Q161: 0.7353197 | R161: 0.8105997 | S161: 234.96 | T161: … | U161: … | V161: 422.59 | W161: 218.54 | X161: … | Y161: 148 | Z161: 240 | AA161: 155 | AB161: … | AC161: … | AD161: 34.65496025 | AE161: 59.2 | AF161: 61.95 | AG161: 156 | AH161: … | AI161: … | AJ161: … | AK161: … | AL161: 88.92 | AM161: … | AN161: 0.141 | AO161: 0.1331 | AP161: 1.4846 | AQ161: 0.4893380932 | AR161: 1.1214 | AS161: 4.1226394 | AT161: 0.14109568 | AU161: 0.18518808 | AV161: 0.1604 | AW161: 1048.86 | AX161: 52.48 | AY161: 39.46 | AZ161: … | BA161: 167.216818 | BB161: … | BC161: 0.8143 | BD161: … | BE161: 0.3721 | BF161: 11.5 | BG161: 99 | BH161: 75 | BI161: 29.25 | BJ161: 33.5 | BK161: 540.1318359 | BL161: 10.33 | BM161: 1007.1 | BN161: 298 | BO161: 3701.6 | BP161: 3079.9 | BQ161: 378.9 | BR161: 62.91 | BS161: 132.5 | BT161: 1.8325
